Workbook

Sheet Age profile chart

Sheet Forecast Ch1

Sheet Age profile summary
A1: Asset calcs | R1: Remaining life | W1: RC ($ millions) | AB1: RC (%)
R2: Very old | S2: Old | T2: moderate | U2: young | V2: new | W2: =R2 -> Very old | X2: =S2 -> Old | Y2: moderate | Z2: young | AA2: new | AB2: Very old | AC2: Old | AD2: moderate | AE2: young | AF2: new
M3: WARL | O3: WAL | Q3: WAA | R3: > | S3: > | T3: > | U3: > | V3: <=0.2 | W3: =R3 -> > | X3: > | Y3: > | Z3: > | AA3: <=0.2 | AB3: > | AC3: > | AD3: > | AE3: > | AF3: <=0.2
F4: Quantity | G4: Unit | H4: RC | I4: prop total | J4: Rank | K4: prop cat | L4: RC / unit | M4: (Rep life) | O4: Rep life | Q4: % Rep life | R4: =W4 -> 0.9 | S4: =X4 -> 0.8 | T4: =Y4 -> 0.4 | U4: =Z4 -> 0.2 | W4: 0.9 | X4: 0.8 | Y4: 0.4 | Z4: 0.2 | AA4: 0 | AB4: 0.9 | AC4: 0.8 | AD4: 0.4 | AE4: 0.2 | AF4: 0 | AG4: Std life | AH4: Std life | AI4: rep life
G5: Cost | H5: $ millions | I5: % | J5: total | K5: % | L5: $ ('000) | AG5: max | AH5: min
A6: 1 | D6: =VLOOKUP(A6,IDtable,2) -> POLES | F6: =SUMIF($A$21:$A$205,$A6,F$21:F$205) -> 744782.051 | H6: =SUMIF($A$21:$A$205,$A6,H$21:H$205)/1000 -> 3001.690003 | I6: =H6/($H$18) -> 0.1244608177 | J6: =RANK(I6,I$6:I$17) -> 3 | L6: =H6*1000/(F6+0.001) -> 4.030293151 | M6: =SUMIF($A$21:$A$205,$A6,N$21:N$205)/(H6*1000+0.000001) -> 28.21149755 | O6: =SUMIF($A$21:$A$205,$A6,P$21:P$205)/(H6*1000+0.000001) -> 71.90161661 | Q6: =(O6-M6)/(O6+0.000001) -> 0.6076374985 | R6: =$O6-R$4*$O6 -> 7.190161661 | S6: =$O6-S$4*$O6 -> 14.38032332 | T6: =$O6-T$4*$O6 -> 43.14096997 | U6: =$O6-U$4*$O6 -> 57.52129329 | V6: =$O6-V$4*$O6 -> 71.90161661 | W6: =SUMIF($A$21:$A$205,$A6,W$21:W$205)/1000 -> 148.8555881 | X6: 245.5977777 | Y6: 2063.532771 | Z6: 357.9203039 | AA6: 185.7835625 | AB6: =IF($H6=0,0,W6/$H6) -> 0.04959059327 | AC6: =IF($H6=0,0,X6/$H6) -> 0.08181983398 | AD6: =IF($H6=0,0,Y6/$H6) -> 0.6874569888 | AE6: =IF($H6=0,0,Z6/$H6) -> 0.1192395962 | AF6: =IF($H6=0,0,AA6/$H6) -> 0.06189298772 | AG6: =MAX(IF($A$21:$A$205=$A6,$O$21:$O$205)) -> 74.58328491 | AH6: =MIN(IF($A$21:$A$205=$A6,$O$21:$O$205)) -> 20 | AI6: =IF(H6=0,0,SUMIF($A$21:$A$205,$A6,$AJ$21:$AJ$205)/(H6*1000)) -> 71.90161661
A7: 2 | D7: OVERHEAD CONDUCTORS | F7: =SUMIF($A$21:$A$205,$A7,F$21:F$205) -> 174282.875 | H7: =SUMIF($A$21:$A$205,$A7,H$21:H$205)/1000 -> 12945.13718 | I7: =H7/($H$18) -> 0.536751749 | J7: 1 | L7: 74.27658688 | M7: 28.2054062 | O7: 78.45465849 | Q7: 0.6404878004 | R7: =$O7-R$4*$O7 -> 7.845465849 | S7: 15.6909317 | T7: 47.07279509 | U7: 62.76372679 | V7: 78.45465849 | W7: 242.8156478 | X7: 1500.213299 | Y7: 10075.9487 | Z7: 732.0103199 | AA7: 394.1492135 | AB7: =IF($H7=0,0,W7/$H7) -> 0.01875728657 | AC7: =IF($H7=0,0,X7/$H7) -> 0.1158901043 | AD7: =IF($H7=0,0,Y7/$H7) -> 0.7783578158 | AE7: =IF($H7=0,0,Z7/$H7) -> 0.05654712729 | AF7: =IF($H7=0,0,AA7/$H7) -> 0.03044766602 | AG7: =MAX(IF($A$21:$A$205=$A7,$O$21:$O$205)) -> 87.94502172 | AH7: =MIN(IF($A$21:$A$205=$A7,$O$21:$O$205)) -> 72.96604648 | AI7: =IF(H7=0,0,SUMIF($A$21:$A$205,$A7,$AJ$21:$AJ$205)/(H7*1000)) -> 78.45465849
A8: 3 | D8: UNDERGROUND CABLES | F8: 16918 | H8: 5042.837051 | I8: 0.2090940844 | J8: 2 | L8: 298.0752307 | M8: 37.56701845 | O8: 72.28051111 | Q8: 0.4802607458 | R8: 7.228051111 | S8: 14.45610222 | T8: 43.36830666 | U8: 57.82440889 | V8: 72.28051111 | W8: 9.5076813 | X8: 86.2728499 | Y8: 3471.378716 | Z8: 495.2130103 | AA8: 980.4647933 | AB8: 0.001885383407 | AC8: 0.01710799874 | AD8: 0.6883781254 | AE8: 0.09820127149 | AF8: 0.1944272209 | AG8: =MAX(IF($A$21:$A$205=$A8,$O$21:$O$205)) -> 80 | AH8: =MIN(IF($A$21:$A$205=$A8,$O$21:$O$205)) -> 63.84500055 | AI8: 72.28051111
A9: 4 | D9: SERVICE LINES | F9: 751851 | H9: 598.6382383 | I9: 0.02482168531 | J9: 5 | L9: 0.7962192476 | M9: 32.88410122 | O9: 61.86916699 | Q9: 0.4684896648 | R9: 6.186916699 | S9: 12.3738334 | T9: 37.12150019 | U9: 49.49533359 | V9: 61.86916699 | W9: 9.032417 | X9: 57.2419041 | Y9: 277.0015794 | Z9: 162.0921586 | AA9: 93.2701792 | AB9: 0.01508827272 | AC9: 0.09562019336 | AD9: 0.4627194885 | AE9: 0.2707681338 | AF9: 0.1558039117 | AG9: =MAX(IF($A$21:$A$205=$A9,$O$21:$O$205)) -> 62.45972627 | AH9: =MIN(IF($A$21:$A$205=$A9,$O$21:$O$205)) -> 56.06536246 | AI9: 61.86916699
A10: 5 | D10: TRANSFORMERS | F10: 76156 | H10: 1983.078029 | I10: 0.08222551726 | J10: 4 | L10: 26.03968175 | M10: 36.87532419 | O10: 64.35623519 | Q10: 0.427012402 | R10: 6.435623519 | S10: 12.87124704 | T10: 38.61374111 | U10: 51.48498815 | V10: 64.35623519 | W10: 103.5296593 | X10: 98.1894362 | Y10: 810.3140501 | Z10: 491.5773671 | AA10: 479.4675167 | AB10: 0.05220654849 | AC10: 0.04951365238 | AD10: 0.4086143047 | AE10: 0.2478860437 | AF10: 0.2417794507 | AG10: =MAX(IF($A$21:$A$205=$A10,$O$21:$O$205)) -> 112.0996408 | AH10: =MIN(IF($A$21:$A$205=$A10,$O$21:$O$205)) -> 30.19434888 | AI10: 64.35623519
A11: 6 | D11: SWITCHGEAR | F11: 15837 | H11: 546.1695658 | I11: 0.02264614624 | J11: 6 | L11: 34.48693132 | M11: 29.06754792 | O11: 53.72765659 | Q11: 0.4589835063 | R11: 5.372765659 | S11: 10.74553132 | T11: 32.23659395 | U11: 42.98212527 | V11: 53.72765659 | W11: 66.8713032 | X11: 63.4506408 | Y11: 132.8732743 | Z11: 64.310448 | AA11: 218.6638995 | AB11: 0.1224368903 | AC11: 0.1161738859 | AD11: 0.2432820915 | AE11: 0.1177481354 | AF11: 0.4003589969 | AG11: =MAX(IF($A$21:$A$205=$A11,$O$21:$O$205)) -> 66.73175532 | AH11: =MIN(IF($A$21:$A$205=$A11,$O$21:$O$205)) -> 45 | AI11: 53.72765659
A12: 7 | D12: PUBLIC LIGHTING | F12: 0 | H12: 0 | I12: 0 | J12: 7 | L12: 0 | M12: 0 | O12: 0 | Q12: 0 | R12: 0 | S12: 0 | T12: 0 | U12: 0 | V12: 0 | W12: 0 | X12: 0 | Y12: 0 | Z12: 0 | AA12: 0 | AB12: 0 | AC12: 0 | AD12: 0 | AE12: 0 | AF12: 0 | AG12: =MAX(IF($A$21:$A$205=$A12,$O$21:$O$205)) -> 0 | AH12: =MIN(IF($A$21:$A$205=$A12,$O$21:$O$205)) -> 0 | AI12: 0
A13: 8 | D13: SCADA, NETWORK CONTROL AND PROTECTION | F13: 0 | H13: 0 | I13: 0 | J13: 7 | L13: 0 | M13: 0 | O13: 0 | Q13: 0 | R13: 0 | S13: 0 | T13: 0 | U13: 0 | V13: 0 | W13: 0 | X13: 0 | Y13: 0 | Z13: 0 | AA13: 0 | AB13: 0 | AC13: 0 | AD13: 0 | AE13: 0 | AF13: 0 | AG13: =MAX(IF($A$21:$A$205=$A13,$O$21:$O$205)) -> 0 | AH13: =MIN(IF($A$21:$A$205=$A13,$O$21:$O$205)) -> 0 | AI13: 0
A14: 9 | D14: =VLOOKUP(A14,IDtable,2) -> OTHER | F14: =SUMIF($A$21:$A$205,$A14,F$21:F$205) -> 0 | H14: =SUMIF($A$21:$A$205,$A14,H$21:H$205)/1000 -> 0 | I14: =H14/($H$18) -> 0 | J14: 7 | L14: 0 | M14: 0 | O14: 0 | Q14: 0 | R14: =$O14-R$4*$O14 -> 0 | S14: 0 | T14: 0 | U14: 0 | V14: 0 | W14: 0 | X14: 0 | Y14: 0 | Z14: 0 | AA14: 0 | AB14: 0 | AC14: 0 | AD14: 0 | AE14: 0 | AF14: 0 | AG14: =MAX(IF($A$21:$A$205=$A14,$O$21:$O$205)) -> 0 | AH14: =MIN(IF($A$21:$A$205=$A14,$O$21:$O$205)) -> 0 | AI14: 0
A15: 10 | D15: =VLOOKUP(A15,IDtable,2) -> unused | F15: =SUMIF($A$21:$A$205,$A15,F$21:F$205) -> 0 | H15: =SUMIF($A$21:$A$205,$A15,H$21:H$205)/1000 -> 0 | I15: =H15/($H$18) -> 0 | J15: 7 | L15: 0 | M15: 0 | O15: 0 | Q15: 0 | R15: 0 | S15: 0 | T15: 0 | U15: 0 | V15: 0 | W15: 0 | X15: 0 | Y15: 0 | Z15: 0 | AA15: 0 | AB15: 0 | AC15: 0 | AD15: 0 | AE15: 0 | AF15: 0 | AG15: =MAX(IF($A$21:$A$205=$A15,$O$21:$O$205)) -> 0 | AH15: =MIN(IF($A$21:$A$205=$A15,$O$21:$O$205)) -> 0 | AI15: 0
A16: 11 | D16: =VLOOKUP(A16,IDtable,2) -> unused | F16: =SUMIF($A$21:$A$205,$A16,F$21:F$205) -> 0 | H16: =SUMIF($A$21:$A$205,$A16,H$21:H$205)/1000 -> 0 | I16: =H16/($H$18) -> 0 | J16: 7 | L16: 0 | M16: 0 | O16: 0 | Q16: 0 | R16: 0 | S16: 0 | T16: 0 | U16: 0 | V16: 0 | W16: 0 | X16: 0 | Y16: 0 | Z16: 0 | AA16: 0 | AB16: 0 | AC16: 0 | AD16: 0 | AE16: 0 | AF16: 0 | AG16: =MAX(IF($A$21:$A$205=$A16,$O$21:$O$205)) -> 0 | AH16: =MIN(IF($A$21:$A$205=$A16,$O$21:$O$205)) -> 0 | AI16: 0
A17: 12 | D17: =VLOOKUP(A17,IDtable,2) -> unused | F17: =SUMIF($A$21:$A$205,$A17,F$21:F$205) -> 0 | H17: =SUMIF($A$21:$A$205,$A17,H$21:H$205)/1000 -> 0 | I17: =H17/($H$18) -> 0 | J17: =RANK(I17,I$6:I$17) -> 7 | L17: =H17*1000/(F17+0.001) -> 0 | M17: =SUMIF($A$21:$A$205,$A17,N$21:N$205)/(H17*1000+0.000001) -> 0 | O17: =SUMIF($A$21:$A$205,$A17,P$21:P$205)/(H17*1000+0.000001) -> 0 | Q17: =(O17-M17)/(O17+0.000001) -> 0 | R17: 0 | S17: 0 | T17: 0 | U17: 0 | V17: 0 | W17: 0 | X17: 0 | Y17: 0 | Z17: 0 | AA17: 0 | AB17: 0 | AC17: 0 | AD17: 0 | AE17: 0 | AF17: 0 | AG17: =MAX(IF($A$21:$A$205=$A17,$O$21:$O$205)) -> 0 | AH17: =MIN(IF($A$21:$A$205=$A17,$O$21:$O$205)) -> 0 | AI17: 0
D18: Total | H18: =SUM(H6:H17) -> 24117.55007 | M18: =SUMPRODUCT(M6:M17,$H6:$H17)/$H18 -> 31.01216785 | O18: =SUMPRODUCT(O6:O17,$H6:$H17)/$H18 -> 74.21718255 | Q18: =SUMPRODUCT(Q6:Q17,$H6:$H17)/$H18 -> 0.5769639143 | W18: =SUM(W6:W17) -> 580.6122966 | X18: =SUM(X6:X17) -> 2050.965907 | Y18: =SUM(Y6:Y17) -> 16831.04909 | Z18: =SUM(Z6:Z17) -> 2303.123608 | AA18: =SUM(AA6:AA17) -> 2351.799165 | AB18: =W18/$H18 -> 0.02407426521 | AC18: =X18/$H18 -> 0.08504039181 | AD18: =Y18/$H18 -> 0.6978755738 | AE18: =Z18/$H18 -> 0.09549575315 | AF18: =AA18/$H18 -> 0.09751401606
D20: EDB categories
A21: ='Asset data'!A21 -> 0 | B21: ='Asset data'!B21 -> 0 | C21: ='Asset data'!C21 -> 0 | D21: ='Asset data'!E21 -> 0 | E21: =IF(A21>0,VLOOKUP(A21,IDtable,2),0) -> 0 | F21: =IF(A21>0,SUM('Asset data'!J21:CV21),0) -> 0 | G21: =IF(A21>0,'Asset data'!F21,0) -> 0 | H21: =IF(A21>0,SUM('Asset data'!CX21:GJ21),0) -> 0 | I21: =H21/$H$18/1000 -> 0 | J21: =IF(RANK(0,I$21:I$205)=RANK(I21,I$21:I$205),0,RANK(I21,I$21:I$205)) -> 0 | K21: =IF(A21>0,H21/(VLOOKUP(A21,$A$6:$H$17,8)*1000),0) -> 0 | L21: =IF($A21>0,H21/F21,0) -> 0 | M21: =IF($A21>0,SUMPRODUCT('Age profile (years)'!$CT21:$GF21,'Asset data'!$CX21:$GJ21)/H21-0.5,0) -> 0 | N21: =IF($A21>0,M21*H21,0) -> 0 | O21: =IF($A21>0,'Asset data'!G21,0) -> 0 | P21: =IF($A21>0,H21*O21,0) -> 0 | Q21: =IF($A21>0,(O21-M21)/O21,0) -> 0 | R21: =IF($A21>0,$O21-R$4*$O21,0) -> 0 | S21: 0 | T21: 0 | U21: 0 | W21: =IF($A21>0,SUMIF('Age profile (years)'!$CT21:$GF21,"<" & R21+0.5,'Asset data'!$CX21:$GJ21),0) -> 0 | X21: =IF($A21>0,SUMIF('Age profile (years)'!$CT21:$GF21,"<" & S21+0.5,'Asset data'!$CX21:$GJ21)-W21,0) -> 0 | Y21: =IF($A21>0,SUMIF('Age profile (years)'!$CT21:$GF21,"<" & T21+0.5,'Asset data'!$CX21:$GJ21)-X21-W21,0) -> 0 | Z21: =IF($A21>0,SUMIF('Age profile (years)'!$CT21:$GF21,"<" & U21+0.5,'Asset data'!$CX21:$GJ21)-Y21-X21-W21,0) -> 0 | AA21: =IF($A21>0,H21-Z21-Y21-X21-W21,0) -> 0 | AB21: =IF($A21>0,W21/$H21,0) -> 0 | AC21: 0 | AD21: 0 | AE21: 0 | AF21: 0 | AI21: =IF($A21>0,'RRR hist-forc'!K21,0) -> 0 | AJ21: =IF($A21>0,AI21*H21,0) -> 0
A22: ='Asset data'!A22 -> 1 | B22: ='Asset data'!B22 -> 0 | C22: ='Asset data'!C22 -> 0 | D22: ='Asset data'!E22 -> ˂ ≈ 11 kv ; stobie | E22: POLES | F22: =IF(A22>0,SUM('Asset data'!J22:CV22),0) -> 534982.354 | G22: =IF(A22>0,'Asset data'!F22,0) -> 3.851409458 | H22: =IF(A22>0,SUM('Asset data'!CX22:GJ22),0) -> 2060436.098 | I22: 0.08543305983 | J22: 6 | K22: =IF(A22>0,H22/(VLOOKUP(A22,$A$6:$H$17,8)*1000),0) -> 0.6864253457 | L22: =IF($A22>0,H22/F22,0) -> 3.851409458 | M22: =IF($A22>0,SUMPRODUCT('Age profile (years)'!$CT22:$GF22,'Asset data'!$CX22:$GJ22)/H22-0.5,0) -> 29.23852302 | N22: =IF($A22>0,M22*H22,0) -> 60244108.28 | O22: =IF($A22>0,'Asset data'!G22,0) -> 74.58328491 | P22: =IF($A22>0,H22*O22,0) -> 153674092.5 | Q22: =IF($A22>0,(O22-M22)/O22,0) -> 0.6079748559 | R22: 7.458328491 | S22: 14.91665698 | T22: 44.74997095 | U22: 59.66662793 | W22: =IF($A22>0,SUMIF('Age profile (years)'!$CT22:$GF22,"<" & R22+0.5,'Asset data'!$CX22:$GJ22),0) -> 110734.7003 | X22: =IF($A22>0,SUMIF('Age profile (years)'!$CT22:$GF22,"<" & S22+0.5,'Asset data'!$CX22:$GJ22)-W22,0) -> 170680.3171 | Y22: =IF($A22>0,SUMIF('Age profile (years)'!$CT22:$GF22,"<" & T22+0.5,'Asset data'!$CX22:$GJ22)-X22-W22,0) -> 1456673.368 | Z22: =IF($A22>0,SUMIF('Age profile (years)'!$CT22:$GF22,"<" & U22+0.5,'Asset data'!$CX22:$GJ22)-Y22-X22-W22,0) -> 228858.1177 | AA22: =IF($A22>0,H22-Z22-Y22-X22-W22,0) -> 93489.59461 | AB22: 0.0537433315 | AC22: 0.08283698643 | AD22: 0.7069733294 | AE22: 0.1110726598 | AF22: 0.04537369283 | AI22: =IF($A22>0,'RRR hist-forc'!K22,0) -> 74.58328491 | AJ22: =IF($A22>0,AI22*H22,0) -> 153674092.5
A23: ='Asset data'!A23 -> 1 | B23: ='Asset data'!B23 -> 0 | C23: ='Asset data'!C23 -> 0 | D23: ='Asset data'!E23 -> > 11 kv & <≈ 33 kv ; stobie | E23: =IF(A23>0,VLOOKUP(A23,IDtable,2),0) -> POLES | F23: =IF(A23>0,SUM('Asset data'!J23:CV23),0) -> 158626.051 | G23: =IF(A23>0,'Asset data'!F23,0) -> 4.248207656 | H23: =IF(A23>0,SUM('Asset data'!CX23:GJ23),0) -> 673876.4043 | I23: =H23/$H$18/1000 -> 0.02794132913 | J23: =IF(RANK(0,I$21:I$205)=RANK(I23,I$21:I$205),0,RANK(I23,I$21:I$205)) -> 9 | K23: =IF(A23>0,H23/(VLOOKUP(A23,$A$6:$H$17,8)*1000),0) -> 0.2244990001 | L23: =IF($A23>0,H23/F23,0) -> 4.248207656 | M23: =IF($A23>0,SUMPRODUCT('Age profile (years)'!$CT23:$GF23,'Asset data'!$CX23:$GJ23)/H23-0.5,0) -> 28.02564849 | N23: =IF($A23>0,M23*H23,0) -> 18885823.23 | O23: =IF($A23>0,'Asset data'!G23,0) -> 72.94889216 | P23: =IF($A23>0,H23*O23,0) -> 49158537.15 | Q23: =IF($A23>0,(O23-M23)/O23,0) -> 0.6158180384 | R23: 7.294889216 | S23: 14.58977843 | T23: 43.7693353 | U23: 58.35911373 | W23: =IF($A23>0,SUMIF('Age profile (years)'!$CT23:$GF23,"<" & R23+0.5,'Asset data'!$CX23:$GJ23),0) -> 21001.89393 | X23: =IF($A23>0,SUMIF('Age profile (years)'!$CT23:$GF23,"<" & S23+0.5,'Asset data'!$CX23:$GJ23)-W23,0) -> 48118.82363 | Y23: =IF($A23>0,SUMIF('Age profile (years)'!$CT23:$GF23,"<" & T23+0.5,'Asset data'!$CX23:$GJ23)-X23-W23,0) -> 525831.1977 | Z23: =IF($A23>0,SUMIF('Age profile (years)'!$CT23:$GF23,"<" & U23+0.5,'Asset data'!$CX23:$GJ23)-Y23-X23-W23,0) -> 64674.41598 | AA23: =IF($A23>0,H23-Z23-Y23-X23-W23,0) -> 14250.07306 | AB23: =IF($A23>0,W23/$H23,0) -> 0.03116579508 | AC23: =IF($A23>0,X23/$H23,0) -> 0.07140600758 | AD23: =IF($A23>0,Y23/$H23,0) -> 0.7803080718 | AE23: =IF($A23>0,Z23/$H23,0) -> 0.09597370611 | AF23: =IF($A23>0,AA23/$H23,0) -> 0.02114641939 | AI23: =IF($A23>0,'RRR hist-forc'!K23,0) -> 72.94889216 | AJ23: =IF($A23>0,AI23*H23,0) -> 49158537.15
A24: ='Asset data'!A24 -> 1 | B24: ='Asset data'!B24 -> 0 | C24: ='Asset data'!C24 -> 0 | D24: ='Asset data'!E24 -> > 33 kv & <≈ 66 kv ; stobie | E24: POLES | F24: =IF(A24>0,SUM('Asset data'!J24:CV24),0) -> 33189.646 | G24: =IF(A24>0,'Asset data'!F24,0) -> 4.248207656 | H24: =IF(A24>0,SUM('Asset data'!CX24:GJ24),0) -> 140996.5082 | I24: 0.005846220194 | J24: 15 | K24: 0.04697237493 | L24: 4.248207656 | M24: =IF($A24>0,SUMPRODUCT('Age profile (years)'!$CT24:$GF24,'Asset data'!$CX24:$GJ24)/H24-0.5,0) -> 24.85467537 | N24: 3504422.441 | O24: =IF($A24>0,'Asset data'!G24,0) -> 74.22959896 | P24: 10466114.26 | Q24: 0.6651648976 | R24: 7.422959896 | S24: 14.84591979 | T24: 44.53775937 | U24: 59.38367916 | W24: =IF($A24>0,SUMIF('Age profile (years)'!$CT24:$GF24,"<" & R24+0.5,'Asset data'!$CX24:$GJ24),0) -> 17118.99389 | X24: =IF($A24>0,SUMIF('Age profile (years)'!$CT24:$GF24,"<" & S24+0.5,'Asset data'!$CX24:$GJ24)-W24,0) -> 26798.637 | Y24: =IF($A24>0,SUMIF('Age profile (years)'!$CT24:$GF24,"<" & T24+0.5,'Asset data'!$CX24:$GJ24)-X24-W24,0) -> 78006.41738 | Z24: =IF($A24>0,SUMIF('Age profile (years)'!$CT24:$GF24,"<" & U24+0.5,'Asset data'!$CX24:$GJ24)-Y24-X24-W24,0) -> 15441.83975 | AA24: 3630.62022 | AB24: 0.121414311 | AC24: 0.1900659621 | AD24: 0.5532507035 | AE24: 0.1095193061 | AF24: 0.02574971725 | AI24: =IF($A24>0,'RRR hist-forc'!K24,0) -> 74.22959896 | AJ24: 10466114.26
A25: ='Asset data'!A25 -> 0 | B25: ='Asset data'!B25 -> 0 | C25: ='Asset data'!C25 -> 0 | D25: ='Asset data'!E25 -> ˂ = 1 kv | E25: 0 | F25: =IF(A25>0,SUM('Asset data'!J25:CV25),0) -> 0 | G25: =IF(A25>0,'Asset data'!F25,0) -> 0 | H25: =IF(A25>0,SUM('Asset data'!CX25:GJ25),0) -> 0 | I25: 0 | J25: 0 | K25: 0 | L25: 0 | M25: =IF($A25>0,SUMPRODUCT('Age profile (years)'!$CT25:$GF25,'Asset data'!$CX25:$GJ25)/H25-0.5,0) -> 0 | N25: 0 | O25: =IF($A25>0,'Asset data'!G25,0) -> 0 | P25: 0 | Q25: 0 | R25: 0 | S25: 0 | T25: 0 | U25: 0 | W25: =IF($A25>0,SUMIF('Age profile (years)'!$CT25:$GF25,"<" & R25+0.5,'Asset data'!$CX25:$GJ25),0) -> 0 | X25: =IF($A25>0,SUMIF('Age profile (years)'!$CT25:$GF25,"<" & S25+0.5,'Asset data'!$CX25:$GJ25)-W25,0) -> 0 | Y25: =IF($A25>0,SUMIF('Age profile (years)'!$CT25:$GF25,"<" & T25+0.5,'Asset data'!$CX25:$GJ25)-X25-W25,0) -> 0 | Z25: =IF($A25>0,SUMIF('Age profile (years)'!$CT25:$GF25,"<" & U25+0.5,'Asset data'!$CX25:$GJ25)-Y25-X25-W25,0) -> 0 | AA25: 0 | AB25: 0 | AC25: 0 | AD25: 0 | AE25: 0 | AF25: 0 | AI25: =IF($A25>0,'RRR hist-forc'!K25,0) -> 0 | AJ25: 0
A26: ='Asset data'!A26 -> 0 | B26: ='Asset data'!B26 -> 0 | C26: ='Asset data'!C26 -> 0 | D26: ='Asset data'!E26 -> > 1 kv & < = 11 kv | E26: 0 | F26: =IF(A26>0,SUM('Asset data'!J26:CV26),0) -> 0 | G26: =IF(A26>0,'Asset data'!F26,0) -> 0 | H26: =IF(A26>0,SUM('Asset data'!CX26:GJ26),0) -> 0 | I26: 0 | J26: 0 | K26: 0 | L26: 0 | M26: =IF($A26>0,SUMPRODUCT('Age profile (years)'!$CT26:$GF26,'Asset data'!$CX26:$GJ26)/H26-0.5,0) -> 0 | N26: 0 | O26: =IF($A26>0,'Asset data'!G26,0) -> 0 | P26: 0 | Q26: 0 | R26: 0 | S26: 0 | T26: 0 | U26: 0 | W26: =IF($A26>0,SUMIF('Age profile (years)'!$CT26:$GF26,"<" & R26+0.5,'Asset data'!$CX26:$GJ26),0) -> 0 | X26: =IF($A26>0,SUMIF('Age profile (years)'!$CT26:$GF26,"<" & S26+0.5,'Asset data'!$CX26:$GJ26)-W26,0) -> 0 | Y26: =IF($A26>0,SUMIF('Age profile (years)'!$CT26:$GF26,"<" & T26+0.5,'Asset data'!$CX26:$GJ26)-X26-W26,0) -> 0 | Z26: =IF($A26>0,SUMIF('Age profile (years)'!$CT26:$GF26,"<" & U26+0.5,'Asset data'!$CX26:$GJ26)-Y26-X26-W26,0) -> 0 | AA26: 0 | AB26: 0 | AC26: 0 | AD26: 0 | AE26: 0 | AF26: 0 | AI26: =IF($A26>0,'RRR hist-forc'!K26,0) -> 0 | AJ26: 0
A27: ='Asset data'!A27 -> 0 | B27: ='Asset data'!B27 -> 0 | C27: ='Asset data'!C27 -> 0 | D27: ='Asset data'!E27 -> ˃ 11 kv & < = 22 kv | E27: 0 | F27: =IF(A27>0,SUM('Asset data'!J27:CV27),0) -> 0 | G27: =IF(A27>0,'Asset data'!F27,0) -> 0 | H27: =IF(A27>0,SUM('Asset data'!CX27:GJ27),0) -> 0 | I27: 0 | J27: 0 | K27: 0 | L27: 0 | M27: =IF($A27>0,SUMPRODUCT('Age profile (years)'!$CT27:$GF27,'Asset data'!$CX27:$GJ27)/H27-0.5,0) -> 0 | N27: 0 | O27: =IF($A27>0,'Asset data'!G27,0) -> 0 | P27: 0 | Q27: 0 | R27: 0 | S27: 0 | T27: 0 | U27: 0 | W27: =IF($A27>0,SUMIF('Age profile (years)'!$CT27:$GF27,"<" & R27+0.5,'Asset data'!$CX27:$GJ27),0) -> 0 | X27: =IF($A27>0,SUMIF('Age profile (years)'!$CT27:$GF27,"<" & S27+0.5,'Asset data'!$CX27:$GJ27)-W27,0) -> 0 | Y27: =IF($A27>0,SUMIF('Age profile (years)'!$CT27:$GF27,"<" & T27+0.5,'Asset data'!$CX27:$GJ27)-X27-W27,0) -> 0 | Z27: =IF($A27>0,SUMIF('Age profile (years)'!$CT27:$GF27,"<" & U27+0.5,'Asset data'!$CX27:$GJ27)-Y27-X27-W27,0) -> 0 | AA27: 0 | AB27: 0 | AC27: 0 | AD27: 0 | AE27: 0 | AF27: 0 | AI27: =IF($A27>0,'RRR hist-forc'!K27,0) -> 0 | AJ27: 0
A28: ='Asset data'!A28 -> 0 | B28: ='Asset data'!B28 -> 0 | C28: ='Asset data'!C28 -> 0 | D28: ='Asset data'!E28 -> > 22 kv & < = 66 kv | E28: 0 | F28: =IF(A28>0,SUM('Asset data'!J28:CV28),0) -> 0 | G28: =IF(A28>0,'Asset data'!F28,0) -> 0 | H28: =IF(A28>0,SUM('Asset data'!CX28:GJ28),0) -> 0 | I28: 0 | J28: 0 | K28: 0 | L28: 0 | M28: =IF($A28>0,SUMPRODUCT('Age profile (years)'!$CT28:$GF28,'Asset data'!$CX28:$GJ28)/H28-0.5,0) -> 0 | N28: 0 | O28: =IF($A28>0,'Asset data'!G28,0) -> 0 | P28: 0 | Q28: 0 | R28: 0 | S28: 0 | T28: 0 | U28: 0 | W28: =IF($A28>0,SUMIF('Age profile (years)'!$CT28:$GF28,"<" & R28+0.5,'Asset data'!$CX28:$GJ28),0) -> 0 | X28: =IF($A28>0,SUMIF('Age profile (years)'!$CT28:$GF28,"<" & S28+0.5,'Asset data'!$CX28:$GJ28)-W28,0) -> 0 | Y28: =IF($A28>0,SUMIF('Age profile (years)'!$CT28:$GF28,"<" & T28+0.5,'Asset data'!$CX28:$GJ28)-X28-W28,0) -> 0 | Z28: =IF($A28>0,SUMIF('Age profile (years)'!$CT28:$GF28,"<" & U28+0.5,'Asset data'!$CX28:$GJ28)-Y28-X28-W28,0) -> 0 | AA28: 0 | AB28: 0 | AC28: 0 | AD28: 0 | AE28: 0 | AF28: 0 | AI28: =IF($A28>0,'RRR hist-forc'!K28,0) -> 0 | AJ28: 0
A29: ='Asset data'!A29 -> 0 | B29: ='Asset data'!B29 -> 0 | C29: ='Asset data'!C29 -> 0 | D29: ='Asset data'!E29 -> > 66 kv & < = 132 kv | E29: 0 | F29: =IF(A29>0,SUM('Asset data'!J29:CV29),0) -> 0 | G29: =IF(A29>0,'Asset data'!F29,0) -> 0 | H29: =IF(A29>0,SUM('Asset data'!CX29:GJ29),0) -> 0 | I29: 0 | J29: 0 | K29: 0 | L29: 0 | M29: =IF($A29>0,SUMPRODUCT('Age profile (years)'!$CT29:$GF29,'Asset data'!$CX29:$GJ29)/H29-0.5,0) -> 0 | N29: 0 | O29: =IF($A29>0,'Asset data'!G29,0) -> 0 | P29: 0 | Q29: 0 | R29: 0 | S29: 0 | T29: 0 | U29: 0 | W29: =IF($A29>0,SUMIF('Age profile (years)'!$CT29:$GF29,"<" & R29+0.5,'Asset data'!$CX29:$GJ29),0) -> 0 | X29: =IF($A29>0,SUMIF('Age profile (years)'!$CT29:$GF29,"<" & S29+0.5,'Asset data'!$CX29:$GJ29)-W29,0) -> 0 | Y29: =IF($A29>0,SUMIF('Age profile (years)'!$CT29:$GF29,"<" & T29+0.5,'Asset data'!$CX29:$GJ29)-X29-W29,0) -> 0 | Z29: =IF($A29>0,SUMIF('Age profile (years)'!$CT29:$GF29,"<" & U29+0.5,'Asset data'!$CX29:$GJ29)-Y29-X29-W29,0) -> 0 | AA29: 0 | AB29: 0 | AC29: 0 | AD29: 0 | AE29: 0 | AF29: 0 | AI29: =IF($A29>0,'RRR hist-forc'!K29,0) -> 0 | AJ29: 0
A30: ='Asset data'!A30 -> 0 | B30: ='Asset data'!B30 -> 0 | C30: ='Asset data'!C30 -> 0 | D30: ='Asset data'!E30 -> > 132 kv | E30: 0 | F30: =IF(A30>0,SUM('Asset data'!J30:CV30),0) -> 0 | G30: =IF(A30>0,'Asset data'!F30,0) -> 0 | H30: =IF(A30>0,SUM('Asset data'!CX30:GJ30),0) -> 0 | I30: 0 | J30: 0 | K30: 0 | L30: 0 | M30: =IF($A30>0,SUMPRODUCT('Age profile (years)'!$CT30:$GF30,'Asset data'!$CX30:$GJ30)/H30-0.5,0) -> 0 | N30: 0 | O30: =IF($A30>0,'Asset data'!G30,0) -> 0 | P30: 0 | Q30: 0 | R30: 0 | S30: 0 | T30: 0 | U30: 0 | W30: =IF($A30>0,SUMIF('Age profile (years)'!$CT30:$GF30,"<" & R30+0.5,'Asset data'!$CX30:$GJ30),0) -> 0 | X30: =IF($A30>0,SUMIF('Age profile (years)'!$CT30:$GF30,"<" & S30+0.5,'Asset data'!$CX30:$GJ30)-W30,0) -> 0 | Y30: =IF($A30>0,SUMIF('Age profile (years)'!$CT30:$GF30,"<" & T30+0.5,'Asset data'!$CX30:$GJ30)-X30-W30,0) -> 0 | Z30: =IF($A30>0,SUMIF('Age profile (years)'!$CT30:$GF30,"<" & U30+0.5,'Asset data'!$CX30:$GJ30)-Y30-X30-W30,0) -> 0 | AA30: 0 | AB30: 0 | AC30: 0 | AD30: 0 | AE30: 0 | AF30: 0 | AI30: =IF($A30>0,'RRR hist-forc'!K30,0) -> 0 | AJ30: 0
A31: ='Asset data'!A31 -> 0 | B31: ='Asset data'!B31 -> 0 | C31: ='Asset data'!C31 -> 0 | D31: ='Asset data'!E31 -> other | E31: 0 | F31: =IF(A31>0,SUM('Asset data'!J31:CV31),0) -> 0 | G31: =IF(A31>0,'Asset data'!F31,0) -> 0 | H31: =IF(A31>0,SUM('Asset data'!CX31:GJ31),0) -> 0 | I31: 0 | J31: 0 | K31: 0 | L31: 0 | M31: =IF($A31>0,SUMPRODUCT('Age profile (years)'!$CT31:$GF31,'Asset data'!$CX31:$GJ31)/H31-0.5,0) -> 0 | N31: 0 | O31: =IF($A31>0,'Asset data'!G31,0) -> 0 | P31: 0 | Q31: 0 | R31: 0 | S31: 0 | T31: 0 | U31: 0 | W31: =IF($A31>0,SUMIF('Age profile (years)'!$CT31:$GF31,"<" & R31+0.5,'Asset data'!$CX31:$GJ31),0) -> 0 | X31: =IF($A31>0,SUMIF('Age profile (years)'!$CT31:$GF31,"<" & S31+0.5,'Asset data'!$CX31:$GJ31)-W31,0) -> 0 | Y31: =IF($A31>0,SUMIF('Age profile (years)'!$CT31:$GF31,"<" & T31+0.5,'Asset data'!$CX31:$GJ31)-X31-W31,0) -> 0 | Z31: =IF($A31>0,SUMIF('Age profile (years)'!$CT31:$GF31,"<" & U31+0.5,'Asset data'!$CX31:$GJ31)-Y31-X31-W31,0) -> 0 | AA31: 0 | AB31: 0 | AC31: 0 | AD31: 0 | AE31: 0 | AF31: 0 | AI31: =IF($A31>0,'RRR hist-forc'!K31,0) -> 0 | AJ31: 0
A32: ='Asset data'!A32 -> 2 | B32: ='Asset data'!B32 -> 0 | C32: ='Asset data'!C32 -> 0 | D32: ='Asset data'!E32 -> ˂ = 1 kv | E32: OVERHEAD CONDUCTORS | F32: =IF(A32>0,SUM('Asset data'!J32:CV32),0) -> 75829 | G32: =IF(A32>0,'Asset data'!F32,0) -> 58.8903 | H32: =IF(A32>0,SUM('Asset data'!CX32:GJ32),0) -> 4465592.559 | I32: 0.1851594605 | J32: 1 | K32: 0.3449629383 | L32: 58.8903 | M32: =IF($A32>0,SUMPRODUCT('Age profile (years)'!$CT32:$GF32,'Asset data'!$CX32:$GJ32)/H32-0.5,0) -> 26.24184019 | N32: 117185366.3 | O32: =IF($A32>0,'Asset data'!G32,0) -> 77.71918519 | P32: 347062215 | Q32: 0.6623505492 | R32: 7.771918519 | S32: 15.54383704 | T32: 46.63151111 | U32: 62.17534815 | W32: =IF($A32>0,SUMIF('Age profile (years)'!$CT32:$GF32,"<" & R32+0.5,'Asset data'!$CX32:$GJ32),0) -> 10953.5958 | X32: =IF($A32>0,SUMIF('Age profile (years)'!$CT32:$GF32,"<" & S32+0.5,'Asset data'!$CX32:$GJ32)-W32,0) -> 7655.739 | Y32: =IF($A32>0,SUMIF('Age profile (years)'!$CT32:$GF32,"<" & T32+0.5,'Asset data'!$CX32:$GJ32)-X32-W32,0) -> 4171788.852 | Z32: =IF($A32>0,SUMIF('Age profile (years)'!$CT32:$GF32,"<" & U32+0.5,'Asset data'!$CX32:$GJ32)-Y32-X32-W32,0) -> 163656.1437 | AA32: 111538.2282 | AB32: 0.002452887418 | AC32: 0.001714383679 | AD32: 0.9342072294 | AE32: 0.03664824803 | AF32: 0.02497725145 | AI32: =IF($A32>0,'RRR hist-forc'!K32,0) -> 77.71918519 | AJ32: 347062215
A33: ='Asset data'!A33 -> 2 | B33: ='Asset data'!B33 -> 0 | C33: ='Asset data'!C33 -> 0 | D33: ='Asset data'!E33 -> > 1 kv & < = 11 kv | E33: OVERHEAD CONDUCTORS | F33: =IF(A33>0,SUM('Asset data'!J33:CV33),0) -> 53170 | G33: =IF(A33>0,'Asset data'!F33,0) -> 70.1647 | H33: =IF(A33>0,SUM('Asset data'!CX33:GJ33),0) -> 3730657.099 | I33: 0.1546864042 | J33: 2 | K33: 0.2881898466 | L33: 70.1647 | M33: =IF($A33>0,SUMPRODUCT('Age profile (years)'!$CT33:$GF33,'Asset data'!$CX33:$GJ33)/H33-0.5,0) -> 21.54809103 | N33: 80388538.77 | O33: =IF($A33>0,'Asset data'!G33,0) -> 72.96604648 | P33: 272211299.3 | Q33: 0.7046833141 | R33: 7.296604648 | S33: 14.5932093 | T33: 43.77962789 | U33: 58.37283719 | W33: =IF($A33>0,SUMIF('Age profile (years)'!$CT33:$GF33,"<" & R33+0.5,'Asset data'!$CX33:$GJ33),0) -> 0 | X33: =IF($A33>0,SUMIF('Age profile (years)'!$CT33:$GF33,"<" & S33+0.5,'Asset data'!$CX33:$GJ33)-W33,0) -> 1309974.949 | Y33: =IF($A33>0,SUMIF('Age profile (years)'!$CT33:$GF33,"<" & T33+0.5,'Asset data'!$CX33:$GJ33)-X33-W33,0) -> 2252286.87 | Z33: =IF($A33>0,SUMIF('Age profile (years)'!$CT33:$GF33,"<" & U33+0.5,'Asset data'!$CX33:$GJ33)-Y33-X33-W33,0) -> 112123.1906 | AA33: 56272.0894 | AB33: 0 | AC33: 0.3511378597 | AD33: 0.6037239045 | AE33: 0.03005454203 | AF33: 0.01508369381 | AI33: =IF($A33>0,'RRR hist-forc'!K33,0) -> 72.96604648 | AJ33: 272211299.3
A34: ='Asset data'!A34 -> 2 | B34: ='Asset data'!B34 -> 0 | C34: ='Asset data'!C34 -> 0 | D34: ='Asset data'!E34 -> ˃ 11 kv & < = 22 kv ; swer | E34: OVERHEAD CONDUCTORS | F34: =IF(A34>0,SUM('Asset data'!J34:CV34),0) -> 29092 | G34: =IF(A34>0,'Asset data'!F34,0) -> 36.2408 | H34: =IF(A34>0,SUM('Asset data'!CX34:GJ34),0) -> 1054317.354 | I34: 0.04371577339 | J34: 7 | K34: 0.08144505067 | L34: 36.2408 | M34: =IF($A34>0,SUMPRODUCT('Age profile (years)'!$CT34:$GF34,'Asset data'!$CX34:$GJ34)/H34-0.5,0) -> 39.9639076 | N34: 42134641.3 | O34: =IF($A34>0,'Asset data'!G34,0) -> 87.94502172 | P34: 92721962.56 | Q34: 0.5455807865 | R34: 8.794502172 | S34: 17.58900434 | T34: 52.76701303 | U34: 70.35601738 | W34: =IF($A34>0,SUMIF('Age profile (years)'!$CT34:$GF34,"<" & R34+0.5,'Asset data'!$CX34:$GJ34),0) -> 0 | X34: =IF($A34>0,SUMIF('Age profile (years)'!$CT34:$GF34,"<" & S34+0.5,'Asset data'!$CX34:$GJ34)-W34,0) -> 0 | Y34: =IF($A34>0,SUMIF('Age profile (years)'!$CT34:$GF34,"<" & T34+0.5,'Asset data'!$CX34:$GJ34)-X34-W34,0) -> 996839.4448 | Z34: =IF($A34>0,SUMIF('Age profile (years)'!$CT34:$GF34,"<" & U34+0.5,'Asset data'!$CX34:$GJ34)-Y34-X34-W34,0) -> 54179.996 | AA34: 3297.9128 | AB34: 0 | AC34: 0 | AD34: 0.9454832944 | AE34: 0.05138869792 | AF34: 0.0031280077 | AI34: =IF($A34>0,'RRR hist-forc'!K34,0) -> 87.94502172 | AJ34: 92721962.56
A35: ='Asset data'!A35 -> 0 | B35: ='Asset data'!B35 -> 0 | C35: ='Asset data'!C35 -> 0 | D35: ='Asset data'!E35 -> ˃ 11 kv & < = 22 kv ; single-phase | E35: 0 | F35: =IF(A35>0,SUM('Asset data'!J35:CV35),0) -> 0 | G35: =IF(A35>0,'Asset data'!F35,0) -> 0 | H35: =IF(A35>0,SUM('Asset data'!CX35:GJ35),0) -> 0 | I35: 0 | J35: 0 | K35: 0 | L35: 0 | M35: =IF($A35>0,SUMPRODUCT('Age profile (years)'!$CT35:$GF35,'Asset data'!$CX35:$GJ35)/H35-0.5,0) -> 0 | N35: 0 | O35: =IF($A35>0,'Asset data'!G35,0) -> 0 | P35: 0 | Q35: 0 | R35: 0 | S35: 0 | T35: 0 | U35: 0 | W35: =IF($A35>0,SUMIF('Age profile (years)'!$CT35:$GF35,"<" & R35+0.5,'Asset data'!$CX35:$GJ35),0) -> 0 | X35: =IF($A35>0,SUMIF('Age profile (years)'!$CT35:$GF35,"<" & S35+0.5,'Asset data'!$CX35:$GJ35)-W35,0) -> 0 | Y35: =IF($A35>0,SUMIF('Age profile (years)'!$CT35:$GF35,"<" & T35+0.5,'Asset data'!$CX35:$GJ35)-X35-W35,0) -> 0 | Z35: =IF($A35>0,SUMIF('Age profile (years)'!$CT35:$GF35,"<" & U35+0.5,'Asset data'!$CX35:$GJ35)-Y35-X35-W35,0) -> 0 | AA35: 0 | AB35: 0 | AC35: 0 | AD35: 0 | AE35: 0 | AF35: 0 | AI35: =IF($A35>0,'RRR hist-forc'!K35,0) -> 0 | AJ35: 0
A36: ='Asset data'!A36 -> 0 | B36: ='Asset data'!B36 -> 0 | C36: ='Asset data'!C36 -> 0 | D36: ='Asset data'!E36 -> ˃ 11 kv & < = 22 kv ; multiple-phase | E36: 0 | F36: =IF(A36>0,SUM('Asset data'!J36:CV36),0) -> 0 | G36: =IF(A36>0,'Asset data'!F36,0) -> 0 | H36: =IF(A36>0,SUM('Asset data'!CX36:GJ36),0) -> 0 | I36: 0 | J36: 0 | K36: 0 | L36: 0 | M36: =IF($A36>0,SUMPRODUCT('Age profile (years)'!$CT36:$GF36,'Asset data'!$CX36:$GJ36)/H36-0.5,0) -> 0 | N36: 0 | O36: =IF($A36>0,'Asset data'!G36,0) -> 0 | P36: 0 | Q36: 0 | R36: 0 | S36: 0 | T36: 0 | U36: 0 | W36: =IF($A36>0,SUMIF('Age profile (years)'!$CT36:$GF36,"<" & R36+0.5,'Asset data'!$CX36:$GJ36),0) -> 0 | X36: =IF($A36>0,SUMIF('Age profile (years)'!$CT36:$GF36,"<" & S36+0.5,'Asset data'!$CX36:$GJ36)-W36,0) -> 0 | Y36: =IF($A36>0,SUMIF('Age profile (years)'!$CT36:$GF36,"<" & T36+0.5,'Asset data'!$CX36:$GJ36)-X36-W36,0) -> 0 | Z36: =IF($A36>0,SUMIF('Age profile (years)'!$CT36:$GF36,"<" & U36+0.5,'Asset data'!$CX36:$GJ36)-Y36-X36-W36,0) -> 0 | AA36: 0 | AB36: 0 | AC36: 0 | AD36: 0 | AE36: 0 | AF36: 0 | AI36: =IF($A36>0,'RRR hist-forc'!K36,0) -> 0 | AJ36: 0
A37: ='Asset data'!A37 -> 2 | B37: ='Asset data'!B37 -> 0 | C37: ='Asset data'!C37 -> 0 | D37: ='Asset data'!E37 -> > 22 kv & < = 66 kv | E37: OVERHEAD CONDUCTORS | F37: =IF(A37>0,SUM('Asset data'!J37:CV37),0) -> 16158.875 | G37: =IF(A37>0,'Asset data'!F37,0) -> 228.5222 | H37: =IF(A37>0,SUM('Asset data'!CX37:GJ37),0) -> 3692661.665 | I37: 0.1531109774 | J37: 3 | K37: 0.2852547341 | L37: 228.5222 | M37: =IF($A37>0,SUMPRODUCT('Age profile (years)'!$CT37:$GF37,'Asset data'!$CX37:$GJ37)/H37-0.5,0) -> 33.92719843 | N37: 125281665 | O37: =IF($A37>0,'Asset data'!G37,0) -> 82.18034612 | P37: 303464213.7 | Q37: 0.5871616508 | R37: =IF($A37>0,$O37-R$4*$O37,0) -> 8.218034612 | S37: 16.43606922 | T37: 49.30820767 | U37: 65.74427689 | W37: =IF($A37>0,SUMIF('Age profile (years)'!$CT37:$GF37,"<" & R37+0.5,'Asset data'!$CX37:$GJ37),0) -> 231862.052 | X37: =IF($A37>0,SUMIF('Age profile (years)'!$CT37:$GF37,"<" & S37+0.5,'Asset data'!$CX37:$GJ37)-W37,0) -> 182582.6107 | Y37: =IF($A37>0,SUMIF('Age profile (years)'!$CT37:$GF37,"<" & T37+0.5,'Asset data'!$CX37:$GJ37)-X37-W37,0) -> 2655033.535 | Z37: =IF($A37>0,SUMIF('Age profile (years)'!$CT37:$GF37,"<" & U37+0.5,'Asset data'!$CX37:$GJ37)-Y37-X37-W37,0) -> 402050.9896 | AA37: 221132.4776 | AB37: 0.06278995289 | AC37: 0.04944471691 | AD37: 0.7190026533 | AE37: 0.1088783718 | AF37: 0.05988430506 | AI37: =IF($A37>0,'RRR hist-forc'!K37,0) -> 82.18034612 | AJ37: 303464213.7
A38: ='Asset data'!A38 -> 2 | B38: ='Asset data'!B38 -> 0 | C38: ='Asset data'!C38 -> 0 | D38: ='Asset data'!E38 -> > 66 kv & < = 132 kv | E38: OVERHEAD CONDUCTORS | F38: =IF(A38>0,SUM('Asset data'!J38:CV38),0) -> 33 | G38: =IF(A38>0,'Asset data'!F38,0) -> 57.8335 | H38: =IF(A38>0,SUM('Asset data'!CX38:GJ38),0) -> 1908.5055 | I38: 7.913347312e-05 | J38: 49 | K38: 0.0001474303032 | L38: 57.8335 | M38: =IF($A38>0,SUMPRODUCT('Age profile (years)'!$CT38:$GF38,'Asset data'!$CX38:$GJ38)/H38-0.5,0) -> 69.5 | N38: 132641.1322 | O38: =IF($A38>0,'Asset data'!G38,0) -> 76.8277065 | P38: 146626.1004 | Q38: 0.0953784362 | R38: 7.68277065 | S38: 15.3655413 | T38: 46.0966239 | U38: 61.4621652 | W38: =IF($A38>0,SUMIF('Age profile (years)'!$CT38:$GF38,"<" & R38+0.5,'Asset data'!$CX38:$GJ38),0) -> 0 | X38: =IF($A38>0,SUMIF('Age profile (years)'!$CT38:$GF38,"<" & S38+0.5,'Asset data'!$CX38:$GJ38)-W38,0) -> 0 | Y38: =IF($A38>0,SUMIF('Age profile (years)'!$CT38:$GF38,"<" & T38+0.5,'Asset data'!$CX38:$GJ38)-X38-W38,0) -> 0 | Z38: =IF($A38>0,SUMIF('Age profile (years)'!$CT38:$GF38,"<" & U38+0.5,'Asset data'!$CX38:$GJ38)-Y38-X38-W38,0) -> 0 | AA38: 1908.5055 | AB38: 0 | AC38: 0 | AD38: 0 | AE38: 0 | AF38: 1 | AI38: =IF($A38>0,'RRR hist-forc'!K38,0) -> 76.8277065 | AJ38: 146626.1004
A39: ='Asset data'!A39 -> 0 | B39: ='Asset data'!B39 -> 0 | C39: ='Asset data'!C39 -> 0 | D39: ='Asset data'!E39 -> > 132 kv | E39: 0 | F39: =IF(A39>0,SUM('Asset data'!J39:CV39),0) -> 0 | G39: =IF(A39>0,'Asset data'!F39,0) -> 0 | H39: =IF(A39>0,SUM('Asset data'!CX39:GJ39),0) -> 0 | I39: 0 | J39: 0 | K39: 0 | L39: 0 | M39: =IF($A39>0,SUMPRODUCT('Age profile (years)'!$CT39:$GF39,'Asset data'!$CX39:$GJ39)/H39-0.5,0) -> 0 | N39: 0 | O39: =IF($A39>0,'Asset data'!G39,0) -> 0 | P39: 0 | Q39: 0 | R39: 0 | S39: 0 | T39: 0 | U39: 0 | W39: =IF($A39>0,SUMIF('Age profile (years)'!$CT39:$GF39,"<" & R39+0.5,'Asset data'!$CX39:$GJ39),0) -> 0 | X39: =IF($A39>0,SUMIF('Age profile (years)'!$CT39:$GF39,"<" & S39+0.5,'Asset data'!$CX39:$GJ39)-W39,0) -> 0 | Y39: =IF($A39>0,SUMIF('Age profile (years)'!$CT39:$GF39,"<" & T39+0.5,'Asset data'!$CX39:$GJ39)-X39-W39,0) -> 0 | Z39: =IF($A39>0,SUMIF('Age profile (years)'!$CT39:$GF39,"<" & U39+0.5,'Asset data'!$CX39:$GJ39)-Y39-X39-W39,0) -> 0 | AA39: 0 | AB39: 0 | AC39: 0 | AD39: 0 | AE39: 0 | AF39: 0 | AI39: =IF($A39>0,'RRR hist-forc'!K39,0) -> 0 | AJ39: 0
A40: ='Asset data'!A40 -> 0 | B40: ='Asset data'!B40 -> 0 | C40: ='Asset data'!C40 -> 0 | D40: ='Asset data'!E40 -> other | E40: 0 | F40: =IF(A40>0,SUM('Asset data'!J40:CV40),0) -> 0 | G40: =IF(A40>0,'Asset data'!F40,0) -> 0 | H40: =IF(A40>0,SUM('Asset data'!CX40:GJ40),0) -> 0 | I40: 0 | J40: 0 | K40: 0 | L40: 0 | M40: =IF($A40>0,SUMPRODUCT('Age profile (years)'!$CT40:$GF40,'Asset data'!$CX40:$GJ40)/H40-0.5,0) -> 0 | N40: 0 | O40: =IF($A40>0,'Asset data'!G40,0) -> 0 | P40: 0 | Q40: 0 | R40: 0 | S40: 0 | T40: 0 | U40: 0 | W40: =IF($A40>0,SUMIF('Age profile (years)'!$CT40:$GF40,"<" & R40+0.5,'Asset data'!$CX40:$GJ40),0) -> 0 | X40: =IF($A40>0,SUMIF('Age profile (years)'!$CT40:$GF40,"<" & S40+0.5,'Asset data'!$CX40:$GJ40)-W40,0) -> 0 | Y40: =IF($A40>0,SUMIF('Age profile (years)'!$CT40:$GF40,"<" & T40+0.5,'Asset data'!$CX40:$GJ40)-X40-W40,0) -> 0 | Z40: =IF($A40>0,SUMIF('Age profile (years)'!$CT40:$GF40,"<" & U40+0.5,'Asset data'!$CX40:$GJ40)-Y40-X40-W40,0) -> 0 | AA40: 0 | AB40: 0 | AC40: 0 | AD40: 0 | AE40: 0 | AF40: 0 | AI40: =IF($A40>0,'RRR hist-forc'!K40,0) -> 0 | AJ40: 0
A41: ='Asset data'!A41 -> 3 | B41: ='Asset data'!B41 -> 0 | C41: ='Asset data'!C41 -> 0 | D41: ='Asset data'!E41 -> ˂ = 1 kv | E41: UNDERGROUND CABLES | F41: =IF(A41>0,SUM('Asset data'!J41:CV41),0) -> 12829 | G41: =IF(A41>0,'Asset data'!F41,0) -> 206.7606 | H41: =IF(A41>0,SUM('Asset data'!CX41:GJ41),0) -> 2652531.737 | I41: 0.1099834656 | J41: 4 | K41: 0.5259998907 | L41: 206.7606 | M41: =IF($A41>0,SUMPRODUCT('Age profile (years)'!$CT41:$GF41,'Asset data'!$CX41:$GJ41)/H41-0.5,0) -> 30.60632162 | N41: 81184239.45 | O41: =IF($A41>0,'Asset data'!G41,0) -> 69.81082087 | P41: 185175418 | Q41: 0.5615819835 | R41: 6.981082087 | S41: 13.96216417 | T41: 41.88649252 | U41: 55.8486567 | W41: =IF($A41>0,SUMIF('Age profile (years)'!$CT41:$GF41,"<" & R41+0.5,'Asset data'!$CX41:$GJ41),0) -> 4135.212 | X41: =IF($A41>0,SUMIF('Age profile (years)'!$CT41:$GF41,"<" & S41+0.5,'Asset data'!$CX41:$GJ41)-W41,0) -> 74640.5766 | Y41: =IF($A41>0,SUMIF('Age profile (years)'!$CT41:$GF41,"<" & T41+0.5,'Asset data'!$CX41:$GJ41)-X41-W41,0) -> 2132115.307 | Z41: =IF($A41>0,SUMIF('Age profile (years)'!$CT41:$GF41,"<" & U41+0.5,'Asset data'!$CX41:$GJ41)-Y41-X41-W41,0) -> 271269.9072 | AA41: 170370.7344 | AB41: 0.001558967963 | AC41: 0.02813937174 | AD41: 0.8038038818 | AE41: 0.1022682984 | AF41: 0.06422948008 | AI41: =IF($A41>0,'RRR hist-forc'!K41,0) -> 69.81082087 | AJ41: 185175418
A42: ='Asset data'!A42 -> 3 | B42: ='Asset data'!B42 -> 0 | C42: ='Asset data'!C42 -> 0 | D42: ='Asset data'!E42 -> > 1 kv & < = 11 kv | E42: UNDERGROUND CABLES | F42: =IF(A42>0,SUM('Asset data'!J42:CV42),0) -> 3873 | G42: =IF(A42>0,'Asset data'!F42,0) -> 572.7903 | H42: =IF(A42>0,SUM('Asset data'!CX42:GJ42),0) -> 2218416.832 | I42: 0.09198350685 | J42: 5 | K42: 0.439914439 | L42: 572.7903 | M42: =IF($A42>0,SUMPRODUCT('Age profile (years)'!$CT42:$GF42,'Asset data'!$CX42:$GJ42)/H42-0.5,0) -> 45.45068422 | N42: 100828562.9 | O42: =IF($A42>0,'Asset data'!G42,0) -> 75.24821662 | P42: 166931910.3 | Q42: 0.3959898817 | R42: 7.524821662 | S42: 15.04964332 | T42: 45.14892997 | U42: 60.19857329 | W42: =IF($A42>0,SUMIF('Age profile (years)'!$CT42:$GF42,"<" & R42+0.5,'Asset data'!$CX42:$GJ42),0) -> 0 | X42: =IF($A42>0,SUMIF('Age profile (years)'!$CT42:$GF42,"<" & S42+0.5,'Asset data'!$CX42:$GJ42)-W42,0) -> 0 | Y42: =IF($A42>0,SUMIF('Age profile (years)'!$CT42:$GF42,"<" & T42+0.5,'Asset data'!$CX42:$GJ42)-X42-W42,0) -> 1267584.934 | Z42: =IF($A42>0,SUMIF('Age profile (years)'!$CT42:$GF42,"<" & U42+0.5,'Asset data'!$CX42:$GJ42)-Y42-X42-W42,0) -> 198185.4438 | AA42: 752646.4542 | AB42: 0 | AC42: 0 | AD42: 0.571391686 | AE42: 0.08933643171 | AF42: 0.3392718823 | AI42: =IF($A42>0,'RRR hist-forc'!K42,0) -> 75.24821662 | AJ42: 166931910.3
A43: ='Asset data'!A43 -> 3 | B43: ='Asset data'!B43 -> 0 | C43: ='Asset data'!C43 -> 0 | D43: ='Asset data'!E43 -> > 11 kv & < = 22 kv | E43: UNDERGROUND CABLES | F43: =IF(A43>0,SUM('Asset data'!J43:CV43),0) -> 56 | G43: =IF(A43>0,'Asset data'!F43,0) -> 588.1384 | H43: =IF(A43>0,SUM('Asset data'!CX43:GJ43),0) -> 32935.7504 | I43: 0.001365634167 | J43: 28 | K43: 0.006531194657 | L43: 588.1384 | M43: =IF($A43>0,SUMPRODUCT('Age profile (years)'!$CT43:$GF43,'Asset data'!$CX43:$GJ43)/H43-0.5,0) -> 27.78571429 | N43: 915143.3504 | O43: =IF($A43>0,'Asset data'!G43,0) -> 66.509986 | P43: 2190556.298 | Q43: 0.5822324442 | R43: 6.6509986 | S43: 13.3019972 | T43: 39.9059916 | U43: 53.2079888 | W43: =IF($A43>0,SUMIF('Age profile (years)'!$CT43:$GF43,"<" & R43+0.5,'Asset data'!$CX43:$GJ43),0) -> 0 | X43: =IF($A43>0,SUMIF('Age profile (years)'!$CT43:$GF43,"<" & S43+0.5,'Asset data'!$CX43:$GJ43)-W43,0) -> 2352.5536 | Y43: =IF($A43>0,SUMIF('Age profile (years)'!$CT43:$GF43,"<" & T43+0.5,'Asset data'!$CX43:$GJ43)-X43-W43,0) -> 23525.536 | Z43: =IF($A43>0,SUMIF('Age profile (years)'!$CT43:$GF43,"<" & U43+0.5,'Asset data'!$CX43:$GJ43)-Y43-X43-W43,0) -> 1764.4152 | AA43: 5293.2456 | AB43: 0 | AC43: 0.07142857143 | AD43: 0.7142857143 | AE43: 0.05357142857 | AF43: 0.1607142857 | AI43: =IF($A43>0,'RRR hist-forc'!K43,0) -> 66.509986 | AJ43: 2190556.298
A44: ='Asset data'!A44 -> 3 | B44: ='Asset data'!B44 -> 0 | C44: ='Asset data'!C44 -> 0 | D44: ='Asset data'!E44 -> > 22 kv & < = 33 kv | E44: UNDERGROUND CABLES | F44: =IF(A44>0,SUM('Asset data'!J44:CV44),0) -> 116 | G44: =IF(A44>0,'Asset data'!F44,0) -> 488.4063 | H44: =IF(A44>0,SUM('Asset data'!CX44:GJ44),0) -> 56655.1308 | I44: 0.002349124627 | J44: 24 | K44: 0.01123477325 | L44: 488.4063 | M44: =IF($A44>0,SUMPRODUCT('Age profile (years)'!$CT44:$GF44,'Asset data'!$CX44:$GJ44)/H44-0.5,0) -> 35.62068966 | N44: 2018094.832 | O44: =IF($A44>0,'Asset data'!G44,0) -> 63.84500055 | P44: 3617146.857 | Q44: 0.4420755056 | R44: 6.384500055 | S44: 12.76900011 | T44: 38.30700033 | U44: 51.07600044 | W44: =IF($A44>0,SUMIF('Age profile (years)'!$CT44:$GF44,"<" & R44+0.5,'Asset data'!$CX44:$GJ44),0) -> 5372.4693 | X44: =IF($A44>0,SUMIF('Age profile (years)'!$CT44:$GF44,"<" & S44+0.5,'Asset data'!$CX44:$GJ44)-W44,0) -> 9279.7197 | Y44: =IF($A44>0,SUMIF('Age profile (years)'!$CT44:$GF44,"<" & T44+0.5,'Asset data'!$CX44:$GJ44)-X44-W44,0) -> 10744.9386 | Z44: =IF($A44>0,SUMIF('Age profile (years)'!$CT44:$GF44,"<" & U44+0.5,'Asset data'!$CX44:$GJ44)-Y44-X44-W44,0) -> 3418.8441 | AA44: 27839.1591 | AB44: 0.09482758621 | AC44: 0.1637931034 | AD44: 0.1896551724 | AE44: 0.06034482759 | AF44: 0.4913793103 | AI44: =IF($A44>0,'RRR hist-forc'!K44,0) -> 63.84500055 | AJ44: 3617146.857
A45: ='Asset data'!A45 -> 3 | B45: ='Asset data'!B45 -> 0 | C45: ='Asset data'!C45 -> 0 | D45: ='Asset data'!E45 -> > 33 kv & < = 66 kv | E45: UNDERGROUND CABLES | F45: =IF(A45>0,SUM('Asset data'!J45:CV45),0) -> 44 | G45: =IF(A45>0,'Asset data'!F45,0) -> 1870.4 | H45: =IF(A45>0,SUM('Asset data'!CX45:GJ45),0) -> 82297.6 | I45: 0.003412353235 | J45: 20 | K45: 0.01631970242 | L45: 1870.4 | M45: =IF($A45>0,SUMPRODUCT('Age profile (years)'!$CT45:$GF45,'Asset data'!$CX45:$GJ45)/H45-0.5,0) -> 54.65909091 | N45: 4498312 | O45: =IF($A45>0,'Asset data'!G45,0) -> 80 | P45: 6583808 | Q45: 0.3167613636 | R45: 8 | S45: 16 | T45: 48 | U45: 64 | W45: =IF($A45>0,SUMIF('Age profile (years)'!$CT45:$GF45,"<" & R45+0.5,'Asset data'!$CX45:$GJ45),0) -> 0 | X45: =IF($A45>0,SUMIF('Age profile (years)'!$CT45:$GF45,"<" & S45+0.5,'Asset data'!$CX45:$GJ45)-W45,0) -> 0 | Y45: =IF($A45>0,SUMIF('Age profile (years)'!$CT45:$GF45,"<" & T45+0.5,'Asset data'!$CX45:$GJ45)-X45-W45,0) -> 37408 | Z45: =IF($A45>0,SUMIF('Age profile (years)'!$CT45:$GF45,"<" & U45+0.5,'Asset data'!$CX45:$GJ45)-Y45-X45-W45,0) -> 20574.4 | AA45: 24315.2 | AB45: 0 | AC45: 0 | AD45: 0.4545454545 | AE45: 0.25 | AF45: 0.2954545455 | AI45: =IF($A45>0,'RRR hist-forc'!K45,0) -> 80 | AJ45: 6583808
A46: ='Asset data'!A46 -> 0 | B46: ='Asset data'!B46 -> 0 | C46: ='Asset data'!C46 -> 0 | D46: ='Asset data'!E46 -> > 66 kv & < = 132 kv | E46: 0 | F46: =IF(A46>0,SUM('Asset data'!J46:CV46),0) -> 0 | G46: =IF(A46>0,'Asset data'!F46,0) -> 0 | H46: =IF(A46>0,SUM('Asset data'!CX46:GJ46),0) -> 0 | I46: 0 | J46: 0 | K46: 0 | L46: 0 | M46: =IF($A46>0,SUMPRODUCT('Age profile (years)'!$CT46:$GF46,'Asset data'!$CX46:$GJ46)/H46-0.5,0) -> 0 | N46: 0 | O46: =IF($A46>0,'Asset data'!G46,0) -> 0 | P46: 0 | Q46: 0 | R46: 0 | S46: 0 | T46: 0 | U46: 0 | W46: =IF($A46>0,SUMIF('Age profile (years)'!$CT46:$GF46,"<" & R46+0.5,'Asset data'!$CX46:$GJ46),0) -> 0 | X46: =IF($A46>0,SUMIF('Age profile (years)'!$CT46:$GF46,"<" & S46+0.5,'Asset data'!$CX46:$GJ46)-W46,0) -> 0 | Y46: =IF($A46>0,SUMIF('Age profile (years)'!$CT46:$GF46,"<" & T46+0.5,'Asset data'!$CX46:$GJ46)-X46-W46,0) -> 0 | Z46: =IF($A46>0,SUMIF('Age profile (years)'!$CT46:$GF46,"<" & U46+0.5,'Asset data'!$CX46:$GJ46)-Y46-X46-W46,0) -> 0 | AA46: 0 | AB46: 0 | AC46: 0 | AD46: 0 | AE46: 0 | AF46: 0 | AI46: =IF($A46>0,'RRR hist-forc'!K46,0) -> 0 | AJ46: 0
A47: ='Asset data'!A47 -> 0 | B47: ='Asset data'!B47 -> 0 | C47: ='Asset data'!C47 -> 0 | D47: ='Asset data'!E47 -> > 132 kv | E47: 0 | F47: =IF(A47>0,SUM('Asset data'!J47:CV47),0) -> 0 | G47: =IF(A47>0,'Asset data'!F47,0) -> 0 | H47: =IF(A47>0,SUM('Asset data'!CX47:GJ47),0) -> 0 | I47: 0 | J47: 0 | K47: 0 | L47: 0 | M47: =IF($A47>0,SUMPRODUCT('Age profile (years)'!$CT47:$GF47,'Asset data'!$CX47:$GJ47)/H47-0.5,0) -> 0 | N47: 0 | O47: =IF($A47>0,'Asset data'!G47,0) -> 0 | P47: 0 | Q47: 0 | R47: 0 | S47: 0 | T47: 0 | U47: 0 | W47: =IF($A47>0,SUMIF('Age profile (years)'!$CT47:$GF47,"<" & R47+0.5,'Asset data'!$CX47:$GJ47),0) -> 0 | X47: =IF($A47>0,SUMIF('Age profile (years)'!$CT47:$GF47,"<" & S47+0.5,'Asset data'!$CX47:$GJ47)-W47,0) -> 0 | Y47: =IF($A47>0,SUMIF('Age profile (years)'!$CT47:$GF47,"<" & T47+0.5,'Asset data'!$CX47:$GJ47)-X47-W47,0) -> 0 | Z47: =IF($A47>0,SUMIF('Age profile (years)'!$CT47:$GF47,"<" & U47+0.5,'Asset data'!$CX47:$GJ47)-Y47-X47-W47,0) -> 0 | AA47: 0 | AB47: 0 | AC47: 0 | AD47: 0 | AE47: 0 | AF47: 0 | AI47: =IF($A47>0,'RRR hist-forc'!K47,0) -> 0 | AJ47: 0
A48: ='Asset data'!A48 -> 0 | B48: ='Asset data'!B48 -> 0 | C48: ='Asset data'!C48 -> 0 | D48: ='Asset data'!E48 -> other | E48: 0 | F48: =IF(A48>0,SUM('Asset data'!J48:CV48),0) -> 0 | G48: =IF(A48>0,'Asset data'!F48,0) -> 0 | H48: =IF(A48>0,SUM('Asset data'!CX48:GJ48),0) -> 0 | I48: 0 | J48: 0 | K48: 0 | L48: 0 | M48: =IF($A48>0,SUMPRODUCT('Age profile (years)'!$CT48:$GF48,'Asset data'!$CX48:$GJ48)/H48-0.5,0) -> 0 | N48: 0 | O48: =IF($A48>0,'Asset data'!G48,0) -> 0 | P48: 0 | Q48: 0 | R48: 0 | S48: 0 | T48: 0 | U48: 0 | W48: =IF($A48>0,SUMIF('Age profile (years)'!$CT48:$GF48,"<" & R48+0.5,'Asset data'!$CX48:$GJ48),0) -> 0 | X48: =IF($A48>0,SUMIF('Age profile (years)'!$CT48:$GF48,"<" & S48+0.5,'Asset data'!$CX48:$GJ48)-W48,0) -> 0 | Y48: =IF($A48>0,SUMIF('Age profile (years)'!$CT48:$GF48,"<" & T48+0.5,'Asset data'!$CX48:$GJ48)-X48-W48,0) -> 0 | Z48: =IF($A48>0,SUMIF('Age profile (years)'!$CT48:$GF48,"<" & U48+0.5,'Asset data'!$CX48:$GJ48)-Y48-X48-W48,0) -> 0 | AA48: 0 | AB48: 0 | AC48: 0 | AD48: 0 | AE48: 0 | AF48: 0 | AI48: =IF($A48>0,'RRR hist-forc'!K48,0) -> 0 | AJ48: 0
A49: ='Asset data'!A49 -> 4 | B49: ='Asset data'!B49 -> 0 | C49: ='Asset data'!C49 -> 0 | D49: ='Asset data'!E49 -> ˂ = 11 kv ; residential ; simple type | E49: SERVICE LINES | F49: =IF(A49>0,SUM('Asset data'!J49:CV49),0) -> 669233 | G49: =IF(A49>0,'Asset data'!F49,0) -> 0.8119 | H49: =IF(A49>0,SUM('Asset data'!CX49:GJ49),0) -> 543350.2727 | I49: 0.02252924825 | J49: 10 | K49: 0.9076437787 | L49: 0.8119 | M49: =IF($A49>0,SUMPRODUCT('Age profile (years)'!$CT49:$GF49,'Asset data'!$CX49:$GJ49)/H49-0.5,0) -> 33.24265316 | N49: 18062404.66 | O49: =IF($A49>0,'Asset data'!G49,0) -> 62.45972627 | P49: 33937509.3 | Q49: 0.4677745943 | R49: 6.245972627 | S49: 12.49194525 | T49: 37.47583576 | U49: 49.96778102 | W49: =IF($A49>0,SUMIF('Age profile (years)'!$CT49:$GF49,"<" & R49+0.5,'Asset data'!$CX49:$GJ49),0) -> 4950.9662 | X49: =IF($A49>0,SUMIF('Age profile (years)'!$CT49:$GF49,"<" & S49+0.5,'Asset data'!$CX49:$GJ49)-W49,0) -> 53646.2925 | Y49: =IF($A49>0,SUMIF('Age profile (years)'!$CT49:$GF49,"<" & T49+0.5,'Asset data'!$CX49:$GJ49)-X49-W49,0) -> 251917.9558 | Z49: =IF($A49>0,SUMIF('Age profile (years)'!$CT49:$GF49,"<" & U49+0.5,'Asset data'!$CX49:$GJ49)-Y49-X49-W49,0) -> 146955.5238 | AA49: 85879.5344 | AB49: 0.00911192365 | AC49: 0.09873242951 | AD49: 0.4636382247 | AE49: 0.2704618571 | AF49: 0.1580555651 | AI49: =IF($A49>0,'RRR hist-forc'!K49,0) -> 62.45972627 | AJ49: 33937509.3
A50: ='Asset data'!A50 -> 0 | B50: ='Asset data'!B50 -> 0 | C50: ='Asset data'!C50 -> 0 | D50: ='Asset data'!E50 -> ˂ = 11 kv ; commercial & industrial ; simple type | E50: 0 | F50: =IF(A50>0,SUM('Asset data'!J50:CV50),0) -> 0 | G50: =IF(A50>0,'Asset data'!F50,0) -> 0 | H50: =IF(A50>0,SUM('Asset data'!CX50:GJ50),0) -> 0 | I50: 0 | J50: 0 | K50: 0 | L50: 0 | M50: =IF($A50>0,SUMPRODUCT('Age profile (years)'!$CT50:$GF50,'Asset data'!$CX50:$GJ50)/H50-0.5,0) -> 0 | N50: 0 | O50: =IF($A50>0,'Asset data'!G50,0) -> 0 | P50: 0 | Q50: 0 | R50: 0 | S50: 0 | T50: 0 | U50: 0 | W50: =IF($A50>0,SUMIF('Age profile (years)'!$CT50:$GF50,"<" & R50+0.5,'Asset data'!$CX50:$GJ50),0) -> 0 | X50: =IF($A50>0,SUMIF('Age profile (years)'!$CT50:$GF50,"<" & S50+0.5,'Asset data'!$CX50:$GJ50)-W50,0) -> 0 | Y50: =IF($A50>0,SUMIF('Age profile (years)'!$CT50:$GF50,"<" & T50+0.5,'Asset data'!$CX50:$GJ50)-X50-W50,0) -> 0 | Z50: =IF($A50>0,SUMIF('Age profile (years)'!$CT50:$GF50,"<" & U50+0.5,'Asset data'!$CX50:$GJ50)-Y50-X50-W50,0) -> 0 | AA50: 0 | AB50: 0 | AC50: 0 | AD50: 0 | AE50: 0 | AF50: 0 | AI50: =IF($A50>0,'RRR hist-forc'!K50,0) -> 0 | AJ50: 0
A51: ='Asset data'!A51 -> 0 | B51: ='Asset data'!B51 -> 0 | C51: ='Asset data'!C51 -> 0 | D51: ='Asset data'!E51 -> ˂ = 11 kv ; residential ; complex type | E51: 0 | F51: =IF(A51>0,SUM('Asset data'!J51:CV51),0) -> 0 | G51: =IF(A51>0,'Asset data'!F51,0) -> 0 | H51: =IF(A51>0,SUM('Asset data'!CX51:GJ51),0) -> 0 | I51: 0 | J51: 0 | K51: 0 | L51: 0 | M51: =IF($A51>0,SUMPRODUCT('Age profile (years)'!$CT51:$GF51,'Asset data'!$CX51:$GJ51)/H51-0.5,0) -> 0 | N51: 0 | O51: =IF($A51>0,'Asset data'!G51,0) -> 0 | P51: 0 | Q51: 0 | R51: 0 | S51: 0 | T51: 0 | U51: 0 | W51: =IF($A51>0,SUMIF('Age profile (years)'!$CT51:$GF51,"<" & R51+0.5,'Asset data'!$CX51:$GJ51),0) -> 0 | X51: =IF($A51>0,SUMIF('Age profile (years)'!$CT51:$GF51,"<" & S51+0.5,'Asset data'!$CX51:$GJ51)-W51,0) -> 0 | Y51: =IF($A51>0,SUMIF('Age profile (years)'!$CT51:$GF51,"<" & T51+0.5,'Asset data'!$CX51:$GJ51)-X51-W51,0) -> 0 | Z51: =IF($A51>0,SUMIF('Age profile (years)'!$CT51:$GF51,"<" & U51+0.5,'Asset data'!$CX51:$GJ51)-Y51-X51-W51,0) -> 0 | AA51: 0 | AB51: 0 | AC51: 0 | AD51: 0 | AE51: 0 | AF51: 0 | AI51: =IF($A51>0,'RRR hist-forc'!K51,0) -> 0 | AJ51: 0
A52: ='Asset data'!A52 -> 4 | B52: ='Asset data'!B52 -> 0 | C52: ='Asset data'!C52 -> 0 | D52: ='Asset data'!E52 -> ˂ = 11 kv ; commercial & industrial ; complex type | E52: SERVICE LINES | F52: =IF(A52>0,SUM('Asset data'!J52:CV52),0) -> 82618 | G52: =IF(A52>0,'Asset data'!F52,0) -> 0.6692 | H52: =IF(A52>0,SUM('Asset data'!CX52:GJ52),0) -> 55287.9656 | I52: 0.002292437061 | J52: 25 | K52: 0.09235622127 | L52: 0.6692 | M52: =IF($A52>0,SUMPRODUCT('Age profile (years)'!$CT52:$GF52,'Asset data'!$CX52:$GJ52)/H52-0.5,0) -> 29.36038151 | N52: 1623275.763 | O52: =IF($A52>0,'Asset data'!G52,0) -> 56.06536246 | P52: 3099739.831 | Q52: 0.4763187068 | R52: 5.606536246 | S52: 11.21307249 | T52: 33.63921748 | U52: 44.85228997 | W52: =IF($A52>0,SUMIF('Age profile (years)'!$CT52:$GF52,"<" & R52+0.5,'Asset data'!$CX52:$GJ52),0) -> 4081.4508 | X52: =IF($A52>0,SUMIF('Age profile (years)'!$CT52:$GF52,"<" & S52+0.5,'Asset data'!$CX52:$GJ52)-W52,0) -> 3595.6116 | Y52: =IF($A52>0,SUMIF('Age profile (years)'!$CT52:$GF52,"<" & T52+0.5,'Asset data'!$CX52:$GJ52)-X52-W52,0) -> 25083.6236 | Z52: =IF($A52>0,SUMIF('Age profile (years)'!$CT52:$GF52,"<" & U52+0.5,'Asset data'!$CX52:$GJ52)-Y52-X52-W52,0) -> 15136.6348 | AA52: 7390.6448 | AB52: 0.07382168535 | AC52: 0.06503425404 | AD52: 0.4536904791 | AE52: 0.2737781113 | AF52: 0.1336754702 | AI52: =IF($A52>0,'RRR hist-forc'!K52,0) -> 56.06536246 | AJ52: 3099739.831
A53: ='Asset data'!A53 -> 0 | B53: ='Asset data'!B53 -> 0 | C53: ='Asset data'!C53 -> 0 | D53: ='Asset data'!E53 -> ˂ = 11 kv ; subdivision ; complex type | E53: 0 | F53: =IF(A53>0,SUM('Asset data'!J53:CV53),0) -> 0 | G53: =IF(A53>0,'Asset data'!F53,0) -> 0 | H53: =IF(A53>0,SUM('Asset data'!CX53:GJ53),0) -> 0 | I53: 0 | J53: 0 | K53: 0 | L53: 0 | M53: =IF($A53>0,SUMPRODUCT('Age profile (years)'!$CT53:$GF53,'Asset data'!$CX53:$GJ53)/H53-0.5,0) -> 0 | N53: 0 | O53: =IF($A53>0,'Asset data'!G53,0) -> 0 | P53: 0 | Q53: 0 | R53: 0 | S53: 0 | T53: 0 | U53: 0 | W53: =IF($A53>0,SUMIF('Age profile (years)'!$CT53:$GF53,"<" & R53+0.5,'Asset data'!$CX53:$GJ53),0) -> 0 | X53: =IF($A53>0,SUMIF('Age profile (years)'!$CT53:$GF53,"<" & S53+0.5,'Asset data'!$CX53:$GJ53)-W53,0) -> 0 | Y53: =IF($A53>0,SUMIF('Age profile (years)'!$CT53:$GF53,"<" & T53+0.5,'Asset data'!$CX53:$GJ53)-X53-W53,0) -> 0 | Z53: =IF($A53>0,SUMIF('Age profile (years)'!$CT53:$GF53,"<" & U53+0.5,'Asset data'!$CX53:$GJ53)-Y53-X53-W53,0) -> 0 | AA53: 0 | AB53: 0 | AC53: 0 | AD53: 0 | AE53: 0 | AF53: 0 | AI53: =IF($A53>0,'RRR hist-forc'!K53,0) -> 0 | AJ53: 0
A54: ='Asset data'!A54 -> 0 | B54: ='Asset data'!B54 -> 0 | C54: ='Asset data'!C54 -> 0 | D54: ='Asset data'!E54 -> > 11 kv & < = 22 kv ; commercial & industrial | E54: 0 | F54: =IF(A54>0,SUM('Asset data'!J54:CV54),0) -> 0 | G54: =IF(A54>0,'Asset data'!F54,0) -> 0 | H54: =IF(A54>0,SUM('Asset data'!CX54:GJ54),0) -> 0 | I54: 0 | J54: 0 | K54: 0 | L54: 0 | M54: =IF($A54>0,SUMPRODUCT('Age profile (years)'!$CT54:$GF54,'Asset data'!$CX54:$GJ54)/H54-0.5,0) -> 0 | N54: 0 | O54: =IF($A54>0,'Asset data'!G54,0) -> 0 | P54: 0 | Q54: 0 | R54: 0 | S54: 0 | T54: 0 | U54: 0 | W54: =IF($A54>0,SUMIF('Age profile (years)'!$CT54:$GF54,"<" & R54+0.5,'Asset data'!$CX54:$GJ54),0) -> 0 | X54: =IF($A54>0,SUMIF('Age profile (years)'!$CT54:$GF54,"<" & S54+0.5,'Asset data'!$CX54:$GJ54)-W54,0) -> 0 | Y54: =IF($A54>0,SUMIF('Age profile (years)'!$CT54:$GF54,"<" & T54+0.5,'Asset data'!$CX54:$GJ54)-X54-W54,0) -> 0 | Z54: =IF($A54>0,SUMIF('Age profile (years)'!$CT54:$GF54,"<" & U54+0.5,'Asset data'!$CX54:$GJ54)-Y54-X54-W54,0) -> 0 | AA54: 0 | AB54: 0 | AC54: 0 | AD54: 0 | AE54: 0 | AF54: 0 | AI54: =IF($A54>0,'RRR hist-forc'!K54,0) -> 0 | AJ54: 0
A55: ='Asset data'!A55 -> 0 | B55: ='Asset data'!B55 -> 0 | C55: ='Asset data'!C55 -> 0 | D55: ='Asset data'!E55 -> > 11 kv & < = 22 kv ; subdivision | E55: 0 | F55: =IF(A55>0,SUM('Asset data'!J55:CV55),0) -> 0 | G55: =IF(A55>0,'Asset data'!F55,0) -> 0 | H55: =IF(A55>0,SUM('Asset data'!CX55:GJ55),0) -> 0 | I55: 0 | J55: 0 | K55: 0 | L55: 0 | M55: =IF($A55>0,SUMPRODUCT('Age profile (years)'!$CT55:$GF55,'Asset data'!$CX55:$GJ55)/H55-0.5,0) -> 0 | N55: 0 | O55: =IF($A55>0,'Asset data'!G55,0) -> 0 | P55: 0 | Q55: 0 | R55: 0 | S55: 0 | T55: 0 | U55: 0 | W55: =IF($A55>0,SUMIF('Age profile (years)'!$CT55:$GF55,"<" & R55+0.5,'Asset data'!$CX55:$GJ55),0) -> 0 | X55: =IF($A55>0,SUMIF('Age profile (years)'!$CT55:$GF55,"<" & S55+0.5,'Asset data'!$CX55:$GJ55)-W55,0) -> 0 | Y55: =IF($A55>0,SUMIF('Age profile (years)'!$CT55:$GF55,"<" & T55+0.5,'Asset data'!$CX55:$GJ55)-X55-W55,0) -> 0 | Z55: =IF($A55>0,SUMIF('Age profile (years)'!$CT55:$GF55,"<" & U55+0.5,'Asset data'!$CX55:$GJ55)-Y55-X55-W55,0) -> 0 | AA55: 0 | AB55: 0 | AC55: 0 | AD55: 0 | AE55: 0 | AF55: 0 | AI55: =IF($A55>0,'RRR hist-forc'!K55,0) -> 0 | AJ55: 0
A56: ='Asset data'!A56 -> 0 | B56: ='Asset data'!B56 -> 0 | C56: ='Asset data'!C56 -> 0 | D56: ='Asset data'!E56 -> > 22 kv & < = 33 kv ; commercial & industrial | E56: 0 | F56: =IF(A56>0,SUM('Asset data'!J56:CV56),0) -> 0 | G56: =IF(A56>0,'Asset data'!F56,0) -> 0 | H56: =IF(A56>0,SUM('Asset data'!CX56:GJ56),0) -> 0 | I56: 0 | J56: 0 | K56: 0 | L56: 0 | M56: =IF($A56>0,SUMPRODUCT('Age profile (years)'!$CT56:$GF56,'Asset data'!$CX56:$GJ56)/H56-0.5,0) -> 0 | N56: 0 | O56: =IF($A56>0,'Asset data'!G56,0) -> 0 | P56: 0 | Q56: 0 | R56: 0 | S56: 0 | T56: 0 | U56: 0 | W56: =IF($A56>0,SUMIF('Age profile (years)'!$CT56:$GF56,"<" & R56+0.5,'Asset data'!$CX56:$GJ56),0) -> 0 | X56: =IF($A56>0,SUMIF('Age profile (years)'!$CT56:$GF56,"<" & S56+0.5,'Asset data'!$CX56:$GJ56)-W56,0) -> 0 | Y56: =IF($A56>0,SUMIF('Age profile (years)'!$CT56:$GF56,"<" & T56+0.5,'Asset data'!$CX56:$GJ56)-X56-W56,0) -> 0 | Z56: =IF($A56>0,SUMIF('Age profile (years)'!$CT56:$GF56,"<" & U56+0.5,'Asset data'!$CX56:$GJ56)-Y56-X56-W56,0) -> 0 | AA56: 0 | AB56: 0 | AC56: 0 | AD56: 0 | AE56: 0 | AF56: 0 | AI56: =IF($A56>0,'RRR hist-forc'!K56,0) -> 0 | AJ56: 0
A57: ='Asset data'!A57 -> 0 | B57: ='Asset data'!B57 -> 0 | C57: ='Asset data'!C57 -> 0 | D57: ='Asset data'!E57 -> > 22 kv & < = 33 kv ; subdivision | E57: 0 | F57: =IF(A57>0,SUM('Asset data'!J57:CV57),0) -> 0 | G57: =IF(A57>0,'Asset data'!F57,0) -> 0 | H57: =IF(A57>0,SUM('Asset data'!CX57:GJ57),0) -> 0 | I57: 0 | J57: 0 | K57: 0 | L57: 0 | M57: =IF($A57>0,SUMPRODUCT('Age profile (years)'!$CT57:$GF57,'Asset data'!$CX57:$GJ57)/H57-0.5,0) -> 0 | N57: 0 | O57: =IF($A57>0,'Asset data'!G57,0) -> 0 | P57: 0 | Q57: 0 | R57: 0 | S57: 0 | T57: 0 | U57: 0 | W57: =IF($A57>0,SUMIF('Age profile (years)'!$CT57:$GF57,"<" & R57+0.5,'Asset data'!$CX57:$GJ57),0) -> 0 | X57: =IF($A57>0,SUMIF('Age profile (years)'!$CT57:$GF57,"<" & S57+0.5,'Asset data'!$CX57:$GJ57)-W57,0) -> 0 | Y57: =IF($A57>0,SUMIF('Age profile (years)'!$CT57:$GF57,"<" & T57+0.5,'Asset data'!$CX57:$GJ57)-X57-W57,0) -> 0 | Z57: =IF($A57>0,SUMIF('Age profile (years)'!$CT57:$GF57,"<" & U57+0.5,'Asset data'!$CX57:$GJ57)-Y57-X57-W57,0) -> 0 | AA57: 0 | AB57: 0 | AC57: 0 | AD57: 0 | AE57: 0 | AF57: 0 | AI57: =IF($A57>0,'RRR hist-forc'!K57,0) -> 0 | AJ57: 0
A58: ='Asset data'!A58 -> 0 | B58: ='Asset data'!B58 -> 0 | C58: ='Asset data'!C58 -> 0 | D58: ='Asset data'!E58 -> > 33 kv & < = 66 kv ; commercial & industrial | E58: 0 | F58: =IF(A58>0,SUM('Asset data'!J58:CV58),0) -> 0 | G58: =IF(A58>0,'Asset data'!F58,0) -> 0 | H58: =IF(A58>0,SUM('Asset data'!CX58:GJ58),0) -> 0 | I58: 0 | J58: 0 | K58: 0 | L58: 0 | M58: =IF($A58>0,SUMPRODUCT('Age profile (years)'!$CT58:$GF58,'Asset data'!$CX58:$GJ58)/H58-0.5,0) -> 0 | N58: 0 | O58: =IF($A58>0,'Asset data'!G58,0) -> 0 | P58: 0 | Q58: 0 | R58: 0 | S58: 0 | T58: 0 | U58: 0 | W58: =IF($A58>0,SUMIF('Age profile (years)'!$CT58:$GF58,"<" & R58+0.5,'Asset data'!$CX58:$GJ58),0) -> 0 | X58: =IF($A58>0,SUMIF('Age profile (years)'!$CT58:$GF58,"<" & S58+0.5,'Asset data'!$CX58:$GJ58)-W58,0) -> 0 | Y58: =IF($A58>0,SUMIF('Age profile (years)'!$CT58:$GF58,"<" & T58+0.5,'Asset data'!$CX58:$GJ58)-X58-W58,0) -> 0 | Z58: =IF($A58>0,SUMIF('Age profile (years)'!$CT58:$GF58,"<" & U58+0.5,'Asset data'!$CX58:$GJ58)-Y58-X58-W58,0) -> 0 | AA58: 0 | AB58: 0 | AC58: 0 | AD58: 0 | AE58: 0 | AF58: 0 | AI58: =IF($A58>0,'RRR hist-forc'!K58,0) -> 0 | AJ58: 0
A59: ='Asset data'!A59 -> 0 | B59: ='Asset data'!B59 -> 0 | C59: ='Asset data'!C59 -> 0 | D59: ='Asset data'!E59 -> > 33 kv & < = 66 kv ; subdivision | E59: 0 | F59: =IF(A59>0,SUM('Asset data'!J59:CV59),0) -> 0 | G59: =IF(A59>0,'Asset data'!F59,0) -> 0 | H59: =IF(A59>0,SUM('Asset data'!CX59:GJ59),0) -> 0 | I59: 0 | J59: 0 | K59: 0 | L59: 0 | M59: =IF($A59>0,SUMPRODUCT('Age profile (years)'!$CT59:$GF59,'Asset data'!$CX59:$GJ59)/H59-0.5,0) -> 0 | N59: 0 | O59: =IF($A59>0,'Asset data'!G59,0) -> 0 | P59: 0 | Q59: 0 | R59: 0 | S59: 0 | T59: 0 | U59: 0 | W59: =IF($A59>0,SUMIF('Age profile (years)'!$CT59:$GF59,"<" & R59+0.5,'Asset data'!$CX59:$GJ59),0) -> 0 | X59: =IF($A59>0,SUMIF('Age profile (years)'!$CT59:$GF59,"<" & S59+0.5,'Asset data'!$CX59:$GJ59)-W59,0) -> 0 | Y59: =IF($A59>0,SUMIF('Age profile (years)'!$CT59:$GF59,"<" & T59+0.5,'Asset data'!$CX59:$GJ59)-X59-W59,0) -> 0 | Z59: =IF($A59>0,SUMIF('Age profile (years)'!$CT59:$GF59,"<" & U59+0.5,'Asset data'!$CX59:$GJ59)-Y59-X59-W59,0) -> 0 | AA59: 0 | AB59: 0 | AC59: 0 | AD59: 0 | AE59: 0 | AF59: 0 | AI59: =IF($A59>0,'RRR hist-forc'!K59,0) -> 0 | AJ59: 0
A60: ='Asset data'!A60 -> 0 | B60: ='Asset data'!B60 -> 0 | C60: ='Asset data'!C60 -> 0 | D60: ='Asset data'!E60 -> > 66 kv & < = 132 kv ; commercial & industrial | E60: 0 | F60: =IF(A60>0,SUM('Asset data'!J60:CV60),0) -> 0 | G60: =IF(A60>0,'Asset data'!F60,0) -> 0 | H60: =IF(A60>0,SUM('Asset data'!CX60:GJ60),0) -> 0 | I60: 0 | J60: 0 | K60: 0 | L60: 0 | M60: =IF($A60>0,SUMPRODUCT('Age profile (years)'!$CT60:$GF60,'Asset data'!$CX60:$GJ60)/H60-0.5,0) -> 0 | N60: 0 | O60: =IF($A60>0,'Asset data'!G60,0) -> 0 | P60: 0 | Q60: 0 | R60: 0 | S60: 0 | T60: 0 | U60: 0 | W60: =IF($A60>0,SUMIF('Age profile (years)'!$CT60:$GF60,"<" & R60+0.5,'Asset data'!$CX60:$GJ60),0) -> 0 | X60: =IF($A60>0,SUMIF('Age profile (years)'!$CT60:$GF60,"<" & S60+0.5,'Asset data'!$CX60:$GJ60)-W60,0) -> 0 | Y60: =IF($A60>0,SUMIF('Age profile (years)'!$CT60:$GF60,"<" & T60+0.5,'Asset data'!$CX60:$GJ60)-X60-W60,0) -> 0 | Z60: =IF($A60>0,SUMIF('Age profile (years)'!$CT60:$GF60,"<" & U60+0.5,'Asset data'!$CX60:$GJ60)-Y60-X60-W60,0) -> 0 | AA60: 0 | AB60: 0 | AC60: 0 | AD60: 0 | AE60: 0 | AF60: 0 | AI60: =IF($A60>0,'RRR hist-forc'!K60,0) -> 0 | AJ60: 0
A61: ='Asset data'!A61 -> 0 | B61: ='Asset data'!B61 -> 0 | C61: ='Asset data'!C61 -> 0 | D61: ='Asset data'!E61 -> > 66 kv & < = 132 kv ; subdivision | E61: 0 | F61: =IF(A61>0,SUM('Asset data'!J61:CV61),0) -> 0 | G61: =IF(A61>0,'Asset data'!F61,0) -> 0 | H61: =IF(A61>0,SUM('Asset data'!CX61:GJ61),0) -> 0 | I61: 0 | J61: 0 | K61: 0 | L61: 0 | M61: =IF($A61>0,SUMPRODUCT('Age profile (years)'!$CT61:$GF61,'Asset data'!$CX61:$GJ61)/H61-0.5,0) -> 0 | N61: 0 | O61: =IF($A61>0,'Asset data'!G61,0) -> 0 | P61: 0 | Q61: 0 | R61: 0 | S61: 0 | T61: 0 | U61: 0 | W61: =IF($A61>0,SUMIF('Age profile (years)'!$CT61:$GF61,"<" & R61+0.5,'Asset data'!$CX61:$GJ61),0) -> 0 | X61: =IF($A61>0,SUMIF('Age profile (years)'!$CT61:$GF61,"<" & S61+0.5,'Asset data'!$CX61:$GJ61)-W61,0) -> 0 | Y61: =IF($A61>0,SUMIF('Age profile (years)'!$CT61:$GF61,"<" & T61+0.5,'Asset data'!$CX61:$GJ61)-X61-W61,0) -> 0 | Z61: =IF($A61>0,SUMIF('Age profile (years)'!$CT61:$GF61,"<" & U61+0.5,'Asset data'!$CX61:$GJ61)-Y61-X61-W61,0) -> 0 | AA61: 0 | AB61: 0 | AC61: 0 | AD61: 0 | AE61: 0 | AF61: 0 | AI61: =IF($A61>0,'RRR hist-forc'!K61,0) -> 0 | AJ61: 0
A62: ='Asset data'!A62 -> 0 | B62: ='Asset data'!B62 -> 0 | C62: ='Asset data'!C62 -> 0 | D62: ='Asset data'!E62 -> > 132 kv ; commercial & industrial | E62: 0 | F62: =IF(A62>0,SUM('Asset data'!J62:CV62),0) -> 0 | G62: =IF(A62>0,'Asset data'!F62,0) -> 0 | H62: =IF(A62>0,SUM('Asset data'!CX62:GJ62),0) -> 0 | I62: 0 | J62: 0 | K62: 0 | L62: 0 | M62: =IF($A62>0,SUMPRODUCT('Age profile (years)'!$CT62:$GF62,'Asset data'!$CX62:$GJ62)/H62-0.5,0) -> 0 | N62: 0 | O62: =IF($A62>0,'Asset data'!G62,0) -> 0 | P62: 0 | Q62: 0 | R62: 0 | S62: 0 | T62: 0 | U62: 0 | W62: =IF($A62>0,SUMIF('Age profile (years)'!$CT62:$GF62,"<" & R62+0.5,'Asset data'!$CX62:$GJ62),0) -> 0 | X62: =IF($A62>0,SUMIF('Age profile (years)'!$CT62:$GF62,"<" & S62+0.5,'Asset data'!$CX62:$GJ62)-W62,0) -> 0 | Y62: =IF($A62>0,SUMIF('Age profile (years)'!$CT62:$GF62,"<" & T62+0.5,'Asset data'!$CX62:$GJ62)-X62-W62,0) -> 0 | Z62: =IF($A62>0,SUMIF('Age profile (years)'!$CT62:$GF62,"<" & U62+0.5,'Asset data'!$CX62:$GJ62)-Y62-X62-W62,0) -> 0 | AA62: 0 | AB62: 0 | AC62: 0 | AD62: 0 | AE62: 0 | AF62: 0 | AI62: =IF($A62>0,'RRR hist-forc'!K62,0) -> 0 | AJ62: 0
A63: ='Asset data'!A63 -> 0 | B63: ='Asset data'!B63 -> 0 | C63: ='Asset data'!C63 -> 0 | D63: ='Asset data'!E63 -> > 132 kv ; subdivision | E63: 0 | F63: =IF(A63>0,SUM('Asset data'!J63:CV63),0) -> 0 | G63: =IF(A63>0,'Asset data'!F63,0) -> 0 | H63: =IF(A63>0,SUM('Asset data'!CX63:GJ63),0) -> 0 | I63: 0 | J63: 0 | K63: 0 | L63: 0 | M63: =IF($A63>0,SUMPRODUCT('Age profile (years)'!$CT63:$GF63,'Asset data'!$CX63:$GJ63)/H63-0.5,0) -> 0 | N63: 0 | O63: =IF($A63>0,'Asset data'!G63,0) -> 0 | P63: 0 | Q63: 0 | R63: 0 | S63: 0 | T63: 0 | U63: 0 | W63: =IF($A63>0,SUMIF('Age profile (years)'!$CT63:$GF63,"<" & R63+0.5,'Asset data'!$CX63:$GJ63),0) -> 0 | X63: =IF($A63>0,SUMIF('Age profile (years)'!$CT63:$GF63,"<" & S63+0.5,'Asset data'!$CX63:$GJ63)-W63,0) -> 0 | Y63: =IF($A63>0,SUMIF('Age profile (years)'!$CT63:$GF63,"<" & T63+0.5,'Asset data'!$CX63:$GJ63)-X63-W63,0) -> 0 | Z63: =IF($A63>0,SUMIF('Age profile (years)'!$CT63:$GF63,"<" & U63+0.5,'Asset data'!$CX63:$GJ63)-Y63-X63-W63,0) -> 0 | AA63: 0 | AB63: 0 | AC63: 0 | AD63: 0 | AE63: 0 | AF63: 0 | AI63: =IF($A63>0,'RRR hist-forc'!K63,0) -> 0 | AJ63: 0
A64: ='Asset data'!A64 -> 0 | B64: ='Asset data'!B64 -> 0 | C64: ='Asset data'!C64 -> 0 | D64: ='Asset data'!E64 -> other | E64: 0 | F64: =IF(A64>0,SUM('Asset data'!J64:CV64),0) -> 0 | G64: =IF(A64>0,'Asset data'!F64,0) -> 0 | H64: =IF(A64>0,SUM('Asset data'!CX64:GJ64),0) -> 0 | I64: 0 | J64: 0 | K64: 0 | L64: 0 | M64: =IF($A64>0,SUMPRODUCT('Age profile (years)'!$CT64:$GF64,'Asset data'!$CX64:$GJ64)/H64-0.5,0) -> 0 | N64: 0 | O64: =IF($A64>0,'Asset data'!G64,0) -> 0 | P64: 0 | Q64: 0 | R64: 0 | S64: 0 | T64: 0 | U64: 0 | W64: =IF($A64>0,SUMIF('Age profile (years)'!$CT64:$GF64,"<" & R64+0.5,'Asset data'!$CX64:$GJ64),0) -> 0 | X64: =IF($A64>0,SUMIF('Age profile (years)'!$CT64:$GF64,"<" & S64+0.5,'Asset data'!$CX64:$GJ64)-W64,0) -> 0 | Y64: =IF($A64>0,SUMIF('Age profile (years)'!$CT64:$GF64,"<" & T64+0.5,'Asset data'!$CX64:$GJ64)-X64-W64,0) -> 0 | Z64: =IF($A64>0,SUMIF('Age profile (years)'!$CT64:$GF64,"<" & U64+0.5,'Asset data'!$CX64:$GJ64)-Y64-X64-W64,0) -> 0 | AA64: 0 | AB64: 0 | AC64: 0 | AD64: 0 | AE64: 0 | AF64: 0 | AI64: =IF($A64>0,'RRR hist-forc'!K64,0) -> 0 | AJ64: 0
A65: ='Asset data'!A65 -> 5 | B65: ='Asset data'!B65 -> 0 | C65: ='Asset data'!C65 -> 0 | D65: ='Asset data'!E65 -> pole mounted ; < = 22kv ; < = 60 kva ; single phase | E65: TRANSFORMERS | F65: =IF(A65>0,SUM('Asset data'!J65:CV65),0) -> 40616 | G65: =IF(A65>0,'Asset data'!F65,0) -> 5.6766 | H65: =IF(A65>0,SUM('Asset data'!CX65:GJ65),0) -> 230560.7856 | I65: 0.009559875897 | J65: 11 | K65: 0.1162641017 | L65: 5.6766 | M65: =IF($A65>0,SUMPRODUCT('Age profile (years)'!$CT65:$GF65,'Asset data'!$CX65:$GJ65)/H65-0.5,0) -> 21.37189777 | N65: 4927521.541 | O65: =IF($A65>0,'Asset data'!G65,0) -> 52.4380686 | P65: 12090162.29 | Q65: 0.5924354511 | R65: 5.24380686 | S65: 10.48761372 | T65: 31.46284116 | U65: 41.95045488 | W65: =IF($A65>0,SUMIF('Age profile (years)'!$CT65:$GF65,"<" & R65+0.5,'Asset data'!$CX65:$GJ65),0) -> 36971.6958 | X65: =IF($A65>0,SUMIF('Age profile (years)'!$CT65:$GF65,"<" & S65+0.5,'Asset data'!$CX65:$GJ65)-W65,0) -> 20940.9774 | Y65: =IF($A65>0,SUMIF('Age profile (years)'!$CT65:$GF65,"<" & T65+0.5,'Asset data'!$CX65:$GJ65)-X65-W65,0) -> 110932.1172 | Z65: =IF($A65>0,SUMIF('Age profile (years)'!$CT65:$GF65,"<" & U65+0.5,'Asset data'!$CX65:$GJ65)-Y65-X65-W65,0) -> 40877.1966 | AA65: 20838.7986 | AB65: 0.1603555249 | AC65: 0.09082627536 | AD65: 0.4811404373 | AE65: 0.1772946622 | AF65: 0.09038310026 | AI65: =IF($A65>0,'RRR hist-forc'!K65,0) -> 52.4380686 | AJ65: 12090162.29
A66: ='Asset data'!A66 -> 5 | B66: ='Asset data'!B66 -> 0 | C66: ='Asset data'!C66 -> 0 | D66: ='Asset data'!E66 -> pole mounted ; < = 22kv ; > 600 kva ; single phase | E66: TRANSFORMERS | F66: =IF(A66>0,SUM('Asset data'!J66:CV66),0) -> 221 | G66: =IF(A66>0,'Asset data'!F66,0) -> 0.0001 | H66: =IF(A66>0,SUM('Asset data'!CX66:GJ66),0) -> 0.0221 | I66: 9.163451485e-10 | J66: 55 | K66: 1.114429169e-08 | L66: 0.0001 | M66: =IF($A66>0,SUMPRODUCT('Age profile (years)'!$CT66:$GF66,'Asset data'!$CX66:$GJ66)/H66-0.5,0) -> 59.76244344 | N66: 1.32075 | O66: =IF($A66>0,'Asset data'!G66,0) -> 105.0627657 | P66: 2.321887122 | Q66: 0.4311738984 | R66: 10.50627657 | S66: 21.01255314 | T66: 63.03765942 | U66: 84.05021256 | W66: =IF($A66>0,SUMIF('Age profile (years)'!$CT66:$GF66,"<" & R66+0.5,'Asset data'!$CX66:$GJ66),0) -> 0 | X66: =IF($A66>0,SUMIF('Age profile (years)'!$CT66:$GF66,"<" & S66+0.5,'Asset data'!$CX66:$GJ66)-W66,0) -> 0 | Y66: =IF($A66>0,SUMIF('Age profile (years)'!$CT66:$GF66,"<" & T66+0.5,'Asset data'!$CX66:$GJ66)-X66-W66,0) -> 0.0168 | Z66: =IF($A66>0,SUMIF('Age profile (years)'!$CT66:$GF66,"<" & U66+0.5,'Asset data'!$CX66:$GJ66)-Y66-X66-W66,0) -> 0.004 | AA66: 0.0013 | AB66: 0 | AC66: 0 | AD66: 0.7601809955 | AE66: 0.1809954751 | AF66: 0.05882352941 | AI66: =IF($A66>0,'RRR hist-forc'!K66,0) -> 105.0627657 | AJ66: 2.321887122
A67: ='Asset data'!A67 -> 5 | B67: ='Asset data'!B67 -> 0 | C67: ='Asset data'!C67 -> 0 | D67: ='Asset data'!E67 -> pole mounted ; < = 22kv ; < = 60 kva ; multiple phase | E67: TRANSFORMERS | F67: =IF(A67>0,SUM('Asset data'!J67:CV67),0) -> 2485 | G67: =IF(A67>0,'Asset data'!F67,0) -> 8.3867 | H67: =IF(A67>0,SUM('Asset data'!CX67:GJ67),0) -> 20840.9495 | I67: 0.0008641404057 | J67: 34 | K67: 0.01050939458 | L67: 8.3867 | M67: =IF($A67>0,SUMPRODUCT('Age profile (years)'!$CT67:$GF67,'Asset data'!$CX67:$GJ67)/H67-0.5,0) -> 27.42515091 | N67: 571566.1851 | O67: =IF($A67>0,'Asset data'!G67,0) -> 59.38957058 | P67: 1237735.041 | Q67: 0.538216043 | R67: 5.938957058 | S67: 11.87791412 | T67: 35.63374235 | U67: 47.51165646 | W67: =IF($A67>0,SUMIF('Age profile (years)'!$CT67:$GF67,"<" & R67+0.5,'Asset data'!$CX67:$GJ67),0) -> 1467.6725 | X67: =IF($A67>0,SUMIF('Age profile (years)'!$CT67:$GF67,"<" & S67+0.5,'Asset data'!$CX67:$GJ67)-W67,0) -> 1476.0592 | Y67: =IF($A67>0,SUMIF('Age profile (years)'!$CT67:$GF67,"<" & T67+0.5,'Asset data'!$CX67:$GJ67)-X67-W67,0) -> 12848.4244 | Z67: =IF($A67>0,SUMIF('Age profile (years)'!$CT67:$GF67,"<" & U67+0.5,'Asset data'!$CX67:$GJ67)-Y67-X67-W67,0) -> 3497.2539 | AA67: 1551.5395 | AB67: 0.07042253521 | AC67: 0.0708249497 | AD67: 0.616498994 | AE67: 0.167806841 | AF67: 0.07444668008 | AI67: =IF($A67>0,'RRR hist-forc'!K67,0) -> 59.38957058 | AJ67: 1237735.041
A68: ='Asset data'!A68 -> 5 | B68: ='Asset data'!B68 -> 0 | C68: ='Asset data'!C68 -> 0 | D68: ='Asset data'!E68 -> pole mounted ; < = 22kv ; > 60 kva and < = 600 kva ; multiple phase | E68: TRANSFORMERS | F68: =IF(A68>0,SUM('Asset data'!J68:CV68),0) -> 3555 | G68: =IF(A68>0,'Asset data'!F68,0) -> 17.9466 | H68: =IF(A68>0,SUM('Asset data'!CX68:GJ68),0) -> 63800.163 | I68: 0.002645383251 | J68: 23 | K68: 0.03217229078 | L68: 17.9466 | M68: =IF($A68>0,SUMPRODUCT('Age profile (years)'!$CT68:$GF68,'Asset data'!$CX68:$GJ68)/H68-0.5,0) -> 30.38720113 | N68: 1938708.385 | O68: =IF($A68>0,'Asset data'!G68,0) -> 52.42265947 | P68: 3344574.219 | Q68: 0.4203422445 | R68: 5.242265947 | S68: 10.48453189 | T68: 31.45359568 | U68: 41.93812757 | W68: =IF($A68>0,SUMIF('Age profile (years)'!$CT68:$GF68,"<" & R68+0.5,'Asset data'!$CX68:$GJ68),0) -> 7160.6934 | X68: =IF($A68>0,SUMIF('Age profile (years)'!$CT68:$GF68,"<" & S68+0.5,'Asset data'!$CX68:$GJ68)-W68,0) -> 2476.6308 | Y68: =IF($A68>0,SUMIF('Age profile (years)'!$CT68:$GF68,"<" & T68+0.5,'Asset data'!$CX68:$GJ68)-X68-W68,0) -> 23043.4344 | Z68: =IF($A68>0,SUMIF('Age profile (years)'!$CT68:$GF68,"<" & U68+0.5,'Asset data'!$CX68:$GJ68)-Y68-X68-W68,0) -> 4899.4218 | AA68: 26219.9826 | AB68: 0.1122362869 | AC68: 0.0388185654 | AD68: 0.3611814346 | AE68: 0.07679324895 | AF68: 0.4109704641 | AI68: =IF($A68>0,'RRR hist-forc'!K68,0) -> 52.42265947 | AJ68: 3344574.219
A69: ='Asset data'!A69 -> 5 | B69: ='Asset data'!B69 -> 0 | C69: ='Asset data'!C69 -> 0 | D69: ='Asset data'!E69 -> pole mounted ; < = 22kv ; > 600 kva ; multiple phase | E69: TRANSFORMERS | F69: =IF(A69>0,SUM('Asset data'!J69:CV69),0) -> 28 | G69: =IF(A69>0,'Asset data'!F69,0) -> 73.1489 | H69: =IF(A69>0,SUM('Asset data'!CX69:GJ69),0) -> 2048.1692 | I69: 8.492443031e-05 | J69: 48 | K69: 0.001032823303 | L69: 73.1489 | M69: =IF($A69>0,SUMPRODUCT('Age profile (years)'!$CT69:$GF69,'Asset data'!$CX69:$GJ69)/H69-0.5,0) -> -10.25 | N69: -20993.7343 | O69: =IF($A69>0,'Asset data'!G69,0) -> 30.19434888 | P69: 61843.13539 | Q69: 1.339467496 | R69: 3.019434888 | S69: 6.038869776 | T69: 18.11660933 | U69: 24.15547911 | W69: =IF($A69>0,SUMIF('Age profile (years)'!$CT69:$GF69,"<" & R69+0.5,'Asset data'!$CX69:$GJ69),0) -> 1682.4247 | X69: =IF($A69>0,SUMIF('Age profile (years)'!$CT69:$GF69,"<" & S69+0.5,'Asset data'!$CX69:$GJ69)-W69,0) -> 0 | Y69: =IF($A69>0,SUMIF('Age profile (years)'!$CT69:$GF69,"<" & T69+0.5,'Asset data'!$CX69:$GJ69)-X69-W69,0) -> 146.2978 | Z69: =IF($A69>0,SUMIF('Age profile (years)'!$CT69:$GF69,"<" & U69+0.5,'Asset data'!$CX69:$GJ69)-Y69-X69-W69,0) -> 73.1489 | AA69: 146.2978 | AB69: 0.8214285714 | AC69: 0 | AD69: 0.07142857143 | AE69: 0.03571428571 | AF69: 0.07142857143 | AI69: =IF($A69>0,'RRR hist-forc'!K69,0) -> 30.19434888 | AJ69: 61843.13539
A70: ='Asset data'!A70 -> 5 | B70: ='Asset data'!B70 -> 0 | C70: ='Asset data'!C70 -> 0 | D70: ='Asset data'!E70 -> kiosk mounted ; < = 22kv ; < = 60 kva ; single phase | E70: TRANSFORMERS | F70: =IF(A70>0,SUM('Asset data'!J70:CV70),0) -> 310 | G70: =IF(A70>0,'Asset data'!F70,0) -> 1.7292 | H70: =IF(A70>0,SUM('Asset data'!CX70:GJ70),0) -> 536.052 | I70: 2.222663573e-05 | J70: 50 | K70: 0.0002703131153 | L70: 1.7292 | M70: =IF($A70>0,SUMPRODUCT('Age profile (years)'!$CT70:$GF70,'Asset data'!$CX70:$GJ70)/H70-0.5,0) -> 27.42580645 | N70: 14701.6584 | O70: =IF($A70>0,'Asset data'!G70,0) -> 49.83146604 | P70: 26712.25703 | Q70: 0.449628746 | R70: 4.983146604 | S70: 9.966293208 | T70: 29.89887962 | U70: 39.86517283 | W70: =IF($A70>0,SUMIF('Age profile (years)'!$CT70:$GF70,"<" & R70+0.5,'Asset data'!$CX70:$GJ70),0) -> 32.8548 | X70: =IF($A70>0,SUMIF('Age profile (years)'!$CT70:$GF70,"<" & S70+0.5,'Asset data'!$CX70:$GJ70)-W70,0) -> 10.3752 | Y70: =IF($A70>0,SUMIF('Age profile (years)'!$CT70:$GF70,"<" & T70+0.5,'Asset data'!$CX70:$GJ70)-X70-W70,0) -> 290.5056 | Z70: =IF($A70>0,SUMIF('Age profile (years)'!$CT70:$GF70,"<" & U70+0.5,'Asset data'!$CX70:$GJ70)-Y70-X70-W70,0) -> 126.2316 | AA70: 76.0848 | AB70: 0.06129032258 | AC70: 0.01935483871 | AD70: 0.5419354839 | AE70: 0.235483871 | AF70: 0.1419354839 | AI70: =IF($A70>0,'RRR hist-forc'!K70,0) -> 49.83146604 | AJ70: 26712.25703
A71: ='Asset data'!A71 -> 5 | B71: ='Asset data'!B71 -> 0 | C71: ='Asset data'!C71 -> 0 | D71: ='Asset data'!E71 -> kiosk mounted ; < = 22kv ; > 60 kva and < = 600 kva ; single phase | E71: TRANSFORMERS | F71: =IF(A71>0,SUM('Asset data'!J71:CV71),0) -> 8915 | G71: =IF(A71>0,'Asset data'!F71,0) -> 91.7236 | H71: =IF(A71>0,SUM('Asset data'!CX71:GJ71),0) -> 817715.894 | I71: 0.03390542952 | J71: 8 | K71: 0.4123468073 | L71: 91.7236 | M71: =IF($A71>0,SUMPRODUCT('Age profile (years)'!$CT71:$GF71,'Asset data'!$CX71:$GJ71)/H71-0.5,0) -> 47.06264722 | N71: 38483874.65 | O71: =IF($A71>0,'Asset data'!G71,0) -> 71.61300921 | P71: 58559095.85 | Q71: 0.3428198628 | R71: 7.161300921 | S71: 14.32260184 | T71: 42.96780553 | U71: 57.29040737 | W71: =IF($A71>0,SUMIF('Age profile (years)'!$CT71:$GF71,"<" & R71+0.5,'Asset data'!$CX71:$GJ71),0) -> 0 | X71: =IF($A71>0,SUMIF('Age profile (years)'!$CT71:$GF71,"<" & S71+0.5,'Asset data'!$CX71:$GJ71)-W71,0) -> 17335.7604 | Y71: =IF($A71>0,SUMIF('Age profile (years)'!$CT71:$GF71,"<" & T71+0.5,'Asset data'!$CX71:$GJ71)-X71-W71,0) -> 262696.3904 | Z71: =IF($A71>0,SUMIF('Age profile (years)'!$CT71:$GF71,"<" & U71+0.5,'Asset data'!$CX71:$GJ71)-Y71-X71-W71,0) -> 317822.274 | AA71: 219861.4692 | AB71: 0 | AC71: 0.02120022434 | AD71: 0.3212563096 | AE71: 0.3886707796 | AF71: 0.2688726865 | AI71: =IF($A71>0,'RRR hist-forc'!K71,0) -> 71.61300921 | AJ71: 58559095.85
A72: ='Asset data'!A72 -> 5 | B72: ='Asset data'!B72 -> 0 | C72: ='Asset data'!C72 -> 0 | D72: ='Asset data'!E72 -> kiosk mounted ; < = 22kv ; > 600 kva ; single phase | E72: TRANSFORMERS | F72: =IF(A72>0,SUM('Asset data'!J72:CV72),0) -> 1298 | G72: =IF(A72>0,'Asset data'!F72,0) -> 0.0001 | H72: =IF(A72>0,SUM('Asset data'!CX72:GJ72),0) -> 0.1298 | I72: 5.381972863e-09 | J72: 54 | K72: 6.545380367e-08 | L72: 0.0001 | M72: =IF($A72>0,SUMPRODUCT('Age profile (years)'!$CT72:$GF72,'Asset data'!$CX72:$GJ72)/H72-0.5,0) -> 86.85824345 | N72: 11.2742 | O72: =IF($A72>0,'Asset data'!G72,0) -> 112.0996408 | P72: 14.55053337 | Q72: 0.2251692972 | R72: 11.20996408 | S72: 22.41992816 | T72: 67.25978447 | U72: 89.67971262 | W72: =IF($A72>0,SUMIF('Age profile (years)'!$CT72:$GF72,"<" & R72+0.5,'Asset data'!$CX72:$GJ72),0) -> 0 | X72: =IF($A72>0,SUMIF('Age profile (years)'!$CT72:$GF72,"<" & S72+0.5,'Asset data'!$CX72:$GJ72)-W72,0) -> 0 | Y72: =IF($A72>0,SUMIF('Age profile (years)'!$CT72:$GF72,"<" & T72+0.5,'Asset data'!$CX72:$GJ72)-X72-W72,0) -> 0.0219 | Z72: =IF($A72>0,SUMIF('Age profile (years)'!$CT72:$GF72,"<" & U72+0.5,'Asset data'!$CX72:$GJ72)-Y72-X72-W72,0) -> 0.0388 | AA72: 0.0691 | AB72: 0 | AC72: 0 | AD72: 0.1687211094 | AE72: 0.2989214176 | AF72: 0.532357473 | AI72: =IF($A72>0,'RRR hist-forc'!K72,0) -> 112.0996408 | AJ72: 14.55053337
A73: ='Asset data'!A73 -> 5 | B73: ='Asset data'!B73 -> 0 | C73: ='Asset data'!C73 -> 0 | D73: ='Asset data'!E73 -> kiosk mounted ; < = 22kv ; < = 60 kva ; multiple phase | E73: TRANSFORMERS | F73: =IF(A73>0,SUM('Asset data'!J73:CV73),0) -> 17 | G73: =IF(A73>0,'Asset data'!F73,0) -> 20.4497 | H73: =IF(A73>0,SUM('Asset data'!CX73:GJ73),0) -> 347.6449 | I73: 1.44146026e-05 | J73: 51 | K73: 0.000175305709 | L73: 20.4497 | M73: =IF($A73>0,SUMPRODUCT('Age profile (years)'!$CT73:$GF73,'Asset data'!$CX73:$GJ73)/H73-0.5,0) -> 23.91176471 | N73: 8312.80305 | O73: =IF($A73>0,'Asset data'!G73,0) -> 54.87850713 | P73: 19078.23312 | Q73: 0.564278149 | R73: 5.487850713 | S73: 10.97570143 | T73: 32.92710428 | U73: 43.90280571 | W73: =IF($A73>0,SUMIF('Age profile (years)'!$CT73:$GF73,"<" & R73+0.5,'Asset data'!$CX73:$GJ73),0) -> 163.5976 | X73: =IF($A73>0,SUMIF('Age profile (years)'!$CT73:$GF73,"<" & S73+0.5,'Asset data'!$CX73:$GJ73)-W73,0) -> 0 | Y73: =IF($A73>0,SUMIF('Age profile (years)'!$CT73:$GF73,"<" & T73+0.5,'Asset data'!$CX73:$GJ73)-X73-W73,0) -> 61.3491 | Z73: =IF($A73>0,SUMIF('Age profile (years)'!$CT73:$GF73,"<" & U73+0.5,'Asset data'!$CX73:$GJ73)-Y73-X73-W73,0) -> 0 | AA73: 122.6982 | AB73: 0.4705882353 | AC73: 0 | AD73: 0.1764705882 | AE73: 0 | AF73: 0.3529411765 | AI73: =IF($A73>0,'RRR hist-forc'!K73,0) -> 54.87850713 | AJ73: 19078.23312
A74: ='Asset data'!A74 -> 5 | B74: ='Asset data'!B74 -> 0 | C74: ='Asset data'!C74 -> 0 | D74: ='Asset data'!E74 -> kiosk mounted ; < = 22kv ; > 60 kva and < = 600 kva ; multiple phase | E74: TRANSFORMERS | F74: =IF(A74>0,SUM('Asset data'!J74:CV74),0) -> 2025 | G74: =IF(A74>0,'Asset data'!F74,0) -> 37.6797 | H74: =IF(A74>0,SUM('Asset data'!CX74:GJ74),0) -> 76301.3925 | I74: 0.003163728997 | J74: 21 | K74: 0.03847624318 | L74: 37.6797 | M74: =IF($A74>0,SUMPRODUCT('Age profile (years)'!$CT74:$GF74,'Asset data'!$CX74:$GJ74)/H74-0.5,0) -> 29.49654321 | N74: 2250627.321 | O74: =IF($A74>0,'Asset data'!G74,0) -> 46.99289544 | P74: 3585623.359 | Q74: 0.3723190934 | R74: 4.699289544 | S74: 9.398579087 | T74: 28.19573726 | U74: 37.59431635 | W74: =IF($A74>0,SUMIF('Age profile (years)'!$CT74:$GF74,"<" & R74+0.5,'Asset data'!$CX74:$GJ74),0) -> 6556.2678 | X74: =IF($A74>0,SUMIF('Age profile (years)'!$CT74:$GF74,"<" & S74+0.5,'Asset data'!$CX74:$GJ74)-W74,0) -> 2637.579 | Y74: =IF($A74>0,SUMIF('Age profile (years)'!$CT74:$GF74,"<" & T74+0.5,'Asset data'!$CX74:$GJ74)-X74-W74,0) -> 26112.0321 | Z74: =IF($A74>0,SUMIF('Age profile (years)'!$CT74:$GF74,"<" & U74+0.5,'Asset data'!$CX74:$GJ74)-Y74-X74-W74,0) -> 4408.5249 | AA74: 36586.9887 | AB74: 0.08592592593 | AC74: 0.03456790123 | AD74: 0.3422222222 | AE74: 0.05777777778 | AF74: 0.4795061728 | AI74: =IF($A74>0,'RRR hist-forc'!K74,0) -> 46.99289544 | AJ74: 3585623.359
A75: ='Asset data'!A75 -> 5 | B75: ='Asset data'!B75 -> 0 | C75: ='Asset data'!C75 -> 0 | D75: ='Asset data'!E75 -> kiosk mounted ; < = 22kv ; > 600 kva ; multiple phase | E75: TRANSFORMERS | F75: =IF(A75>0,SUM('Asset data'!J75:CV75),0) -> 320 | G75: =IF(A75>0,'Asset data'!F75,0) -> 74.5248 | H75: =IF(A75>0,SUM('Asset data'!CX75:GJ75),0) -> 23847.936 | I75: 0.0009888208351 | J75: 33 | K75: 0.01202571742 | L75: 74.5248 | M75: =IF($A75>0,SUMPRODUCT('Age profile (years)'!$CT75:$GF75,'Asset data'!$CX75:$GJ75)/H75-0.5,0) -> 23.3375 | N75: 556551.2064 | O75: =IF($A75>0,'Asset data'!G75,0) -> 39.09907658 | P75: 932432.276 | Q75: 0.4031188959 | R75: 3.909907658 | S75: 7.819815317 | T75: 23.45944595 | U75: 31.27926127 | W75: =IF($A75>0,SUMIF('Age profile (years)'!$CT75:$GF75,"<" & R75+0.5,'Asset data'!$CX75:$GJ75),0) -> 3875.2896 | X75: =IF($A75>0,SUMIF('Age profile (years)'!$CT75:$GF75,"<" & S75+0.5,'Asset data'!$CX75:$GJ75)-W75,0) -> 1043.3472 | Y75: =IF($A75>0,SUMIF('Age profile (years)'!$CT75:$GF75,"<" & T75+0.5,'Asset data'!$CX75:$GJ75)-X75-W75,0) -> 4098.864 | Z75: =IF($A75>0,SUMIF('Age profile (years)'!$CT75:$GF75,"<" & U75+0.5,'Asset data'!$CX75:$GJ75)-Y75-X75-W75,0) -> 1043.3472 | AA75: 13787.088 | AB75: 0.1625 | AC75: 0.04375 | AD75: 0.171875 | AE75: 0.04375 | AF75: 0.578125 | AI75: =IF($A75>0,'RRR hist-forc'!K75,0) -> 39.09907658 | AJ75: 932432.276
A76: ='Asset data'!A76 -> 5 | B76: ='Asset data'!B76 -> 0 | C76: ='Asset data'!C76 -> 0 | D76: ='Asset data'!E76 -> ground outdoor / indoor chamber mounted; ˂ 22 kv ; < = 60 kva ; single phase | E76: TRANSFORMERS | F76: =IF(A76>0,SUM('Asset data'!J76:CV76),0) -> 11 | G76: =IF(A76>0,'Asset data'!F76,0) -> 0.0001 | H76: =IF(A76>0,SUM('Asset data'!CX76:GJ76),0) -> 0.0011 | I76: 4.560993952e-11 | J76: 56 | K76: 5.546932514e-10 | L76: 0.0001 | M76: =IF($A76>0,SUMPRODUCT('Age profile (years)'!$CT76:$GF76,'Asset data'!$CX76:$GJ76)/H76-0.5,0) -> 52.04545455 | N76: 0.05725 | O76: =IF($A76>0,'Asset data'!G76,0) -> 94.72797864 | P76: 0.1042007765 | Q76: 0.4505799101 | R76: 9.472797864 | S76: 18.94559573 | T76: 56.83678719 | U76: 75.78238291 | W76: =IF($A76>0,SUMIF('Age profile (years)'!$CT76:$GF76,"<" & R76+0.5,'Asset data'!$CX76:$GJ76),0) -> 0 | X76: =IF($A76>0,SUMIF('Age profile (years)'!$CT76:$GF76,"<" & S76+0.5,'Asset data'!$CX76:$GJ76)-W76,0) -> 0 | Y76: =IF($A76>0,SUMIF('Age profile (years)'!$CT76:$GF76,"<" & T76+0.5,'Asset data'!$CX76:$GJ76)-X76-W76,0) -> 0.0007 | Z76: =IF($A76>0,SUMIF('Age profile (years)'!$CT76:$GF76,"<" & U76+0.5,'Asset data'!$CX76:$GJ76)-Y76-X76-W76,0) -> 0.0004 | AA76: 0 | AB76: 0 | AC76: 0 | AD76: 0.6363636364 | AE76: 0.3636363636 | AF76: 0 | AI76: =IF($A76>0,'RRR hist-forc'!K76,0) -> 94.72797864 | AJ76: 0.1042007765
A77: ='Asset data'!A77 -> 5 | B77: ='Asset data'!B77 -> 0 | C77: ='Asset data'!C77 -> 0 | D77: ='Asset data'!E77 -> ground outdoor / indoor chamber mounted; ˂ 22 kv ; > 60 kva and < = 600 kva ; single phase | E77: TRANSFORMERS | F77: =IF(A77>0,SUM('Asset data'!J77:CV77),0) -> 390 | G77: =IF(A77>0,'Asset data'!F77,0) -> 80.4347 | H77: =IF(A77>0,SUM('Asset data'!CX77:GJ77),0) -> 31369.533 | I77: 0.001300693184 | J77: 29 | K77: 0.01581860751 | L77: 80.4347 | M77: =IF($A77>0,SUMPRODUCT('Age profile (years)'!$CT77:$GF77,'Asset data'!$CX77:$GJ77)/H77-0.5,0) -> 34.45384615 | N77: 1080801.064 | O77: =IF($A77>0,'Asset data'!G77,0) -> 72.9250582 | P77: 2287625.02 | Q77: 0.5275444819 | R77: 7.29250582 | S77: 14.58501164 | T77: 43.75503492 | U77: 58.34004656 | W77: =IF($A77>0,SUMIF('Age profile (years)'!$CT77:$GF77,"<" & R77+0.5,'Asset data'!$CX77:$GJ77),0) -> 0 | X77: =IF($A77>0,SUMIF('Age profile (years)'!$CT77:$GF77,"<" & S77+0.5,'Asset data'!$CX77:$GJ77)-W77,0) -> 884.7817 | Y77: =IF($A77>0,SUMIF('Age profile (years)'!$CT77:$GF77,"<" & T77+0.5,'Asset data'!$CX77:$GJ77)-X77-W77,0) -> 25095.6264 | Z77: =IF($A77>0,SUMIF('Age profile (years)'!$CT77:$GF77,"<" & U77+0.5,'Asset data'!$CX77:$GJ77)-Y77-X77-W77,0) -> 3699.9962 | AA77: 1689.1287 | AB77: 0 | AC77: 0.02820512821 | AD77: 0.8 | AE77: 0.1179487179 | AF77: 0.05384615385 | AI77: =IF($A77>0,'RRR hist-forc'!K77,0) -> 72.9250582 | AJ77: 2287625.02
A78: ='Asset data'!A78 -> 5 | B78: ='Asset data'!B78 -> 0 | C78: ='Asset data'!C78 -> 0 | D78: ='Asset data'!E78 -> ground outdoor / indoor chamber mounted; ˂ 22 kv ; > 600 kva ; single phase | E78: TRANSFORMERS | F78: =IF(A78>0,SUM('Asset data'!J78:CV78),0) -> 197 | G78: =IF(A78>0,'Asset data'!F78,0) -> 88.7564 | H78: =IF(A78>0,SUM('Asset data'!CX78:GJ78),0) -> 17485.0108 | I78: 0.0007249911683 | J78: 35 | K78: 0.008817106811 | L78: 88.7564 | M78: =IF($A78>0,SUMPRODUCT('Age profile (years)'!$CT78:$GF78,'Asset data'!$CX78:$GJ78)/H78-0.5,0) -> 36.75380711 | N78: 642640.7142 | O78: =IF($A78>0,'Asset data'!G78,0) -> 72.12626475 | P78: 1261128.518 | Q78: 0.4904240885 | R78: 7.212626475 | S78: 14.42525295 | T78: 43.27575885 | U78: 57.7010118 | W78: =IF($A78>0,SUMIF('Age profile (years)'!$CT78:$GF78,"<" & R78+0.5,'Asset data'!$CX78:$GJ78),0) -> 0 | X78: =IF($A78>0,SUMIF('Age profile (years)'!$CT78:$GF78,"<" & S78+0.5,'Asset data'!$CX78:$GJ78)-W78,0) -> 710.0512 | Y78: =IF($A78>0,SUMIF('Age profile (years)'!$CT78:$GF78,"<" & T78+0.5,'Asset data'!$CX78:$GJ78)-X78-W78,0) -> 11183.3064 | Z78: =IF($A78>0,SUMIF('Age profile (years)'!$CT78:$GF78,"<" & U78+0.5,'Asset data'!$CX78:$GJ78)-Y78-X78-W78,0) -> 4970.3584 | AA78: 621.2948 | AB78: 0 | AC78: 0.04060913706 | AD78: 0.6395939086 | AE78: 0.2842639594 | AF78: 0.03553299492 | AI78: =IF($A78>0,'RRR hist-forc'!K78,0) -> 72.12626475 | AJ78: 1261128.518
A79: ='Asset data'!A79 -> 0 | B79: ='Asset data'!B79 -> 0 | C79: ='Asset data'!C79 -> 0 | D79: ='Asset data'!E79 -> ground outdoor / indoor chamber mounted; ˂ 22 kv ; < = 60 kva ; multiple phase | E79: 0 | F79: =IF(A79>0,SUM('Asset data'!J79:CV79),0) -> 0 | G79: =IF(A79>0,'Asset data'!F79,0) -> 0 | H79: =IF(A79>0,SUM('Asset data'!CX79:GJ79),0) -> 0 | I79: 0 | J79: 0 | K79: 0 | L79: 0 | M79: =IF($A79>0,SUMPRODUCT('Age profile (years)'!$CT79:$GF79,'Asset data'!$CX79:$GJ79)/H79-0.5,0) -> 0 | N79: 0 | O79: =IF($A79>0,'Asset data'!G79,0) -> 0 | P79: 0 | Q79: 0 | R79: 0 | S79: 0 | T79: 0 | U79: 0 | W79: =IF($A79>0,SUMIF('Age profile (years)'!$CT79:$GF79,"<" & R79+0.5,'Asset data'!$CX79:$GJ79),0) -> 0 | X79: =IF($A79>0,SUMIF('Age profile (years)'!$CT79:$GF79,"<" & S79+0.5,'Asset data'!$CX79:$GJ79)-W79,0) -> 0 | Y79: =IF($A79>0,SUMIF('Age profile (years)'!$CT79:$GF79,"<" & T79+0.5,'Asset data'!$CX79:$GJ79)-X79-W79,0) -> 0 | Z79: =IF($A79>0,SUMIF('Age profile (years)'!$CT79:$GF79,"<" & U79+0.5,'Asset data'!$CX79:$GJ79)-Y79-X79-W79,0) -> 0 | AA79: 0 | AB79: 0 | AC79: 0 | AD79: 0 | AE79: 0 | AF79: 0 | AI79: =IF($A79>0,'RRR hist-forc'!K79,0) -> 0 | AJ79: 0
A80: ='Asset data'!A80 -> 5 | B80: ='Asset data'!B80 -> 0 | C80: ='Asset data'!C80 -> 0 | D80: ='Asset data'!E80 -> ground outdoor / indoor chamber mounted; ˂ 22 kv ; > 60 kva and < = 600 kva ; multiple phase | E80: TRANSFORMERS | F80: =IF(A80>0,SUM('Asset data'!J80:CV80),0) -> 7 | G80: =IF(A80>0,'Asset data'!F80,0) -> 48.6674 | H80: =IF(A80>0,SUM('Asset data'!CX80:GJ80),0) -> 340.6718 | I80: 1.41254729e-05 | J80: 52 | K80: 0.0001717894077 | L80: 48.6674 | M80: =IF($A80>0,SUMPRODUCT('Age profile (years)'!$CT80:$GF80,'Asset data'!$CX80:$GJ80)/H80-0.5,0) -> 21.21428571 | N80: 7227.1089 | O80: =IF($A80>0,'Asset data'!G80,0) -> 63.46529205 | P80: 21620.83528 | Q80: 0.6657340567 | R80: 6.346529205 | S80: 12.69305841 | T80: 38.07917523 | U80: 50.77223364 | W80: =IF($A80>0,SUMIF('Age profile (years)'!$CT80:$GF80,"<" & R80+0.5,'Asset data'!$CX80:$GJ80),0) -> 97.3348 | X80: =IF($A80>0,SUMIF('Age profile (years)'!$CT80:$GF80,"<" & S80+0.5,'Asset data'!$CX80:$GJ80)-W80,0) -> 97.3348 | Y80: =IF($A80>0,SUMIF('Age profile (years)'!$CT80:$GF80,"<" & T80+0.5,'Asset data'!$CX80:$GJ80)-X80-W80,0) -> 48.6674 | Z80: =IF($A80>0,SUMIF('Age profile (years)'!$CT80:$GF80,"<" & U80+0.5,'Asset data'!$CX80:$GJ80)-Y80-X80-W80,0) -> 0 | AA80: 97.3348 | AB80: 0.2857142857 | AC80: 0.2857142857 | AD80: 0.1428571429 | AE80: 0 | AF80: 0.2857142857 | AI80: =IF($A80>0,'RRR hist-forc'!K80,0) -> 63.46529205 | AJ80: 21620.83528
A81: ='Asset data'!A81 -> 5 | B81: ='Asset data'!B81 -> 0 | C81: ='Asset data'!C81 -> 0 | D81: ='Asset data'!E81 -> ground outdoor / indoor chamber mounted; ˂ 22 kv ; > 600 kva ; multiple phase | E81: TRANSFORMERS | F81: =IF(A81>0,SUM('Asset data'!J81:CV81),0) -> 89 | G81: =IF(A81>0,'Asset data'!F81,0) -> 65.734 | H81: =IF(A81>0,SUM('Asset data'!CX81:GJ81),0) -> 5850.326 | I81: 0.0002425754682 | J81: 41 | K81: 0.002950123955 | L81: 65.734 | M81: =IF($A81>0,SUMPRODUCT('Age profile (years)'!$CT81:$GF81,'Asset data'!$CX81:$GJ81)/H81-0.5,0) -> 18.53370787 | N81: 108428.233 | O81: =IF($A81>0,'Asset data'!G81,0) -> 55.88877735 | P81: 326967.5672 | Q81: 0.6683822989 | R81: 5.588877735 | S81: 11.17775547 | T81: 33.53326641 | U81: 44.71102188 | W81: =IF($A81>0,SUMIF('Age profile (years)'!$CT81:$GF81,"<" & R81+0.5,'Asset data'!$CX81:$GJ81),0) -> 262.936 | X81: =IF($A81>0,SUMIF('Age profile (years)'!$CT81:$GF81,"<" & S81+0.5,'Asset data'!$CX81:$GJ81)-W81,0) -> 1248.946 | Y81: =IF($A81>0,SUMIF('Age profile (years)'!$CT81:$GF81,"<" & T81+0.5,'Asset data'!$CX81:$GJ81)-X81-W81,0) -> 4009.774 | Z81: =IF($A81>0,SUMIF('Age profile (years)'!$CT81:$GF81,"<" & U81+0.5,'Asset data'!$CX81:$GJ81)-Y81-X81-W81,0) -> 131.468 | AA81: 197.202 | AB81: 0.04494382022 | AC81: 0.2134831461 | AD81: 0.6853932584 | AE81: 0.02247191011 | AF81: 0.03370786517 | AI81: =IF($A81>0,'RRR hist-forc'!K81,0) -> 55.88877735 | AJ81: 326967.5672
A82: ='Asset data'!A82 -> 5 | B82: ='Asset data'!B82 -> 0 | C82: ='Asset data'!C82 -> 0 | D82: ='Asset data'!E82 -> ground outdoor / indoor chamber mounted; > = 22 kv & < = 33 kv ; < = 15 mva | E82: TRANSFORMERS | F82: =IF(A82>0,SUM('Asset data'!J82:CV82),0) -> 438 | G82: =IF(A82>0,'Asset data'!F82,0) -> 371.4539 | H82: =IF(A82>0,SUM('Asset data'!CX82:GJ82),0) -> 162696.8082 | I82: 0.006745992347 | J82: 14 | K82: 0.08204256504 | L82: 371.4539 | M82: =IF($A82>0,SUMPRODUCT('Age profile (years)'!$CT82:$GF82,'Asset data'!$CX82:$GJ82)/H82-0.5,0) -> 29.10958904 | N82: 4736037.225 | O82: =IF($A82>0,'Asset data'!G82,0) -> 61.99645176 | P82: 10086624.82 | Q82: 0.5304636279 | R82: 6.199645176 | S82: 12.39929035 | T82: 37.19787105 | U82: 49.5971614 | W82: =IF($A82>0,SUMIF('Age profile (years)'!$CT82:$GF82,"<" & R82+0.5,'Asset data'!$CX82:$GJ82),0) -> 21544.3262 | X82: =IF($A82>0,SUMIF('Age profile (years)'!$CT82:$GF82,"<" & S82+0.5,'Asset data'!$CX82:$GJ82)-W82,0) -> 11886.5248 | Y82: =IF($A82>0,SUMIF('Age profile (years)'!$CT82:$GF82,"<" & T82+0.5,'Asset data'!$CX82:$GJ82)-X82-W82,0) -> 78376.7729 | Z82: =IF($A82>0,SUMIF('Age profile (years)'!$CT82:$GF82,"<" & U82+0.5,'Asset data'!$CX82:$GJ82)-Y82-X82-W82,0) -> 29716.312 | AA82: 21172.8723 | AB82: 0.1324200913 | AC82: 0.07305936073 | AD82: 0.4817351598 | AE82: 0.1826484018 | AF82: 0.1301369863 | AI82: =IF($A82>0,'RRR hist-forc'!K82,0) -> 61.99645176 | AJ82: 10086624.82
A83: ='Asset data'!A83 -> 5 | B83: ='Asset data'!B83 -> 0 | C83: ='Asset data'!C83 -> 0 | D83: ='Asset data'!E83 -> ground outdoor / indoor chamber mounted; > = 22 kv & < = 33 kv ; > 15 mva and < = 40 mva | E83: TRANSFORMERS | F83: =IF(A83>0,SUM('Asset data'!J83:CV83),0) -> 5 | G83: =IF(A83>0,'Asset data'!F83,0) -> 706.17 | H83: =IF(A83>0,SUM('Asset data'!CX83:GJ83),0) -> 3530.85 | I83: 0.0001464016863 | J83: 47 | K83: 0.001780489697 | L83: 706.17 | M83: =IF($A83>0,SUMPRODUCT('Age profile (years)'!$CT83:$GF83,'Asset data'!$CX83:$GJ83)/H83-0.5,0) -> 32.1 | N83: 113340.285 | O83: =IF($A83>0,'Asset data'!G83,0) -> 48.23877026 | P83: 170323.862 | Q83: 0.334560151 | R83: 4.823877026 | S83: 9.647754053 | T83: 28.94326216 | U83: 38.59101621 | W83: =IF($A83>0,SUMIF('Age profile (years)'!$CT83:$GF83,"<" & R83+0.5,'Asset data'!$CX83:$GJ83),0) -> 0 | X83: =IF($A83>0,SUMIF('Age profile (years)'!$CT83:$GF83,"<" & S83+0.5,'Asset data'!$CX83:$GJ83)-W83,0) -> 0 | Y83: =IF($A83>0,SUMIF('Age profile (years)'!$CT83:$GF83,"<" & T83+0.5,'Asset data'!$CX83:$GJ83)-X83-W83,0) -> 1412.34 | Z83: =IF($A83>0,SUMIF('Age profile (years)'!$CT83:$GF83,"<" & U83+0.5,'Asset data'!$CX83:$GJ83)-Y83-X83-W83,0) -> 706.17 | AA83: 1412.34 | AB83: 0 | AC83: 0 | AD83: 0.4 | AE83: 0.2 | AF83: 0.4 | AI83: =IF($A83>0,'RRR hist-forc'!K83,0) -> 48.23877026 | AJ83: 170323.862
A84: ='Asset data'!A84 -> 0 | B84: ='Asset data'!B84 -> 0 | C84: ='Asset data'!C84 -> 0 | D84: ='Asset data'!E84 -> ground outdoor / indoor chamber mounted; > = 22 kv & < = 33 kv ; > 40 mva | E84: 0 | F84: =IF(A84>0,SUM('Asset data'!J84:CV84),0) -> 0 | G84: =IF(A84>0,'Asset data'!F84,0) -> 0 | H84: =IF(A84>0,SUM('Asset data'!CX84:GJ84),0) -> 0 | I84: 0 | J84: 0 | K84: 0 | L84: 0 | M84: =IF($A84>0,SUMPRODUCT('Age profile (years)'!$CT84:$GF84,'Asset data'!$CX84:$GJ84)/H84-0.5,0) -> 0 | N84: 0 | O84: =IF($A84>0,'Asset data'!G84,0) -> 0 | P84: 0 | Q84: 0 | R84: 0 | S84: 0 | T84: 0 | U84: 0 | W84: =IF($A84>0,SUMIF('Age profile (years)'!$CT84:$GF84,"<" & R84+0.5,'Asset data'!$CX84:$GJ84),0) -> 0 | X84: =IF($A84>0,SUMIF('Age profile (years)'!$CT84:$GF84,"<" & S84+0.5,'Asset data'!$CX84:$GJ84)-W84,0) -> 0 | Y84: =IF($A84>0,SUMIF('Age profile (years)'!$CT84:$GF84,"<" & T84+0.5,'Asset data'!$CX84:$GJ84)-X84-W84,0) -> 0 | Z84: =IF($A84>0,SUMIF('Age profile (years)'!$CT84:$GF84,"<" & U84+0.5,'Asset data'!$CX84:$GJ84)-Y84-X84-W84,0) -> 0 | AA84: 0 | AB84: 0 | AC84: 0 | AD84: 0 | AE84: 0 | AF84: 0 | AI84: =IF($A84>0,'RRR hist-forc'!K84,0) -> 0 | AJ84: 0
A85: ='Asset data'!A85 -> 5 | B85: ='Asset data'!B85 -> 0 | C85: ='Asset data'!C85 -> 0 | D85: ='Asset data'!E85 -> ground outdoor / indoor chamber mounted; > 33 kv & < = 66 kv ; < = 15 mva | E85: TRANSFORMERS | F85: =IF(A85>0,SUM('Asset data'!J85:CV85),0) -> 164 | G85: =IF(A85>0,'Asset data'!F85,0) -> 1041.5611 | H85: =IF(A85>0,SUM('Asset data'!CX85:GJ85),0) -> 170816.0204 | I85: 0.007082643963 | J85: 12 | K85: 0.0861368125 | L85: 1041.5611 | M85: =IF($A85>0,SUMPRODUCT('Age profile (years)'!$CT85:$GF85,'Asset data'!$CX85:$GJ85)/H85-0.5,0) -> 24.56097561 | N85: 4195408.111 | O85: =IF($A85>0,'Asset data'!G85,0) -> 65.77612965 | P85: 11235616.7 | Q85: 0.6265974337 | R85: 6.577612965 | S85: 13.15522593 | T85: 39.46567779 | U85: 52.62090372 | W85: =IF($A85>0,SUMIF('Age profile (years)'!$CT85:$GF85,"<" & R85+0.5,'Asset data'!$CX85:$GJ85),0) -> 12498.7332 | X85: =IF($A85>0,SUMIF('Age profile (years)'!$CT85:$GF85,"<" & S85+0.5,'Asset data'!$CX85:$GJ85)-W85,0) -> 14581.8554 | Y85: =IF($A85>0,SUMIF('Age profile (years)'!$CT85:$GF85,"<" & T85+0.5,'Asset data'!$CX85:$GJ85)-X85-W85,0) -> 114571.721 | Z85: =IF($A85>0,SUMIF('Age profile (years)'!$CT85:$GF85,"<" & U85+0.5,'Asset data'!$CX85:$GJ85)-Y85-X85-W85,0) -> 15623.4165 | AA85: 13540.2943 | AB85: 0.07317073171 | AC85: 0.08536585366 | AD85: 0.6707317073 | AE85: 0.09146341463 | AF85: 0.07926829268 | AI85: =IF($A85>0,'RRR hist-forc'!K85,0) -> 65.77612965 | AJ85: 11235616.7
A86: ='Asset data'!A86 -> 5 | B86: ='Asset data'!B86 -> 0 | C86: ='Asset data'!C86 -> 0 | D86: ='Asset data'!E86 -> ground outdoor / indoor chamber mounted; > 33 kv & < = 66 kv ; > 15 mva and < = 40 mva | E86: TRANSFORMERS | F86: =IF(A86>0,SUM('Asset data'!J86:CV86),0) -> 118 | G86: =IF(A86>0,'Asset data'!F86,0) -> 1417.4055 | H86: =IF(A86>0,SUM('Asset data'!CX86:GJ86),0) -> 167253.849 | I86: 0.006934943579 | J86: 13 | K86: 0.08434052847 | L86: 1417.4055 | M86: =IF($A86>0,SUMPRODUCT('Age profile (years)'!$CT86:$GF86,'Asset data'!$CX86:$GJ86)/H86-0.5,0) -> 34.11864407 | N86: 5706474.543 | O86: =IF($A86>0,'Asset data'!G86,0) -> 57.76098775 | P86: 9660747.523 | Q86: 0.409313355 | R86: 5.776098775 | S86: 11.55219755 | T86: 34.65659265 | U86: 46.2087902 | W86: =IF($A86>0,SUMIF('Age profile (years)'!$CT86:$GF86,"<" & R86+0.5,'Asset data'!$CX86:$GJ86),0) -> 8504.433 | X86: =IF($A86>0,SUMIF('Age profile (years)'!$CT86:$GF86,"<" & S86+0.5,'Asset data'!$CX86:$GJ86)-W86,0) -> 9921.8385 | Y86: =IF($A86>0,SUMIF('Age profile (years)'!$CT86:$GF86,"<" & T86+0.5,'Asset data'!$CX86:$GJ86)-X86-W86,0) -> 66618.0585 | Z86: =IF($A86>0,SUMIF('Age profile (years)'!$CT86:$GF86,"<" & U86+0.5,'Asset data'!$CX86:$GJ86)-Y86-X86-W86,0) -> 21261.0825 | AA86: 60948.4365 | AB86: 0.05084745763 | AC86: 0.0593220339 | AD86: 0.3983050847 | AE86: 0.1271186441 | AF86: 0.3644067797 | AI86: =IF($A86>0,'RRR hist-forc'!K86,0) -> 57.76098775 | AJ86: 9660747.523
A87: ='Asset data'!A87 -> 0 | B87: ='Asset data'!B87 -> 0 | C87: ='Asset data'!C87 -> 0 | D87: ='Asset data'!E87 -> ground outdoor / indoor chamber mounted; > 33 kv & < = 66 kv ; > 40 mva | E87: =IF(A87>0,VLOOKUP(A87,IDtable,2),0) -> 0 | F87: =IF(A87>0,SUM('Asset data'!J87:CV87),0) -> 0 | G87: =IF(A87>0,'Asset data'!F87,0) -> 0 | H87: =IF(A87>0,SUM('Asset data'!CX87:GJ87),0) -> 0 | I87: =H87/$H$18/1000 -> 0 | J87: =IF(RANK(0,I$21:I$205)=RANK(I87,I$21:I$205),0,RANK(I87,I$21:I$205)) -> 0 | K87: =IF(A87>0,H87/(VLOOKUP(A87,$A$6:$H$17,8)*1000),0) -> 0 | L87: =IF($A87>0,H87/F87,0) -> 0 | M87: =IF($A87>0,SUMPRODUCT('Age profile (years)'!$CT87:$GF87,'Asset data'!$CX87:$GJ87)/H87-0.5,0) -> 0 | N87: =IF($A87>0,M87*H87,0) -> 0 | O87: =IF($A87>0,'Asset data'!G87,0) -> 0 | P87: =IF($A87>0,H87*O87,0) -> 0 | Q87: =IF($A87>0,(O87-M87)/O87,0) -> 0 | R87: 0 | S87: 0 | T87: 0 | U87: 0 | W87: =IF($A87>0,SUMIF('Age profile (years)'!$CT87:$GF87,"<" & R87+0.5,'Asset data'!$CX87:$GJ87),0) -> 0 | X87: =IF($A87>0,SUMIF('Age profile (years)'!$CT87:$GF87,"<" & S87+0.5,'Asset data'!$CX87:$GJ87)-W87,0) -> 0 | Y87: =IF($A87>0,SUMIF('Age profile (years)'!$CT87:$GF87,"<" & T87+0.5,'Asset data'!$CX87:$GJ87)-X87-W87,0) -> 0 | Z87: =IF($A87>0,SUMIF('Age profile (years)'!$CT87:$GF87,"<" & U87+0.5,'Asset data'!$CX87:$GJ87)-Y87-X87-W87,0) -> 0 | AA87: =IF($A87>0,H87-Z87-Y87-X87-W87,0) -> 0 | AB87: =IF($A87>0,W87/$H87,0) -> 0 | AC87: =IF($A87>0,X87/$H87,0) -> 0 | AD87: =IF($A87>0,Y87/$H87,0) -> 0 | AE87: =IF($A87>0,Z87/$H87,0) -> 0 | AF87: =IF($A87>0,AA87/$H87,0) -> 0 | AI87: =IF($A87>0,'RRR hist-forc'!K87,0) -> 0 | AJ87: =IF($A87>0,AI87*H87,0) -> 0
A88: ='Asset data'!A88 -> 0 | B88: ='Asset data'!B88 -> 0 | C88: ='Asset data'!C88 -> 0 | D88: ='Asset data'!E88 -> ground outdoor / indoor chamber mounted; > 66 kv & < = 132 kv ; < = 100 mva | E88: 0 | F88: =IF(A88>0,SUM('Asset data'!J88:CV88),0) -> 0 | G88: =IF(A88>0,'Asset data'!F88,0) -> 0 | H88: =IF(A88>0,SUM('Asset data'!CX88:GJ88),0) -> 0 | I88: 0 | J88: 0 | K88: 0 | L88: 0 | M88: =IF($A88>0,SUMPRODUCT('Age profile (years)'!$CT88:$GF88,'Asset data'!$CX88:$GJ88)/H88-0.5,0) -> 0 | N88: 0 | O88: =IF($A88>0,'Asset data'!G88,0) -> 0 | P88: 0 | Q88: 0 | R88: 0 | S88: 0 | T88: 0 | U88: 0 | W88: =IF($A88>0,SUMIF('Age profile (years)'!$CT88:$GF88,"<" & R88+0.5,'Asset data'!$CX88:$GJ88),0) -> 0 | X88: =IF($A88>0,SUMIF('Age profile (years)'!$CT88:$GF88,"<" & S88+0.5,'Asset data'!$CX88:$GJ88)-W88,0) -> 0 | Y88: =IF($A88>0,SUMIF('Age profile (years)'!$CT88:$GF88,"<" & T88+0.5,'Asset data'!$CX88:$GJ88)-X88-W88,0) -> 0 | Z88: =IF($A88>0,SUMIF('Age profile (years)'!$CT88:$GF88,"<" & U88+0.5,'Asset data'!$CX88:$GJ88)-Y88-X88-W88,0) -> 0 | AA88: 0 | AB88: 0 | AC88: 0 | AD88: 0 | AE88: 0 | AF88: 0 | AI88: =IF($A88>0,'RRR hist-forc'!K88,0) -> 0 | AJ88: 0
A89: ='Asset data'!A89 -> 0 | B89: ='Asset data'!B89 -> 0 | C89: ='Asset data'!C89 -> 0 | D89: ='Asset data'!E89 -> ground outdoor / indoor chamber mounted; > 66 kv & < = 132 kv ; > 100 mva | E89: 0 | F89: =IF(A89>0,SUM('Asset data'!J89:CV89),0) -> 0 | G89: =IF(A89>0,'Asset data'!F89,0) -> 0 | H89: =IF(A89>0,SUM('Asset data'!CX89:GJ89),0) -> 0 | I89: 0 | J89: 0 | K89: 0 | L89: 0 | M89: =IF($A89>0,SUMPRODUCT('Age profile (years)'!$CT89:$GF89,'Asset data'!$CX89:$GJ89)/H89-0.5,0) -> 0 | N89: 0 | O89: =IF($A89>0,'Asset data'!G89,0) -> 0 | P89: 0 | Q89: 0 | R89: 0 | S89: 0 | T89: 0 | U89: 0 | W89: =IF($A89>0,SUMIF('Age profile (years)'!$CT89:$GF89,"<" & R89+0.5,'Asset data'!$CX89:$GJ89),0) -> 0 | X89: =IF($A89>0,SUMIF('Age profile (years)'!$CT89:$GF89,"<" & S89+0.5,'Asset data'!$CX89:$GJ89)-W89,0) -> 0 | Y89: =IF($A89>0,SUMIF('Age profile (years)'!$CT89:$GF89,"<" & T89+0.5,'Asset data'!$CX89:$GJ89)-X89-W89,0) -> 0 | Z89: =IF($A89>0,SUMIF('Age profile (years)'!$CT89:$GF89,"<" & U89+0.5,'Asset data'!$CX89:$GJ89)-Y89-X89-W89,0) -> 0 | AA89: 0 | AB89: 0 | AC89: 0 | AD89: 0 | AE89: 0 | AF89: 0 | AI89: =IF($A89>0,'RRR hist-forc'!K89,0) -> 0 | AJ89: 0
A90: ='Asset data'!A90 -> 0 | B90: ='Asset data'!B90 -> 0 | C90: ='Asset data'!C90 -> 0 | D90: ='Asset data'!E90 -> ground outdoor / indoor chamber mounted; > 132 kv ; < = 100 mva | E90: 0 | F90: =IF(A90>0,SUM('Asset data'!J90:CV90),0) -> 0 | G90: =IF(A90>0,'Asset data'!F90,0) -> 0 | H90: =IF(A90>0,SUM('Asset data'!CX90:GJ90),0) -> 0 | I90: 0 | J90: 0 | K90: 0 | L90: 0 | M90: =IF($A90>0,SUMPRODUCT('Age profile (years)'!$CT90:$GF90,'Asset data'!$CX90:$GJ90)/H90-0.5,0) -> 0 | N90: 0 | O90: =IF($A90>0,'Asset data'!G90,0) -> 0 | P90: 0 | Q90: 0 | R90: 0 | S90: 0 | T90: 0 | U90: 0 | W90: =IF($A90>0,SUMIF('Age profile (years)'!$CT90:$GF90,"<" & R90+0.5,'Asset data'!$CX90:$GJ90),0) -> 0 | X90: =IF($A90>0,SUMIF('Age profile (years)'!$CT90:$GF90,"<" & S90+0.5,'Asset data'!$CX90:$GJ90)-W90,0) -> 0 | Y90: =IF($A90>0,SUMIF('Age profile (years)'!$CT90:$GF90,"<" & T90+0.5,'Asset data'!$CX90:$GJ90)-X90-W90,0) -> 0 | Z90: =IF($A90>0,SUMIF('Age profile (years)'!$CT90:$GF90,"<" & U90+0.5,'Asset data'!$CX90:$GJ90)-Y90-X90-W90,0) -> 0 | AA90: 0 | AB90: 0 | AC90: 0 | AD90: 0 | AE90: 0 | AF90: 0 | AI90: =IF($A90>0,'RRR hist-forc'!K90,0) -> 0 | AJ90: 0
A91: ='Asset data'!A91 -> 0 | B91: ='Asset data'!B91 -> 0 | C91: ='Asset data'!C91 -> 0 | D91: ='Asset data'!E91 -> ground outdoor / indoor chamber mounted; > 132 kv ; > 100 mva | E91: 0 | F91: =IF(A91>0,SUM('Asset data'!J91:CV91),0) -> 0 | G91: =IF(A91>0,'Asset data'!F91,0) -> 0 | H91: =IF(A91>0,SUM('Asset data'!CX91:GJ91),0) -> 0 | I91: 0 | J91: 0 | K91: 0 | L91: 0 | M91: =IF($A91>0,SUMPRODUCT('Age profile (years)'!$CT91:$GF91,'Asset data'!$CX91:$GJ91)/H91-0.5,0) -> 0 | N91: 0 | O91: =IF($A91>0,'Asset data'!G91,0) -> 0 | P91: 0 | Q91: 0 | R91: 0 | S91: 0 | T91: 0 | U91: 0 | W91: =IF($A91>0,SUMIF('Age profile (years)'!$CT91:$GF91,"<" & R91+0.5,'Asset data'!$CX91:$GJ91),0) -> 0 | X91: =IF($A91>0,SUMIF('Age profile (years)'!$CT91:$GF91,"<" & S91+0.5,'Asset data'!$CX91:$GJ91)-W91,0) -> 0 | Y91: =IF($A91>0,SUMIF('Age profile (years)'!$CT91:$GF91,"<" & T91+0.5,'Asset data'!$CX91:$GJ91)-X91-W91,0) -> 0 | Z91: =IF($A91>0,SUMIF('Age profile (years)'!$CT91:$GF91,"<" & U91+0.5,'Asset data'!$CX91:$GJ91)-Y91-X91-W91,0) -> 0 | AA91: 0 | AB91: 0 | AC91: 0 | AD91: 0 | AE91: 0 | AF91: 0 | AI91: =IF($A91>0,'RRR hist-forc'!K91,0) -> 0 | AJ91: 0
A92: ='Asset data'!A92 -> 0 | B92: ='Asset data'!B92 -> 0 | C92: ='Asset data'!C92 -> 0 | D92: ='Asset data'!E92 -> other | E92: 0 | F92: =IF(A92>0,SUM('Asset data'!J92:CV92),0) -> 0 | G92: =IF(A92>0,'Asset data'!F92,0) -> 0 | H92: =IF(A92>0,SUM('Asset data'!CX92:GJ92),0) -> 0 | I92: 0 | J92: 0 | K92: 0 | L92: 0 | M92: =IF($A92>0,SUMPRODUCT('Age profile (years)'!$CT92:$GF92,'Asset data'!$CX92:$GJ92)/H92-0.5,0) -> 0 | N92: 0 | O92: =IF($A92>0,'Asset data'!G92,0) -> 0 | P92: 0 | Q92: 0 | R92: 0 | S92: 0 | T92: 0 | U92: 0 | W92: =IF($A92>0,SUMIF('Age profile (years)'!$CT92:$GF92,"<" & R92+0.5,'Asset data'!$CX92:$GJ92),0) -> 0 | X92: =IF($A92>0,SUMIF('Age profile (years)'!$CT92:$GF92,"<" & S92+0.5,'Asset data'!$CX92:$GJ92)-W92,0) -> 0 | Y92: =IF($A92>0,SUMIF('Age profile (years)'!$CT92:$GF92,"<" & T92+0.5,'Asset data'!$CX92:$GJ92)-X92-W92,0) -> 0 | Z92: =IF($A92>0,SUMIF('Age profile (years)'!$CT92:$GF92,"<" & U92+0.5,'Asset data'!$CX92:$GJ92)-Y92-X92-W92,0) -> 0 | AA92: 0 | AB92: 0 | AC92: 0 | AD92: 0 | AE92: 0 | AF92: 0 | AI92: =IF($A92>0,'RRR hist-forc'!K92,0) -> 0 | AJ92: 0
A93: ='Asset data'!A93 -> 0 | B93: ='Asset data'!B93 -> 0 | C93: ='Asset data'!C93 -> 0 | D93: ='Asset data'!E93 -> ˂ = 11 kv ; fuse | E93: 0 | F93: =IF(A93>0,SUM('Asset data'!J93:CV93),0) -> 0 | G93: =IF(A93>0,'Asset data'!F93,0) -> 0 | H93: =IF(A93>0,SUM('Asset data'!CX93:GJ93),0) -> 0 | I93: 0 | J93: 0 | K93: 0 | L93: 0 | M93: =IF($A93>0,SUMPRODUCT('Age profile (years)'!$CT93:$GF93,'Asset data'!$CX93:$GJ93)/H93-0.5,0) -> 0 | N93: 0 | O93: =IF($A93>0,'Asset data'!G93,0) -> 0 | P93: 0 | Q93: 0 | R93: 0 | S93: 0 | T93: 0 | U93: 0 | W93: =IF($A93>0,SUMIF('Age profile (years)'!$CT93:$GF93,"<" & R93+0.5,'Asset data'!$CX93:$GJ93),0) -> 0 | X93: =IF($A93>0,SUMIF('Age profile (years)'!$CT93:$GF93,"<" & S93+0.5,'Asset data'!$CX93:$GJ93)-W93,0) -> 0 | Y93: =IF($A93>0,SUMIF('Age profile (years)'!$CT93:$GF93,"<" & T93+0.5,'Asset data'!$CX93:$GJ93)-X93-W93,0) -> 0 | Z93: =IF($A93>0,SUMIF('Age profile (years)'!$CT93:$GF93,"<" & U93+0.5,'Asset data'!$CX93:$GJ93)-Y93-X93-W93,0) -> 0 | AA93: 0 | AB93: 0 | AC93: 0 | AD93: 0 | AE93: 0 | AF93: 0 | AI93: =IF($A93>0,'RRR hist-forc'!K93,0) -> 0 | AJ93: 0
A94: ='Asset data'!A94 -> 6 | B94: ='Asset data'!B94 -> 0 | C94: ='Asset data'!C94 -> 0 | D94: ='Asset data'!E94 -> ˂ = 11 kv ; switch | E94: SWITCHGEAR | F94: =IF(A94>0,SUM('Asset data'!J94:CV94),0) -> 1511 | G94: =IF(A94>0,'Asset data'!F94,0) -> 17.6189 | H94: =IF(A94>0,SUM('Asset data'!CX94:GJ94),0) -> 26622.1579 | I94: 0.001103850011 | J94: 32 | K94: 0.0487433932 | L94: 17.6189 | M94: =IF($A94>0,SUMPRODUCT('Age profile (years)'!$CT94:$GF94,'Asset data'!$CX94:$GJ94)/H94-0.5,0) -> 23.12011913 | N94: 615507.462 | O94: =IF($A94>0,'Asset data'!G94,0) -> 64.43669491 | P94: 1715443.866 | Q94: 0.6411963841 | R94: 6.443669491 | S94: 12.88733898 | T94: 38.66201694 | U94: 51.54935592 | W94: =IF($A94>0,SUMIF('Age profile (years)'!$CT94:$GF94,"<" & R94+0.5,'Asset data'!$CX94:$GJ94),0) -> 1039.5151 | X94: =IF($A94>0,SUMIF('Age profile (years)'!$CT94:$GF94,"<" & S94+0.5,'Asset data'!$CX94:$GJ94)-W94,0) -> 1973.3168 | Y94: =IF($A94>0,SUMIF('Age profile (years)'!$CT94:$GF94,"<" & T94+0.5,'Asset data'!$CX94:$GJ94)-X94-W94,0) -> 20490.7807 | Z94: =IF($A94>0,SUMIF('Age profile (years)'!$CT94:$GF94,"<" & U94+0.5,'Asset data'!$CX94:$GJ94)-Y94-X94-W94,0) -> 1215.7041 | AA94: 1902.8412 | AB94: 0.03904698875 | AC94: 0.07412309729 | AD94: 0.7696889477 | AE94: 0.04566512244 | AF94: 0.07147584381 | AI94: =IF($A94>0,'RRR hist-forc'!K94,0) -> 64.43669491 | AJ94: 1715443.866
A95: ='Asset data'!A95 -> 6 | B95: ='Asset data'!B95 -> 0 | C95: ='Asset data'!C95 -> 0 | D95: ='Asset data'!E95 -> ˂ = 11 kv ; circuit breaker | E95: SWITCHGEAR | F95: =IF(A95>0,SUM('Asset data'!J95:CV95),0) -> 1206 | G95: =IF(A95>0,'Asset data'!F95,0) -> 104.6403 | H95: =IF(A95>0,SUM('Asset data'!CX95:GJ95),0) -> 126196.2018 | I95: 0.005232546483 | J95: 19 | K95: 0.2310568177 | L95: 104.6403 | M95: =IF($A95>0,SUMPRODUCT('Age profile (years)'!$CT95:$GF95,'Asset data'!$CX95:$GJ95)/H95-0.5,0) -> 24.6384743 | N95: 3109281.874 | O95: =IF($A95>0,'Asset data'!G95,0) -> 53.61288559 | P95: 6765742.529 | Q95: 0.5404374522 | R95: 5.361288559 | S95: 10.72257712 | T95: 32.16773135 | U95: 42.89030847 | W95: =IF($A95>0,SUMIF('Age profile (years)'!$CT95:$GF95,"<" & R95+0.5,'Asset data'!$CX95:$GJ95),0) -> 26055.4347 | X95: =IF($A95>0,SUMIF('Age profile (years)'!$CT95:$GF95,"<" & S95+0.5,'Asset data'!$CX95:$GJ95)-W95,0) -> 29822.4855 | Y95: =IF($A95>0,SUMIF('Age profile (years)'!$CT95:$GF95,"<" & T95+0.5,'Asset data'!$CX95:$GJ95)-X95-W95,0) -> 17474.9301 | Z95: =IF($A95>0,SUMIF('Age profile (years)'!$CT95:$GF95,"<" & U95+0.5,'Asset data'!$CX95:$GJ95)-Y95-X95-W95,0) -> 14231.0808 | AA95: 38612.2707 | AB95: 0.2064676617 | AC95: 0.236318408 | AD95: 0.1384742952 | AE95: 0.1127694859 | AF95: 0.3059701493 | AI95: =IF($A95>0,'RRR hist-forc'!K95,0) -> 53.61288559 | AJ95: 6765742.529
A96: ='Asset data'!A96 -> 6 | B96: ='Asset data'!B96 -> 0 | C96: ='Asset data'!C96 -> 0 | D96: ='Asset data'!E96 -> > 11 kv & < = 22 kv ; switch | E96: SWITCHGEAR | F96: =IF(A96>0,SUM('Asset data'!J96:CV96),0) -> 10 | G96: =IF(A96>0,'Asset data'!F96,0) -> 17.8036 | H96: =IF(A96>0,SUM('Asset data'!CX96:GJ96),0) -> 178.036 | I96: 7.382010175e-06 | J96: 53 | K96: 0.0003259720262 | L96: 17.8036 | M96: =IF($A96>0,SUMPRODUCT('Age profile (years)'!$CT96:$GF96,'Asset data'!$CX96:$GJ96)/H96-0.5,0) -> 7.5 | N96: 1335.27 | O96: =IF($A96>0,'Asset data'!G96,0) -> 55.34063928 | P96: 9852.626055 | Q96: 0.8644757253 | R96: 5.534063928 | S96: 11.06812786 | T96: 33.20438357 | U96: 44.27251142 | W96: =IF($A96>0,SUMIF('Age profile (years)'!$CT96:$GF96,"<" & R96+0.5,'Asset data'!$CX96:$GJ96),0) -> 0 | X96: =IF($A96>0,SUMIF('Age profile (years)'!$CT96:$GF96,"<" & S96+0.5,'Asset data'!$CX96:$GJ96)-W96,0) -> 178.036 | Y96: =IF($A96>0,SUMIF('Age profile (years)'!$CT96:$GF96,"<" & T96+0.5,'Asset data'!$CX96:$GJ96)-X96-W96,0) -> 0 | Z96: =IF($A96>0,SUMIF('Age profile (years)'!$CT96:$GF96,"<" & U96+0.5,'Asset data'!$CX96:$GJ96)-Y96-X96-W96,0) -> 0 | AA96: 0 | AB96: 0 | AC96: 1 | AD96: 0 | AE96: 0 | AF96: 0 | AI96: =IF($A96>0,'RRR hist-forc'!K96,0) -> 55.34063928 | AJ96: 9852.626055
A97: ='Asset data'!A97 -> 0 | B97: ='Asset data'!B97 -> 0 | C97: ='Asset data'!C97 -> 0 | D97: ='Asset data'!E97 -> > 11 kv & < = 22 kv ; circuit breaker | E97: 0 | F97: =IF(A97>0,SUM('Asset data'!J97:CV97),0) -> 0 | G97: =IF(A97>0,'Asset data'!F97,0) -> 0 | H97: =IF(A97>0,SUM('Asset data'!CX97:GJ97),0) -> 0 | I97: 0 | J97: 0 | K97: 0 | L97: 0 | M97: =IF($A97>0,SUMPRODUCT('Age profile (years)'!$CT97:$GF97,'Asset data'!$CX97:$GJ97)/H97-0.5,0) -> 0 | N97: 0 | O97: =IF($A97>0,'Asset data'!G97,0) -> 0 | P97: 0 | Q97: 0 | R97: 0 | S97: 0 | T97: 0 | U97: 0 | W97: =IF($A97>0,SUMIF('Age profile (years)'!$CT97:$GF97,"<" & R97+0.5,'Asset data'!$CX97:$GJ97),0) -> 0 | X97: =IF($A97>0,SUMIF('Age profile (years)'!$CT97:$GF97,"<" & S97+0.5,'Asset data'!$CX97:$GJ97)-W97,0) -> 0 | Y97: =IF($A97>0,SUMIF('Age profile (years)'!$CT97:$GF97,"<" & T97+0.5,'Asset data'!$CX97:$GJ97)-X97-W97,0) -> 0 | Z97: =IF($A97>0,SUMIF('Age profile (years)'!$CT97:$GF97,"<" & U97+0.5,'Asset data'!$CX97:$GJ97)-Y97-X97-W97,0) -> 0 | AA97: 0 | AB97: 0 | AC97: 0 | AD97: 0 | AE97: 0 | AF97: 0 | AI97: =IF($A97>0,'RRR hist-forc'!K97,0) -> 0 | AJ97: 0
A98: ='Asset data'!A98 -> 6 | B98: ='Asset data'!B98 -> 0 | C98: ='Asset data'!C98 -> 0 | D98: ='Asset data'!E98 -> > 22 kv & < = 33 kv ; switch | E98: SWITCHGEAR | F98: =IF(A98>0,SUM('Asset data'!J98:CV98),0) -> 985 | G98: =IF(A98>0,'Asset data'!F98,0) -> 49.5297 | H98: =IF(A98>0,SUM('Asset data'!CX98:GJ98),0) -> 48786.7545 | I98: 0.002022873566 | J98: 26 | K98: 0.08932528935 | L98: 49.5297 | M98: =IF($A98>0,SUMPRODUCT('Age profile (years)'!$CT98:$GF98,'Asset data'!$CX98:$GJ98)/H98-0.5,0) -> 20.81269036 | N98: 1015383.615 | O98: =IF($A98>0,'Asset data'!G98,0) -> 54.41918508 | P98: 2654935.423 | Q98: 0.6175486582 | R98: 5.441918508 | S98: 10.88383702 | T98: 32.65151105 | U98: 43.53534807 | W98: =IF($A98>0,SUMIF('Age profile (years)'!$CT98:$GF98,"<" & R98+0.5,'Asset data'!$CX98:$GJ98),0) -> 8667.6975 | X98: =IF($A98>0,SUMIF('Age profile (years)'!$CT98:$GF98,"<" & S98+0.5,'Asset data'!$CX98:$GJ98)-W98,0) -> 14066.4348 | Y98: =IF($A98>0,SUMIF('Age profile (years)'!$CT98:$GF98,"<" & T98+0.5,'Asset data'!$CX98:$GJ98)-X98-W98,0) -> 11342.3013 | Z98: =IF($A98>0,SUMIF('Age profile (years)'!$CT98:$GF98,"<" & U98+0.5,'Asset data'!$CX98:$GJ98)-Y98-X98-W98,0) -> 2575.5444 | AA98: 12134.7765 | AB98: 0.1776649746 | AC98: 0.2883248731 | AD98: 0.2324873096 | AE98: 0.05279187817 | AF98: 0.2487309645 | AI98: =IF($A98>0,'RRR hist-forc'!K98,0) -> 54.41918508 | AJ98: 2654935.423
A99: ='Asset data'!A99 -> 6 | B99: ='Asset data'!B99 -> 0 | C99: ='Asset data'!C99 -> 0 | D99: ='Asset data'!E99 -> > 22 kv & < = 33 kv ; circuit breaker | E99: SWITCHGEAR | F99: =IF(A99>0,SUM('Asset data'!J99:CV99),0) -> 251 | G99: =IF(A99>0,'Asset data'!F99,0) -> 118.999 | H99: =IF(A99>0,SUM('Asset data'!CX99:GJ99),0) -> 29868.749 | I99: 0.001238465305 | J99: 30 | K99: 0.05468768469 | L99: 118.999 | M99: =IF($A99>0,SUMPRODUCT('Age profile (years)'!$CT99:$GF99,'Asset data'!$CX99:$GJ99)/H99-0.5,0) -> 23.0498008 | N99: 688468.7145 | O99: =IF($A99>0,'Asset data'!G99,0) -> 53.26123813 | P99: 1590846.553 | Q99: 0.5672312247 | R99: 5.326123813 | S99: 10.65224763 | T99: 31.95674288 | U99: 42.6089905 | W99: =IF($A99>0,SUMIF('Age profile (years)'!$CT99:$GF99,"<" & R99+0.5,'Asset data'!$CX99:$GJ99),0) -> 9757.918 | X99: =IF($A99>0,SUMIF('Age profile (years)'!$CT99:$GF99,"<" & S99+0.5,'Asset data'!$CX99:$GJ99)-W99,0) -> 4521.962 | Y99: =IF($A99>0,SUMIF('Age profile (years)'!$CT99:$GF99,"<" & T99+0.5,'Asset data'!$CX99:$GJ99)-X99-W99,0) -> 1427.988 | Z99: =IF($A99>0,SUMIF('Age profile (years)'!$CT99:$GF99,"<" & U99+0.5,'Asset data'!$CX99:$GJ99)-Y99-X99-W99,0) -> 2260.981 | AA99: 11899.9 | AB99: 0.3266932271 | AC99: 0.1513944223 | AD99: 0.04780876494 | AE99: 0.07569721116 | AF99: 0.3984063745 | AI99: =IF($A99>0,'RRR hist-forc'!K99,0) -> 53.26123813 | AJ99: 1590846.553
A100: ='Asset data'!A100 -> 6 | B100: ='Asset data'!B100 -> 0 | C100: ='Asset data'!C100 -> 0 | D100: ='Asset data'!E100 -> > 33 kv & < = 66 kv ; switch | E100: SWITCHGEAR | F100: =IF(A100>0,SUM('Asset data'!J100:CV100),0) -> 1406 | G100: =IF(A100>0,'Asset data'!F100,0) -> 48.6759 | H100: =IF(A100>0,SUM('Asset data'!CX100:GJ100),0) -> 68438.3154 | I100: 0.00283769766 | J100: 22 | K100: 0.125305985 | L100: 48.6759 | M100: =IF($A100>0,SUMPRODUCT('Age profile (years)'!$CT100:$GF100,'Asset data'!$CX100:$GJ100)/H100-0.5,0) -> 36.00142248 | N100: 2463876.706 | O100: =IF($A100>0,'Asset data'!G100,0) -> 66.73175532 | P100: 4567008.918 | Q100: 0.4605053875 | R100: 6.673175532 | S100: 13.34635106 | T100: 40.03905319 | U100: =IF($A100>0,$O100-U$4*$O100,0) -> 53.38540426 | W100: =IF($A100>0,SUMIF('Age profile (years)'!$CT100:$GF100,"<" & R100+0.5,'Asset data'!$CX100:$GJ100),0) -> 2677.1745 | X100: =IF($A100>0,SUMIF('Age profile (years)'!$CT100:$GF100,"<" & S100+0.5,'Asset data'!$CX100:$GJ100)-W100,0) -> 5646.4044 | Y100: =IF($A100>0,SUMIF('Age profile (years)'!$CT100:$GF100,"<" & T100+0.5,'Asset data'!$CX100:$GJ100)-X100-W100,0) -> 30665.817 | Z100: =IF($A100>0,SUMIF('Age profile (years)'!$CT100:$GF100,"<" & U100+0.5,'Asset data'!$CX100:$GJ100)-Y100-X100-W100,0) -> 4770.2382 | AA100: 24678.6813 | AB100: 0.03911806543 | AC100: 0.08250355619 | AD100: 0.4480796586 | AE100: 0.06970128023 | AF100: 0.3605974395 | AI100: =IF($A100>0,'RRR hist-forc'!K100,0) -> 66.73175532 | AJ100: 4567008.918
A101: ='Asset data'!A101 -> 6 | B101: ='Asset data'!B101 -> 0 | C101: ='Asset data'!C101 -> 0 | D101: ='Asset data'!E101 -> > 33 kv & < = 66 kv ; circuit breaker | E101: SWITCHGEAR | F101: =IF(A101>0,SUM('Asset data'!J101:CV101),0) -> 462 | G101: =IF(A101>0,'Asset data'!F101,0) -> 103.1587 | H101: =IF(A101>0,SUM('Asset data'!CX101:GJ101),0) -> 47659.3194 | I101: 0.001976126069 | J101: 27 | K101: 0.08726103098 | L101: 103.1587 | M101: =IF($A101>0,SUMPRODUCT('Age profile (years)'!$CT101:$GF101,'Asset data'!$CX101:$GJ101)/H101-0.5,0) -> 26.95670996 | N101: 1284738.45 | O101: =IF($A101>0,'Asset data'!G101,0) -> 47.74148458 | P101: 2275326.662 | Q101: 0.4353608776 | R101: 4.774148458 | S101: 9.548296916 | T101: 28.64489075 | U101: 38.19318767 | W101: =IF($A101>0,SUMIF('Age profile (years)'!$CT101:$GF101,"<" & R101+0.5,'Asset data'!$CX101:$GJ101),0) -> 11450.6157 | X101: =IF($A101>0,SUMIF('Age profile (years)'!$CT101:$GF101,"<" & S101+0.5,'Asset data'!$CX101:$GJ101)-W101,0) -> 1134.7457 | Y101: =IF($A101>0,SUMIF('Age profile (years)'!$CT101:$GF101,"<" & T101+0.5,'Asset data'!$CX101:$GJ101)-X101-W101,0) -> 7117.9503 | Z101: =IF($A101>0,SUMIF('Age profile (years)'!$CT101:$GF101,"<" & U101+0.5,'Asset data'!$CX101:$GJ101)-Y101-X101-W101,0) -> 5467.4111 | AA101: 22488.5966 | AB101: 0.2402597403 | AC101: 0.02380952381 | AD101: 0.1493506494 | AE101: 0.1147186147 | AF101: 0.4718614719 | AI101: =IF($A101>0,'RRR hist-forc'!K101,0) -> 47.74148458 | AJ101: 2275326.662
A102: ='Asset data'!A102 -> 0 | B102: ='Asset data'!B102 -> 0 | C102: ='Asset data'!C102 -> 0 | D102: ='Asset data'!E102 -> > 66 kv & < = 132 kv ; switch | E102: 0 | F102: =IF(A102>0,SUM('Asset data'!J102:CV102),0) -> 0 | G102: =IF(A102>0,'Asset data'!F102,0) -> 0 | H102: =IF(A102>0,SUM('Asset data'!CX102:GJ102),0) -> 0 | I102: 0 | J102: 0 | K102: 0 | L102: 0 | M102: =IF($A102>0,SUMPRODUCT('Age profile (years)'!$CT102:$GF102,'Asset data'!$CX102:$GJ102)/H102-0.5,0) -> 0 | N102: 0 | O102: =IF($A102>0,'Asset data'!G102,0) -> 0 | P102: 0 | Q102: 0 | R102: 0 | S102: 0 | T102: 0 | U102: 0 | W102: =IF($A102>0,SUMIF('Age profile (years)'!$CT102:$GF102,"<" & R102+0.5,'Asset data'!$CX102:$GJ102),0) -> 0 | X102: =IF($A102>0,SUMIF('Age profile (years)'!$CT102:$GF102,"<" & S102+0.5,'Asset data'!$CX102:$GJ102)-W102,0) -> 0 | Y102: =IF($A102>0,SUMIF('Age profile (years)'!$CT102:$GF102,"<" & T102+0.5,'Asset data'!$CX102:$GJ102)-X102-W102,0) -> 0 | Z102: =IF($A102>0,SUMIF('Age profile (years)'!$CT102:$GF102,"<" & U102+0.5,'Asset data'!$CX102:$GJ102)-Y102-X102-W102,0) -> 0 | AA102: 0 | AB102: 0 | AC102: 0 | AD102: 0 | AE102: 0 | AF102: 0 | AI102: =IF($A102>0,'RRR hist-forc'!K102,0) -> 0 | AJ102: 0
A103: ='Asset data'!A103 -> 0 | B103: ='Asset data'!B103 -> 0 | C103: ='Asset data'!C103 -> 0 | D103: ='Asset data'!E103 -> > 66 kv & < = 132 kv ; circuit breaker | E103: 0 | F103: =IF(A103>0,SUM('Asset data'!J103:CV103),0) -> 0 | G103: =IF(A103>0,'Asset data'!F103,0) -> 0 | H103: =IF(A103>0,SUM('Asset data'!CX103:GJ103),0) -> 0 | I103: 0 | J103: 0 | K103: 0 | L103: 0 | M103: =IF($A103>0,SUMPRODUCT('Age profile (years)'!$CT103:$GF103,'Asset data'!$CX103:$GJ103)/H103-0.5,0) -> 0 | N103: 0 | O103: =IF($A103>0,'Asset data'!G103,0) -> 0 | P103: 0 | Q103: 0 | R103: 0 | S103: 0 | T103: 0 | U103: 0 | W103: =IF($A103>0,SUMIF('Age profile (years)'!$CT103:$GF103,"<" & R103+0.5,'Asset data'!$CX103:$GJ103),0) -> 0 | X103: =IF($A103>0,SUMIF('Age profile (years)'!$CT103:$GF103,"<" & S103+0.5,'Asset data'!$CX103:$GJ103)-W103,0) -> 0 | Y103: =IF($A103>0,SUMIF('Age profile (years)'!$CT103:$GF103,"<" & T103+0.5,'Asset data'!$CX103:$GJ103)-X103-W103,0) -> 0 | Z103: =IF($A103>0,SUMIF('Age profile (years)'!$CT103:$GF103,"<" & U103+0.5,'Asset data'!$CX103:$GJ103)-Y103-X103-W103,0) -> 0 | AA103: 0 | AB103: 0 | AC103: 0 | AD103: 0 | AE103: 0 | AF103: 0 | AI103: =IF($A103>0,'RRR hist-forc'!K103,0) -> 0 | AJ103: 0
A104: ='Asset data'!A104 -> 0 | B104: ='Asset data'!B104 -> 0 | C104: ='Asset data'!C104 -> 0 | D104: ='Asset data'!E104 -> > 132 kv ; switch | E104: 0 | F104: =IF(A104>0,SUM('Asset data'!J104:CV104),0) -> 0 | G104: =IF(A104>0,'Asset data'!F104,0) -> 0 | H104: =IF(A104>0,SUM('Asset data'!CX104:GJ104),0) -> 0 | I104: 0 | J104: 0 | K104: 0 | L104: 0 | M104: =IF($A104>0,SUMPRODUCT('Age profile (years)'!$CT104:$GF104,'Asset data'!$CX104:$GJ104)/H104-0.5,0) -> 0 | N104: 0 | O104: =IF($A104>0,'Asset data'!G104,0) -> 0 | P104: 0 | Q104: 0 | R104: 0 | S104: 0 | T104: 0 | U104: 0 | W104: =IF($A104>0,SUMIF('Age profile (years)'!$CT104:$GF104,"<" & R104+0.5,'Asset data'!$CX104:$GJ104),0) -> 0 | X104: =IF($A104>0,SUMIF('Age profile (years)'!$CT104:$GF104,"<" & S104+0.5,'Asset data'!$CX104:$GJ104)-W104,0) -> 0 | Y104: =IF($A104>0,SUMIF('Age profile (years)'!$CT104:$GF104,"<" & T104+0.5,'Asset data'!$CX104:$GJ104)-X104-W104,0) -> 0 | Z104: =IF($A104>0,SUMIF('Age profile (years)'!$CT104:$GF104,"<" & U104+0.5,'Asset data'!$CX104:$GJ104)-Y104-X104-W104,0) -> 0 | AA104: 0 | AB104: 0 | AC104: 0 | AD104: 0 | AE104: 0 | AF104: 0 | AI104: =IF($A104>0,'RRR hist-forc'!K104,0) -> 0 | AJ104: 0
A105: ='Asset data'!A105 -> 0 | B105: ='Asset data'!B105 -> 0 | C105: ='Asset data'!C105 -> 0 | D105: ='Asset data'!E105 -> > 132 kv ; circuit breaker | E105: 0 | F105: =IF(A105>0,SUM('Asset data'!J105:CV105),0) -> 0 | G105: =IF(A105>0,'Asset data'!F105,0) -> 0 | H105: =IF(A105>0,SUM('Asset data'!CX105:GJ105),0) -> 0 | I105: 0 | J105: 0 | K105: 0 | L105: 0 | M105: =IF($A105>0,SUMPRODUCT('Age profile (years)'!$CT105:$GF105,'Asset data'!$CX105:$GJ105)/H105-0.5,0) -> 0 | N105: 0 | O105: =IF($A105>0,'Asset data'!G105,0) -> 0 | P105: 0 | Q105: 0 | R105: 0 | S105: 0 | T105: 0 | U105: 0 | W105: =IF($A105>0,SUMIF('Age profile (years)'!$CT105:$GF105,"<" & R105+0.5,'Asset data'!$CX105:$GJ105),0) -> 0 | X105: =IF($A105>0,SUMIF('Age profile (years)'!$CT105:$GF105,"<" & S105+0.5,'Asset data'!$CX105:$GJ105)-W105,0) -> 0 | Y105: =IF($A105>0,SUMIF('Age profile (years)'!$CT105:$GF105,"<" & T105+0.5,'Asset data'!$CX105:$GJ105)-X105-W105,0) -> 0 | Z105: =IF($A105>0,SUMIF('Age profile (years)'!$CT105:$GF105,"<" & U105+0.5,'Asset data'!$CX105:$GJ105)-Y105-X105-W105,0) -> 0 | AA105: 0 | AB105: 0 | AC105: 0 | AD105: 0 | AE105: 0 | AF105: 0 | AI105: =IF($A105>0,'RRR hist-forc'!K105,0) -> 0 | AJ105: 0
A106: ='Asset data'!A106 -> 0 | B106: ='Asset data'!B106 -> 0 | C106: ='Asset data'!C106 -> 0 | D106: ='Asset data'!E106 -> other | E106: 0 | F106: =IF(A106>0,SUM('Asset data'!J106:CV106),0) -> 0 | G106: =IF(A106>0,'Asset data'!F106,0) -> 0 | H106: =IF(A106>0,SUM('Asset data'!CX106:GJ106),0) -> 0 | I106: 0 | J106: 0 | K106: 0 | L106: 0 | M106: =IF($A106>0,SUMPRODUCT('Age profile (years)'!$CT106:$GF106,'Asset data'!$CX106:$GJ106)/H106-0.5,0) -> 0 | N106: 0 | O106: =IF($A106>0,'Asset data'!G106,0) -> 0 | P106: 0 | Q106: 0 | R106: 0 | S106: 0 | T106: 0 | U106: 0 | W106: =IF($A106>0,SUMIF('Age profile (years)'!$CT106:$GF106,"<" & R106+0.5,'Asset data'!$CX106:$GJ106),0) -> 0 | X106: =IF($A106>0,SUMIF('Age profile (years)'!$CT106:$GF106,"<" & S106+0.5,'Asset data'!$CX106:$GJ106)-W106,0) -> 0 | Y106: =IF($A106>0,SUMIF('Age profile (years)'!$CT106:$GF106,"<" & T106+0.5,'Asset data'!$CX106:$GJ106)-X106-W106,0) -> 0 | Z106: =IF($A106>0,SUMIF('Age profile (years)'!$CT106:$GF106,"<" & U106+0.5,'Asset data'!$CX106:$GJ106)-Y106-X106-W106,0) -> 0 | AA106: 0 | AB106: 0 | AC106: 0 | AD106: 0 | AE106: 0 | AF106: 0 | AI106: =IF($A106>0,'RRR hist-forc'!K106,0) -> 0 | AJ106: 0
A107: ='Asset data'!A107 -> 0 | B107: ='Asset data'!B107 -> 0 | C107: ='Asset data'!C107 -> 0 | D107: ='Asset data'!E107 -> luminaires ; major road | E107: 0 | F107: =IF(A107>0,SUM('Asset data'!J107:CV107),0) -> 0 | G107: =IF(A107>0,'Asset data'!F107,0) -> 0 | H107: =IF(A107>0,SUM('Asset data'!CX107:GJ107),0) -> 0 | I107: 0 | J107: 0 | K107: 0 | L107: 0 | M107: =IF($A107>0,SUMPRODUCT('Age profile (years)'!$CT107:$GF107,'Asset data'!$CX107:$GJ107)/H107-0.5,0) -> 0 | N107: 0 | O107: =IF($A107>0,'Asset data'!G107,0) -> 0 | P107: 0 | Q107: 0 | R107: 0 | S107: 0 | T107: 0 | U107: 0 | W107: =IF($A107>0,SUMIF('Age profile (years)'!$CT107:$GF107,"<" & R107+0.5,'Asset data'!$CX107:$GJ107),0) -> 0 | X107: =IF($A107>0,SUMIF('Age profile (years)'!$CT107:$GF107,"<" & S107+0.5,'Asset data'!$CX107:$GJ107)-W107,0) -> 0 | Y107: =IF($A107>0,SUMIF('Age profile (years)'!$CT107:$GF107,"<" & T107+0.5,'Asset data'!$CX107:$GJ107)-X107-W107,0) -> 0 | Z107: =IF($A107>0,SUMIF('Age profile (years)'!$CT107:$GF107,"<" & U107+0.5,'Asset data'!$CX107:$GJ107)-Y107-X107-W107,0) -> 0 | AA107: 0 | AB107: 0 | AC107: 0 | AD107: 0 | AE107: 0 | AF107: 0 | AI107: =IF($A107>0,'RRR hist-forc'!K107,0) -> 0 | AJ107: 0
A108: ='Asset data'!A108 -> 0 | B108: ='Asset data'!B108 -> 0 | C108: ='Asset data'!C108 -> 0 | D108: ='Asset data'!E108 -> luminaires ; minor road | E108: 0 | F108: =IF(A108>0,SUM('Asset data'!J108:CV108),0) -> 0 | G108: =IF(A108>0,'Asset data'!F108,0) -> 0 | H108: =IF(A108>0,SUM('Asset data'!CX108:GJ108),0) -> 0 | I108: 0 | J108: 0 | K108: 0 | L108: 0 | M108: =IF($A108>0,SUMPRODUCT('Age profile (years)'!$CT108:$GF108,'Asset data'!$CX108:$GJ108)/H108-0.5,0) -> 0 | N108: 0 | O108: =IF($A108>0,'Asset data'!G108,0) -> 0 | P108: 0 | Q108: 0 | R108: 0 | S108: 0 | T108: 0 | U108: 0 | W108: =IF($A108>0,SUMIF('Age profile (years)'!$CT108:$GF108,"<" & R108+0.5,'Asset data'!$CX108:$GJ108),0) -> 0 | X108: =IF($A108>0,SUMIF('Age profile (years)'!$CT108:$GF108,"<" & S108+0.5,'Asset data'!$CX108:$GJ108)-W108,0) -> 0 | Y108: =IF($A108>0,SUMIF('Age profile (years)'!$CT108:$GF108,"<" & T108+0.5,'Asset data'!$CX108:$GJ108)-X108-W108,0) -> 0 | Z108: =IF($A108>0,SUMIF('Age profile (years)'!$CT108:$GF108,"<" & U108+0.5,'Asset data'!$CX108:$GJ108)-Y108-X108-W108,0) -> 0 | AA108: 0 | AB108: 0 | AC108: 0 | AD108: 0 | AE108: 0 | AF108: 0 | AI108: =IF($A108>0,'RRR hist-forc'!K108,0) -> 0 | AJ108: 0
A109: ='Asset data'!A109 -> 0 | B109: ='Asset data'!B109 -> 0 | C109: ='Asset data'!C109 -> 0 | D109: ='Asset data'!E109 -> brackets ; major road | E109: 0 | F109: =IF(A109>0,SUM('Asset data'!J109:CV109),0) -> 0 | G109: =IF(A109>0,'Asset data'!F109,0) -> 0 | H109: =IF(A109>0,SUM('Asset data'!CX109:GJ109),0) -> 0 | I109: 0 | J109: 0 | K109: 0 | L109: 0 | M109: =IF($A109>0,SUMPRODUCT('Age profile (years)'!$CT109:$GF109,'Asset data'!$CX109:$GJ109)/H109-0.5,0) -> 0 | N109: 0 | O109: =IF($A109>0,'Asset data'!G109,0) -> 0 | P109: 0 | Q109: 0 | R109: 0 | S109: 0 | T109: 0 | U109: 0 | W109: =IF($A109>0,SUMIF('Age profile (years)'!$CT109:$GF109,"<" & R109+0.5,'Asset data'!$CX109:$GJ109),0) -> 0 | X109: =IF($A109>0,SUMIF('Age profile (years)'!$CT109:$GF109,"<" & S109+0.5,'Asset data'!$CX109:$GJ109)-W109,0) -> 0 | Y109: =IF($A109>0,SUMIF('Age profile (years)'!$CT109:$GF109,"<" & T109+0.5,'Asset data'!$CX109:$GJ109)-X109-W109,0) -> 0 | Z109: =IF($A109>0,SUMIF('Age profile (years)'!$CT109:$GF109,"<" & U109+0.5,'Asset data'!$CX109:$GJ109)-Y109-X109-W109,0) -> 0 | AA109: 0 | AB109: 0 | AC109: 0 | AD109: 0 | AE109: 0 | AF109: 0 | AI109: =IF($A109>0,'RRR hist-forc'!K109,0) -> 0 | AJ109: 0
A110: ='Asset data'!A110 -> 0 | B110: ='Asset data'!B110 -> 0 | C110: ='Asset data'!C110 -> 0 | D110: ='Asset data'!E110 -> brackets ; minor road | E110: 0 | F110: =IF(A110>0,SUM('Asset data'!J110:CV110),0) -> 0 | G110: =IF(A110>0,'Asset data'!F110,0) -> 0 | H110: =IF(A110>0,SUM('Asset data'!CX110:GJ110),0) -> 0 | I110: 0 | J110: 0 | K110: 0 | L110: 0 | M110: =IF($A110>0,SUMPRODUCT('Age profile (years)'!$CT110:$GF110,'Asset data'!$CX110:$GJ110)/H110-0.5,0) -> 0 | N110: 0 | O110: =IF($A110>0,'Asset data'!G110,0) -> 0 | P110: 0 | Q110: 0 | R110: 0 | S110: 0 | T110: 0 | U110: 0 | W110: =IF($A110>0,SUMIF('Age profile (years)'!$CT110:$GF110,"<" & R110+0.5,'Asset data'!$CX110:$GJ110),0) -> 0 | X110: =IF($A110>0,SUMIF('Age profile (years)'!$CT110:$GF110,"<" & S110+0.5,'Asset data'!$CX110:$GJ110)-W110,0) -> 0 | Y110: =IF($A110>0,SUMIF('Age profile (years)'!$CT110:$GF110,"<" & T110+0.5,'Asset data'!$CX110:$GJ110)-X110-W110,0) -> 0 | Z110: =IF($A110>0,SUMIF('Age profile (years)'!$CT110:$GF110,"<" & U110+0.5,'Asset data'!$CX110:$GJ110)-Y110-X110-W110,0) -> 0 | AA110: 0 | AB110: 0 | AC110: 0 | AD110: 0 | AE110: 0 | AF110: 0 | AI110: =IF($A110>0,'RRR hist-forc'!K110,0) -> 0 | AJ110: 0
A111: ='Asset data'!A111 -> 0 | B111: ='Asset data'!B111 -> 0 | C111: ='Asset data'!C111 -> 0 | D111: ='Asset data'!E111 -> lamps ; major road | E111: 0 | F111: =IF(A111>0,SUM('Asset data'!J111:CV111),0) -> 0 | G111: =IF(A111>0,'Asset data'!F111,0) -> 0 | H111: =IF(A111>0,SUM('Asset data'!CX111:GJ111),0) -> 0 | I111: 0 | J111: 0 | K111: 0 | L111: 0 | M111: =IF($A111>0,SUMPRODUCT('Age profile (years)'!$CT111:$GF111,'Asset data'!$CX111:$GJ111)/H111-0.5,0) -> 0 | N111: 0 | O111: =IF($A111>0,'Asset data'!G111,0) -> 0 | P111: 0 | Q111: 0 | R111: 0 | S111: 0 | T111: 0 | U111: 0 | W111: =IF($A111>0,SUMIF('Age profile (years)'!$CT111:$GF111,"<" & R111+0.5,'Asset data'!$CX111:$GJ111),0) -> 0 | X111: =IF($A111>0,SUMIF('Age profile (years)'!$CT111:$GF111,"<" & S111+0.5,'Asset data'!$CX111:$GJ111)-W111,0) -> 0 | Y111: =IF($A111>0,SUMIF('Age profile (years)'!$CT111:$GF111,"<" & T111+0.5,'Asset data'!$CX111:$GJ111)-X111-W111,0) -> 0 | Z111: =IF($A111>0,SUMIF('Age profile (years)'!$CT111:$GF111,"<" & U111+0.5,'Asset data'!$CX111:$GJ111)-Y111-X111-W111,0) -> 0 | AA111: 0 | AB111: 0 | AC111: 0 | AD111: 0 | AE111: 0 | AF111: 0 | AI111: =IF($A111>0,'RRR hist-forc'!K111,0) -> 0 | AJ111: 0
A112: ='Asset data'!A112 -> 0 | B112: ='Asset data'!B112 -> 0 | C112: ='Asset data'!C112 -> 0 | D112: ='Asset data'!E112 -> lamps ; minor road | E112: 0 | F112: =IF(A112>0,SUM('Asset data'!J112:CV112),0) -> 0 | G112: =IF(A112>0,'Asset data'!F112,0) -> 0 | H112: =IF(A112>0,SUM('Asset data'!CX112:GJ112),0) -> 0 | I112: 0 | J112: 0 | K112: 0 | L112: 0 | M112: =IF($A112>0,SUMPRODUCT('Age profile (years)'!$CT112:$GF112,'Asset data'!$CX112:$GJ112)/H112-0.5,0) -> 0 | N112: 0 | O112: =IF($A112>0,'Asset data'!G112,0) -> 0 | P112: 0 | Q112: 0 | R112: 0 | S112: 0 | T112: 0 | U112: 0 | W112: =IF($A112>0,SUMIF('Age profile (years)'!$CT112:$GF112,"<" & R112+0.5,'Asset data'!$CX112:$GJ112),0) -> 0 | X112: =IF($A112>0,SUMIF('Age profile (years)'!$CT112:$GF112,"<" & S112+0.5,'Asset data'!$CX112:$GJ112)-W112,0) -> 0 | Y112: =IF($A112>0,SUMIF('Age profile (years)'!$CT112:$GF112,"<" & T112+0.5,'Asset data'!$CX112:$GJ112)-X112-W112,0) -> 0 | Z112: =IF($A112>0,SUMIF('Age profile (years)'!$CT112:$GF112,"<" & U112+0.5,'Asset data'!$CX112:$GJ112)-Y112-X112-W112,0) -> 0 | AA112: 0 | AB112: 0 | AC112: 0 | AD112: 0 | AE112: 0 | AF112: 0 | AI112: =IF($A112>0,'RRR hist-forc'!K112,0) -> 0 | AJ112: 0
A113: ='Asset data'!A113 -> 0 | B113: ='Asset data'!B113 -> 0 | C113: ='Asset data'!C113 -> 0 | D113: ='Asset data'!E113 -> poles / columns ; major road | E113: 0 | F113: =IF(A113>0,SUM('Asset data'!J113:CV113),0) -> 0 | G113: =IF(A113>0,'Asset data'!F113,0) -> 0 | H113: =IF(A113>0,SUM('Asset data'!CX113:GJ113),0) -> 0 | I113: 0 | J113: 0 | K113: 0 | L113: 0 | M113: =IF($A113>0,SUMPRODUCT('Age profile (years)'!$CT113:$GF113,'Asset data'!$CX113:$GJ113)/H113-0.5,0) -> 0 | N113: 0 | O113: =IF($A113>0,'Asset data'!G113,0) -> 0 | P113: 0 | Q113: 0 | R113: 0 | S113: 0 | T113: 0 | U113: 0 | W113: =IF($A113>0,SUMIF('Age profile (years)'!$CT113:$GF113,"<" & R113+0.5,'Asset data'!$CX113:$GJ113),0) -> 0 | X113: =IF($A113>0,SUMIF('Age profile (years)'!$CT113:$GF113,"<" & S113+0.5,'Asset data'!$CX113:$GJ113)-W113,0) -> 0 | Y113: =IF($A113>0,SUMIF('Age profile (years)'!$CT113:$GF113,"<" & T113+0.5,'Asset data'!$CX113:$GJ113)-X113-W113,0) -> 0 | Z113: =IF($A113>0,SUMIF('Age profile (years)'!$CT113:$GF113,"<" & U113+0.5,'Asset data'!$CX113:$GJ113)-Y113-X113-W113,0) -> 0 | AA113: 0 | AB113: 0 | AC113: 0 | AD113: 0 | AE113: 0 | AF113: 0 | AI113: =IF($A113>0,'RRR hist-forc'!K113,0) -> 0 | AJ113: 0
A114: ='Asset data'!A114 -> 0 | B114: ='Asset data'!B114 -> 0 | C114: ='Asset data'!C114 -> 0 | D114: ='Asset data'!E114 -> poles / columns ; minor road | E114: 0 | F114: =IF(A114>0,SUM('Asset data'!J114:CV114),0) -> 0 | G114: =IF(A114>0,'Asset data'!F114,0) -> 0 | H114: =IF(A114>0,SUM('Asset data'!CX114:GJ114),0) -> 0 | I114: 0 | J114: 0 | K114: 0 | L114: 0 | M114: =IF($A114>0,SUMPRODUCT('Age profile (years)'!$CT114:$GF114,'Asset data'!$CX114:$GJ114)/H114-0.5,0) -> 0 | N114: 0 | O114: =IF($A114>0,'Asset data'!G114,0) -> 0 | P114: 0 | Q114: 0 | R114: 0 | S114: 0 | T114: 0 | U114: 0 | W114: =IF($A114>0,SUMIF('Age profile (years)'!$CT114:$GF114,"<" & R114+0.5,'Asset data'!$CX114:$GJ114),0) -> 0 | X114: =IF($A114>0,SUMIF('Age profile (years)'!$CT114:$GF114,"<" & S114+0.5,'Asset data'!$CX114:$GJ114)-W114,0) -> 0 | Y114: =IF($A114>0,SUMIF('Age profile (years)'!$CT114:$GF114,"<" & T114+0.5,'Asset data'!$CX114:$GJ114)-X114-W114,0) -> 0 | Z114: =IF($A114>0,SUMIF('Age profile (years)'!$CT114:$GF114,"<" & U114+0.5,'Asset data'!$CX114:$GJ114)-Y114-X114-W114,0) -> 0 | AA114: 0 | AB114: 0 | AC114: 0 | AD114: 0 | AE114: 0 | AF114: 0 | AI114: =IF($A114>0,'RRR hist-forc'!K114,0) -> 0 | AJ114: 0
A115: ='Asset data'!A115 -> 0 | B115: ='Asset data'!B115 -> 0 | C115: ='Asset data'!C115 -> 0 | D115: ='Asset data'!E115 -> other | E115: 0 | F115: =IF(A115>0,SUM('Asset data'!J115:CV115),0) -> 0 | G115: =IF(A115>0,'Asset data'!F115,0) -> 0 | H115: =IF(A115>0,SUM('Asset data'!CX115:GJ115),0) -> 0 | I115: 0 | J115: 0 | K115: 0 | L115: 0 | M115: =IF($A115>0,SUMPRODUCT('Age profile (years)'!$CT115:$GF115,'Asset data'!$CX115:$GJ115)/H115-0.5,0) -> 0 | N115: 0 | O115: =IF($A115>0,'Asset data'!G115,0) -> 0 | P115: 0 | Q115: 0 | R115: 0 | S115: 0 | T115: 0 | U115: 0 | W115: =IF($A115>0,SUMIF('Age profile (years)'!$CT115:$GF115,"<" & R115+0.5,'Asset data'!$CX115:$GJ115),0) -> 0 | X115: =IF($A115>0,SUMIF('Age profile (years)'!$CT115:$GF115,"<" & S115+0.5,'Asset data'!$CX115:$GJ115)-W115,0) -> 0 | Y115: =IF($A115>0,SUMIF('Age profile (years)'!$CT115:$GF115,"<" & T115+0.5,'Asset data'!$CX115:$GJ115)-X115-W115,0) -> 0 | Z115: =IF($A115>0,SUMIF('Age profile (years)'!$CT115:$GF115,"<" & U115+0.5,'Asset data'!$CX115:$GJ115)-Y115-X115-W115,0) -> 0 | AA115: 0 | AB115: 0 | AC115: 0 | AD115: 0 | AE115: 0 | AF115: 0 | AI115: =IF($A115>0,'RRR hist-forc'!K115,0) -> 0 | AJ115: 0
A116: ='Asset data'!A116 -> 0 | B116: ='Asset data'!B116 -> 0 | C116: ='Asset data'!C116 -> 0 | D116: ='Asset data'!E116 -> field devices | E116: 0 | F116: =IF(A116>0,SUM('Asset data'!J116:CV116),0) -> 0 | G116: =IF(A116>0,'Asset data'!F116,0) -> 0 | H116: =IF(A116>0,SUM('Asset data'!CX116:GJ116),0) -> 0 | I116: 0 | J116: 0 | K116: 0 | L116: 0 | M116: =IF($A116>0,SUMPRODUCT('Age profile (years)'!$CT116:$GF116,'Asset data'!$CX116:$GJ116)/H116-0.5,0) -> 0 | N116: 0 | O116: =IF($A116>0,'Asset data'!G116,0) -> 0 | P116: 0 | Q116: 0 | R116: 0 | S116: 0 | T116: 0 | U116: 0 | W116: =IF($A116>0,SUMIF('Age profile (years)'!$CT116:$GF116,"<" & R116+0.5,'Asset data'!$CX116:$GJ116),0) -> 0 | X116: =IF($A116>0,SUMIF('Age profile (years)'!$CT116:$GF116,"<" & S116+0.5,'Asset data'!$CX116:$GJ116)-W116,0) -> 0 | Y116: =IF($A116>0,SUMIF('Age profile (years)'!$CT116:$GF116,"<" & T116+0.5,'Asset data'!$CX116:$GJ116)-X116-W116,0) -> 0 | Z116: =IF($A116>0,SUMIF('Age profile (years)'!$CT116:$GF116,"<" & U116+0.5,'Asset data'!$CX116:$GJ116)-Y116-X116-W116,0) -> 0 | AA116: 0 | AB116: 0 | AC116: 0 | AD116: 0 | AE116: 0 | AF116: 0 | AI116: =IF($A116>0,'RRR hist-forc'!K116,0) -> 0 | AJ116: 0
A117: ='Asset data'!A117 -> 0 | B117: ='Asset data'!B117 -> 0 | C117: ='Asset data'!C117 -> 0 | D117: ='Asset data'!E117 -> local network wiring assets | E117: 0 | F117: =IF(A117>0,SUM('Asset data'!J117:CV117),0) -> 0 | G117: =IF(A117>0,'Asset data'!F117,0) -> 0 | H117: =IF(A117>0,SUM('Asset data'!CX117:GJ117),0) -> 0 | I117: 0 | J117: 0 | K117: 0 | L117: 0 | M117: =IF($A117>0,SUMPRODUCT('Age profile (years)'!$CT117:$GF117,'Asset data'!$CX117:$GJ117)/H117-0.5,0) -> 0 | N117: 0 | O117: =IF($A117>0,'Asset data'!G117,0) -> 0 | P117: 0 | Q117: 0 | R117: 0 | S117: 0 | T117: 0 | U117: 0 | W117: =IF($A117>0,SUMIF('Age profile (years)'!$CT117:$GF117,"<" & R117+0.5,'Asset data'!$CX117:$GJ117),0) -> 0 | X117: =IF($A117>0,SUMIF('Age profile (years)'!$CT117:$GF117,"<" & S117+0.5,'Asset data'!$CX117:$GJ117)-W117,0) -> 0 | Y117: =IF($A117>0,SUMIF('Age profile (years)'!$CT117:$GF117,"<" & T117+0.5,'Asset data'!$CX117:$GJ117)-X117-W117,0) -> 0 | Z117: =IF($A117>0,SUMIF('Age profile (years)'!$CT117:$GF117,"<" & U117+0.5,'Asset data'!$CX117:$GJ117)-Y117-X117-W117,0) -> 0 | AA117: 0 | AB117: 0 | AC117: 0 | AD117: 0 | AE117: 0 | AF117: 0 | AI117: =IF($A117>0,'RRR hist-forc'!K117,0) -> 0 | AJ117: 0
A118: ='Asset data'!A118 -> 0 | B118: ='Asset data'!B118 -> 0 | C118: ='Asset data'!C118 -> 0 | D118: ='Asset data'!E118 -> communications network assets | E118: 0 | F118: =IF(A118>0,SUM('Asset data'!J118:CV118),0) -> 0 | G118: =IF(A118>0,'Asset data'!F118,0) -> 0 | H118: =IF(A118>0,SUM('Asset data'!CX118:GJ118),0) -> 0 | I118: 0 | J118: 0 | K118: 0 | L118: 0 | M118: =IF($A118>0,SUMPRODUCT('Age profile (years)'!$CT118:$GF118,'Asset data'!$CX118:$GJ118)/H118-0.5,0) -> 0 | N118: 0 | O118: =IF($A118>0,'Asset data'!G118,0) -> 0 | P118: 0 | Q118: 0 | R118: 0 | S118: 0 | T118: 0 | U118: 0 | W118: =IF($A118>0,SUMIF('Age profile (years)'!$CT118:$GF118,"<" & R118+0.5,'Asset data'!$CX118:$GJ118),0) -> 0 | X118: =IF($A118>0,SUMIF('Age profile (years)'!$CT118:$GF118,"<" & S118+0.5,'Asset data'!$CX118:$GJ118)-W118,0) -> 0 | Y118: =IF($A118>0,SUMIF('Age profile (years)'!$CT118:$GF118,"<" & T118+0.5,'Asset data'!$CX118:$GJ118)-X118-W118,0) -> 0 | Z118: =IF($A118>0,SUMIF('Age profile (years)'!$CT118:$GF118,"<" & U118+0.5,'Asset data'!$CX118:$GJ118)-Y118-X118-W118,0) -> 0 | AA118: 0 | AB118: 0 | AC118: 0 | AD118: 0 | AE118: 0 | AF118: 0 | AI118: =IF($A118>0,'RRR hist-forc'!K118,0) -> 0 | AJ118: 0
A119: ='Asset data'!A119 -> 0 | B119: ='Asset data'!B119 -> 0 | C119: ='Asset data'!C119 -> 0 | D119: ='Asset data'!E119 -> master station assets | E119: 0 | F119: =IF(A119>0,SUM('Asset data'!J119:CV119),0) -> 0 | G119: =IF(A119>0,'Asset data'!F119,0) -> 0 | H119: =IF(A119>0,SUM('Asset data'!CX119:GJ119),0) -> 0 | I119: 0 | J119: 0 | K119: 0 | L119: 0 | M119: =IF($A119>0,SUMPRODUCT('Age profile (years)'!$CT119:$GF119,'Asset data'!$CX119:$GJ119)/H119-0.5,0) -> 0 | N119: 0 | O119: =IF($A119>0,'Asset data'!G119,0) -> 0 | P119: 0 | Q119: 0 | R119: 0 | S119: 0 | T119: 0 | U119: 0 | W119: =IF($A119>0,SUMIF('Age profile (years)'!$CT119:$GF119,"<" & R119+0.5,'Asset data'!$CX119:$GJ119),0) -> 0 | X119: =IF($A119>0,SUMIF('Age profile (years)'!$CT119:$GF119,"<" & S119+0.5,'Asset data'!$CX119:$GJ119)-W119,0) -> 0 | Y119: =IF($A119>0,SUMIF('Age profile (years)'!$CT119:$GF119,"<" & T119+0.5,'Asset data'!$CX119:$GJ119)-X119-W119,0) -> 0 | Z119: =IF($A119>0,SUMIF('Age profile (years)'!$CT119:$GF119,"<" & U119+0.5,'Asset data'!$CX119:$GJ119)-Y119-X119-W119,0) -> 0 | AA119: 0 | AB119: 0 | AC119: 0 | AD119: 0 | AE119: 0 | AF119: 0 | AI119: =IF($A119>0,'RRR hist-forc'!K119,0) -> 0 | AJ119: 0
A120: ='Asset data'!A120 -> 0 | B120: ='Asset data'!B120 -> 0 | C120: ='Asset data'!C120 -> 0 | D120: ='Asset data'!E120 -> other | E120: 0 | F120: =IF(A120>0,SUM('Asset data'!J120:CV120),0) -> 0 | G120: =IF(A120>0,'Asset data'!F120,0) -> 0 | H120: =IF(A120>0,SUM('Asset data'!CX120:GJ120),0) -> 0 | I120: 0 | J120: 0 | K120: 0 | L120: 0 | M120: =IF($A120>0,SUMPRODUCT('Age profile (years)'!$CT120:$GF120,'Asset data'!$CX120:$GJ120)/H120-0.5,0) -> 0 | N120: 0 | O120: =IF($A120>0,'Asset data'!G120,0) -> 0 | P120: 0 | Q120: 0 | R120: 0 | S120: 0 | T120: 0 | U120: 0 | W120: =IF($A120>0,SUMIF('Age profile (years)'!$CT120:$GF120,"<" & R120+0.5,'Asset data'!$CX120:$GJ120),0) -> 0 | X120: =IF($A120>0,SUMIF('Age profile (years)'!$CT120:$GF120,"<" & S120+0.5,'Asset data'!$CX120:$GJ120)-W120,0) -> 0 | Y120: =IF($A120>0,SUMIF('Age profile (years)'!$CT120:$GF120,"<" & T120+0.5,'Asset data'!$CX120:$GJ120)-X120-W120,0) -> 0 | Z120: =IF($A120>0,SUMIF('Age profile (years)'!$CT120:$GF120,"<" & U120+0.5,'Asset data'!$CX120:$GJ120)-Y120-X120-W120,0) -> 0 | AA120: 0 | AB120: 0 | AC120: 0 | AD120: 0 | AE120: 0 | AF120: 0 | AI120: =IF($A120>0,'RRR hist-forc'!K120,0) -> 0 | AJ120: 0
A121: ='Asset data'!A121 -> 6 | B121: ='Asset data'!B121 -> 0 | C121: ='Asset data'!C121 -> 0 | D121: ='Asset data'!E121 -> ˂ = 11 kv ; circuit breaker refurbished | E121: SWITCHGEAR | F121: =IF(A121>0,SUM('Asset data'!J121:CV121),0) -> 1206 | G121: =IF(A121>0,'Asset data'!F121,0) -> 22.3428 | H121: =IF(A121>0,SUM('Asset data'!CX121:GJ121),0) -> 26945.4168 | I121: 0.001117253482 | J121: 31 | K121: 0.04933525866 | L121: 22.3428 | M121: =IF($A121>0,SUMPRODUCT('Age profile (years)'!$CT121:$GF121,'Asset data'!$CX121:$GJ121)/H121-0.5,0) -> 35.6384743 | N121: 960293.544 | O121: =IF($A121>0,'Asset data'!G121,0) -> 65 | P121: 1751452.092 | Q121: 0.4517157801 | R121: 6.5 | S121: 13 | T121: 39 | U121: 52 | W121: =IF($A121>0,SUMIF('Age profile (years)'!$CT121:$GF121,"<" & R121+0.5,'Asset data'!$CX121:$GJ121),0) -> 1050.1116 | X121: =IF($A121>0,SUMIF('Age profile (years)'!$CT121:$GF121,"<" & S121+0.5,'Asset data'!$CX121:$GJ121)-W121,0) -> 2122.566 | Y121: =IF($A121>0,SUMIF('Age profile (years)'!$CT121:$GF121,"<" & T121+0.5,'Asset data'!$CX121:$GJ121)-X121-W121,0) -> 11216.0856 | Z121: =IF($A121>0,SUMIF('Age profile (years)'!$CT121:$GF121,"<" & U121+0.5,'Asset data'!$CX121:$GJ121)-Y121-X121-W121,0) -> 2971.5924 | AA121: 9585.0612 | AB121: 0.03897180763 | AC121: 0.07877280265 | AD121: 0.416252073 | AE121: 0.1102819237 | AF121: 0.355721393 | AI121: =IF($A121>0,'RRR hist-forc'!K121,0) -> 65 | AJ121: 1751452.092
A122: ='Asset data'!A122 -> 6 | B122: ='Asset data'!B122 -> 0 | C122: ='Asset data'!C122 -> 0 | D122: ='Asset data'!E122 -> > 22 kv & < = 33 kv ; circuit breaker refurbished | E122: SWITCHGEAR | F122: =IF(A122>0,SUM('Asset data'!J122:CV122),0) -> 251 | G122: =IF(A122>0,'Asset data'!F122,0) -> 15.1895 | H122: =IF(A122>0,SUM('Asset data'!CX122:GJ122),0) -> 3812.5645 | I122: 0.0001580825784 | J122: 46 | K122: 0.006980550984 | L122: 15.1895 | M122: =IF($A122>0,SUMPRODUCT('Age profile (years)'!$CT122:$GF122,'Asset data'!$CX122:$GJ122)/H122-0.5,0) -> 35.0498008 | N122: 133629.6263 | O122: =IF($A122>0,'Asset data'!G122,0) -> 65 | P122: 247816.6925 | Q122: 0.4607722954 | R122: 6.5 | S122: 13 | T122: 39 | U122: 52 | W122: =IF($A122>0,SUMIF('Age profile (years)'!$CT122:$GF122,"<" & R122+0.5,'Asset data'!$CX122:$GJ122),0) -> 546.822 | X122: =IF($A122>0,SUMIF('Age profile (years)'!$CT122:$GF122,"<" & S122+0.5,'Asset data'!$CX122:$GJ122)-W122,0) -> 592.3905 | Y122: =IF($A122>0,SUMIF('Age profile (years)'!$CT122:$GF122,"<" & T122+0.5,'Asset data'!$CX122:$GJ122)-X122-W122,0) -> 683.5275 | Z122: =IF($A122>0,SUMIF('Age profile (years)'!$CT122:$GF122,"<" & U122+0.5,'Asset data'!$CX122:$GJ122)-Y122-X122-W122,0) -> 227.8425 | AA122: 1761.982 | AB122: 0.1434262948 | AC122: 0.1553784861 | AD122: 0.1792828685 | AE122: 0.05976095618 | AF122: 0.4621513944 | AI122: =IF($A122>0,'RRR hist-forc'!K122,0) -> 65 | AJ122: 247816.6925
A123: ='Asset data'!A123 -> 0 | B123: ='Asset data'!B123 -> 0 | C123: ='Asset data'!C123 -> 0 | D123: ='Asset data'!E123 -> > 22 kv & < ≈ 33 kv ; load break switch; ground level (switching cubical);switchgear | E123: 0 | F123: =IF(A123>0,SUM('Asset data'!J123:CV123),0) -> 0 | G123: =IF(A123>0,'Asset data'!F123,0) -> 0 | H123: =IF(A123>0,SUM('Asset data'!CX123:GJ123),0) -> 0 | I123: 0 | J123: 0 | K123: 0 | L123: 0 | M123: =IF($A123>0,SUMPRODUCT('Age profile (years)'!$CT123:$GF123,'Asset data'!$CX123:$GJ123)/H123-0.5,0) -> 0 | N123: 0 | O123: =IF($A123>0,'Asset data'!G123,0) -> 0 | P123: 0 | Q123: 0 | R123: 0 | S123: 0 | T123: 0 | U123: 0 | W123: =IF($A123>0,SUMIF('Age profile (years)'!$CT123:$GF123,"<" & R123+0.5,'Asset data'!$CX123:$GJ123),0) -> 0 | X123: =IF($A123>0,SUMIF('Age profile (years)'!$CT123:$GF123,"<" & S123+0.5,'Asset data'!$CX123:$GJ123)-W123,0) -> 0 | Y123: =IF($A123>0,SUMIF('Age profile (years)'!$CT123:$GF123,"<" & T123+0.5,'Asset data'!$CX123:$GJ123)-X123-W123,0) -> 0 | Z123: =IF($A123>0,SUMIF('Age profile (years)'!$CT123:$GF123,"<" & U123+0.5,'Asset data'!$CX123:$GJ123)-Y123-X123-W123,0) -> 0 | AA123: 0 | AB123: 0 | AC123: 0 | AD123: 0 | AE123: 0 | AF123: 0 | AI123: =IF($A123>0,'RRR hist-forc'!K123,0) -> 0 | AJ123: 0
A124: ='Asset data'!A124 -> 6 | B124: ='Asset data'!B124 -> 0 | C124: ='Asset data'!C124 -> 0 | D124: ='Asset data'!E124 -> > 33 kv & < = 66 kv ; circuit breaker refurbished | E124: SWITCHGEAR | F124: =IF(A124>0,SUM('Asset data'!J124:CV124),0) -> 462 | G124: =IF(A124>0,'Asset data'!F124,0) -> 21.9754 | H124: =IF(A124>0,SUM('Asset data'!CX124:GJ124),0) -> 10152.6348 | I124: 0.0004209645993 | J124: 39 | K124: 0.01858879629 | L124: 21.9754 | M124: =IF($A124>0,SUMPRODUCT('Age profile (years)'!$CT124:$GF124,'Asset data'!$CX124:$GJ124)/H124-0.5,0) -> 43.95670996 | N124: 446276.4232 | O124: =IF($A124>0,'Asset data'!G124,0) -> 65 | P124: 659921.262 | Q124: 0.3237429237 | R124: 6.5 | S124: 13 | T124: 39 | U124: 52 | W124: =IF($A124>0,SUMIF('Age profile (years)'!$CT124:$GF124,"<" & R124+0.5,'Asset data'!$CX124:$GJ124),0) -> 461.4834 | X124: =IF($A124>0,SUMIF('Age profile (years)'!$CT124:$GF124,"<" & S124+0.5,'Asset data'!$CX124:$GJ124)-W124,0) -> 197.7786 | Y124: =IF($A124>0,SUMIF('Age profile (years)'!$CT124:$GF124,"<" & T124+0.5,'Asset data'!$CX124:$GJ124)-X124-W124,0) -> 3010.6298 | Z124: =IF($A124>0,SUMIF('Age profile (years)'!$CT124:$GF124,"<" & U124+0.5,'Asset data'!$CX124:$GJ124)-Y124-X124-W124,0) -> 1120.7454 | AA124: 5361.9976 | AB124: 0.04545454545 | AC124: 0.01948051948 | AD124: 0.2965367965 | AE124: 0.1103896104 | AF124: 0.5281385281 | AI124: =IF($A124>0,'RRR hist-forc'!K124,0) -> 65 | AJ124: 659921.262
A125: ='Asset data'!A125 -> 6 | B125: ='Asset data'!B125 -> 0 | C125: ='Asset data'!C125 -> 0 | D125: ='Asset data'!E125 -> >= 11 kv & < ≈ 22 kv ; load break switch; ground level (switching cubical);switchgear | E125: SWITCHGEAR | F125: =IF(A125>0,SUM('Asset data'!J125:CV125),0) -> 5322 | G125: =IF(A125>0,'Asset data'!F125,0) -> 25.4681 | H125: =IF(A125>0,SUM('Asset data'!CX125:GJ125),0) -> 135541.2282 | I125: 0.005620024746 | J125: 17 | K125: 0.248166937 | L125: 25.4681 | M125: =IF($A125>0,SUMPRODUCT('Age profile (years)'!$CT125:$GF125,'Asset data'!$CX125:$GJ125)/H125-0.5,0) -> 32.97012401 | N125: 4468811.103 | O125: =IF($A125>0,'Asset data'!G125,0) -> 45 | P125: 6099355.269 | Q125: 0.2673305775 | R125: 4.5 | S125: 9 | T125: 27 | U125: 36 | W125: =IF($A125>0,SUMIF('Age profile (years)'!$CT125:$GF125,"<" & R125+0.5,'Asset data'!$CX125:$GJ125),0) -> 3259.9168 | X125: =IF($A125>0,SUMIF('Age profile (years)'!$CT125:$GF125,"<" & S125+0.5,'Asset data'!$CX125:$GJ125)-W125,0) -> 2343.0652 | Y125: =IF($A125>0,SUMIF('Age profile (years)'!$CT125:$GF125,"<" & T125+0.5,'Asset data'!$CX125:$GJ125)-X125-W125,0) -> 25035.1423 | Z125: =IF($A125>0,SUMIF('Age profile (years)'!$CT125:$GF125,"<" & U125+0.5,'Asset data'!$CX125:$GJ125)-Y125-X125-W125,0) -> 26588.6964 | AA125: 78314.4075 | AB125: 0.02405110861 | AC125: 0.01728673431 | AD125: 0.1847049981 | AE125: 0.1961668546 | AF125: 0.5777903044 | AI125: =IF($A125>0,'RRR hist-forc'!K125,0) -> 45 | AJ125: 6099355.269
A126: ='Asset data'!A126 -> 5 | B126: ='Asset data'!B126 -> 0 | C126: ='Asset data'!C126 -> 0 | D126: ='Asset data'!E126 -> ground outdoor / indoor chamber mounted; > = 22 kv & < = 33 kv ; < = 15 mva refurbished | E126: TRANSFORMERS | F126: =IF(A126>0,SUM('Asset data'!J126:CV126),0) -> 315 | G126: =IF(A126>0,'Asset data'!F126,0) -> 32.5667 | H126: =IF(A126>0,SUM('Asset data'!CX126:GJ126),0) -> 10258.5105 | I126: 0.000425354585 | J126: 38 | K126: 0.005173024131 | L126: 32.5667 | M126: =IF($A126>0,SUMPRODUCT('Age profile (years)'!$CT126:$GF126,'Asset data'!$CX126:$GJ126)/H126-0.5,0) -> 31.76031746 | N126: 325813.5502 | O126: =IF($A126>0,'Asset data'!G126,0) -> 65 | P126: 666803.1825 | Q126: 0.5113797314 | R126: 6.5 | S126: 13 | T126: 39 | U126: 52 | W126: =IF($A126>0,SUMIF('Age profile (years)'!$CT126:$GF126,"<" & R126+0.5,'Asset data'!$CX126:$GJ126),0) -> 618.7673 | X126: =IF($A126>0,SUMIF('Age profile (years)'!$CT126:$GF126,"<" & S126+0.5,'Asset data'!$CX126:$GJ126)-W126,0) -> 1335.2347 | Y126: =IF($A126>0,SUMIF('Age profile (years)'!$CT126:$GF126,"<" & T126+0.5,'Asset data'!$CX126:$GJ126)-X126-W126,0) -> 4982.7051 | Z126: =IF($A126>0,SUMIF('Age profile (years)'!$CT126:$GF126,"<" & U126+0.5,'Asset data'!$CX126:$GJ126)-Y126-X126-W126,0) -> 1270.1013 | AA126: 2051.7021 | AB126: 0.06031746032 | AC126: 0.1301587302 | AD126: 0.4857142857 | AE126: 0.1238095238 | AF126: 0.2 | AI126: =IF($A126>0,'RRR hist-forc'!K126,0) -> 65 | AJ126: 666803.1825
A127: ='Asset data'!A127 -> 5 | B127: ='Asset data'!B127 -> 0 | C127: ='Asset data'!C127 -> 0 | D127: ='Asset data'!E127 -> ground outdoor / indoor chamber mounted; > 33 kv & < = 66 kv ; < = 15 mva refurbished | E127: TRANSFORMERS | F127: =IF(A127>0,SUM('Asset data'!J127:CV127),0) -> 164 | G127: =IF(A127>0,'Asset data'!F127,0) -> 32.5667 | H127: =IF(A127>0,SUM('Asset data'!CX127:GJ127),0) -> 5340.9388 | I127: 0.0002214544506 | J127: 42 | K127: 0.002693257008 | L127: 32.5667 | M127: =IF($A127>0,SUMPRODUCT('Age profile (years)'!$CT127:$GF127,'Asset data'!$CX127:$GJ127)/H127-0.5,0) -> 23.56097561 | N127: 125837.7288 | O127: =IF($A127>0,'Asset data'!G127,0) -> 65 | P127: 347161.022 | Q127: 0.6375234522 | R127: 6.5 | S127: 13 | T127: 39 | U127: 52 | W127: =IF($A127>0,SUMIF('Age profile (years)'!$CT127:$GF127,"<" & R127+0.5,'Asset data'!$CX127:$GJ127),0) -> 390.8004 | X127: =IF($A127>0,SUMIF('Age profile (years)'!$CT127:$GF127,"<" & S127+0.5,'Asset data'!$CX127:$GJ127)-W127,0) -> 911.8676 | Y127: =IF($A127>0,SUMIF('Age profile (years)'!$CT127:$GF127,"<" & T127+0.5,'Asset data'!$CX127:$GJ127)-X127-W127,0) -> 3191.5366 | Z127: =IF($A127>0,SUMIF('Age profile (years)'!$CT127:$GF127,"<" & U127+0.5,'Asset data'!$CX127:$GJ127)-Y127-X127-W127,0) -> 423.3671 | AA127: 423.3671 | AB127: 0.07317073171 | AC127: 0.1707317073 | AD127: 0.5975609756 | AE127: 0.07926829268 | AF127: 0.07926829268 | AI127: =IF($A127>0,'RRR hist-forc'!K127,0) -> 65 | AJ127: 347161.022
A128: ='Asset data'!A128 -> 5 | B128: ='Asset data'!B128 -> 0 | C128: ='Asset data'!C128 -> 0 | D128: ='Asset data'!E128 -> ground outdoor / indoor chamber mounted; > 33 kv & < = 66 kv ; > 15 mva and < = 40 mva refurbished | E128: TRANSFORMERS | F128: =IF(A128>0,SUM('Asset data'!J128:CV128),0) -> 118 | G128: =IF(A128>0,'Asset data'!F128,0) -> 32.5667 | H128: =IF(A128>0,SUM('Asset data'!CX128:GJ128),0) -> 3842.8706 | I128: 0.0001593391779 | J128: 45 | K128: 0.001937831262 | L128: 32.5667 | M128: =IF($A128>0,SUMPRODUCT('Age profile (years)'!$CT128:$GF128,'Asset data'!$CX128:$GJ128)/H128-0.5,0) -> 41.11864407 | N128: 158013.6284 | O128: =IF($A128>0,'Asset data'!G128,0) -> 65 | P128: 249786.589 | Q128: 0.3674054759 | R128: 6.5 | S128: 13 | T128: 39 | U128: 52 | W128: =IF($A128>0,SUMIF('Age profile (years)'!$CT128:$GF128,"<" & R128+0.5,'Asset data'!$CX128:$GJ128),0) -> 0 | X128: =IF($A128>0,SUMIF('Age profile (years)'!$CT128:$GF128,"<" & S128+0.5,'Asset data'!$CX128:$GJ128)-W128,0) -> 195.4002 | Y128: =IF($A128>0,SUMIF('Age profile (years)'!$CT128:$GF128,"<" & T128+0.5,'Asset data'!$CX128:$GJ128)-X128-W128,0) -> 1465.5015 | Z128: =IF($A128>0,SUMIF('Age profile (years)'!$CT128:$GF128,"<" & U128+0.5,'Asset data'!$CX128:$GJ128)-Y128-X128-W128,0) -> 651.334 | AA128: 1530.6349 | AB128: 0 | AC128: 0.05084745763 | AD128: 0.3813559322 | AE128: 0.1694915254 | AF128: 0.3983050847 | AI128: =IF($A128>0,'RRR hist-forc'!K128,0) -> 65 | AJ128: 249786.589
A129: ='Asset data'!A129 -> 5 | B129: ='Asset data'!B129 -> 0 | C129: ='Asset data'!C129 -> 0 | D129: ='Asset data'!E129 -> kiosk mounted transformer; > 22 kv ; > 60 kva and < ≈ 600 kva | E129: TRANSFORMERS | F129: =IF(A129>0,SUM('Asset data'!J129:CV129),0) -> 47 | G129: =IF(A129>0,'Asset data'!F129,0) -> 104.2948 | H129: =IF(A129>0,SUM('Asset data'!CX129:GJ129),0) -> 4901.8556 | I129: 0.0002032484886 | J129: 43 | K129: 0.002471842019 | L129: 104.2948 | M129: =IF($A129>0,SUMPRODUCT('Age profile (years)'!$CT129:$GF129,'Asset data'!$CX129:$GJ129)/H129-0.5,0) -> 36.64893617 | N129: 179647.793 | O129: =IF($A129>0,'Asset data'!G129,0) -> 50 | P129: 245092.78 | Q129: 0.2670212766 | R129: 5 | S129: 10 | T129: 30 | U129: 40 | W129: =IF($A129>0,SUMIF('Age profile (years)'!$CT129:$GF129,"<" & R129+0.5,'Asset data'!$CX129:$GJ129),0) -> 0 | X129: =IF($A129>0,SUMIF('Age profile (years)'!$CT129:$GF129,"<" & S129+0.5,'Asset data'!$CX129:$GJ129)-W129,0) -> 417.1792 | Y129: =IF($A129>0,SUMIF('Age profile (years)'!$CT129:$GF129,"<" & T129+0.5,'Asset data'!$CX129:$GJ129)-X129-W129,0) -> 417.1792 | Z129: =IF($A129>0,SUMIF('Age profile (years)'!$CT129:$GF129,"<" & U129+0.5,'Asset data'!$CX129:$GJ129)-Y129-X129-W129,0) -> 1564.422 | AA129: 2503.0752 | AB129: 0 | AC129: 0.08510638298 | AD129: 0.08510638298 | AE129: 0.3191489362 | AF129: 0.5106382979 | AI129: =IF($A129>0,'RRR hist-forc'!K129,0) -> 50 | AJ129: 245092.78
A130: ='Asset data'!A130 -> 0 | B130: ='Asset data'!B130 -> 0 | C130: ='Asset data'!C130 -> 0 | D130: ='Asset data'!E130 -> pipe buswork substations | E130: 0 | F130: =IF(A130>0,SUM('Asset data'!J130:CV130),0) -> 0 | G130: =IF(A130>0,'Asset data'!F130,0) -> 0 | H130: =IF(A130>0,SUM('Asset data'!CX130:GJ130),0) -> 0 | I130: 0 | J130: 0 | K130: 0 | L130: 0 | M130: =IF($A130>0,SUMPRODUCT('Age profile (years)'!$CT130:$GF130,'Asset data'!$CX130:$GJ130)/H130-0.5,0) -> 0 | N130: 0 | O130: =IF($A130>0,'Asset data'!G130,0) -> 0 | P130: 0 | Q130: 0 | R130: 0 | S130: 0 | T130: 0 | U130: 0 | W130: =IF($A130>0,SUMIF('Age profile (years)'!$CT130:$GF130,"<" & R130+0.5,'Asset data'!$CX130:$GJ130),0) -> 0 | X130: =IF($A130>0,SUMIF('Age profile (years)'!$CT130:$GF130,"<" & S130+0.5,'Asset data'!$CX130:$GJ130)-W130,0) -> 0 | Y130: =IF($A130>0,SUMIF('Age profile (years)'!$CT130:$GF130,"<" & T130+0.5,'Asset data'!$CX130:$GJ130)-X130-W130,0) -> 0 | Z130: =IF($A130>0,SUMIF('Age profile (years)'!$CT130:$GF130,"<" & U130+0.5,'Asset data'!$CX130:$GJ130)-Y130-X130-W130,0) -> 0 | AA130: 0 | AB130: 0 | AC130: 0 | AD130: 0 | AE130: 0 | AF130: 0 | AI130: =IF($A130>0,'RRR hist-forc'!K130,0) -> 0 | AJ130: 0
A131: ='Asset data'!A131 -> 5 | B131: ='Asset data'!B131 -> 0 | C131: ='Asset data'!C131 -> 0 | D131: ='Asset data'!E131 -> pole mounted transformer ; > 22 kv ; > 60 kva and < ≈ 600 kva | E131: TRANSFORMERS | F131: =IF(A131>0,SUM('Asset data'!J131:CV131),0) -> 644 | G131: =IF(A131>0,'Asset data'!F131,0) -> 22.3819 | H131: =IF(A131>0,SUM('Asset data'!CX131:GJ131),0) -> 14413.9436 | I131: 0.0005976537235 | J131: 37 | K131: 0.00726847022 | L131: 22.3819 | M131: =IF($A131>0,SUMPRODUCT('Age profile (years)'!$CT131:$GF131,'Asset data'!$CX131:$GJ131)/H131-0.5,0) -> 30.86024845 | N131: 444817.8806 | O131: =IF($A131>0,'Asset data'!G131,0) -> 55 | P131: 792766.898 | Q131: 0.4389045737 | R131: 5.5 | S131: 11 | T131: 33 | U131: 44 | W131: =IF($A131>0,SUMIF('Age profile (years)'!$CT131:$GF131,"<" & R131+0.5,'Asset data'!$CX131:$GJ131),0) -> 760.9846 | X131: =IF($A131>0,SUMIF('Age profile (years)'!$CT131:$GF131,"<" & S131+0.5,'Asset data'!$CX131:$GJ131)-W131,0) -> 1723.4063 | Y131: =IF($A131>0,SUMIF('Age profile (years)'!$CT131:$GF131,"<" & T131+0.5,'Asset data'!$CX131:$GJ131)-X131-W131,0) -> 4767.3447 | Z131: =IF($A131>0,SUMIF('Age profile (years)'!$CT131:$GF131,"<" & U131+0.5,'Asset data'!$CX131:$GJ131)-Y131-X131-W131,0) -> 3222.9936 | AA131: 3939.2144 | AB131: 0.05279503106 | AC131: 0.1195652174 | AD131: 0.3307453416 | AE131: 0.2236024845 | AF131: 0.2732919255 | AI131: =IF($A131>0,'RRR hist-forc'!K131,0) -> 55 | AJ131: 792766.898
A132: ='Asset data'!A132 -> 5 | B132: ='Asset data'!B132 -> 0 | C132: ='Asset data'!C132 -> 0 | D132: ='Asset data'!E132 -> pole mounted transformer; > 22 kv ; < ≈ 60 kva | E132: TRANSFORMERS | F132: =IF(A132>0,SUM('Asset data'!J132:CV132),0) -> 993 | G132: =IF(A132>0,'Asset data'!F132,0) -> 8.5386 | H132: =IF(A132>0,SUM('Asset data'!CX132:GJ132),0) -> 8478.8298 | I132: 0.0003515626494 | J132: 40 | K132: 0.004275590609 | L132: 8.5386 | M132: =IF($A132>0,SUMPRODUCT('Age profile (years)'!$CT132:$GF132,'Asset data'!$CX132:$GJ132)/H132-0.5,0) -> 26.17673716 | N132: 221948.0991 | O132: =IF($A132>0,'Asset data'!G132,0) -> 55 | P132: 466335.639 | Q132: 0.5240593244 | R132: 5.5 | S132: 11 | T132: 33 | U132: 44 | W132: =IF($A132>0,SUMIF('Age profile (years)'!$CT132:$GF132,"<" & R132+0.5,'Asset data'!$CX132:$GJ132),0) -> 785.5512 | X132: =IF($A132>0,SUMIF('Age profile (years)'!$CT132:$GF132,"<" & S132+0.5,'Asset data'!$CX132:$GJ132)-W132,0) -> 1033.1706 | Y132: =IF($A132>0,SUMIF('Age profile (years)'!$CT132:$GF132,"<" & T132+0.5,'Asset data'!$CX132:$GJ132)-X132-W132,0) -> 3594.7506 | Z132: =IF($A132>0,SUMIF('Age profile (years)'!$CT132:$GF132,"<" & U132+0.5,'Asset data'!$CX132:$GJ132)-Y132-X132-W132,0) -> 1878.492 | AA132: 1186.8654 | AB132: 0.09264853978 | AC132: 0.1218529708 | AD132: 0.4239677744 | AE132: 0.221550856 | AF132: 0.139979859 | AI132: =IF($A132>0,'RRR hist-forc'!K132,0) -> 55 | AJ132: 466335.639
A133: ='Asset data'!A133 -> 1 | B133: ='Asset data'!B133 -> 0 | C133: ='Asset data'!C133 -> 0 | D133: ='Asset data'!E133 -> pole refurbished; stobie | E133: POLES | F133: =IF(A133>0,SUM('Asset data'!J133:CV133),0) -> 17984 | G133: =IF(A133>0,'Asset data'!F133,0) -> 7.027412844 | H133: =IF(A133>0,SUM('Asset data'!CX133:GJ133),0) -> 126380.9926 | I133: 0.005240208571 | J133: 18 | K133: 0.0421032793 | L133: 7.027412844 | M133: =IF($A133>0,SUMPRODUCT('Age profile (years)'!$CT133:$GF133,'Asset data'!$CX133:$GJ133)/H133-0.5,0) -> 16.20351423 | N133: 2047816.212 | O133: =IF($A133>0,'Asset data'!G133,0) -> 20 | P133: 2527619.852 | Q133: 0.1898242883 | R133: 2 | S133: 4 | T133: 12 | U133: 16 | W133: =IF($A133>0,SUMIF('Age profile (years)'!$CT133:$GF133,"<" & R133+0.5,'Asset data'!$CX133:$GJ133),0) -> 0 | X133: =IF($A133>0,SUMIF('Age profile (years)'!$CT133:$GF133,"<" & S133+0.5,'Asset data'!$CX133:$GJ133)-W133,0) -> 0 | Y133: =IF($A133>0,SUMIF('Age profile (years)'!$CT133:$GF133,"<" & T133+0.5,'Asset data'!$CX133:$GJ133)-X133-W133,0) -> 3021.787523 | Z133: =IF($A133>0,SUMIF('Age profile (years)'!$CT133:$GF133,"<" & U133+0.5,'Asset data'!$CX133:$GJ133)-Y133-X133-W133,0) -> 48945.93046 | AA133: 74413.27461 | AB133: 0 | AC133: 0 | AD133: 0.02391014235 | AE133: 0.3872887011 | AF133: 0.5888011566 | AI133: =IF($A133>0,'RRR hist-forc'!K133,0) -> 20 | AJ133: 2527619.852
A134: ='Asset data'!A134 -> 6 | B134: ='Asset data'!B134 -> 0 | C134: ='Asset data'!C134 -> 0 | D134: ='Asset data'!E134 -> recloser | E134: SWITCHGEAR | F134: =IF(A134>0,SUM('Asset data'!J134:CV134),0) -> 2065 | G134: =IF(A134>0,'Asset data'!F134,0) -> 8.3395 | H134: =IF(A134>0,SUM('Asset data'!CX134:GJ134),0) -> 17221.0675 | I134: 0.0007140471338 | J134: 36 | K134: 0.03153062451 | L134: 8.3395 | M134: =IF($A134>0,SUMPRODUCT('Age profile (years)'!$CT134:$GF134,'Asset data'!$CX134:$GJ134)/H134-0.5,0) -> 31.87530266 | N134: 548926.7387 | O134: =IF($A134>0,'Asset data'!G134,0) -> 45.01576495 | P134: 775219.5268 | Q134: 0.2919080083 | R134: 4.501576495 | S134: 9.00315299 | T134: 27.00945897 | U134: 36.01261196 | W134: =IF($A134>0,SUMIF('Age profile (years)'!$CT134:$GF134,"<" & R134+0.5,'Asset data'!$CX134:$GJ134),0) -> 1809.6715 | X134: =IF($A134>0,SUMIF('Age profile (years)'!$CT134:$GF134,"<" & S134+0.5,'Asset data'!$CX134:$GJ134)-W134,0) -> 492.0305 | Y134: =IF($A134>0,SUMIF('Age profile (years)'!$CT134:$GF134,"<" & T134+0.5,'Asset data'!$CX134:$GJ134)-X134-W134,0) -> 2360.0785 | Z134: =IF($A134>0,SUMIF('Age profile (years)'!$CT134:$GF134,"<" & U134+0.5,'Asset data'!$CX134:$GJ134)-Y134-X134-W134,0) -> 2460.1525 | AA134: 10099.1345 | AB134: 0.1050847458 | AC134: 0.02857142857 | AD134: 0.1370460048 | AE134: 0.1428571429 | AF134: 0.586440678 | AI134: =IF($A134>0,'RRR hist-forc'!K134,0) -> 45.01576495 | AJ134: 775219.5268
A135: ='Asset data'!A135 -> 6 | B135: ='Asset data'!B135 -> 0 | C135: ='Asset data'!C135 -> 0 | D135: ='Asset data'!E135 -> sectionalizer | E135: SWITCHGEAR | F135: =IF(A135>0,SUM('Asset data'!J135:CV135),0) -> 700 | G135: =IF(A135>0,'Asset data'!F135,0) -> 6.7816 | H135: =IF(A135>0,SUM('Asset data'!CX135:GJ135),0) -> 4747.12 | I135: 0.0001968325965 | J135: 44 | K135: 0.008691659692 | L135: 6.7816 | M135: =IF($A135>0,SUMPRODUCT('Age profile (years)'!$CT135:$GF135,'Asset data'!$CX135:$GJ135)/H135-0.5,0) -> 29.34 | N135: 139280.5008 | O135: =IF($A135>0,'Asset data'!G135,0) -> 48.7641876 | P135: 231489.4502 | Q135: 0.3983289491 | R135: 4.87641876 | S135: 9.75283752 | T135: 29.25851256 | U135: 39.01135008 | W135: =IF($A135>0,SUMIF('Age profile (years)'!$CT135:$GF135,"<" & R135+0.5,'Asset data'!$CX135:$GJ135),0) -> 94.9424 | X135: =IF($A135>0,SUMIF('Age profile (years)'!$CT135:$GF135,"<" & S135+0.5,'Asset data'!$CX135:$GJ135)-W135,0) -> 359.4248 | Y135: =IF($A135>0,SUMIF('Age profile (years)'!$CT135:$GF135,"<" & T135+0.5,'Asset data'!$CX135:$GJ135)-X135-W135,0) -> 2048.0432 | Z135: =IF($A135>0,SUMIF('Age profile (years)'!$CT135:$GF135,"<" & U135+0.5,'Asset data'!$CX135:$GJ135)-Y135-X135-W135,0) -> 420.4592 | AA135: 1824.2504 | AB135: 0.02 | AC135: 0.07571428571 | AD135: 0.4314285714 | AE135: 0.08857142857 | AF135: 0.3842857143 | AI135: =IF($A135>0,'RRR hist-forc'!K135,0) -> 48.7641876 | AJ135: 231489.4502
A136: ='Asset data'!A136 -> 0 | B136: ='Asset data'!B136 -> 0 | C136: ='Asset data'!C136 -> 0 | D136: ='Asset data'!E136 -> 0 | E136: 0 | F136: =IF(A136>0,SUM('Asset data'!J136:CV136),0) -> 0 | G136: =IF(A136>0,'Asset data'!F136,0) -> 0 | H136: =IF(A136>0,SUM('Asset data'!CX136:GJ136),0) -> 0 | I136: 0 | J136: 0 | K136: 0 | L136: 0 | M136: =IF($A136>0,SUMPRODUCT('Age profile (years)'!$CT136:$GF136,'Asset data'!$CX136:$GJ136)/H136-0.5,0) -> 0 | N136: 0 | O136: =IF($A136>0,'Asset data'!G136,0) -> 0 | P136: 0 | Q136: 0 | R136: 0 | S136: 0 | T136: 0 | U136: 0 | W136: =IF($A136>0,SUMIF('Age profile (years)'!$CT136:$GF136,"<" & R136+0.5,'Asset data'!$CX136:$GJ136),0) -> 0 | X136: =IF($A136>0,SUMIF('Age profile (years)'!$CT136:$GF136,"<" & S136+0.5,'Asset data'!$CX136:$GJ136)-W136,0) -> 0 | Y136: =IF($A136>0,SUMIF('Age profile (years)'!$CT136:$GF136,"<" & T136+0.5,'Asset data'!$CX136:$GJ136)-X136-W136,0) -> 0 | Z136: =IF($A136>0,SUMIF('Age profile (years)'!$CT136:$GF136,"<" & U136+0.5,'Asset data'!$CX136:$GJ136)-Y136-X136-W136,0) -> 0 | AA136: 0 | AB136: 0 | AC136: 0 | AD136: 0 | AE136: 0 | AF136: 0 | AI136: =IF($A136>0,'RRR hist-forc'!K136,0) -> 0 | AJ136: 0
A137: ='Asset data'!A137 -> 0 | B137: ='Asset data'!B137 -> 0 | C137: ='Asset data'!C137 -> 0 | D137: ='Asset data'!E137 -> 0 | E137: 0 | F137: =IF(A137>0,SUM('Asset data'!J137:CV137),0) -> 0 | G137: =IF(A137>0,'Asset data'!F137,0) -> 0 | H137: =IF(A137>0,SUM('Asset data'!CX137:GJ137),0) -> 0 | I137: 0 | J137: 0 | K137: 0 | L137: 0 | M137: =IF($A137>0,SUMPRODUCT('Age profile (years)'!$CT137:$GF137,'Asset data'!$CX137:$GJ137)/H137-0.5,0) -> 0 | N137: 0 | O137: =IF($A137>0,'Asset data'!G137,0) -> 0 | P137: 0 | Q137: 0 | R137: 0 | S137: 0 | T137: 0 | U137: 0 | W137: =IF($A137>0,SUMIF('Age profile (years)'!$CT137:$GF137,"<" & R137+0.5,'Asset data'!$CX137:$GJ137),0) -> 0 | X137: =IF($A137>0,SUMIF('Age profile (years)'!$CT137:$GF137,"<" & S137+0.5,'Asset data'!$CX137:$GJ137)-W137,0) -> 0 | Y137: =IF($A137>0,SUMIF('Age profile (years)'!$CT137:$GF137,"<" & T137+0.5,'Asset data'!$CX137:$GJ137)-X137-W137,0) -> 0 | Z137: =IF($A137>0,SUMIF('Age profile (years)'!$CT137:$GF137,"<" & U137+0.5,'Asset data'!$CX137:$GJ137)-Y137-X137-W137,0) -> 0 | AA137: 0 | AB137: 0 | AC137: 0 | AD137: 0 | AE137: 0 | AF137: 0 | AI137: =IF($A137>0,'RRR hist-forc'!K137,0) -> 0 | AJ137: 0
A138: ='Asset data'!A138 -> 0 | B138: ='Asset data'!B138 -> 0 | C138: ='Asset data'!C138 -> 0 | D138: ='Asset data'!E138 -> 0 | E138: 0 | F138: =IF(A138>0,SUM('Asset data'!J138:CV138),0) -> 0 | G138: =IF(A138>0,'Asset data'!F138,0) -> 0 | H138: =IF(A138>0,SUM('Asset data'!CX138:GJ138),0) -> 0 | I138: 0 | J138: 0 | K138: 0 | L138: 0 | M138: =IF($A138>0,SUMPRODUCT('Age profile (years)'!$CT138:$GF138,'Asset data'!$CX138:$GJ138)/H138-0.5,0) -> 0 | N138: 0 | O138: =IF($A138>0,'Asset data'!G138,0) -> 0 | P138: 0 | Q138: 0 | R138: 0 | S138: 0 | T138: 0 | U138: 0 | W138: =IF($A138>0,SUMIF('Age profile (years)'!$CT138:$GF138,"<" & R138+0.5,'Asset data'!$CX138:$GJ138),0) -> 0 | X138: =IF($A138>0,SUMIF('Age profile (years)'!$CT138:$GF138,"<" & S138+0.5,'Asset data'!$CX138:$GJ138)-W138,0) -> 0 | Y138: =IF($A138>0,SUMIF('Age profile (years)'!$CT138:$GF138,"<" & T138+0.5,'Asset data'!$CX138:$GJ138)-X138-W138,0) -> 0 | Z138: =IF($A138>0,SUMIF('Age profile (years)'!$CT138:$GF138,"<" & U138+0.5,'Asset data'!$CX138:$GJ138)-Y138-X138-W138,0) -> 0 | AA138: 0 | AB138: 0 | AC138: 0 | AD138: 0 | AE138: 0 | AF138: 0 | AI138: =IF($A138>0,'RRR hist-forc'!K138,0) -> 0 | AJ138: 0
A139: ='Asset data'!A139 -> 5 | B139: ='Asset data'!B139 -> 0 | C139: ='Asset data'!C139 -> 0 | D139: ='Asset data'!E139 -> pole mounted ; < = 22kv ; > 60 kva and < = 600 kva ; single phase | E139: TRANSFORMERS | F139: =IF(A139>0,SUM('Asset data'!J139:CV139),0) -> 12666 | G139: =IF(A139>0,'Asset data'!F139,0) -> 11.0926 | H139: =IF(A139>0,SUM('Asset data'!CX139:GJ139),0) -> 140498.8716 | I139: 0.005825586397 | J139: 16 | K139: 0.07084888719 | L139: 11.0926 | M139: =IF($A139>0,SUMPRODUCT('Age profile (years)'!$CT139:$GF139,'Asset data'!$CX139:$GJ139)/H139-0.5,0) -> 45.19129954 | N139: 6349326.592 | O139: =IF($A139>0,'Asset data'!G139,0) -> 70.80171774 | P139: 9947561.45 | Q139: 0.3617202946 | R139: 7.080171774 | S139: 14.16034355 | T139: 42.48103065 | U139: 56.64137419 | W139: =IF($A139>0,SUMIF('Age profile (years)'!$CT139:$GF139,"<" & R139+0.5,'Asset data'!$CX139:$GJ139),0) -> 155.2964 | X139: =IF($A139>0,SUMIF('Age profile (years)'!$CT139:$GF139,"<" & S139+0.5,'Asset data'!$CX139:$GJ139)-W139,0) -> 7321.116 | Y139: =IF($A139>0,SUMIF('Age profile (years)'!$CT139:$GF139,"<" & T139+0.5,'Asset data'!$CX139:$GJ139)-X139-W139,0) -> 50349.3114 | Z139: =IF($A139>0,SUMIF('Age profile (years)'!$CT139:$GF139,"<" & U139+0.5,'Asset data'!$CX139:$GJ139)-Y139-X139-W139,0) -> 33710.4114 | AA139: 48962.7364 | AB139: 0.001105321333 | AC139: 0.05210800568 | AD139: 0.3583609664 | AE139: 0.2399336807 | AF139: 0.3484920259 | AI139: =IF($A139>0,'RRR hist-forc'!K139,0) -> 70.80171774 | AJ139: 9947561.45
A140: ='Asset data'!A140 -> 0 | B140: ='Asset data'!B140 -> 0 | C140: ='Asset data'!C140 -> 0 | D140: ='Asset data'!E140 -> 0 | E140: 0 | F140: =IF(A140>0,SUM('Asset data'!J140:CV140),0) -> 0 | G140: =IF(A140>0,'Asset data'!F140,0) -> 0 | H140: =IF(A140>0,SUM('Asset data'!CX140:GJ140),0) -> 0 | I140: 0 | J140: 0 | K140: 0 | L140: 0 | M140: =IF($A140>0,SUMPRODUCT('Age profile (years)'!$CT140:$GF140,'Asset data'!$CX140:$GJ140)/H140-0.5,0) -> 0 | N140: 0 | O140: =IF($A140>0,'Asset data'!G140,0) -> 0 | P140: 0 | Q140: 0 | R140: 0 | S140: 0 | T140: 0 | U140: 0 | W140: =IF($A140>0,SUMIF('Age profile (years)'!$CT140:$GF140,"<" & R140+0.5,'Asset data'!$CX140:$GJ140),0) -> 0 | X140: =IF($A140>0,SUMIF('Age profile (years)'!$CT140:$GF140,"<" & S140+0.5,'Asset data'!$CX140:$GJ140)-W140,0) -> 0 | Y140: =IF($A140>0,SUMIF('Age profile (years)'!$CT140:$GF140,"<" & T140+0.5,'Asset data'!$CX140:$GJ140)-X140-W140,0) -> 0 | Z140: =IF($A140>0,SUMIF('Age profile (years)'!$CT140:$GF140,"<" & U140+0.5,'Asset data'!$CX140:$GJ140)-Y140-X140-W140,0) -> 0 | AA140: 0 | AB140: 0 | AC140: 0 | AD140: 0 | AE140: 0 | AF140: 0 | AI140: =IF($A140>0,'RRR hist-forc'!K140,0) -> 0 | AJ140: 0
A141: ='Asset data'!A141 -> 0 | B141: ='Asset data'!B141 -> 0 | C141: ='Asset data'!C141 -> 0 | D141: ='Asset data'!E141 -> 0 | E141: 0 | F141: =IF(A141>0,SUM('Asset data'!J141:CV141),0) -> 0 | G141: =IF(A141>0,'Asset data'!F141,0) -> 0 | H141: =IF(A141>0,SUM('Asset data'!CX141:GJ141),0) -> 0 | I141: 0 | J141: 0 | K141: 0 | L141: 0 | M141: =IF($A141>0,SUMPRODUCT('Age profile (years)'!$CT141:$GF141,'Asset data'!$CX141:$GJ141)/H141-0.5,0) -> 0 | N141: 0 | O141: =IF($A141>0,'Asset data'!G141,0) -> 0 | P141: 0 | Q141: 0 | R141: 0 | S141: 0 | T141: 0 | U141: 0 | W141: =IF($A141>0,SUMIF('Age profile (years)'!$CT141:$GF141,"<" & R141+0.5,'Asset data'!$CX141:$GJ141),0) -> 0 | X141: =IF($A141>0,SUMIF('Age profile (years)'!$CT141:$GF141,"<" & S141+0.5,'Asset data'!$CX141:$GJ141)-W141,0) -> 0 | Y141: =IF($A141>0,SUMIF('Age profile (years)'!$CT141:$GF141,"<" & T141+0.5,'Asset data'!$CX141:$GJ141)-X141-W141,0) -> 0 | Z141: =IF($A141>0,SUMIF('Age profile (years)'!$CT141:$GF141,"<" & U141+0.5,'Asset data'!$CX141:$GJ141)-Y141-X141-W141,0) -> 0 | AA141: 0 | AB141: 0 | AC141: 0 | AD141: 0 | AE141: 0 | AF141: 0 | AI141: =IF($A141>0,'RRR hist-forc'!K141,0) -> 0 | AJ141: 0
A142: ='Asset data'!A142 -> 0 | B142: ='Asset data'!B142 -> 0 | C142: ='Asset data'!C142 -> 0 | D142: ='Asset data'!E142 -> 0 | E142: 0 | F142: =IF(A142>0,SUM('Asset data'!J142:CV142),0) -> 0 | G142: =IF(A142>0,'Asset data'!F142,0) -> 0 | H142: =IF(A142>0,SUM('Asset data'!CX142:GJ142),0) -> 0 | I142: 0 | J142: 0 | K142: 0 | L142: 0 | M142: =IF($A142>0,SUMPRODUCT('Age profile (years)'!$CT142:$GF142,'Asset data'!$CX142:$GJ142)/H142-0.5,0) -> 0 | N142: 0 | O142: =IF($A142>0,'Asset data'!G142,0) -> 0 | P142: 0 | Q142: 0 | R142: 0 | S142: 0 | T142: 0 | U142: 0 | W142: =IF($A142>0,SUMIF('Age profile (years)'!$CT142:$GF142,"<" & R142+0.5,'Asset data'!$CX142:$GJ142),0) -> 0 | X142: =IF($A142>0,SUMIF('Age profile (years)'!$CT142:$GF142,"<" & S142+0.5,'Asset data'!$CX142:$GJ142)-W142,0) -> 0 | Y142: =IF($A142>0,SUMIF('Age profile (years)'!$CT142:$GF142,"<" & T142+0.5,'Asset data'!$CX142:$GJ142)-X142-W142,0) -> 0 | Z142: =IF($A142>0,SUMIF('Age profile (years)'!$CT142:$GF142,"<" & U142+0.5,'Asset data'!$CX142:$GJ142)-Y142-X142-W142,0) -> 0 | AA142: 0 | AB142: 0 | AC142: 0 | AD142: 0 | AE142: 0 | AF142: 0 | AI142: =IF($A142>0,'RRR hist-forc'!K142,0) -> 0 | AJ142: 0
AI206: =IF($A206>0,'RRR hist-forc'!K206,0) -> 0 | AJ206: =IF($A206>0,AI206*H206,0) -> 0

Sheet Asset data
A1: Meth all | D1: 3 | E1: =IF(D1=2,"all normal",IF(D1=1,"all deterministic","individual")) -> individual | L1: Profile type: | M1: 3 | N1: =VLOOKUP(APtype,IDtable,4) -> Installation date
F3: Unit | J3: Quantities | CX3: Replacement Cost (NOT depreciated)
F4: Cost | G4: Replacement life | I4: Rep | J4: =VLOOKUP(APtype,IDtable,4) -> Installation date | CX4: =VLOOKUP(APtype,IDtable,4) -> Installation date
A5: ID | B5: ID | C5: ID | D5: Asset category | E5: Asset ID | F5: $ ('000) | G5: mean | H5: SD | I5: Meth | J5: =IF(OR(APtype=1,APtype=2),0,IF(APtype=3,Now,9999)) -> 2013 | K5: =IF(OR(APtype=1,APtype=2),J5+1,IF(APtype=3,J5-1,9999)) -> 2012 | L5: 2011 | M5: 2010 | N5: 2009 | O5: 2008 | P5: 2007 | Q5: 2006 | R5: 2005 | S5: 2004 | T5: 2003 | U5: 2002 | V5: 2001 | W5: 2000 | X5: 1999 | Y5: 1998 | Z5: 1997 | AA5: 1996 | AB5: 1995 | AC5: 1994 | AD5: 1993 | AE5: 1992 | AF5: 1991 | AG5: 1990 | AH5: 1989 | AI5: 1988 | AJ5: 1987 | AK5: 1986 | AL5: 1985 | AM5: 1984 | AN5: 1983 | AO5: 1982 | AP5: 1981 | AQ5: =IF(OR(APtype=1,APtype=2),AP5+1,IF(APtype=3,AP5-1,9999)) -> 1980 | AR5: 1979 | AS5: 1978 | AT5: 1977 | AU5: 1976 | AV5: 1975 | AW5: 1974 | AX5: 1973 | AY5: 1972 | AZ5: 1971 | BA5: 1970 | BB5: 1969 | BC5: 1968 | BD5: 1967 | BE5: 1966 | BF5: 1965 | BG5: 1964 | BH5: 1963 | BI5: 1962 | BJ5: 1961 | BK5: 1960 | BL5: 1959 | BM5: 1958 | BN5: 1957 | BO5: 1956 | BP5: 1955 | BQ5: 1954 | BR5: 1953 | BS5: 1952 | BT5: 1951 | BU5: 1950 | BV5: 1949 | BW5: =IF(OR(APtype=1,APtype=2),BV5+1,IF(APtype=3,BV5-1,9999)) -> 1948 | BX5: 1947 | BY5: 1946 | BZ5: 1945 | CA5: 1944 | CB5: 1943 | CC5: 1942 | CD5: 1941 | CE5: 1940 | CF5: 1939 | CG5: 1938 | CH5: 1937 | CI5: 1936 | CJ5: 1935 | CK5: 1934 | CL5: 1933 | CM5: 1932 | CN5: 1931 | CO5: 1930 | CP5: 1929 | CQ5: 1928 | CR5: 1927 | CS5: 1926 | CT5: 1925 | CU5: 1924 | CV5: 1923 | CX5: =J5 -> 2013 | CY5: =K5 -> 2012 | CZ5: 2011 | DA5: 2010 | DB5: 2009 | DC5: 2008 | DD5: 2007 | DE5: 2006 | DF5: 2005 | DG5: 2004 | DH5: 2003 | DI5: 2002 | DJ5: 2001 | DK5: 2000 | DL5: 1999 | DM5: 1998 | DN5: 1997 | DO5: 1996 | DP5: 1995 | DQ5: 1994 | DR5: 1993 | DS5: 1992 | DT5: 1991 | DU5: 1990 | DV5: 1989 | DW5: 1988 | DX5: 1987 | DY5: 1986 | DZ5: 1985 | EA5: 1984 | EB5: 1983 | EC5: 1982 | ED5: 1981 | EE5: 1980 | EF5: 1979 | EG5: 1978 | EH5: 1977 | EI5: 1976 | EJ5: 1975 | EK5: 1974 | EL5: 1973 | EM5: 1972 | EN5: 1971 | EO5: 1970 | EP5: 1969 | EQ5: 1968 | ER5: 1967 | ES5: 1966 | ET5: 1965 | EU5: 1964 | EV5: 1963 | EW5: 1962 | EX5: 1961 | EY5: 1960 | EZ5: 1959 | FA5: 1958 | FB5: 1957 | FC5: 1956 | FD5: 1955 | FE5: 1954 | FF5: 1953 | FG5: 1952 | FH5: 1951 | FI5: 1950 | FJ5: 1949 | FK5: =BW5 -> 1948 | FL5: 1947 | FM5: 1946 | FN5: 1945 | FO5: 1944 | FP5: 1943 | FQ5: 1942 | FR5: 1941 | FS5: 1940 | FT5: 1939 | FU5: 1938 | FV5: 1937 | FW5: 1936 | FX5: 1935 | FY5: 1934 | FZ5: 1933 | GA5: 1932 | GB5: 1931 | GC5: 1930 | GD5: 1929 | GE5: 1928 | GF5: 1927 | GG5: 1926 | GH5: 1925 | GI5: 1924 | GJ5: 1923
CX21: =$F21*J21 -> 0 | CY21: =$F21*K21 -> 0 | CZ21: 0 | DA21: 0 | DB21: 0 | DC21: 0 | DD21: 0 | DE21: 0 | DF21: 0 | DG21: 0 | DH21: 0 | DI21: 0 | DJ21: 0 | DK21: 0 | DL21: 0 | DM21: 0 | DN21: 0 | DO21: 0 | DP21: 0 | DQ21: 0 | DR21: 0 | DS21: 0 | DT21: 0 | DU21: 0 | DV21: 0 | DW21: 0 | DX21: 0 | DY21: 0 | DZ21: 0 | EA21: 0 | EB21: 0 | EC21: 0 | ED21: 0 | EE21: 0 | EF21: 0 | EG21: 0 | EH21: 0 | EI21: 0 | EJ21: 0 | EK21: 0 | EL21: 0 | EM21: 0 | EN21: 0 | EO21: 0 | EP21: 0 | EQ21: 0 | ER21: 0 | ES21: 0 | ET21: 0 | EU21: 0 | EV21: 0 | EW21: 0 | EX21: 0 | EY21: 0 | EZ21: 0 | FA21: 0 | FB21: 0 | FC21: 0 | FD21: 0 | FE21: 0 | FF21: 0 | FG21: 0 | FH21: 0 | FI21: 0 | FJ21: 0 | FK21: =$F21*BW21 -> 0 | FL21: 0 | FM21: 0 | FN21: 0 | FO21: 0 | FP21: 0 | FQ21: 0 | FR21: 0 | FS21: 0 | FT21: 0 | FU21: 0 | FV21: 0 | FW21: 0 | FX21: 0 | FY21: 0 | FZ21: 0 | GA21: 0 | GB21: 0 | GC21: 0 | GD21: 0 | GE21: 0 | GF21: 0 | GG21: 0 | GH21: 0 | GI21: 0 | GJ21: 0
A22: 1 | D22: POLES | E22: ˂ ≈ 11 kv ; stobie | F22: 3.851409458 | G22: 74.58328491 | H22: 8.636161469 | I22: 2 | J22: 3118.927 | K22: 3112.915 | L22: 1993.789 | M22: 1559.964 | N22: 1445.747 | O22: 1466.787 | P22: 1412.684 | Q22: 1208.296 | R22: 1094.079 | S22: 1080.052 | T22: 1174.231 | U22: 1072.037 | V22: 1287.446 | W22: 1555.957 | X22: 1691.214 | Y22: 1136.159 | Z22: 487.927 | AA22: 1844.505 | AB22: 2412.584 | AC22: 2367.499 | AD22: 2510.771 | AE22: 3998.598 | AF22: 5189.862 | AG22: 5085.664 | AH22: 5647.732 | AI22: 6167.72 | AJ22: 4892.296 | AK22: 5154.795 | AL22: 5933.274 | AM22: 6592.527 | AN22: 7126.542 | AO22: 6336.04 | AP22: 6316.002 | AQ22: 7011.323 | AR22: 7329.928 | AS22: 7993.189 | AT22: 9486.025 | AU22: 9609.074 | AV22: 9119.706 | AW22: 9902.193 | AX22: 9405.937 | AY22: 9480.83 | AZ22: 11946.89 | BA22: 13189.751 | BB22: 12548.554 | BC22: 12556.67 | BD22: 12348.378 | BE22: 15675.252 | BF22: 18258.491 | BG22: 17340.035 | BH22: 18396.018 | BI22: 19045.041 | BJ22: 18428.752 | BK22: 17925.989 | BL22: 15561.551 | BM22: 15189.106 | BN22: 14543.556 | BO22: 14752.201 | BP22: 17498.787 | BQ22: 13896.445 | BR22: 11800.038 | BS22: 12374.751 | BT22: 8180.365 | BU22: 4478.211 | BV22: 3632.607 | BW22: 1552.537 | BX22: 1170.464 | BY22: 1127.353 | BZ22: 1198.075 | CA22: 1197.395 | CB22: 836.281 | CC22: 1051.935 | CD22: 1721.049 | CE22: 2563.232 | CF22: 3099.07 | CG22: 3056.588 | CH22: 2451.477 | CI22: 3392.114 | CJ22: 3857.584 | CK22: 2555.238 | CL22: 1253.86 | CM22: 467.41 | CN22: 50.426 | CO22: 0 | CP22: 0 | CQ22: 0 | CR22: 0 | CS22: 0 | CT22: 0 | CU22: 0 | CV22: 0 | CX22: =$F22*J22 -> 12012.26495 | CY22: =$F22*K22 -> 11989.11027 | CZ22: =$F22*L22 -> 7678.897812 | DA22: =$F22*M22 -> 6008.060104 | DB22: =$F22*N22 -> 5568.163669 | DC22: =$F22*O22 -> 5649.197324 | DD22: =$F22*P22 -> 5440.824519 | DE22: =$F22*Q22 -> 4653.642642 | DF22: =$F22*R22 -> 4213.746208 | DG22: =$F22*S22 -> 4159.722488 | DH22: =$F22*T22 -> 4522.444379 | DI22: =$F22*U22 -> 4128.853441 | DJ22: =$F22*V22 -> 4958.481701 | DK22: =$F22*W22 -> 5992.627506 | DL22: =$F22*X22 -> 6513.557595 | DM22: =$F22*Y22 -> 4375.813518 | DN22: =$F22*Z22 -> 1879.206663 | DO22: =$F22*AA22 -> 7103.944002 | DP22: =$F22*AB22 -> 9291.848835 | DQ22: =$F22*AC22 -> 9118.20804 | DR22: =$F22*AD22 -> 9670.007176 | DS22: =$F22*AE22 -> 15400.23816 | DT22: =$F22*AF22 -> 19988.28359 | DU22: =$F22*AG22 -> 19586.97443 | DV22: =$F22*AH22 -> 21751.72844 | DW22: =$F22*AI22 -> 23754.41514 | DX22: =$F22*AJ22 -> 18842.23509 | DY22: =$F22*AK22 -> 19853.22622 | DZ22: =$F22*AL22 -> 22851.4676 | EA22: =$F22*AM22 -> 25390.52084 | EB22: =$F22*AN22 -> 27447.23126 | EC22: =$F22*AO22 -> 24402.68438 | ED22: =$F22*AP22 -> 24325.50984 | EE22: =$F22*AQ22 -> 27003.47571 | EF22: =$F22*AR22 -> 28230.55402 | EG22: =$F22*AS22 -> 30785.04371 | EH22: =$F22*AT22 -> 36534.5664 | EI22: =$F22*AU22 -> 37008.47848 | EJ22: =$F22*AV22 -> 35123.72194 | EK22: =$F22*AW22 -> 38137.39977 | EL22: =$F22*AX22 -> 36226.11472 | EM22: =$F22*AY22 -> 36514.55833 | EN22: =$F22*AZ22 -> 46012.36514 | EO22: =$F22*BA22 -> 50799.13175 | EP22: =$F22*BB22 -> 48329.61956 | EQ22: =$F22*BC22 -> 48360.8776 | ER22: =$F22*BD22 -> 47558.65982 | ES22: =$F22*BE22 -> 60371.81381 | ET22: =$F22*BF22 -> 70320.92492 | EU22: =$F22*BG22 -> 66783.5748 | EV22: =$F22*BH22 -> 70850.59771 | EW22: =$F22*BI22 -> 73350.25103 | EX22: =$F22*BJ22 -> 70976.66975 | EY22: =$F22*BK22 -> 69040.32358 | EZ22: =$F22*BL22 -> 59933.9047 | FA22: =$F22*BM22 -> 58499.4665 | FB22: =$F22*BN22 -> 56013.18913 | FC22: =$F22*BO22 -> 56816.76646 | FD22: =$F22*BP22 -> 67394.99375 | FE22: =$F22*BQ22 -> 53520.8997 | FF22: =$F22*BR22 -> 45446.77796 | FG22: =$F22*BS22 -> 47660.23304 | FH22: =$F22*BT22 -> 31505.93513 | FI22: =$F22*BU22 -> 17247.4242 | FJ22: =$F22*BV22 -> 13990.65696 | FK22: =$F22*BW22 -> 5979.455685 | FL22: =$F22*BX22 -> 4507.93612 | FM22: =$F22*BY22 -> 4341.898007 | FN22: =$F22*BZ22 -> 4614.277386 | FO22: =$F22*CA22 -> 4611.658428 | FP22: =$F22*CB22 -> 3220.860553 | FQ22: =$F22*CC22 -> 4051.432408 | FR22: =$F22*CD22 -> 6628.464396 | FS22: =$F22*CE22 -> 9872.055967 | FT22: =$F22*CF22 -> 11935.78751 | FU22: =$F22*CG22 -> 11772.17193 | FV22: =$F22*CH22 -> 9441.641704 | FW22: =$F22*CI22 -> 13064.41994 | FX22: =$F22*CJ22 -> 14857.1355 | FY22: =$F22*CK22 -> 9841.2678 | FZ22: =$F22*CL22 -> 4829.128263 | GA22: =$F22*CM22 -> 1800.187295 | GB22: =$F22*CN22 -> 194.2111733 | GC22: =$F22*CO22 -> 0 | GD22: =$F22*CP22 -> 0 | GE22: =$F22*CQ22 -> 0 | GF22: =$F22*CR22 -> 0 | GG22: =$F22*CS22 -> 0 | GH22: =$F22*CT22 -> 0 | GI22: =$F22*CU22 -> 0 | GJ22: =$F22*CV22 -> 0
A23: 1 | D23: POLES | E23: > 11 kv & <≈ 33 kv ; stobie | F23: 4.248207656 | G23: 72.94889216 | H23: 8.541012362 | I23: 2 | J23: 298.567 | K23: 250.476 | L23: 344.655 | M23: 267.508 | N23: 228.434 | O23: 269.512 | P23: 307.584 | Q23: 303.577 | R23: 124.236 | S23: 147.28 | T23: 146.278 | U23: 157.299 | V23: 142.27 | W23: 149.284 | X23: 217.413 | Y23: 148.282 | Z23: 38.072 | AA23: 480.914 | AB23: 876.666 | AC23: 884.681 | AD23: 560.064 | AE23: 1113.115 | AF23: 1492.837 | AG23: 1420.7 | AH23: 1588.018 | AI23: 1543.934 | AJ23: 1368.601 | AK23: 1612.063 | AL23: 2095.983 | AM23: 2115.019 | AN23: 1716.261 | AO23: 1637.111 | AP23: 1708.246 | AQ23: 1652.139 | AR23: 1379.622 | AS23: 1213.306 | AT23: 1564.974 | AU23: 2468.031 | AV23: 4433.918 | AW23: 4952.904 | AX23: 4810.085 | AY23: 4844.547 | AZ23: 5110.958 | BA23: 6318.369 | BB23: 6361.68 | BC23: 6078.392 | BD23: 6073.017 | BE23: 6724.446 | BF23: 6690.911 | BG23: 5865.106 | BH23: 7270.434 | BI23: 8182.092 | BJ23: 6351.822 | BK23: 5252.514 | BL23: 5271.631 | BM23: 3874.465 | BN23: 2168.798 | BO23: 1686.39 | BP23: 1559.301 | BQ23: 1143.941 | BR23: 1047.274 | BS23: 1135.505 | BT23: 3113.69 | BU23: 2905.31 | BV23: 380.134 | BW23: 41.698 | BX23: 79.518 | BY23: 116.733 | BZ23: 141.191 | CA23: 68.549 | CB23: 27.001 | CC23: 290.617 | CD23: 507.836 | CE23: 262.105 | CF23: 184.108 | CG23: 516.866 | CH23: 830.089 | CI23: 616.748 | CJ23: 324.859 | CK23: 405.347 | CL23: 236.614 | CM23: 185.218 | CN23: 150.308 | CO23: 0 | CP23: 0 | CQ23: 0 | CR23: 0 | CS23: 0 | CT23: 0 | CU23: 0 | CV23: 0 | CX23: 1268.374615 | CY23: 1064.074061 | CZ23: 1464.16601 | DA23: 1136.429534 | DB23: 970.4350677 | DC23: 1144.942942 | DD23: 1306.680704 | DE23: 1289.658136 | DF23: 527.7803263 | DG23: 625.6760236 | DH23: 621.4193195 | DI23: 668.2388161 | DJ23: 604.3925032 | DK23: 634.1894317 | DL23: 923.6155711 | DM23: 629.9327276 | DN23: 161.7377619 | DO23: 2043.022537 | DP23: 3724.259213 | DQ23: 3758.308597 | DR23: 2379.268173 | DS23: 4728.743665 | DT23: 6341.881572 | DU23: 6035.428617 | DV23: 6746.230225 | DW23: 6558.952239 | DX23: 5814.101246 | DY23: 6848.378378 | DZ23: 8904.171027 | EA23: 8985.039908 | EB23: 7291.03312 | EC23: 6954.787484 | ED23: 7256.983735 | EE23: 7018.629548 | EF23: 5860.920743 | EG23: 5154.375838 | EH23: 6648.334528 | EI23: 10484.70819 | EJ23: 18836.20439 | EK23: 21040.96469 | EL23: 20434.23992 | EM23: 20580.64165 | EN23: 21712.4109 | EO23: 26841.74356 | EP23: 27025.73768 | EQ23: 25822.27143 | ER23: 25799.43731 | ES23: 28566.84298 | ET23: 28424.37934 | EU23: 24916.18821 | EV23: 30886.31338 | EW23: 34759.22588 | EX23: 26983.85885 | EY23: 22313.77019 | EZ23: 22394.98317 | FA23: 16459.53188 | FB23: 9213.504268 | FC23: 7164.134909 | FD23: 6624.234446 | FE23: 4859.698914 | FF23: 4449.037425 | FG23: 4823.861034 | FH23: 13227.6017 | FI23: 12342.36018 | FJ23: 1614.888169 | FK23: 177.1417628 | FL23: 337.8089764 | FM23: 495.9060243 | FN23: 599.8086872 | FO23: 291.2103866 | FP23: 114.7058549 | FQ23: 1234.601364 | FR23: 2157.392783 | FS23: 1113.476468 | FT23: 782.1290151 | FU23: 2195.754098 | FV23: 3526.390445 | FW23: 2620.073575 | FX23: 1380.068491 | FY23: 1721.998229 | FZ23: 1005.185406 | GA23: 786.8445256 | GB23: 638.5395964 | GC23: 0 | GD23: 0 | GE23: 0 | GF23: 0 | GG23: 0 | GH23: 0 | GI23: 0 | GJ23: 0
A24: 1 | D24: POLES | E24: > 33 kv & <≈ 66 kv ; stobie | F24: 4.248207656 | G24: 74.22959896 | H24: 8.6156601 | I24: 2 | J24: 36.069 | K24: 61.116 | L24: 103.196 | M24: 96.183 | N24: 79.15 | O24: 60.114 | P24: 82.156 | Q24: 80.152 | R24: 39.074 | S24: 33.063 | T24: 29.055 | U24: 65.124 | V24: 13.025 | W24: 55.105 | X24: 22.042 | Y24: 2.004 | Z24: 3.006 | AA24: 104.198 | AB24: 175.333 | AC24: 225.428 | AD24: 292.556 | AE24: 418.796 | AF24: 375.714 | AG24: 289.55 | AH24: 368.701 | AI24: 423.805 | AJ24: 394.75 | AK24: 345.657 | AL24: 215.409 | AM24: 164.312 | AN24: 160.305 | AO24: 214.407 | AP24: 219.417 | AQ24: 254.484 | AR24: 221.421 | AS24: 153.291 | AT24: 418.796 | AU24: 1106.96 | AV24: 871.525 | AW24: 314.467 | AX24: 389.649 | AY24: 576.952 | AZ24: 778.414 | BA24: 876.518 | BB24: 809.41 | BC24: 635.985 | BD24: 651.921 | BE24: 951.082 | BF24: 1120.483 | BG24: 1064.907 | BH24: 997.76 | BI24: 925.293 | BJ24: 869.9 | BK24: 596.384 | BL24: 372.52 | BM24: 363.727 | BN24: 439.458 | BO24: 629.486 | BP24: 1212.961 | BQ24: 1204.929 | BR24: 726.537 | BS24: 2043.849 | BT24: 1785.98 | BU24: 128.974 | BV24: 75.639 | BW24: 114.428 | BX24: 227.886 | BY24: 349.05 | BZ24: 382.925 | CA24: 169.676 | CB24: 180.357 | CC24: 298.651 | CD24: 229.8 | CE24: 199.62 | CF24: 432.408 | CG24: 674.932 | CH24: 567.292 | CI24: 227.886 | CJ24: 79.518 | CK24: 67.881 | CL24: 34.91 | CM24: 84.366 | CN24: 50.426 | CO24: 0 | CP24: 0 | CQ24: 0 | CR24: 0 | CS24: 0 | CT24: 0 | CU24: 0 | CV24: 0 | CX24: 153.2286019 | CY24: 259.6334591 | CZ24: 438.3980373 | DA24: 408.605357 | DB24: 336.245636 | DC24: 255.376755 | DD24: 349.0157482 | DE24: 340.50234 | DF24: 165.9944659 | DG24: 140.4584897 | DH24: 123.4316734 | DI24: 276.6602754 | DJ24: 55.33290472 | DK24: 234.0974829 | DL24: 93.63899315 | DM24: 8.513408143 | DN24: 12.77011221 | DO24: 442.6547413 | DP24: 744.8509929 | DQ24: 957.6649555 | DR24: 1242.838639 | DS24: 1779.132373 | DT24: 1596.111091 | DU24: 1230.068527 | DV24: 1566.318411 | DW24: 1800.411646 | DX24: 1676.979972 | DY24: 1468.422714 | DZ24: 915.102163 | EA24: 698.0314964 | EB24: 681.0089283 | EC24: 910.8454589 | ED24: 932.1289792 | EE24: 1081.100877 | EF24: 940.6423874 | EG24: 651.2119998 | EH24: 1779.132373 | EI24: 4702.595947 | EJ24: 3702.419177 | EK24: 1335.921117 | EL24: 1655.309865 | EM24: 2451.011904 | EN24: 3306.864314 | EO24: 3723.630478 | EP24: 3438.541759 | EQ24: 2701.796346 | ER24: 2769.495783 | ES24: 4040.393834 | ET24: 4760.044459 | EU24: 4523.94607 | EV24: 4238.691671 | EW24: 3930.836807 | EX24: 3695.51584 | EY24: 2533.563075 | EZ24: 1582.542316 | FA24: 1545.187826 | FB24: 1866.90884 | FC24: 2674.187245 | FD24: 5152.910207 | FE24: 5118.788603 | FF24: 3086.480046 | FG24: 8682.694969 | FH24: 7587.213909 | FI24: 547.9083342 | FJ24: 321.3301789 | FK24: 486.1139057 | FL24: 968.1070499 | FM24: 1482.836882 | FN24: 1626.744917 | FO24: 720.8188822 | FP24: 766.1939882 | FQ24: 1268.731465 | FR24: 976.2381193 | FS24: 848.0272123 | FT24: 1836.958976 | FU24: 2867.25129 | FV24: 2409.974218 | FW24: 968.1070499 | FX24: 337.8089764 | FY24: 288.3725839 | FZ24: 148.3049293 | GA24: 358.4042871 | GB24: 214.2201193 | GC24: 0 | GD24: 0 | GE24: 0 | GF24: 0 | GG24: 0 | GH24: 0 | GI24: 0 | GJ24: 0
E25: ˂ = 1 kv | F25: 0 | G25: 50 | H25: 7.071067812 | I25: 2 | J25: 11590.424 | K25: 11590.424 | L25: 11590.424 | M25: 11590.424 | N25: 11590.424 | O25: 11590.424 | P25: 11590.424 | Q25: 11590.424 | R25: 14802.111 | S25: 18013.798 | T25: 27275.536 | U25: 36537.275 | V25: 26945.658 | W25: 19432.669 | X25: 20137.531 | Y25: 18763.766 | Z25: 19530.572 | AA25: 20297.377 | AB25: 36521.893 | AC25: 52746.409 | AD25: 50190.529 | AE25: 47634.649 | AF25: 47377.523 | AG25: 58635.991 | AH25: 70096.501 | AI25: 70041.417 | AJ25: 70041.417 | AK25: 70041.417 | AL25: 73891.035 | AM25: 77740.652 | AN25: 77740.652 | AO25: 77740.652 | AP25: 77740.652 | AQ25: 96789.19 | AR25: 115837.729 | AS25: 115837.729 | AT25: 115837.729 | AU25: 115837.729 | AV25: 167720.26 | AW25: 219602.791 | AX25: 219602.791 | AY25: 219602.791 | AZ25: 219602.791 | BA25: 228196.667 | BB25: 235987.361 | BC25: 235184.18 | BD25: 235184.18 | BE25: 235184.18 | BF25: 233679.254 | BG25: 232174.328 | BH25: 232174.328 | BI25: 232174.328 | BJ25: 232174.328 | BK25: 213358.596 | BL25: 194542.863 | BM25: 194542.863 | BN25: 194542.863 | BO25: 194542.863 | BP25: 164868.384 | BQ25: 135193.904 | BR25: 135193.904 | BS25: 135193.904 | BT25: 135193.904 | BU25: 68503.233 | BV25: 1812.563 | BW25: 1812.563 | BX25: 1812.563 | BY25: 1812.563 | BZ25: 1513.24 | CA25: 1213.918 | CB25: 1213.918 | CC25: 1213.918 | CD25: 1213.918 | CE25: 1396.837 | CF25: 1579.757 | CG25: 1579.757 | CH25: 1579.757 | CI25: 1579.757 | CJ25: 789.878 | CK25: 0 | CL25: 0 | CM25: 0 | CN25: 0 | CO25: 0 | CP25: 0 | CQ25: 0 | CR25: 0 | CS25: 0 | CT25: 0 | CU25: 0 | CV25: 0 | CX25: 0 | CY25: 0 | CZ25: 0 | DA25: 0 | DB25: 0 | DC25: 0 | DD25: 0 | DE25: 0 | DF25: 0 | DG25: 0 | DH25: 0 | DI25: 0 | DJ25: 0 | DK25: 0 | DL25: 0 | DM25: 0 | DN25: 0 | DO25: 0 | DP25: 0 | DQ25: 0 | DR25: 0 | DS25: 0 | DT25: 0 | DU25: 0 | DV25: 0 | DW25: 0 | DX25: 0 | DY25: 0 | DZ25: 0 | EA25: 0 | EB25: 0 | EC25: 0 | ED25: 0 | EE25: 0 | EF25: 0 | EG25: 0 | EH25: 0 | EI25: 0 | EJ25: 0 | EK25: 0 | EL25: 0 | EM25: 0 | EN25: 0 | EO25: 0 | EP25: 0 | EQ25: 0 | ER25: 0 | ES25: 0 | ET25: 0 | EU25: 0 | EV25: 0 | EW25: 0 | EX25: 0 | EY25: 0 | EZ25: 0 | FA25: 0 | FB25: 0 | FC25: 0 | FD25: 0 | FE25: 0 | FF25: 0 | FG25: 0 | FH25: 0 | FI25: 0 | FJ25: 0 | FK25: 0 | FL25: 0 | FM25: 0 | FN25: 0 | FO25: 0 | FP25: 0 | FQ25: 0 | FR25: 0 | FS25: 0 | FT25: 0 | FU25: 0 | FV25: 0 | FW25: 0 | FX25: 0 | FY25: 0 | FZ25: 0 | GA25: 0 | GB25: 0 | GC25: 0 | GD25: 0 | GE25: 0 | GF25: 0 | GG25: 0 | GH25: 0 | GI25: 0 | GJ25: 0
E26: > 1 kv & < = 11 kv | F26: 0 | G26: 50 | H26: 7.071067812 | I26: 2 | J26: 6007.919 | K26: 6007.919 | L26: 6007.919 | M26: 6007.919 | N26: 6007.919 | O26: 6007.919 | P26: 6007.919 | Q26: 6007.919 | R26: 7672.703 | S26: 9337.487 | T26: 14138.327 | U26: 18939.167 | V26: 13967.334 | W26: 10072.961 | X26: 10438.328 | Y26: 9726.235 | Z26: 10123.71 | AA26: 10521.185 | AB26: 18931.194 | AC26: 27341.203 | AD26: 26016.358 | AE26: 24691.512 | AF26: 24558.23 | AG26: 30394.079 | AH26: 36334.657 | AI26: 36306.104 | AJ26: 36306.104 | AK26: 36306.104 | AL26: 38301.56 | AM26: 40297.017 | AN26: 40297.017 | AO26: 40297.017 | AP26: 40297.017 | AQ26: 50170.864 | AR26: 60044.71 | AS26: 60044.71 | AT26: 60044.71 | AU26: 60044.71 | AV26: 86938.121 | AW26: 113831.531 | AX26: 113831.531 | AY26: 113831.531 | AZ26: 113831.531 | BA26: 118286.183 | BB26: 122324.504 | BC26: 121908.174 | BD26: 121908.174 | BE26: 121908.174 | BF26: 121128.092 | BG26: 120348.011 | BH26: 120348.011 | BI26: 120348.011 | BJ26: 120348.011 | BK26: 110594.84 | BL26: 100841.669 | BM26: 100841.669 | BN26: 100841.669 | BO26: 100841.669 | BP26: 85459.845 | BQ26: 70078.021 | BR26: 70078.021 | BS26: 70078.021 | BT26: 70078.021 | BU26: 35508.783 | BV26: 939.545 | BW26: 939.545 | BX26: 939.545 | BY26: 939.545 | BZ26: 784.391 | CA26: 629.237 | CB26: 629.237 | CC26: 629.237 | CD26: 629.237 | CE26: 724.053 | CF26: 818.87 | CG26: 818.87 | CH26: 818.87 | CI26: 818.87 | CJ26: 409.435 | CK26: 0 | CL26: 0 | CM26: 0 | CN26: 0 | CO26: 0 | CP26: 0 | CQ26: 0 | CR26: 0 | CS26: 0 | CT26: 0 | CU26: 0 | CV26: 0 | CX26: 0 | CY26: 0 | CZ26: 0 | DA26: 0 | DB26: 0 | DC26: 0 | DD26: 0 | DE26: 0 | DF26: 0 | DG26: 0 | DH26: 0 | DI26: 0 | DJ26: 0 | DK26: 0 | DL26: 0 | DM26: 0 | DN26: 0 | DO26: 0 | DP26: 0 | DQ26: 0 | DR26: 0 | DS26: 0 | DT26: 0 | DU26: 0 | DV26: 0 | DW26: 0 | DX26: 0 | DY26: 0 | DZ26: 0 | EA26: 0 | EB26: 0 | EC26: 0 | ED26: 0 | EE26: 0 | EF26: 0 | EG26: 0 | EH26: 0 | EI26: 0 | EJ26: 0 | EK26: 0 | EL26: 0 | EM26: 0 | EN26: 0 | EO26: 0 | EP26: 0 | EQ26: 0 | ER26: 0 | ES26: 0 | ET26: 0 | EU26: 0 | EV26: 0 | EW26: 0 | EX26: 0 | EY26: 0 | EZ26: 0 | FA26: 0 | FB26: 0 | FC26: 0 | FD26: 0 | FE26: 0 | FF26: 0 | FG26: 0 | FH26: 0 | FI26: 0 | FJ26: 0 | FK26: 0 | FL26: 0 | FM26: 0 | FN26: 0 | FO26: 0 | FP26: 0 | FQ26: 0 | FR26: 0 | FS26: 0 | FT26: 0 | FU26: 0 | FV26: 0 | FW26: 0 | FX26: 0 | FY26: 0 | FZ26: 0 | GA26: 0 | GB26: 0 | GC26: 0 | GD26: 0 | GE26: 0 | GF26: 0 | GG26: 0 | GH26: 0 | GI26: 0 | GJ26: 0
E27: ˃ 11 kv & < = 22 kv | F27: 0 | G27: 50 | H27: 7.071067812 | I27: 2 | J27: 670.057 | K27: 670.057 | L27: 670.057 | M27: 670.057 | N27: 670.057 | O27: 670.057 | P27: 670.057 | Q27: 670.057 | R27: 855.728 | S27: 1041.4 | T27: 1576.832 | U27: 2112.264 | V27: 1557.761 | W27: 1123.426 | X27: 1164.175 | Y27: 1084.756 | Z27: 1129.086 | AA27: 1173.416 | AB27: 2111.375 | AC27: 3049.334 | AD27: 2901.576 | AE27: 2753.817 | AF27: 2738.952 | AG27: 3389.818 | AH27: 4052.364 | AI27: 4049.18 | AJ27: 4049.18 | AK27: 4049.18 | AL27: 4271.731 | AM27: 4494.282 | AN27: 4494.282 | AO27: 4494.282 | AP27: 4494.282 | AQ27: 5595.501 | AR27: 6696.72 | AS27: 6696.72 | AT27: 6696.72 | AU27: 6696.72 | AV27: 9696.112 | AW27: 12695.505 | AX27: 12695.505 | AY27: 12695.505 | AZ27: 12695.505 | BA27: 13192.327 | BB27: 13642.717 | BC27: 13596.284 | BD27: 13596.284 | BE27: 13596.284 | BF27: 13509.282 | BG27: 13422.28 | BH27: 13422.28 | BI27: 13422.28 | BJ27: 13422.28 | BK27: 12334.52 | BL27: 11246.76 | BM27: 11246.76 | BN27: 11246.76 | BO27: 11246.76 | BP27: 9531.242 | BQ27: 7815.724 | BR27: 7815.724 | BS27: 7815.724 | BT27: 7815.724 | BU27: 3960.255 | BV27: 104.786 | BW27: 104.786 | BX27: 104.786 | BY27: 104.786 | BZ27: 87.482 | CA27: 70.178 | CB27: 70.178 | CC27: 70.178 | CD27: 70.178 | CE27: 80.753 | CF27: 91.328 | CG27: 91.328 | CH27: 91.328 | CI27: 91.328 | CJ27: 45.664 | CK27: 0 | CL27: 0 | CM27: 0 | CN27: 0 | CO27: 0 | CP27: 0 | CQ27: 0 | CR27: 0 | CS27: 0 | CT27: 0 | CU27: 0 | CV27: 0 | CX27: 0 | CY27: 0 | CZ27: 0 | DA27: 0 | DB27: 0 | DC27: 0 | DD27: 0 | DE27: 0 | DF27: 0 | DG27: 0 | DH27: 0 | DI27: 0 | DJ27: 0 | DK27: 0 | DL27: 0 | DM27: 0 | DN27: 0 | DO27: 0 | DP27: 0 | DQ27: 0 | DR27: 0 | DS27: 0 | DT27: 0 | DU27: 0 | DV27: 0 | DW27: 0 | DX27: 0 | DY27: 0 | DZ27: 0 | EA27: 0 | EB27: 0 | EC27: 0 | ED27: 0 | EE27: 0 | EF27: 0 | EG27: 0 | EH27: 0 | EI27: 0 | EJ27: 0 | EK27: 0 | EL27: 0 | EM27: 0 | EN27: 0 | EO27: 0 | EP27: 0 | EQ27: 0 | ER27: 0 | ES27: 0 | ET27: 0 | EU27: 0 | EV27: 0 | EW27: 0 | EX27: 0 | EY27: 0 | EZ27: 0 | FA27: 0 | FB27: 0 | FC27: 0 | FD27: 0 | FE27: 0 | FF27: 0 | FG27: 0 | FH27: 0 | FI27: 0 | FJ27: 0 | FK27: 0 | FL27: 0 | FM27: 0 | FN27: 0 | FO27: 0 | FP27: 0 | FQ27: 0 | FR27: 0 | FS27: 0 | FT27: 0 | FU27: 0 | FV27: 0 | FW27: 0 | FX27: 0 | FY27: 0 | FZ27: 0 | GA27: 0 | GB27: 0 | GC27: 0 | GD27: 0 | GE27: 0 | GF27: 0 | GG27: 0 | GH27: 0 | GI27: 0 | GJ27: 0
E28: > 22 kv & < = 66 kv | F28: 0 | G28: 50 | H28: 7.071067812 | I28: 2 | J28: 1966.001 | K28: 1966.001 | L28: 1966.001 | M28: 1966.001 | N28: 1966.001 | O28: 1966.001 | P28: 1966.001 | Q28: 1966.001 | R28: 2510.777 | S28: 3055.553 | T28: 4626.556 | U28: 6197.559 | V28: 4570.601 | W28: 3296.226 | X28: 3415.786 | Y28: 3182.764 | Z28: 3312.832 | AA28: 3442.9 | AB28: 6194.949 | AC28: 8946.999 | AD28: 8513.463 | AE28: 8079.927 | AF28: 8036.313 | AG28: 9946.007 | AH28: 11889.972 | AI28: 11880.628 | AJ28: 11880.628 | AK28: 11880.628 | AL28: 12533.612 | AM28: 13186.595 | AN28: 13186.595 | AO28: 13186.595 | AP28: 13186.595 | AQ28: 16417.663 | AR28: 19648.732 | AS28: 19648.732 | AT28: 19648.732 | AU28: 19648.732 | AV28: 28449.197 | AW28: 37249.662 | AX28: 37249.662 | AY28: 37249.662 | AZ28: 37249.662 | BA28: 38707.381 | BB28: 40028.861 | BC28: 39892.623 | BD28: 39892.623 | BE28: 39892.623 | BF28: 39637.353 | BG28: 39382.083 | BH28: 39382.083 | BI28: 39382.083 | BJ28: 39382.083 | BK28: 36190.504 | BL28: 32998.925 | BM28: 32998.925 | BN28: 32998.925 | BO28: 32998.925 | BP28: 27965.453 | BQ28: 22931.982 | BR28: 22931.982 | BS28: 22931.982 | BT28: 22931.982 | BU28: 11619.717 | BV28: 307.452 | BW28: 307.452 | BX28: 307.452 | BY28: 307.452 | BZ28: 256.68 | CA28: 205.908 | CB28: 205.908 | CC28: 205.908 | CD28: 205.908 | CE28: 236.936 | CF28: 267.963 | CG28: 267.963 | CH28: 267.963 | CI28: 267.963 | CJ28: 133.981 | CK28: 0 | CL28: 0 | CM28: 0 | CN28: 0 | CO28: 0 | CP28: 0 | CQ28: 0 | CR28: 0 | CS28: 0 | CT28: 0 | CU28: 0 | CV28: 0 | CX28: 0 | CY28: 0 | CZ28: 0 | DA28: 0 | DB28: 0 | DC28: 0 | DD28: 0 | DE28: 0 | DF28: 0 | DG28: 0 | DH28: 0 | DI28: 0 | DJ28: 0 | DK28: 0 | DL28: 0 | DM28: 0 | DN28: 0 | DO28: 0 | DP28: 0 | DQ28: 0 | DR28: 0 | DS28: 0 | DT28: 0 | DU28: 0 | DV28: 0 | DW28: 0 | DX28: 0 | DY28: 0 | DZ28: 0 | EA28: 0 | EB28: 0 | EC28: 0 | ED28: 0 | EE28: 0 | EF28: 0 | EG28: 0 | EH28: 0 | EI28: 0 | EJ28: 0 | EK28: 0 | EL28: 0 | EM28: 0 | EN28: 0 | EO28: 0 | EP28: 0 | EQ28: 0 | ER28: 0 | ES28: 0 | ET28: 0 | EU28: 0 | EV28: 0 | EW28: 0 | EX28: 0 | EY28: 0 | EZ28: 0 | FA28: 0 | FB28: 0 | FC28: 0 | FD28: 0 | FE28: 0 | FF28: 0 | FG28: 0 | FH28: 0 | FI28: 0 | FJ28: 0 | FK28: 0 | FL28: 0 | FM28: 0 | FN28: 0 | FO28: 0 | FP28: 0 | FQ28: 0 | FR28: 0 | FS28: 0 | FT28: 0 | FU28: 0 | FV28: 0 | FW28: 0 | FX28: 0 | FY28: 0 | FZ28: 0 | GA28: 0 | GB28: 0 | GC28: 0 | GD28: 0 | GE28: 0 | GF28: 0 | GG28: 0 | GH28: 0 | GI28: 0 | GJ28: 0
E29: > 66 kv & < = 132 kv | F29: 0 | G29: 0 | H29: 0 | I29: 2 | J29: 0 | K29: 0 | L29: 0 | M29: 0 | N29: 0 | O29: 0 | P29: 0 | Q29: 0 | R29: 0 | S29: 0 | T29: 0 | U29: 0 | V29: 0 | W29: 0 | X29: 0 | Y29: 0 | Z29: 0 | AA29: 0 | AB29: 0 | AC29: 0 | AD29: 0 | AE29: 0 | AF29: 0 | AG29: 0 | AH29: 0 | AI29: 0 | AJ29: 0 | AK29: 0 | AL29: 0 | AM29: 0 | AN29: 0 | AO29: 0 | AP29: 0 | AQ29: 0 | AR29: 0 | AS29: 0 | AT29: 0 | AU29: 0 | AV29: 0 | AW29: 0 | AX29: 0 | AY29: 0 | AZ29: 0 | BA29: 0 | BB29: 0 | BC29: 0 | BD29: 0 | BE29: 0 | BF29: 0 | BG29: 0 | BH29: 0 | BI29: 0 | BJ29: 0 | BK29: 0 | BL29: 0 | BM29: 0 | BN29: 0 | BO29: 0 | BP29: 0 | BQ29: 0 | BR29: 0 | BS29: 0 | BT29: 0 | BU29: 0 | BV29: 0 | BW29: 0 | BX29: 0 | BY29: 0 | BZ29: 0 | CA29: 0 | CB29: 0 | CC29: 0 | CD29: 0 | CE29: 0 | CF29: 0 | CG29: 0 | CH29: 0 | CI29: 0 | CJ29: 0 | CK29: 0 | CL29: 0 | CM29: 0 | CN29: 0 | CO29: 0 | CP29: 0 | CQ29: 0 | CR29: 0 | CS29: 0 | CT29: 0 | CU29: 0 | CV29: 0 | CX29: 0 | CY29: 0 | CZ29: 0 | DA29: 0 | DB29: 0 | DC29: 0 | DD29: 0 | DE29: 0 | DF29: 0 | DG29: 0 | DH29: 0 | DI29: 0 | DJ29: 0 | DK29: 0 | DL29: 0 | DM29: 0 | DN29: 0 | DO29: 0 | DP29: 0 | DQ29: 0 | DR29: 0 | DS29: 0 | DT29: 0 | DU29: 0 | DV29: 0 | DW29: 0 | DX29: 0 | DY29: 0 | DZ29: 0 | EA29: 0 | EB29: 0 | EC29: 0 | ED29: 0 | EE29: 0 | EF29: 0 | EG29: 0 | EH29: 0 | EI29: 0 | EJ29: 0 | EK29: 0 | EL29: 0 | EM29: 0 | EN29: 0 | EO29: 0 | EP29: 0 | EQ29: 0 | ER29: 0 | ES29: 0 | ET29: 0 | EU29: 0 | EV29: 0 | EW29: 0 | EX29: 0 | EY29: 0 | EZ29: 0 | FA29: 0 | FB29: 0 | FC29: 0 | FD29: 0 | FE29: 0 | FF29: 0 | FG29: 0 | FH29: 0 | FI29: 0 | FJ29: 0 | FK29: 0 | FL29: 0 | FM29: 0 | FN29: 0 | FO29: 0 | FP29: 0 | FQ29: 0 | FR29: 0 | FS29: 0 | FT29: 0 | FU29: 0 | FV29: 0 | FW29: 0 | FX29: 0 | FY29: 0 | FZ29: 0 | GA29: 0 | GB29: 0 | GC29: 0 | GD29: 0 | GE29: 0 | GF29: 0 | GG29: 0 | GH29: 0 | GI29: 0 | GJ29: 0
E30: > 132 kv | F30: 0 | G30: 0 | H30: 0 | I30: 2 | J30: 0 | K30: 0 | L30: 0 | M30: 0 | N30: 0 | O30: 0 | P30: 0 | Q30: 0 | R30: 0 | S30: 0 | T30: 0 | U30: 0 | V30: 0 | W30: 0 | X30: 0 | Y30: 0 | Z30: 0 | AA30: 0 | AB30: 0 | AC30: 0 | AD30: 0 | AE30: 0 | AF30: 0 | AG30: 0 | AH30: 0 | AI30: 0 | AJ30: 0 | AK30: 0 | AL30: 0 | AM30: 0 | AN30: 0 | AO30: 0 | AP30: 0 | AQ30: 0 | AR30: 0 | AS30: 0 | AT30: 0 | AU30: 0 | AV30: 0 | AW30: 0 | AX30: 0 | AY30: 0 | AZ30: 0 | BA30: 0 | BB30: 0 | BC30: 0 | BD30: 0 | BE30: 0 | BF30: 0 | BG30: 0 | BH30: 0 | BI30: 0 | BJ30: 0 | BK30: 0 | BL30: 0 | BM30: 0 | BN30: 0 | BO30: 0 | BP30: 0 | BQ30: 0 | BR30: 0 | BS30: 0 | BT30: 0 | BU30: 0 | BV30: 0 | BW30: 0 | BX30: 0 | BY30: 0 | BZ30: 0 | CA30: 0 | CB30: 0 | CC30: 0 | CD30: 0 | CE30: 0 | CF30: 0 | CG30: 0 | CH30: 0 | CI30: 0 | CJ30: 0 | CK30: 0 | CL30: 0 | CM30: 0 | CN30: 0 | CO30: 0 | CP30: 0 | CQ30: 0 | CR30: 0 | CS30: 0 | CT30: 0 | CU30: 0 | CV30: 0 | CX30: 0 | CY30: 0 | CZ30: 0 | DA30: 0 | DB30: 0 | DC30: 0 | DD30: 0 | DE30: 0 | DF30: 0 | DG30: 0 | DH30: 0 | DI30: 0 | DJ30: 0 | DK30: 0 | DL30: 0 | DM30: 0 | DN30: 0 | DO30: 0 | DP30: 0 | DQ30: 0 | DR30: 0 | DS30: 0 | DT30: 0 | DU30: 0 | DV30: 0 | DW30: 0 | DX30: 0 | DY30: 0 | DZ30: 0 | EA30: 0 | EB30: 0 | EC30: 0 | ED30: 0 | EE30: 0 | EF30: 0 | EG30: 0 | EH30: 0 | EI30: 0 | EJ30: 0 | EK30: 0 | EL30: 0 | EM30: 0 | EN30: 0 | EO30: 0 | EP30: 0 | EQ30: 0 | ER30: 0 | ES30: 0 | ET30: 0 | EU30: 0 | EV30: 0 | EW30: 0 | EX30: 0 | EY30: 0 | EZ30: 0 | FA30: 0 | FB30: 0 | FC30: 0 | FD30: 0 | FE30: 0 | FF30: 0 | FG30: 0 | FH30: 0 | FI30: 0 | FJ30: 0 | FK30: 0 | FL30: 0 | FM30: 0 | FN30: 0 | FO30: 0 | FP30: 0 | FQ30: 0 | FR30: 0 | FS30: 0 | FT30: 0 | FU30: 0 | FV30: 0 | FW30: 0 | FX30: 0 | FY30: 0 | FZ30: 0 | GA30: 0 | GB30: 0 | GC30: 0 | GD30: 0 | GE30: 0 | GF30: 0 | GG30: 0 | GH30: 0 | GI30: 0 | GJ30: 0
E31: other | F31: 0 | G31: 0 | H31: 0 | I31: 2 | J31: 0 | K31: 0 | L31: 0 | M31: 0 | N31: 0 | O31: 0 | P31: 0 | Q31: 0 | R31: 0 | S31: 0 | T31: 0 | U31: 0 | V31: 0 | W31: 0 | X31: 0 | Y31: 0 | Z31: 0 | AA31: 0 | AB31: 0 | AC31: 0 | AD31: 0 | AE31: 0 | AF31: 0 | AG31: 0 | AH31: 0 | AI31: 0 | AJ31: 0 | AK31: 0 | AL31: 0 | AM31: 0 | AN31: 0 | AO31: 0 | AP31: 0 | AQ31: 0 | AR31: 0 | AS31: 0 | AT31: 0 | AU31: 0 | AV31: 0 | AW31: 0 | AX31: 0 | AY31: 0 | AZ31: 0 | BA31: 0 | BB31: 0 | BC31: 0 | BD31: 0 | BE31: 0 | BF31: 0 | BG31: 0 | BH31: 0 | BI31: 0 | BJ31: 0 | BK31: 0 | BL31: 0 | BM31: 0 | BN31: 0 | BO31: 0 | BP31: 0 | BQ31: 0 | BR31: 0 | BS31: 0 | BT31: 0 | BU31: 0 | BV31: 0 | BW31: 0 | BX31: 0 | BY31: 0 | BZ31: 0 | CA31: 0 | CB31: 0 | CC31: 0 | CD31: 0 | CE31: 0 | CF31: 0 | CG31: 0 | CH31: 0 | CI31: 0 | CJ31: 0 | CK31: 0 | CL31: 0 | CM31: 0 | CN31: 0 | CO31: 0 | CP31: 0 | CQ31: 0 | CR31: 0 | CS31: 0 | CT31: 0 | CU31: 0 | CV31: 0 | CX31: 0 | CY31: 0 | CZ31: 0 | DA31: 0 | DB31: 0 | DC31: 0 | DD31: 0 | DE31: 0 | DF31: 0 | DG31: 0 | DH31: 0 | DI31: 0 | DJ31: 0 | DK31: 0 | DL31: 0 | DM31: 0 | DN31: 0 | DO31: 0 | DP31: 0 | DQ31: 0 | DR31: 0 | DS31: 0 | DT31: 0 | DU31: 0 | DV31: 0 | DW31: 0 | DX31: 0 | DY31: 0 | DZ31: 0 | EA31: 0 | EB31: 0 | EC31: 0 | ED31: 0 | EE31: 0 | EF31: 0 | EG31: 0 | EH31: 0 | EI31: 0 | EJ31: 0 | EK31: 0 | EL31: 0 | EM31: 0 | EN31: 0 | EO31: 0 | EP31: 0 | EQ31: 0 | ER31: 0 | ES31: 0 | ET31: 0 | EU31: 0 | EV31: 0 | EW31: 0 | EX31: 0 | EY31: 0 | EZ31: 0 | FA31: 0 | FB31: 0 | FC31: 0 | FD31: 0 | FE31: 0 | FF31: 0 | FG31: 0 | FH31: 0 | FI31: 0 | FJ31: 0 | FK31: 0 | FL31: 0 | FM31: 0 | FN31: 0 | FO31: 0 | FP31: 0 | FQ31: 0 | FR31: 0 | FS31: 0 | FT31: 0 | FU31: 0 | FV31: 0 | FW31: 0 | FX31: 0 | FY31: 0 | FZ31: 0 | GA31: 0 | GB31: 0 | GC31: 0 | GD31: 0 | GE31: 0 | GF31: 0 | GG31: 0 | GH31: 0 | GI31: 0 | GJ31: 0
A32: 2 | D32: OVERHEAD CONDUCTORS | E32: ˂ = 1 kv | F32: 58.8903 | G32: 77.71918519 | H32: 8.815848523 | I32: 2 | J32: 31 | K32: 336 | L32: 374 | M32: 425 | N32: 411 | O32: 306 | P32: 0 | Q32: 0 | R32: 0 | S32: 0 | T32: 0 | U32: 0 | V32: 5 | W32: 5 | X32: 0 | Y32: 1 | Z32: 1 | AA32: 0 | AB32: 0 | AC32: 0 | AD32: 0 | AE32: 99 | AF32: 99 | AG32: 7 | AH32: 118 | AI32: 318 | AJ32: 336 | AK32: 625 | AL32: 624 | AM32: 237 | AN32: 315 | AO32: 245 | AP32: 38 | AQ32: 98 | AR32: 105 | AS32: 34 | AT32: 218 | AU32: 1015 | AV32: 1115 | AW32: 532 | AX32: 331 | AY32: 392 | AZ32: 772 | BA32: 969 | BB32: 1058 | BC32: 1581 | BD32: 1555 | BE32: 4147 | BF32: 4617 | BG32: 2066 | BH32: 1723 | BI32: 1455 | BJ32: 1655 | BK32: 1386 | BL32: 983 | BM32: 1763 | BN32: 1746 | BO32: 7524 | BP32: 19354 | BQ32: 12282 | BR32: 40 | BS32: 41 | BT32: 22 | BU32: 17 | BV32: 11 | BW32: 0 | BX32: 0 | BY32: 40 | BZ32: 40 | CA32: 0 | CB32: 0 | CC32: 0 | CD32: 0 | CE32: 93 | CF32: 93 | CG32: 0 | CH32: 0 | CI32: 0 | CJ32: 0 | CK32: 0 | CL32: 0 | CM32: 0 | CN32: 0 | CO32: 0 | CP32: 0 | CQ32: 0 | CR32: 0 | CS32: 0 | CT32: 0 | CU32: 0 | CV32: 0 | CX32: 1825.5993 | CY32: 19787.1408 | CZ32: 22024.9722 | DA32: 25028.3775 | DB32: 24203.9133 | DC32: 18020.4318 | DD32: 0 | DE32: 0 | DF32: 0 | DG32: 0 | DH32: 0 | DI32: 0 | DJ32: 294.4515 | DK32: 294.4515 | DL32: 0 | DM32: 58.8903 | DN32: 58.8903 | DO32: 0 | DP32: 0 | DQ32: 0 | DR32: 0 | DS32: 5830.1397 | DT32: 5830.1397 | DU32: 412.2321 | DV32: 6949.0554 | DW32: 18727.1154 | DX32: 19787.1408 | DY32: 36806.4375 | DZ32: 36747.5472 | EA32: 13957.0011 | EB32: 18550.4445 | EC32: 14428.1235 | ED32: 2237.8314 | EE32: 5771.2494 | EF32: 6183.4815 | EG32: 2002.2702 | EH32: 12838.0854 | EI32: 59773.6545 | EJ32: 65662.6845 | EK32: 31329.6396 | EL32: 19492.6893 | EM32: 23084.9976 | EN32: 45463.3116 | EO32: 57064.7007 | EP32: 62305.9374 | EQ32: 93105.5643 | ER32: 91574.4165 | ES32: 244218.0741 | ET32: 271896.5151 | EU32: 121667.3598 | EV32: 101467.9869 | EW32: 85685.3865 | EX32: 97463.4465 | EY32: 81621.9558 | EZ32: 57889.1649 | FA32: 103823.5989 | FB32: 102822.4638 | FC32: 443090.6172 | FD32: 1139762.866 | FE32: 723290.6646 | FF32: 2355.612 | FG32: 2414.5023 | FH32: 1295.5866 | FI32: 1001.1351 | FJ32: 647.7933 | FK32: 0 | FL32: 0 | FM32: 2355.612 | FN32: 2355.612 | FO32: 0 | FP32: 0 | FQ32: 0 | FR32: 0 | FS32: 5476.7979 | FT32: 5476.7979 | FU32: 0 | FV32: 0 | FW32: 0 | FX32: 0 | FY32: 0 | FZ32: 0 | GA32: 0 | GB32: 0 | GC32: 0 | GD32: 0 | GE32: 0 | GF32: 0 | GG32: 0 | GH32: 0 | GI32: 0 | GJ32: 0
A33: 2 | D33: OVERHEAD CONDUCTORS | E33: > 1 kv & < = 11 kv | F33: 70.1647 | G33: 72.96604648 | H33: 8.542016535 | I33: 2 | J33: 93 | K33: 160 | L33: 149 | M33: 132 | N33: 179 | O33: 83 | P33: 0 | Q33: 0 | R33: 0 | S33: 0 | T33: 0 | U33: 0 | V33: 0 | W33: 3 | X33: 3 | Y33: 3 | Z33: 4 | AA33: 2 | AB33: 0 | AC33: 0 | AD33: 11 | AE33: 31 | AF33: 20 | AG33: 0 | AH33: 96 | AI33: 233 | AJ33: 283 | AK33: 500 | AL33: 415 | AM33: 335 | AN33: 364 | AO33: 97 | AP33: 7 | AQ33: 91 | AR33: 97 | AS33: 74 | AT33: 277 | AU33: 816 | AV33: 724 | AW33: 230 | AX33: 334 | AY33: 571 | AZ33: 808 | BA33: 1363 | BB33: 1210 | BC33: 1027 | BD33: 1021 | BE33: 2665 | BF33: 2975 | BG33: 1330 | BH33: 960 | BI33: 984 | BJ33: 1885 | BK33: 1675 | BL33: 1038 | BM33: 1689 | BN33: 1693 | BO33: 5760 | BP33: 11963 | BQ33: 6707 | BR33: 0 | BS33: 0 | BT33: 0 | BU33: 0 | BV33: 0 | BW33: 0 | BX33: 0 | BY33: 0 | BZ33: 0 | CA33: 0 | CB33: 0 | CC33: 0 | CD33: 0 | CE33: 0 | CF33: 0 | CG33: 0 | CH33: 0 | CI33: 0 | CJ33: 0 | CK33: 0 | CL33: 0 | CM33: 0 | CN33: 0 | CO33: 0 | CP33: 0 | CQ33: 0 | CR33: 0 | CS33: 0 | CT33: 0 | CU33: 0 | CV33: 0 | CX33: 6525.3171 | CY33: 11226.352 | CZ33: 10454.5403 | DA33: 9261.7404 | DB33: 12559.4813 | DC33: 5823.6701 | DD33: 0 | DE33: 0 | DF33: 0 | DG33: 0 | DH33: 0 | DI33: 0 | DJ33: 0 | DK33: 210.4941 | DL33: 210.4941 | DM33: 210.4941 | DN33: 280.6588 | DO33: 140.3294 | DP33: 0 | DQ33: 0 | DR33: 771.8117 | DS33: 2175.1057 | DT33: 1403.294 | DU33: 0 | DV33: 6735.8112 | DW33: 16348.3751 | DX33: 19856.6101 | DY33: 35082.35 | DZ33: 29118.3505 | EA33: 23505.1745 | EB33: 25539.9508 | EC33: 6805.9759 | ED33: 491.1529 | EE33: 6384.9877 | EF33: 6805.9759 | EG33: 5192.1878 | EH33: 19435.6219 | EI33: 57254.3952 | EJ33: 50799.2428 | EK33: 16137.881 | EL33: 23435.0098 | EM33: 40064.0437 | EN33: 56693.0776 | EO33: 95634.4861 | EP33: 84899.287 | EQ33: 72059.1469 | ER33: 71638.1587 | ES33: 186988.9255 | ET33: 208739.9825 | EU33: 93319.051 | EV33: 67358.112 | EW33: 69042.0648 | EX33: 132260.4595 | EY33: 117525.8725 | EZ33: 72830.9586 | FA33: 118508.1783 | FB33: 118788.8371 | FC33: 404148.672 | FD33: 839380.3061 | FE33: 470594.6429 | FF33: 0 | FG33: 0 | FH33: 0 | FI33: 0 | FJ33: 0 | FK33: 0 | FL33: 0 | FM33: 0 | FN33: 0 | FO33: 0 | FP33: 0 | FQ33: 0 | FR33: 0 | FS33: 0 | FT33: 0 | FU33: 0 | FV33: 0 | FW33: 0 | FX33: 0 | FY33: 0 | FZ33: 0 | GA33: 0 | GB33: 0 | GC33: 0 | GD33: 0 | GE33: 0 | GF33: 0 | GG33: 0 | GH33: 0 | GI33: 0 | GJ33: 0
A34: 2 | D34: OVERHEAD CONDUCTORS | E34: ˃ 11 kv & < = 22 kv ; swer | F34: 36.2408 | G34: 87.94502172 | H34: 9.37790071 | I34: 2 | J34: 23 | K34: 10 | L34: 9 | M34: 33 | N34: 5 | O34: 11 | P34: 0 | Q34: 0 | R34: 0 | S34: 0 | T34: 0 | U34: 0 | V34: 0 | W34: 0 | X34: 0 | Y34: 0 | Z34: 0 | AA34: 0 | AB34: 6 | AC34: 6 | AD34: 0 | AE34: 0 | AF34: 0 | AG34: 25 | AH34: 83 | AI34: 441 | AJ34: 388 | AK34: 20 | AL34: 52 | AM34: 56 | AN34: 157 | AO34: 139 | AP34: 12 | AQ34: 61 | AR34: 49 | AS34: 69 | AT34: 71 | AU34: 374 | AV34: 502 | AW34: 478 | AX34: 552 | AY34: 599 | AZ34: 511 | BA34: 1655 | BB34: 1943 | BC34: 928 | BD34: 974 | BE34: 2844 | BF34: 3137 | BG34: 1410 | BH34: 977 | BI34: 944 | BJ34: 983 | BK34: 800 | BL34: 919 | BM34: 3331 | BN34: 2865 | BO34: 145 | BP34: 320 | BQ34: 175 | BR34: 0 | BS34: 0 | BT34: 0 | BU34: 0 | BV34: 0 | BW34: 0 | BX34: 0 | BY34: 0 | BZ34: 0 | CA34: 0 | CB34: 0 | CC34: 0 | CD34: 0 | CE34: 0 | CF34: 0 | CG34: 0 | CH34: 0 | CI34: 0 | CJ34: 0 | CK34: 0 | CL34: 0 | CM34: 0 | CN34: 0 | CO34: 0 | CP34: 0 | CQ34: 0 | CR34: 0 | CS34: 0 | CT34: 0 | CU34: 0 | CV34: 0 | CX34: 833.5384 | CY34: 362.408 | CZ34: 326.1672 | DA34: 1195.9464 | DB34: 181.204 | DC34: 398.6488 | DD34: 0 | DE34: 0 | DF34: 0 | DG34: 0 | DH34: 0 | DI34: 0 | DJ34: 0 | DK34: 0 | DL34: 0 | DM34: 0 | DN34: 0 | DO34: 0 | DP34: 217.4448 | DQ34: 217.4448 | DR34: 0 | DS34: 0 | DT34: 0 | DU34: 906.02 | DV34: 3007.9864 | DW34: 15982.1928 | DX34: 14061.4304 | DY34: 724.816 | DZ34: 1884.5216 | EA34: 2029.4848 | EB34: 5689.8056 | EC34: 5037.4712 | ED34: 434.8896 | EE34: 2210.6888 | EF34: 1775.7992 | EG34: 2500.6152 | EH34: 2573.0968 | EI34: 13554.0592 | EJ34: 18192.8816 | EK34: 17323.1024 | EL34: 20004.9216 | EM34: 21708.2392 | EN34: 18519.0488 | EO34: 59978.524 | EP34: 70415.8744 | EQ34: 33631.4624 | ER34: 35298.5392 | ES34: 103068.8352 | ET34: 113687.3896 | EU34: 51099.528 | EV34: 35407.2616 | EW34: 34211.3152 | EX34: 35624.7064 | EY34: 28992.64 | EZ34: 33305.2952 | FA34: 120718.1048 | FB34: 103829.892 | FC34: 5254.916 | FD34: 11597.056 | FE34: 6342.14 | FF34: 0 | FG34: 0 | FH34: 0 | FI34: 0 | FJ34: 0 | FK34: 0 | FL34: 0 | FM34: 0 | FN34: 0 | FO34: 0 | FP34: 0 | FQ34: 0 | FR34: 0 | FS34: 0 | FT34: 0 | FU34: 0 | FV34: 0 | FW34: 0 | FX34: 0 | FY34: 0 | FZ34: 0 | GA34: 0 | GB34: 0 | GC34: 0 | GD34: 0 | GE34: 0 | GF34: 0 | GG34: 0 | GH34: 0 | GI34: 0 | GJ34: 0
E35: ˃ 11 kv & < = 22 kv ; single-phase | F35: 0 | G35: 0 | H35: 0 | I35: 2 | J35: 0 | K35: 0 | L35: 0 | M35: 0 | N35: 0 | O35: 0 | P35: 0 | Q35: 0 | R35: 0 | S35: 0 | T35: 0 | U35: 0 | V35: 0 | W35: 0 | X35: 0 | Y35: 0 | Z35: 0 | AA35: 0 | AB35: 0 | AC35: 0 | AD35: 0 | AE35: 0 | AF35: 0 | AG35: 0 | AH35: 0 | AI35: 0 | AJ35: 0 | AK35: 0 | AL35: 0 | AM35: 0 | AN35: 0 | AO35: 0 | AP35: 0 | AQ35: 0 | AR35: 0 | AS35: 0 | AT35: 0 | AU35: 0 | AV35: 0 | AW35: 0 | AX35: 0 | AY35: 0 | AZ35: 0 | BA35: 0 | BB35: 0 | BC35: 0 | BD35: 0 | BE35: 0 | BF35: 0 | BG35: 0 | BH35: 0 | BI35: 0 | BJ35: 0 | BK35: 0 | BL35: 0 | BM35: 0 | BN35: 0 | BO35: 0 | BP35: 0 | BQ35: 0 | BR35: 0 | BS35: 0 | BT35: 0 | BU35: 0 | BV35: 0 | BW35: 0 | BX35: 0 | BY35: 0 | BZ35: 0 | CA35: 0 | CB35: 0 | CC35: 0 | CD35: 0 | CE35: 0 | CF35: 0 | CG35: 0 | CH35: 0 | CI35: 0 | CJ35: 0 | CK35: 0 | CL35: 0 | CM35: 0 | CN35: 0 | CO35: 0 | CP35: 0 | CQ35: 0 | CR35: 0 | CS35: 0 | CT35: 0 | CU35: 0 | CV35: 0 | CX35: 0 | CY35: 0 | CZ35: 0 | DA35: 0 | DB35: 0 | DC35: 0 | DD35: 0 | DE35: 0 | DF35: 0 | DG35: 0 | DH35: 0 | DI35: 0 | DJ35: 0 | DK35: 0 | DL35: 0 | DM35: 0 | DN35: 0 | DO35: 0 | DP35: 0 | DQ35: 0 | DR35: 0 | DS35: 0 | DT35: 0 | DU35: 0 | DV35: 0 | DW35: 0 | DX35: 0 | DY35: 0 | DZ35: 0 | EA35: 0 | EB35: 0 | EC35: 0 | ED35: 0 | EE35: 0 | EF35: 0 | EG35: 0 | EH35: 0 | EI35: 0 | EJ35: 0 | EK35: 0 | EL35: 0 | EM35: 0 | EN35: 0 | EO35: 0 | EP35: 0 | EQ35: 0 | ER35: 0 | ES35: 0 | ET35: 0 | EU35: 0 | EV35: 0 | EW35: 0 | EX35: 0 | EY35: 0 | EZ35: 0 | FA35: 0 | FB35: 0 | FC35: 0 | FD35: 0 | FE35: 0 | FF35: 0 | FG35: 0 | FH35: 0 | FI35: 0 | FJ35: 0 | FK35: 0 | FL35: 0 | FM35: 0 | FN35: 0 | FO35: 0 | FP35: 0 | FQ35: 0 | FR35: 0 | FS35: 0 | FT35: 0 | FU35: 0 | FV35: 0 | FW35: 0 | FX35: 0 | FY35: 0 | FZ35: 0 | GA35: 0 | GB35: 0 | GC35: 0 | GD35: 0 | GE35: 0 | GF35: 0 | GG35: 0 | GH35: 0 | GI35: 0 | GJ35: 0
E36: ˃ 11 kv & < = 22 kv ; multiple-phase | F36: 1101.501908 | G36: 75.61549736 | H36: 8.695717185 | I36: 2 | J36: 0 | K36: 0 | L36: 0 | M36: 0 | N36: 0 | O36: 0 | P36: 0 | Q36: 0 | R36: 0 | S36: 0 | T36: 0 | U36: 0 | V36: 0 | W36: 0 | X36: 0 | Y36: 0 | Z36: 0 | AA36: 0 | AB36: 0 | AC36: 0 | AD36: 0 | AE36: 0 | AF36: 0 | AG36: 0 | AH36: 0 | AI36: 0 | AJ36: 0 | AK36: 0 | AL36: 0 | AM36: 0 | AN36: 0 | AO36: 0 | AP36: 0 | AQ36: 0 | AR36: 0 | AS36: 0 | AT36: 0 | AU36: 0 | AV36: 0 | AW36: 0 | AX36: 0 | AY36: 0 | AZ36: 0 | BA36: 0 | BB36: 0 | BC36: 0 | BD36: 0 | BE36: 0 | BF36: 0 | BG36: 0 | BH36: 0 | BI36: 0 | BJ36: 0 | BK36: 0 | BL36: 0 | BM36: 0 | BN36: 0 | BO36: 0 | BP36: 0 | BQ36: 0 | BR36: 0 | BS36: 0 | BT36: 0 | BU36: 0 | BV36: 0 | BW36: 0 | BX36: 0 | BY36: 0 | BZ36: 0 | CA36: 0 | CB36: 0 | CC36: 0 | CD36: 0 | CE36: 0 | CF36: 0 | CG36: 0 | CH36: 0 | CI36: 0 | CJ36: 0 | CK36: 0 | CL36: 0 | CM36: 0 | CN36: 0 | CO36: 0 | CP36: 0 | CQ36: 0 | CR36: 0 | CS36: 0 | CT36: 0 | CU36: 0 | CV36: 0 | CX36: 0 | CY36: 0 | CZ36: 0 | DA36: 0 | DB36: 0 | DC36: 0 | DD36: 0 | DE36: 0 | DF36: 0 | DG36: 0 | DH36: 0 | DI36: 0 | DJ36: 0 | DK36: 0 | DL36: 0 | DM36: 0 | DN36: 0 | DO36: 0 | DP36: 0 | DQ36: 0 | DR36: 0 | DS36: 0 | DT36: 0 | DU36: 0 | DV36: 0 | DW36: 0 | DX36: 0 | DY36: 0 | DZ36: 0 | EA36: 0 | EB36: 0 | EC36: 0 | ED36: 0 | EE36: 0 | EF36: 0 | EG36: 0 | EH36: 0 | EI36: 0 | EJ36: 0 | EK36: 0 | EL36: 0 | EM36: 0 | EN36: 0 | EO36: 0 | EP36: 0 | EQ36: 0 | ER36: 0 | ES36: 0 | ET36: 0 | EU36: 0 | EV36: 0 | EW36: 0 | EX36: 0 | EY36: 0 | EZ36: 0 | FA36: 0 | FB36: 0 | FC36: 0 | FD36: 0 | FE36: 0 | FF36: 0 | FG36: 0 | FH36: 0 | FI36: 0 | FJ36: 0 | FK36: 0 | FL36: 0 | FM36: 0 | FN36: 0 | FO36: 0 | FP36: 0 | FQ36: 0 | FR36: 0 | FS36: 0 | FT36: 0 | FU36: 0 | FV36: 0 | FW36: 0 | FX36: 0 | FY36: 0 | FZ36: 0 | GA36: 0 | GB36: 0 | GC36: 0 | GD36: 0 | GE36: 0 | GF36: 0 | GG36: 0 | GH36: 0 | GI36: 0 | GJ36: 0
A37: 2 | D37: OVERHEAD CONDUCTORS | E37: > 22 kv & < = 66 kv | F37: 228.5222 | G37: 82.18034612 | H37: 9.065337617 | I37: 2 | J37: 89 | K37: 0.875 | L37: 75.231 | M37: 105.323 | N37: 71.032 | O37: 40.94 | P37: 10.847 | Q37: 11.722 | R37: 42.864 | S37: 64.209 | T37: 24.844 | U37: 47.151 | V37: 173.468 | W37: 165.858 | X37: 41.045 | Y37: 3.254 | Z37: 0 | AA37: 0 | AB37: 0 | AC37: 14.696 | AD37: 14.696 | AE37: 20.382 | AF37: 20.382 | AG37: 23.094 | AH37: 48.288 | AI37: 88.178 | AJ37: 175.13 | AK37: 113.896 | AL37: 438.963 | AM37: 597.823 | AN37: 168.832 | AO37: 13.472 | AP37: 21.52 | AQ37: 169.532 | AR37: 160.609 | AS37: 170.232 | AT37: 368.456 | AU37: 228.667 | AV37: 44.089 | AW37: 55.111 | AX37: 202.983 | AY37: 413.805 | AZ37: 307.222 | BA37: 472.03 | BB37: 621.057 | BC37: 425.159 | BD37: 449.303 | BE37: 721.481 | BF37: 842.58 | BG37: 539.674 | BH37: 415.951 | BI37: 475.931 | BJ37: 586.888 | BK37: 580.152 | BL37: 323.876 | BM37: 171.7 | BN37: 181.461 | BO37: 182.054 | BP37: 325.515 | BQ37: 320.216 | BR37: 144.507 | BS37: 254.964 | BT37: 319.635 | BU37: 636.998 | BV37: 506.436 | BW37: 0 | BX37: 70.589 | BY37: 205.334 | BZ37: 188.434 | CA37: 53.689 | CB37: 0 | CC37: 34.514 | CD37: 34.514 | CE37: 211.897 | CF37: 315.614 | CG37: 103.717 | CH37: 51.51 | CI37: 51.51 | CJ37: 9.587 | CK37: 9.587 | CL37: 0 | CM37: 0 | CN37: 0 | CO37: 236.545 | CP37: 236.545 | CQ37: 0 | CR37: 0 | CS37: 0 | CT37: 0 | CU37: 0 | CV37: 0 | CX37: 20338.4758 | CY37: 199.956925 | CZ37: 17191.95363 | DA37: 24068.64367 | DB37: 16232.38891 | DC37: 9355.698868 | DD37: 2478.780303 | DE37: 2678.737228 | DF37: 9795.375581 | DG37: 14673.18194 | DH37: 5677.405537 | DI37: 10775.05025 | DJ37: 39641.28899 | DK37: 37902.23505 | DL37: 9379.693699 | DM37: 743.6112388 | DN37: 0 | DO37: 0 | DP37: 0 | DQ37: 3358.362251 | DR37: 3358.362251 | DS37: 4657.73948 | DT37: 4657.73948 | DU37: 5277.491687 | DV37: 11034.87999 | DW37: 20150.63055 | DX37: 40021.09289 | DY37: 26027.76449 | DZ37: 100312.7905 | EA37: 136615.8272 | EB37: 38581.86007 | EC37: 3078.651078 | ED37: 4917.797744 | EE37: 38741.82561 | EF37: 36702.72202 | EG37: 38901.79115 | EH37: 84200.37572 | EI37: 52255.48591 | EJ37: 10075.31528 | EK37: 12594.08696 | EL37: 46386.12172 | EM37: 94563.62897 | EN37: 70207.04733 | EO37: 107869.3341 | EP37: 141925.312 | EQ37: 97158.27003 | ER37: 102675.71 | ES37: 164874.4254 | ET37: 192548.2353 | EU37: 123327.4898 | EV37: 95054.03761 | EW37: 108760.7992 | EX37: 134116.9369 | EY37: 132577.6114 | EZ37: 74012.85605 | FA37: 39237.26174 | FB37: 41467.86693 | FC37: 41603.3806 | FD37: 74387.40393 | FE37: 73176.4648 | FF37: 33023.05756 | FG37: 58264.9342 | FH37: 73043.6934 | FI37: 145568.1844 | FJ37: 115731.8689 | FK37: 0 | FL37: 16131.15358 | FM37: 46923.37741 | FN37: 43061.35223 | FO37: 12269.1284 | FP37: 0 | FQ37: 7887.215211 | FR37: 7887.215211 | FS37: 48423.16861 | FT37: 72124.80563 | FU37: 23701.63702 | FV37: 11771.17852 | FW37: 11771.17852 | FX37: 2190.842331 | FY37: 2190.842331 | FZ37: 0 | GA37: 0 | GB37: 0 | GC37: 54055.7838 | GD37: 54055.7838 | GE37: 0 | GF37: 0 | GG37: 0 | GH37: 0 | GI37: 0 | GJ37: 0
A38: 2 | D38: OVERHEAD CONDUCTORS | E38: > 66 kv & < = 132 kv | F38: 57.8335 | G38: 76.8277065 | H38: 8.765141556 | I38: 2 | J38: 0 | K38: 0 | L38: 0 | M38: 0 | N38: 0 | O38: 0 | P38: 0 | Q38: 33 | R38: 0 | S38: 0 | T38: 0 | U38: 0 | V38: 0 | W38: 0 | X38: 0 | Y38: 0 | Z38: 0 | AA38: 0 | AB38: 0 | AC38: 0 | AD38: 0 | AE38: 0 | AF38: 0 | AG38: 0 | AH38: 0 | AI38: 0 | AJ38: 0 | AK38: 0 | AL38: 0 | AM38: 0 | AN38: 0 | AO38: 0 | AP38: 0 | AQ38: 0 | AR38: 0 | AS38: 0 | AT38: 0 | AU38: 0 | AV38: 0 | AW38: 0 | AX38: 0 | AY38: 0 | AZ38: 0 | BA38: 0 | BB38: 0 | BC38: 0 | BD38: 0 | BE38: 0 | BF38: 0 | BG38: 0 | BH38: 0 | BI38: 0 | BJ38: 0 | BK38: 0 | BL38: 0 | BM38: 0 | BN38: 0 | BO38: 0 | BP38: 0 | BQ38: 0 | BR38: 0 | BS38: 0 | BT38: 0 | BU38: 0 | BV38: 0 | BW38: 0 | BX38: 0 | BY38: 0 | BZ38: 0 | CA38: 0 | CB38: 0 | CC38: 0 | CD38: 0 | CE38: 0 | CF38: 0 | CG38: 0 | CH38: 0 | CI38: 0 | CJ38: 0 | CK38: 0 | CL38: 0 | CM38: 0 | CN38: 0 | CO38: 0 | CP38: 0 | CQ38: 0 | CR38: 0 | CS38: 0 | CT38: 0 | CU38: 0 | CV38: 0 | CX38: 0 | CY38: 0 | CZ38: 0 | DA38: 0 | DB38: 0 | DC38: 0 | DD38: 0 | DE38: 1908.5055 | DF38: 0 | DG38: 0 | DH38: 0 | DI38: 0 | DJ38: 0 | DK38: 0 | DL38: 0 | DM38: 0 | DN38: 0 | DO38: 0 | DP38: 0 | DQ38: 0 | DR38: 0 | DS38: 0 | DT38: 0 | DU38: 0 | DV38: 0 | DW38: 0 | DX38: 0 | DY38: 0 | DZ38: 0 | EA38: 0 | EB38: 0 | EC38: 0 | ED38: 0 | EE38: 0 | EF38: 0 | EG38: 0 | EH38: 0 | EI38: 0 | EJ38: 0 | EK38: 0 | EL38: 0 | EM38: 0 | EN38: 0 | EO38: 0 | EP38: 0 | EQ38: 0 | ER38: 0 | ES38: 0 | ET38: 0 | EU38: 0 | EV38: 0 | EW38: 0 | EX38: 0 | EY38: 0 | EZ38: 0 | FA38: 0 | FB38: 0 | FC38: 0 | FD38: 0 | FE38: 0 | FF38: 0 | FG38: 0 | FH38: 0 | FI38: 0 | FJ38: 0 | FK38: 0 | FL38: 0 | FM38: 0 | FN38: 0 | FO38: 0 | FP38: 0 | FQ38: 0 | FR38: 0 | FS38: 0 | FT38: 0 | FU38: 0 | FV38: 0 | FW38: 0 | FX38: 0 | FY38: 0 | FZ38: 0 | GA38: 0 | GB38: 0 | GC38: 0 | GD38: 0 | GE38: 0 | GF38: 0 | GG38: 0 | GH38: 0 | GI38: 0 | GJ38: 0
E39: > 132 kv | F39: 0 | G39: 0 | H39: 0 | I39: 2 | J39: 0 | K39: 0 | L39: 0 | M39: 0 | N39: 0 | O39: 0 | P39: 0 | Q39: 0 | R39: 0 | S39: 0 | T39: 0 | U39: 0 | V39: 0 | W39: 0 | X39: 0 | Y39: 0 | Z39: 0 | AA39: 0 | AB39: 0 | AC39: 0 | AD39: 0 | AE39: 0 | AF39: 0 | AG39: 0 | AH39: 0 | AI39: 0 | AJ39: 0 | AK39: 0 | AL39: 0 | AM39: 0 | AN39: 0 | AO39: 0 | AP39: 0 | AQ39: 0 | AR39: 0 | AS39: 0 | AT39: 0 | AU39: 0 | AV39: 0 | AW39: 0 | AX39: 0 | AY39: 0 | AZ39: 0 | BA39: 0 | BB39: 0 | BC39: 0 | BD39: 0 | BE39: 0 | BF39: 0 | BG39: 0 | BH39: 0 | BI39: 0 | BJ39: 0 | BK39: 0 | BL39: 0 | BM39: 0 | BN39: 0 | BO39: 0 | BP39: 0 | BQ39: 0 | BR39: 0 | BS39: 0 | BT39: 0 | BU39: 0 | BV39: 0 | BW39: 0 | BX39: 0 | BY39: 0 | BZ39: 0 | CA39: 0 | CB39: 0 | CC39: 0 | CD39: 0 | CE39: 0 | CF39: 0 | CG39: 0 | CH39: 0 | CI39: 0 | CJ39: 0 | CK39: 0 | CL39: 0 | CM39: 0 | CN39: 0 | CO39: 0 | CP39: 0 | CQ39: 0 | CR39: 0 | CS39: 0 | CT39: 0 | CU39: 0 | CV39: 0 | CX39: 0 | CY39: 0 | CZ39: 0 | DA39: 0 | DB39: 0 | DC39: 0 | DD39: 0 | DE39: 0 | DF39: 0 | DG39: 0 | DH39: 0 | DI39: 0 | DJ39: 0 | DK39: 0 | DL39: 0 | DM39: 0 | DN39: 0 | DO39: 0 | DP39: 0 | DQ39: 0 | DR39: 0 | DS39: 0 | DT39: 0 | DU39: 0 | DV39: 0 | DW39: 0 | DX39: 0 | DY39: 0 | DZ39: 0 | EA39: 0 | EB39: 0 | EC39: 0 | ED39: 0 | EE39: 0 | EF39: 0 | EG39: 0 | EH39: 0 | EI39: 0 | EJ39: 0 | EK39: 0 | EL39: 0 | EM39: 0 | EN39: 0 | EO39: 0 | EP39: 0 | EQ39: 0 | ER39: 0 | ES39: 0 | ET39: 0 | EU39: 0 | EV39: 0 | EW39: 0 | EX39: 0 | EY39: 0 | EZ39: 0 | FA39: 0 | FB39: 0 | FC39: 0 | FD39: 0 | FE39: 0 | FF39: 0 | FG39: 0 | FH39: 0 | FI39: 0 | FJ39: 0 | FK39: 0 | FL39: 0 | FM39: 0 | FN39: 0 | FO39: 0 | FP39: 0 | FQ39: 0 | FR39: 0 | FS39: 0 | FT39: 0 | FU39: 0 | FV39: 0 | FW39: 0 | FX39: 0 | FY39: 0 | FZ39: 0 | GA39: 0 | GB39: 0 | GC39: 0 | GD39: 0 | GE39: 0 | GF39: 0 | GG39: 0 | GH39: 0 | GI39: 0 | GJ39: 0
E40: other | F40: 0 | G40: 0 | H40: 0 | I40: 2 | J40: 0 | K40: 0 | L40: 0 | M40: 0 | N40: 0 | O40: 0 | P40: 0 | Q40: 0 | R40: 0 | S40: 0 | T40: 0 | U40: 0 | V40: 0 | W40: 0 | X40: 0 | Y40: 0 | Z40: 0 | AA40: 0 | AB40: 0 | AC40: 0 | AD40: 0 | AE40: 0 | AF40: 0 | AG40: 0 | AH40: 0 | AI40: 0 | AJ40: 0 | AK40: 0 | AL40: 0 | AM40: 0 | AN40: 0 | AO40: 0 | AP40: 0 | AQ40: 0 | AR40: 0 | AS40: 0 | AT40: 0 | AU40: 0 | AV40: 0 | AW40: 0 | AX40: 0 | AY40: 0 | AZ40: 0 | BA40: 0 | BB40: 0 | BC40: 0 | BD40: 0 | BE40: 0 | BF40: 0 | BG40: 0 | BH40: 0 | BI40: 0 | BJ40: 0 | BK40: 0 | BL40: 0 | BM40: 0 | BN40: 0 | BO40: 0 | BP40: 0 | BQ40: 0 | BR40: 0 | BS40: 0 | BT40: 0 | BU40: 0 | BV40: 0 | BW40: 0 | BX40: 0 | BY40: 0 | BZ40: 0 | CA40: 0 | CB40: 0 | CC40: 0 | CD40: 0 | CE40: 0 | CF40: 0 | CG40: 0 | CH40: 0 | CI40: 0 | CJ40: 0 | CK40: 0 | CL40: 0 | CM40: 0 | CN40: 0 | CO40: 0 | CP40: 0 | CQ40: 0 | CR40: 0 | CS40: 0 | CT40: 0 | CU40: 0 | CV40: 0 | CX40: 0 | CY40: 0 | CZ40: 0 | DA40: 0 | DB40: 0 | DC40: 0 | DD40: 0 | DE40: 0 | DF40: 0 | DG40: 0 | DH40: 0 | DI40: 0 | DJ40: 0 | DK40: 0 | DL40: 0 | DM40: 0 | DN40: 0 | DO40: 0 | DP40: 0 | DQ40: 0 | DR40: 0 | DS40: 0 | DT40: 0 | DU40: 0 | DV40: 0 | DW40: 0 | DX40: 0 | DY40: 0 | DZ40: 0 | EA40: 0 | EB40: 0 | EC40: 0 | ED40: 0 | EE40: 0 | EF40: 0 | EG40: 0 | EH40: 0 | EI40: 0 | EJ40: 0 | EK40: 0 | EL40: 0 | EM40: 0 | EN40: 0 | EO40: 0 | EP40: 0 | EQ40: 0 | ER40: 0 | ES40: 0 | ET40: 0 | EU40: 0 | EV40: 0 | EW40: 0 | EX40: 0 | EY40: 0 | EZ40: 0 | FA40: 0 | FB40: 0 | FC40: 0 | FD40: 0 | FE40: 0 | FF40: 0 | FG40: 0 | FH40: 0 | FI40: 0 | FJ40: 0 | FK40: 0 | FL40: 0 | FM40: 0 | FN40: 0 | FO40: 0 | FP40: 0 | FQ40: 0 | FR40: 0 | FS40: 0 | FT40: 0 | FU40: 0 | FV40: 0 | FW40: 0 | FX40: 0 | FY40: 0 | FZ40: 0 | GA40: 0 | GB40: 0 | GC40: 0 | GD40: 0 | GE40: 0 | GF40: 0 | GG40: 0 | GH40: 0 | GI40: 0 | GJ40: 0
A41: 3 | D41: UNDERGROUND CABLES | E41: ˂ = 1 kv | F41: 206.7606 | G41: 69.81082087 | H41: 8.355287001 | I41: 2 | J41: 138 | K41: 0 | L41: 112 | M41: 126 | N41: 90 | O41: 100 | P41: 31 | Q41: 7 | R41: 5 | S41: 13 | T41: 7 | U41: 97 | V41: 97 | W41: 1 | X41: 46 | Y41: 50 | Z41: 52 | AA41: 48 | AB41: 2 | AC41: 0 | AD41: 15 | AE41: 15 | AF41: 0 | AG41: 445 | AH41: 450 | AI41: 35 | AJ41: 84 | AK41: 70 | AL41: 55 | AM41: 196 | AN41: 211 | AO41: 113 | AP41: 66 | AQ41: 335 | AR41: 393 | AS41: 155 | AT41: 151 | AU41: 360 | AV41: 533 | AW41: 303 | AX41: 219 | AY41: 577 | AZ41: 649 | BA41: 827 | BB41: 955 | BC41: 657 | BD41: 585 | BE41: 455 | BF41: 483 | BG41: 501 | BH41: 357 | BI41: 234 | BJ41: 175 | BK41: 314 | BL41: 328 | BM41: 125 | BN41: 59 | BO41: 108 | BP41: 124 | BQ41: 68 | BR41: 1 | BS41: 0 | BT41: 1 | BU41: 1 | BV41: 1 | BW41: 0 | BX41: 0 | BY41: 0 | BZ41: 0 | CA41: 0 | CB41: 0 | CC41: 0 | CD41: 0 | CE41: 2 | CF41: 5 | CG41: 3 | CH41: 0 | CI41: 0 | CJ41: 0 | CK41: 0 | CL41: 0 | CM41: 0 | CN41: 0 | CO41: 4 | CP41: 4 | CQ41: 0 | CR41: 0 | CS41: 0 | CT41: 0 | CU41: 0 | CV41: 0 | CX41: 28532.9628 | CY41: 0 | CZ41: 23157.1872 | DA41: 26051.8356 | DB41: 18608.454 | DC41: 20676.06 | DD41: 6409.5786 | DE41: 1447.3242 | DF41: 1033.803 | DG41: 2687.8878 | DH41: 1447.3242 | DI41: 20055.7782 | DJ41: 20055.7782 | DK41: 206.7606 | DL41: 9510.9876 | DM41: 10338.03 | DN41: 10751.5512 | DO41: 9924.5088 | DP41: 413.5212 | DQ41: 0 | DR41: 3101.409 | DS41: 3101.409 | DT41: 0 | DU41: 92008.467 | DV41: 93042.27 | DW41: 7236.621 | DX41: 17367.8904 | DY41: 14473.242 | DZ41: 11371.833 | EA41: 40525.0776 | EB41: 43626.4866 | EC41: 23363.9478 | ED41: 13646.1996 | EE41: 69264.801 | EF41: 81256.9158 | EG41: 32047.893 | EH41: 31220.8506 | EI41: 74433.816 | EJ41: 110203.3998 | EK41: 62648.4618 | EL41: 45280.5714 | EM41: 119300.8662 | EN41: 134187.6294 | EO41: 170991.0162 | EP41: 197456.373 | EQ41: 135841.7142 | ER41: 120954.951 | ES41: 94076.073 | ET41: 99865.3698 | EU41: 103587.0606 | EV41: 73813.5342 | EW41: 48381.9804 | EX41: 36183.105 | EY41: 64922.8284 | EZ41: 67817.4768 | FA41: 25845.075 | FB41: 12198.8754 | FC41: 22330.1448 | FD41: 25638.3144 | FE41: 14059.7208 | FF41: 206.7606 | FG41: 0 | FH41: 206.7606 | FI41: 206.7606 | FJ41: 206.7606 | FK41: 0 | FL41: 0 | FM41: 0 | FN41: 0 | FO41: 0 | FP41: 0 | FQ41: 0 | FR41: 0 | FS41: 413.5212 | FT41: 1033.803 | FU41: 620.2818 | FV41: 0 | FW41: 0 | FX41: 0 | FY41: 0 | FZ41: 0 | GA41: 0 | GB41: 0 | GC41: 827.0424 | GD41: 827.0424 | GE41: 0 | GF41: 0 | GG41: 0 | GH41: 0 | GI41: 0 | GJ41: 0
A42: 3 | D42: UNDERGROUND CABLES | E42: > 1 kv & < = 11 kv | F42: 572.7903 | G42: 75.24821662 | H42: 8.674572993 | I42: 2 | J42: 63 | K42: 50 | L42: 145 | M42: 173 | N42: 159 | O42: 141 | P42: 104 | Q42: 87 | R42: 75 | S42: 66 | T42: 69 | U42: 68 | V42: 61 | W42: 40 | X42: 13 | Y42: 3 | Z42: 12 | AA42: 11 | AB42: 2 | AC42: 2 | AD42: 4 | AE42: 5 | AF42: 2 | AG42: 106 | AH42: 107 | AI42: 11 | AJ42: 13 | AK42: 9 | AL42: 16 | AM42: 43 | AN42: 55 | AO42: 32 | AP42: 12 | AQ42: 75 | AR42: 85 | AS42: 37 | AT42: 38 | AU42: 72 | AV42: 105 | AW42: 66 | AX42: 47 | AY42: 88 | AZ42: 121 | BA42: 198 | BB42: 199 | BC42: 119 | BD42: 129 | BE42: 115 | BF42: 116 | BG42: 111 | BH42: 66 | BI42: 49 | BJ42: 47 | BK42: 70 | BL42: 66 | BM42: 31 | BN42: 14 | BO42: 16 | BP42: 22 | BQ42: 12 | BR42: 0 | BS42: 0 | BT42: 0 | BU42: 0 | BV42: 0 | BW42: 0 | BX42: 0 | BY42: 0 | BZ42: 0 | CA42: 0 | CB42: 0 | CC42: 0 | CD42: 0 | CE42: 0 | CF42: 0 | CG42: 0 | CH42: 0 | CI42: 0 | CJ42: 0 | CK42: 0 | CL42: 0 | CM42: 0 | CN42: 0 | CO42: 0 | CP42: 0 | CQ42: 0 | CR42: 0 | CS42: 0 | CT42: 0 | CU42: 0 | CV42: 0 | CX42: 36085.7889 | CY42: 28639.515 | CZ42: 83054.5935 | DA42: 99092.7219 | DB42: 91073.6577 | DC42: 80763.4323 | DD42: 59570.1912 | DE42: 49832.7561 | DF42: 42959.2725 | DG42: 37804.1598 | DH42: 39522.5307 | DI42: 38949.7404 | DJ42: 34940.2083 | DK42: 22911.612 | DL42: 7446.2739 | DM42: 1718.3709 | DN42: 6873.4836 | DO42: 6300.6933 | DP42: 1145.5806 | DQ42: 1145.5806 | DR42: 2291.1612 | DS42: 2863.9515 | DT42: 1145.5806 | DU42: 60715.7718 | DV42: 61288.5621 | DW42: 6300.6933 | DX42: 7446.2739 | DY42: 5155.1127 | DZ42: 9164.6448 | EA42: 24629.9829 | EB42: 31503.4665 | EC42: 18329.2896 | ED42: 6873.4836 | EE42: 42959.2725 | EF42: 48687.1755 | EG42: 21193.2411 | EH42: 21766.0314 | EI42: 41240.9016 | EJ42: 60142.9815 | EK42: 37804.1598 | EL42: 26921.1441 | EM42: 50405.5464 | EN42: 69307.6263 | EO42: 113412.4794 | EP42: 113985.2697 | EQ42: 68162.0457 | ER42: 73889.9487 | ES42: 65870.8845 | ET42: 66443.6748 | EU42: 63579.7233 | EV42: 37804.1598 | EW42: 28066.7247 | EX42: 26921.1441 | EY42: 40095.321 | EZ42: 37804.1598 | FA42: 17756.4993 | FB42: 8019.0642 | FC42: 9164.6448 | FD42: 12601.3866 | FE42: 6873.4836 | FF42: 0 | FG42: 0 | FH42: 0 | FI42: 0 | FJ42: 0 | FK42: 0 | FL42: 0 | FM42: 0 | FN42: 0 | FO42: 0 | FP42: 0 | FQ42: 0 | FR42: 0 | FS42: 0 | FT42: 0 | FU42: 0 | FV42: 0 | FW42: 0 | FX42: 0 | FY42: 0 | FZ42: 0 | GA42: 0 | GB42: 0 | GC42: 0 | GD42: 0 | GE42: 0 | GF42: 0 | GG42: 0 | GH42: 0 | GI42: 0 | GJ42: 0
A43: 3 | D43: UNDERGROUND CABLES | E43: > 11 kv & < = 22 kv | F43: 588.1384 | G43: 66.509986 | H43: 8.155365473 | I43: 2 | J43: 3 | K43: 0 | L43: 0 | M43: 1 | N43: 1 | O43: 1 | P43: 1 | Q43: 0 | R43: 0 | S43: 1 | T43: 1 | U43: 0 | V43: 0 | W43: 0 | X43: 0 | Y43: 0 | Z43: 0 | AA43: 0 | AB43: 0 | AC43: 0 | AD43: 0 | AE43: 0 | AF43: 0 | AG43: 1 | AH43: 1 | AI43: 0 | AJ43: 1 | AK43: 2 | AL43: 1 | AM43: 0 | AN43: 0 | AO43: 0 | AP43: 0 | AQ43: 0 | AR43: 0 | AS43: 0 | AT43: 0 | AU43: 0 | AV43: 1 | AW43: 1 | AX43: 1 | AY43: 1 | AZ43: 3 | BA43: 4 | BB43: 2 | BC43: 1 | BD43: 1 | BE43: 1 | BF43: 1 | BG43: 1 | BH43: 3 | BI43: 6 | BJ43: 5 | BK43: 5 | BL43: 4 | BM43: 0 | BN43: 0 | BO43: 0 | BP43: 0 | BQ43: 0 | BR43: 0 | BS43: 0 | BT43: 0 | BU43: 0 | BV43: 0 | BW43: 0 | BX43: 0 | BY43: 0 | BZ43: 0 | CA43: 0 | CB43: 0 | CC43: 0 | CD43: 0 | CE43: 0 | CF43: 0 | CG43: 0 | CH43: 0 | CI43: 0 | CJ43: 0 | CK43: 0 | CL43: 0 | CM43: 0 | CN43: 0 | CO43: 0 | CP43: 0 | CQ43: 0 | CR43: 0 | CS43: 0 | CT43: 0 | CU43: 0 | CV43: 0 | CX43: 1764.4152 | CY43: 0 | CZ43: 0 | DA43: 588.1384 | DB43: 588.1384 | DC43: 588.1384 | DD43: 588.1384 | DE43: 0 | DF43: 0 | DG43: 588.1384 | DH43: 588.1384 | DI43: 0 | DJ43: 0 | DK43: 0 | DL43: 0 | DM43: 0 | DN43: 0 | DO43: 0 | DP43: 0 | DQ43: 0 | DR43: 0 | DS43: 0 | DT43: 0 | DU43: 588.1384 | DV43: 588.1384 | DW43: 0 | DX43: 588.1384 | DY43: 1176.2768 | DZ43: 588.1384 | EA43: 0 | EB43: 0 | EC43: 0 | ED43: 0 | EE43: 0 | EF43: 0 | EG43: 0 | EH43: 0 | EI43: 0 | EJ43: 588.1384 | EK43: 588.1384 | EL43: 588.1384 | EM43: 588.1384 | EN43: 1764.4152 | EO43: 2352.5536 | EP43: 1176.2768 | EQ43: 588.1384 | ER43: 588.1384 | ES43: 588.1384 | ET43: 588.1384 | EU43: 588.1384 | EV43: 1764.4152 | EW43: 3528.8304 | EX43: 2940.692 | EY43: 2940.692 | EZ43: 2352.5536 | FA43: 0 | FB43: 0 | FC43: 0 | FD43: 0 | FE43: 0 | FF43: 0 | FG43: 0 | FH43: 0 | FI43: 0 | FJ43: 0 | FK43: 0 | FL43: 0 | FM43: 0 | FN43: 0 | FO43: 0 | FP43: 0 | FQ43: 0 | FR43: 0 | FS43: 0 | FT43: 0 | FU43: 0 | FV43: 0 | FW43: 0 | FX43: 0 | FY43: 0 | FZ43: 0 | GA43: 0 | GB43: 0 | GC43: 0 | GD43: 0 | GE43: 0 | GF43: 0 | GG43: 0 | GH43: 0 | GI43: 0 | GJ43: 0
A44: 3 | D44: UNDERGROUND CABLES | E44: > 22 kv & < = 33 kv | F44: 488.4063 | G44: 63.84500055 | H44: 7.990306662 | I44: 2 | J44: 3 | K44: 1 | L44: 5 | M44: 4 | N44: 2 | O44: 8 | P44: 9 | Q44: 6 | R44: 9 | S44: 6 | T44: 2 | U44: 1 | V44: 1 | W44: 1 | X44: 0 | Y44: 0 | Z44: 0 | AA44: 0 | AB44: 1 | AC44: 1 | AD44: 0 | AE44: 0 | AF44: 1 | AG44: 1 | AH44: 1 | AI44: 1 | AJ44: 1 | AK44: 1 | AL44: 0 | AM44: 0 | AN44: 0 | AO44: 0 | AP44: 0 | AQ44: 0 | AR44: 0 | AS44: 0 | AT44: 0 | AU44: 0 | AV44: 0 | AW44: 0 | AX44: 2 | AY44: 2 | AZ44: 1 | BA44: 1 | BB44: 0 | BC44: 0 | BD44: 2 | BE44: 2 | BF44: 5 | BG44: 5 | BH44: 0 | BI44: 3 | BJ44: 3 | BK44: 4 | BL44: 4 | BM44: 1 | BN44: 2 | BO44: 2 | BP44: 1 | BQ44: 0 | BR44: 0 | BS44: 0 | BT44: 0 | BU44: 1 | BV44: 1 | BW44: 0 | BX44: 0 | BY44: 1 | BZ44: 1 | CA44: 0 | CB44: 0 | CC44: 0 | CD44: 0 | CE44: 1 | CF44: 3 | CG44: 2 | CH44: 0 | CI44: 0 | CJ44: 0 | CK44: 0 | CL44: 0 | CM44: 0 | CN44: 0 | CO44: 0 | CP44: 0 | CQ44: 0 | CR44: 0 | CS44: 0 | CT44: 0 | CU44: 0 | CV44: 0 | CX44: 1465.2189 | CY44: 488.4063 | CZ44: 2442.0315 | DA44: 1953.6252 | DB44: 976.8126 | DC44: 3907.2504 | DD44: 4395.6567 | DE44: 2930.4378 | DF44: 4395.6567 | DG44: 2930.4378 | DH44: 976.8126 | DI44: 488.4063 | DJ44: 488.4063 | DK44: 488.4063 | DL44: 0 | DM44: 0 | DN44: 0 | DO44: 0 | DP44: 488.4063 | DQ44: 488.4063 | DR44: 0 | DS44: 0 | DT44: 488.4063 | DU44: 488.4063 | DV44: 488.4063 | DW44: 488.4063 | DX44: 488.4063 | DY44: 488.4063 | DZ44: 0 | EA44: 0 | EB44: 0 | EC44: 0 | ED44: 0 | EE44: 0 | EF44: 0 | EG44: 0 | EH44: 0 | EI44: 0 | EJ44: 0 | EK44: 0 | EL44: 976.8126 | EM44: 976.8126 | EN44: 488.4063 | EO44: 488.4063 | EP44: 0 | EQ44: 0 | ER44: 976.8126 | ES44: 976.8126 | ET44: 2442.0315 | EU44: 2442.0315 | EV44: 0 | EW44: 1465.2189 | EX44: 1465.2189 | EY44: 1953.6252 | EZ44: 1953.6252 | FA44: 488.4063 | FB44: 976.8126 | FC44: 976.8126 | FD44: 488.4063 | FE44: 0 | FF44: 0 | FG44: 0 | FH44: 0 | FI44: 488.4063 | FJ44: 488.4063 | FK44: 0 | FL44: 0 | FM44: 488.4063 | FN44: 488.4063 | FO44: 0 | FP44: 0 | FQ44: 0 | FR44: 0 | FS44: 488.4063 | FT44: 1465.2189 | FU44: 976.8126 | FV44: 0 | FW44: 0 | FX44: 0 | FY44: 0 | FZ44: 0 | GA44: 0 | GB44: 0 | GC44: 0 | GD44: 0 | GE44: 0 | GF44: 0 | GG44: 0 | GH44: 0 | GI44: 0 | GJ44: 0
A45: 3 | D45: UNDERGROUND CABLES | E45: > 33 kv & < = 66 kv | F45: 1870.4 | G45: 80 | H45: 8.94427191 | I45: 2 | J45: 0 | K45: 0 | L45: 1 | M45: 3 | N45: 3 | O45: 1 | P45: 0 | Q45: 0 | R45: 0 | S45: 0 | T45: 0 | U45: 0 | V45: 0 | W45: 0 | X45: 5 | Y45: 0 | Z45: 0 | AA45: 1 | AB45: 1 | AC45: 0 | AD45: 0 | AE45: 0 | AF45: 2 | AG45: 4 | AH45: 1 | AI45: 0 | AJ45: 1 | AK45: 1 | AL45: 0 | AM45: 0 | AN45: 0 | AO45: 0 | AP45: 0 | AQ45: 0 | AR45: 6 | AS45: 6 | AT45: 1 | AU45: 0 | AV45: 0 | AW45: 0 | AX45: 2 | AY45: 2 | AZ45: 0 | BA45: 0 | BB45: 1 | BC45: 1 | BD45: 1 | BE45: 0 | BF45: 0 | BG45: 0 | BH45: 0 | BI45: 0 | BJ45: 0 | BK45: 0 | BL45: 0 | BM45: 0 | BN45: 0 | BO45: 0 | BP45: 0 | BQ45: 0 | BR45: 0 | BS45: 0 | BT45: 0 | BU45: 0 | BV45: 0 | BW45: 0 | BX45: 0 | BY45: 0 | BZ45: 0 | CA45: 0 | CB45: 0 | CC45: 0 | CD45: 0 | CE45: 0 | CF45: 0 | CG45: 0 | CH45: 0 | CI45: 0 | CJ45: 0 | CK45: 0 | CL45: 0 | CM45: 0 | CN45: 0 | CO45: 0 | CP45: 0 | CQ45: 0 | CR45: 0 | CS45: 0 | CT45: 0 | CU45: 0 | CV45: 0 | CX45: 0 | CY45: 0 | CZ45: 1870.4 | DA45: 5611.2 | DB45: 5611.2 | DC45: 1870.4 | DD45: 0 | DE45: 0 | DF45: 0 | DG45: 0 | DH45: 0 | DI45: 0 | DJ45: 0 | DK45: 0 | DL45: 9352 | DM45: 0 | DN45: 0 | DO45: 1870.4 | DP45: 1870.4 | DQ45: 0 | DR45: 0 | DS45: 0 | DT45: 3740.8 | DU45: 7481.6 | DV45: 1870.4 | DW45: 0 | DX45: 1870.4 | DY45: 1870.4 | DZ45: 0 | EA45: 0 | EB45: 0 | EC45: 0 | ED45: 0 | EE45: 0 | EF45: 11222.4 | EG45: 11222.4 | EH45: 1870.4 | EI45: 0 | EJ45: 0 | EK45: 0 | EL45: 3740.8 | EM45: 3740.8 | EN45: 0 | EO45: 0 | EP45: 1870.4 | EQ45: 1870.4 | ER45: 1870.4 | ES45: 0 | ET45: 0 | EU45: 0 | EV45: 0 | EW45: 0 | EX45: 0 | EY45: 0 | EZ45: 0 | FA45: 0 | FB45: 0 | FC45: 0 | FD45: 0 | FE45: 0 | FF45: 0 | FG45: 0 | FH45: 0 | FI45: 0 | FJ45: 0 | FK45: 0 | FL45: 0 | FM45: 0 | FN45: 0 | FO45: 0 | FP45: 0 | FQ45: 0 | FR45: 0 | FS45: 0 | FT45: 0 | FU45: 0 | FV45: 0 | FW45: 0 | FX45: 0 | FY45: 0 | FZ45: 0 | GA45: 0 | GB45: 0 | GC45: 0 | GD45: 0 | GE45: 0 | GF45: 0 | GG45: 0 | GH45: 0 | GI45: 0 | GJ45: 0
E46: > 66 kv & < = 132 kv | F46: 0 | G46: 45.08567255 | H46: 6.714586551 | I46: 2 | J46: 0 | K46: 0 | L46: 0 | M46: 0 | N46: 0 | O46: 0 | P46: 0 | Q46: 0 | R46: 0 | S46: 0 | T46: 0 | U46: 0 | V46: 0 | W46: 0 | X46: 0 | Y46: 0 | Z46: 0 | AA46: 0 | AB46: 0 | AC46: 0 | AD46: 0 | AE46: 0 | AF46: 0 | AG46: 0 | AH46: 0 | AI46: 0 | AJ46: 0 | AK46: 0 | AL46: 0 | AM46: 0 | AN46: 0 | AO46: 0 | AP46: 0 | AQ46: 0 | AR46: 0 | AS46: 0 | AT46: 0 | AU46: 0 | AV46: 0 | AW46: 0 | AX46: 0 | AY46: 0 | AZ46: 0 | BA46: 0 | BB46: 0 | BC46: 0 | BD46: 0 | BE46: 0 | BF46: 0 | BG46: 0 | BH46: 0 | BI46: 0 | BJ46: 0 | BK46: 0 | BL46: 0 | BM46: 0 | BN46: 0 | BO46: 0 | BP46: 0 | BQ46: 0 | BR46: 0 | BS46: 0 | BT46: 0 | BU46: 0 | BV46: 0 | BW46: 0 | BX46: 0 | BY46: 0 | BZ46: 0 | CA46: 0 | CB46: 0 | CC46: 0 | CD46: 0 | CE46: 0 | CF46: 0 | CG46: 0 | CH46: 0 | CI46: 0 | CJ46: 0 | CK46: 0 | CL46: 0 | CM46: 0 | CN46: 0 | CO46: 0 | CP46: 0 | CQ46: 0 | CR46: 0 | CS46: 0 | CT46: 0 | CU46: 0 | CV46: 0 | CX46: 0 | CY46: 0 | CZ46: 0 | DA46: 0 | DB46: 0 | DC46: 0 | DD46: 0 | DE46: 0 | DF46: 0 | DG46: 0 | DH46: 0 | DI46: 0 | DJ46: 0 | DK46: 0 | DL46: 0 | DM46: 0 | DN46: 0 | DO46: 0 | DP46: 0 | DQ46: 0 | DR46: 0 | DS46: 0 | DT46: 0 | DU46: 0 | DV46: 0 | DW46: 0 | DX46: 0 | DY46: 0 | DZ46: 0 | EA46: 0 | EB46: 0 | EC46: 0 | ED46: 0 | EE46: 0 | EF46: 0 | EG46: 0 | EH46: 0 | EI46: 0 | EJ46: 0 | EK46: 0 | EL46: 0 | EM46: 0 | EN46: 0 | EO46: 0 | EP46: 0 | EQ46: 0 | ER46: 0 | ES46: 0 | ET46: 0 | EU46: 0 | EV46: 0 | EW46: 0 | EX46: 0 | EY46: 0 | EZ46: 0 | FA46: 0 | FB46: 0 | FC46: 0 | FD46: 0 | FE46: 0 | FF46: 0 | FG46: 0 | FH46: 0 | FI46: 0 | FJ46: 0 | FK46: 0 | FL46: 0 | FM46: 0 | FN46: 0 | FO46: 0 | FP46: 0 | FQ46: 0 | FR46: 0 | FS46: 0 | FT46: 0 | FU46: 0 | FV46: 0 | FW46: 0 | FX46: 0 | FY46: 0 | FZ46: 0 | GA46: 0 | GB46: 0 | GC46: 0 | GD46: 0 | GE46: 0 | GF46: 0 | GG46: 0 | GH46: 0 | GI46: 0 | GJ46: 0
E47: > 132 kv | F47: 0 | G47: 0 | H47: 0 | I47: 2 | J47: 0 | K47: 0 | L47: 0 | M47: 0 | N47: 0 | O47: 0 | P47: 0 | Q47: 0 | R47: 0 | S47: 0 | T47: 0 | U47: 0 | V47: 0 | W47: 0 | X47: 0 | Y47: 0 | Z47: 0 | AA47: 0 | AB47: 0 | AC47: 0 | AD47: 0 | AE47: 0 | AF47: 0 | AG47: 0 | AH47: 0 | AI47: 0 | AJ47: 0 | AK47: 0 | AL47: 0 | AM47: 0 | AN47: 0 | AO47: 0 | AP47: 0 | AQ47: 0 | AR47: 0 | AS47: 0 | AT47: 0 | AU47: 0 | AV47: 0 | AW47: 0 | AX47: 0 | AY47: 0 | AZ47: 0 | BA47: 0 | BB47: 0 | BC47: 0 | BD47: 0 | BE47: 0 | BF47: 0 | BG47: 0 | BH47: 0 | BI47: 0 | BJ47: 0 | BK47: 0 | BL47: 0 | BM47: 0 | BN47: 0 | BO47: 0 | BP47: 0 | BQ47: 0 | BR47: 0 | BS47: 0 | BT47: 0 | BU47: 0 | BV47: 0 | BW47: 0 | BX47: 0 | BY47: 0 | BZ47: 0 | CA47: 0 | CB47: 0 | CC47: 0 | CD47: 0 | CE47: 0 | CF47: 0 | CG47: 0 | CH47: 0 | CI47: 0 | CJ47: 0 | CK47: 0 | CL47: 0 | CM47: 0 | CN47: 0 | CO47: 0 | CP47: 0 | CQ47: 0 | CR47: 0 | CS47: 0 | CT47: 0 | CU47: 0 | CV47: 0 | CX47: 0 | CY47: 0 | CZ47: 0 | DA47: 0 | DB47: 0 | DC47: 0 | DD47: 0 | DE47: 0 | DF47: 0 | DG47: 0 | DH47: 0 | DI47: 0 | DJ47: 0 | DK47: 0 | DL47: 0 | DM47: 0 | DN47: 0 | DO47: 0 | DP47: 0 | DQ47: 0 | DR47: 0 | DS47: 0 | DT47: 0 | DU47: 0 | DV47: 0 | DW47: 0 | DX47: 0 | DY47: 0 | DZ47: 0 | EA47: 0 | EB47: 0 | EC47: 0 | ED47: 0 | EE47: 0 | EF47: 0 | EG47: 0 | EH47: 0 | EI47: 0 | EJ47: 0 | EK47: 0 | EL47: 0 | EM47: 0 | EN47: 0 | EO47: 0 | EP47: 0 | EQ47: 0 | ER47: 0 | ES47: 0 | ET47: 0 | EU47: 0 | EV47: 0 | EW47: 0 | EX47: 0 | EY47: 0 | EZ47: 0 | FA47: 0 | FB47: 0 | FC47: 0 | FD47: 0 | FE47: 0 | FF47: 0 | FG47: 0 | FH47: 0 | FI47: 0 | FJ47: 0 | FK47: 0 | FL47: 0 | FM47: 0 | FN47: 0 | FO47: 0 | FP47: 0 | FQ47: 0 | FR47: 0 | FS47: 0 | FT47: 0 | FU47: 0 | FV47: 0 | FW47: 0 | FX47: 0 | FY47: 0 | FZ47: 0 | GA47: 0 | GB47: 0 | GC47: 0 | GD47: 0 | GE47: 0 | GF47: 0 | GG47: 0 | GH47: 0 | GI47: 0 | GJ47: 0
E48: other | F48: 0 | G48: 0 | H48: 0 | I48: 2 | J48: 0 | K48: 0 | L48: 0 | M48: 0 | N48: 0 | O48: 0 | P48: 0 | Q48: 0 | R48: 0 | S48: 0 | T48: 0 | U48: 0 | V48: 0 | W48: 0 | X48: 0 | Y48: 0 | Z48: 0 | AA48: 0 | AB48: 0 | AC48: 0 | AD48: 0 | AE48: 0 | AF48: 0 | AG48: 0 | AH48: 0 | AI48: 0 | AJ48: 0 | AK48: 0 | AL48: 0 | AM48: 0 | AN48: 0 | AO48: 0 | AP48: 0 | AQ48: 0 | AR48: 0 | AS48: 0 | AT48: 0 | AU48: 0 | AV48: 0 | AW48: 0 | AX48: 0 | AY48: 0 | AZ48: 0 | BA48: 0 | BB48: 0 | BC48: 0 | BD48: 0 | BE48: 0 | BF48: 0 | BG48: 0 | BH48: 0 | BI48: 0 | BJ48: 0 | BK48: 0 | BL48: 0 | BM48: 0 | BN48: 0 | BO48: 0 | BP48: 0 | BQ48: 0 | BR48: 0 | BS48: 0 | BT48: 0 | BU48: 0 | BV48: 0 | BW48: 0 | BX48: 0 | BY48: 0 | BZ48: 0 | CA48: 0 | CB48: 0 | CC48: 0 | CD48: 0 | CE48: 0 | CF48: 0 | CG48: 0 | CH48: 0 | CI48: 0 | CJ48: 0 | CK48: 0 | CL48: 0 | CM48: 0 | CN48: 0 | CO48: 0 | CP48: 0 | CQ48: 0 | CR48: 0 | CS48: 0 | CT48: 0 | CU48: 0 | CV48: 0 | CX48: 0 | CY48: 0 | CZ48: 0 | DA48: 0 | DB48: 0 | DC48: 0 | DD48: 0 | DE48: 0 | DF48: 0 | DG48: 0 | DH48: 0 | DI48: 0 | DJ48: 0 | DK48: 0 | DL48: 0 | DM48: 0 | DN48: 0 | DO48: 0 | DP48: 0 | DQ48: 0 | DR48: 0 | DS48: 0 | DT48: 0 | DU48: 0 | DV48: 0 | DW48: 0 | DX48: 0 | DY48: 0 | DZ48: 0 | EA48: 0 | EB48: 0 | EC48: 0 | ED48: 0 | EE48: 0 | EF48: 0 | EG48: 0 | EH48: 0 | EI48: 0 | EJ48: 0 | EK48: 0 | EL48: 0 | EM48: 0 | EN48: 0 | EO48: 0 | EP48: 0 | EQ48: 0 | ER48: 0 | ES48: 0 | ET48: 0 | EU48: 0 | EV48: 0 | EW48: 0 | EX48: 0 | EY48: 0 | EZ48: 0 | FA48: 0 | FB48: 0 | FC48: 0 | FD48: 0 | FE48: 0 | FF48: 0 | FG48: 0 | FH48: 0 | FI48: 0 | FJ48: 0 | FK48: 0 | FL48: 0 | FM48: 0 | FN48: 0 | FO48: 0 | FP48: 0 | FQ48: 0 | FR48: 0 | FS48: 0 | FT48: 0 | FU48: 0 | FV48: 0 | FW48: 0 | FX48: 0 | FY48: 0 | FZ48: 0 | GA48: 0 | GB48: 0 | GC48: 0 | GD48: 0 | GE48: 0 | GF48: 0 | GG48: 0 | GH48: 0 | GI48: 0 | GJ48: 0
A49: 4 | D49: SERVICE LINES | E49: ˂ = 11 kv ; residential ; simple type | F49: 0.8119 | G49: 62.45972627 | H49: 7.903146606 | I49: 2 | J49: 13315 | K49: 5803 | L49: 6454 | M49: 7928 | N49: 8539 | O49: 8756 | P49: 8607 | Q49: 8302 | R49: 8357 | S49: 8631 | T49: 9607 | U49: 11477 | V49: 13145 | W49: 14986 | X49: 14238 | Y49: 11711 | Z49: 10625 | AA49: 10196 | AB49: 11618 | AC49: 14504 | AD49: 15997 | AE49: 16273 | AF49: 16491 | AG49: 15826 | AH49: 15392 | AI49: 15612 | AJ49: 16043 | AK49: 16566 | AL49: 16276 | AM49: 16247 | AN49: 15054 | AO49: 12707 | AP49: 11648 | AQ49: 10039 | AR49: 7843 | AS49: 6923 | AT49: 7564 | AU49: 11936 | AV49: 15690 | AW49: 15583 | AX49: 17652 | AY49: 14908 | AZ49: 15049 | BA49: 10068 | BB49: 8741 | BC49: 8708 | BD49: 9871 | BE49: 9873 | BF49: 9841 | BG49: 9840 | BH49: 6875 | BI49: 6878 | BJ49: 21947 | BK49: 21950 | BL49: 4216 | BM49: 4209 | BN49: 2098 | BO49: 2098 | BP49: 483 | BQ49: 483 | BR49: 171 | BS49: 171 | BT49: 143 | BU49: 144 | BV49: 85 | BW49: 84 | BX49: 37 | BY49: 37 | BZ49: 11 | CA49: 11 | CB49: 4 | CC49: 4 | CD49: 17 | CE49: 17 | CF49: 0 | CG49: 0 | CH49: 0 | CI49: 0 | CJ49: 0 | CK49: 0 | CL49: 0 | CM49: 0 | CN49: 0 | CO49: 0 | CP49: 0 | CQ49: 0 | CR49: 0 | CS49: 0 | CT49: 0 | CU49: 0 | CV49: 0 | CX49: 10810.4485 | CY49: 4711.4557 | CZ49: 5240.0026 | DA49: 6436.7432 | DB49: 6932.8141 | DC49: 7108.9964 | DD49: 6988.0233 | DE49: 6740.3938 | DF49: 6785.0483 | DG49: 7007.5089 | DH49: 7799.9233 | DI49: 9318.1763 | DJ49: 10672.4255 | DK49: 12167.1334 | DL49: 11559.8322 | DM49: 9508.1609 | DN49: 8626.4375 | DO49: 8278.1324 | DP49: 9432.6542 | DQ49: 11775.7976 | DR49: 12987.9643 | DS49: 13212.0487 | DT49: 13389.0429 | DU49: 12849.1294 | DV49: 12496.7648 | DW49: 12675.3828 | DX49: 13025.3117 | DY49: 13449.9354 | DZ49: 13214.4844 | EA49: 13190.9393 | EB49: 12222.3426 | EC49: 10316.8133 | ED49: 9457.0112 | EE49: 8150.6641 | EF49: 6367.7317 | EG49: 5620.7837 | EH49: 6141.2116 | EI49: 9690.8384 | EJ49: 12738.711 | EK49: 12651.8377 | EL49: 14331.6588 | EM49: 12103.8052 | EN49: 12218.2831 | EO49: 8174.2092 | EP49: 7096.8179 | EQ49: 7070.0252 | ER49: 8014.2649 | ES49: 8015.8887 | ET49: 7989.9079 | EU49: 7989.096 | EV49: 5581.8125 | EW49: 5584.2482 | EX49: 17818.7693 | EY49: 17821.205 | EZ49: 3422.9704 | FA49: 3417.2871 | FB49: 1703.3662 | FC49: 1703.3662 | FD49: 392.1477 | FE49: 392.1477 | FF49: 138.8349 | FG49: 138.8349 | FH49: 116.1017 | FI49: 116.9136 | FJ49: 69.0115 | FK49: 68.1996 | FL49: 30.0403 | FM49: 30.0403 | FN49: 8.9309 | FO49: 8.9309 | FP49: 3.2476 | FQ49: 3.2476 | FR49: 13.8023 | FS49: 13.8023 | FT49: 0 | FU49: 0 | FV49: 0 | FW49: 0 | FX49: 0 | FY49: 0 | FZ49: 0 | GA49: 0 | GB49: 0 | GC49: 0 | GD49: 0 | GE49: 0 | GF49: 0 | GG49: 0 | GH49: 0 | GI49: 0 | GJ49: 0
E50: ˂ = 11 kv ; commercial & industrial ; simple type | F50: 0 | G50: 59.76908414 | H50: 7.731046769 | I50: 2 | J50: 0 | K50: 0 | L50: 0 | M50: 0 | N50: 0 | O50: 0 | P50: 0 | Q50: 0 | R50: 0 | S50: 0 | T50: 0 | U50: 0 | V50: 0 | W50: 0 | X50: 0 | Y50: 0 | Z50: 0 | AA50: 0 | AB50: 0 | AC50: 0 | AD50: 0 | AE50: 0 | AF50: 0 | AG50: 0 | AH50: 0 | AI50: 0 | AJ50: 0 | AK50: 0 | AL50: 0 | AM50: 0 | AN50: 0 | AO50: 0 | AP50: 0 | AQ50: 0 | AR50: 0 | AS50: 0 | AT50: 0 | AU50: 0 | AV50: 0 | AW50: 0 | AX50: 0 | AY50: 0 | AZ50: 0 | BA50: 0 | BB50: 0 | BC50: 0 | BD50: 0 | BE50: 0 | BF50: 0 | BG50: 0 | BH50: 0 | BI50: 0 | BJ50: 0 | BK50: 0 | BL50: 0 | BM50: 0 | BN50: 0 | BO50: 0 | BP50: 0 | BQ50: 0 | BR50: 0 | BS50: 0 | BT50: 0 | BU50: 0 | BV50: 0 | BW50: 0 | BX50: 0 | BY50: 0 | BZ50: 0 | CA50: 0 | CB50: 0 | CC50: 0 | CD50: 0 | CE50: 0 | CF50: 0 | CG50: 0 | CH50: 0 | CI50: 0 | CJ50: 0 | CK50: 0 | CL50: 0 | CM50: 0 | CN50: 0 | CO50: 0 | CP50: 0 | CQ50: 0 | CR50: 0 | CS50: 0 | CT50: 0 | CU50: 0 | CV50: 0 | CX50: 0 | CY50: 0 | CZ50: 0 | DA50: 0 | DB50: 0 | DC50: 0 | DD50: 0 | DE50: 0 | DF50: 0 | DG50: 0 | DH50: 0 | DI50: 0 | DJ50: 0 | DK50: 0 | DL50: 0 | DM50: 0 | DN50: 0 | DO50: 0 | DP50: 0 | DQ50: 0 | DR50: 0 | DS50: 0 | DT50: 0 | DU50: 0 | DV50: 0 | DW50: 0 | DX50: 0 | DY50: 0 | DZ50: 0 | EA50: 0 | EB50: 0 | EC50: 0 | ED50: 0 | EE50: 0 | EF50: 0 | EG50: 0 | EH50: 0 | EI50: 0 | EJ50: 0 | EK50: 0 | EL50: 0 | EM50: 0 | EN50: 0 | EO50: 0 | EP50: 0 | EQ50: 0 | ER50: 0 | ES50: 0 | ET50: 0 | EU50: 0 | EV50: 0 | EW50: 0 | EX50: 0 | EY50: 0 | EZ50: 0 | FA50: 0 | FB50: 0 | FC50: 0 | FD50: 0 | FE50: 0 | FF50: 0 | FG50: 0 | FH50: 0 | FI50: 0 | FJ50: 0 | FK50: 0 | FL50: 0 | FM50: 0 | FN50: 0 | FO50: 0 | FP50: 0 | FQ50: 0 | FR50: 0 | FS50: 0 | FT50: 0 | FU50: 0 | FV50: 0 | FW50: 0 | FX50: 0 | FY50: 0 | FZ50: 0 | GA50: 0 | GB50: 0 | GC50: 0 | GD50: 0 | GE50: 0 | GF50: 0 | GG50: 0 | GH50: 0 | GI50: 0 | GJ50: 0
E51: ˂ = 11 kv ; residential ; complex type | F51: 0 | G51: 0 | H51: 0 | I51: 2 | J51: 0 | K51: 0 | L51: 0 | M51: 0 | N51: 0 | O51: 0 | P51: 0 | Q51: 0 | R51: 0 | S51: 0 | T51: 0 | U51: 0 | V51: 0 | W51: 0 | X51: 0 | Y51: 0 | Z51: 0 | AA51: 0 | AB51: 0 | AC51: 0 | AD51: 0 | AE51: 0 | AF51: 0 | AG51: 0 | AH51: 0 | AI51: 0 | AJ51: 0 | AK51: 0 | AL51: 0 | AM51: 0 | AN51: 0 | AO51: 0 | AP51: 0 | AQ51: 0 | AR51: 0 | AS51: 0 | AT51: 0 | AU51: 0 | AV51: 0 | AW51: 0 | AX51: 0 | AY51: 0 | AZ51: 0 | BA51: 0 | BB51: 0 | BC51: 0 | BD51: 0 | BE51: 0 | BF51: 0 | BG51: 0 | BH51: 0 | BI51: 0 | BJ51: 0 | BK51: 0 | BL51: 0 | BM51: 0 | BN51: 0 | BO51: 0 | BP51: 0 | BQ51: 0 | BR51: 0 | BS51: 0 | BT51: 0 | BU51: 0 | BV51: 0 | BW51: 0 | BX51: 0 | BY51: 0 | BZ51: 0 | CA51: 0 | CB51: 0 | CC51: 0 | CD51: 0 | CE51: 0 | CF51: 0 | CG51: 0 | CH51: 0 | CI51: 0 | CJ51: 0 | CK51: 0 | CL51: 0 | CM51: 0 | CN51: 0 | CO51: 0 | CP51: 0 | CQ51: 0 | CR51: 0 | CS51: 0 | CT51: 0 | CU51: 0 | CV51: 0 | CX51: 0 | CY51: 0 | CZ51: 0 | DA51: 0 | DB51: 0 | DC51: 0 | DD51: 0 | DE51: 0 | DF51: 0 | DG51: 0 | DH51: 0 | DI51: 0 | DJ51: 0 | DK51: 0 | DL51: 0 | DM51: 0 | DN51: 0 | DO51: 0 | DP51: 0 | DQ51: 0 | DR51: 0 | DS51: 0 | DT51: 0 | DU51: 0 | DV51: 0 | DW51: 0 | DX51: 0 | DY51: 0 | DZ51: 0 | EA51: 0 | EB51: 0 | EC51: 0 | ED51: 0 | EE51: 0 | EF51: 0 | EG51: 0 | EH51: 0 | EI51: 0 | EJ51: 0 | EK51: 0 | EL51: 0 | EM51: 0 | EN51: 0 | EO51: 0 | EP51: 0 | EQ51: 0 | ER51: 0 | ES51: 0 | ET51: 0 | EU51: 0 | EV51: 0 | EW51: 0 | EX51: 0 | EY51: 0 | EZ51: 0 | FA51: 0 | FB51: 0 | FC51: 0 | FD51: 0 | FE51: 0 | FF51: 0 | FG51: 0 | FH51: 0 | FI51: 0 | FJ51: 0 | FK51: 0 | FL51: 0 | FM51: 0 | FN51: 0 | FO51: 0 | FP51: 0 | FQ51: 0 | FR51: 0 | FS51: 0 | FT51: 0 | FU51: 0 | FV51: 0 | FW51: 0 | FX51: 0 | FY51: 0 | FZ51: 0 | GA51: 0 | GB51: 0 | GC51: 0 | GD51: 0 | GE51: 0 | GF51: 0 | GG51: 0 | GH51: 0 | GI51: 0 | GJ51: 0
A52: 4 | D52: SERVICE LINES | E52: ˂ = 11 kv ; commercial & industrial ; complex type | F52: 0.6692 | G52: 56.06536246 | H52: 7.487680713 | I52: 2 | J52: 1709 | K52: 901 | L52: 864 | M52: 844 | N52: 831 | O52: 868 | P52: 891 | Q52: 909 | R52: 956 | S52: 922 | T52: 1349 | U52: 1740 | V52: 2211 | W52: 2454 | X52: 2137 | Y52: 2025 | Z52: 1860 | AA52: 2012 | AB52: 2191 | AC52: 2126 | AD52: 1954 | AE52: 1909 | AF52: 1980 | AG52: 2048 | AH52: 2354 | AI52: 2413 | AJ52: 2354 | AK52: 2505 | AL52: 2251 | AM52: 1849 | AN52: 1836 | AO52: 1854 | AP52: 1736 | AQ52: 1608 | AR52: 1305 | AS52: 1070 | AT52: 1020 | AU52: 1111 | AV52: 1213 | AW52: 1197 | AX52: 1320 | AY52: 1181 | AZ52: 1402 | BA52: 933 | BB52: 943 | BC52: 937 | BD52: 1043 | BE52: 1045 | BF52: 1175 | BG52: 1173 | BH52: 781 | BI52: 782 | BJ52: 1481 | BK52: 1483 | BL52: 412 | BM52: 408 | BN52: 206 | BO52: 206 | BP52: 76 | BQ52: 76 | BR52: 30 | BS52: 30 | BT52: 27 | BU52: 27 | BV52: 16 | BW52: 16 | BX52: 9 | BY52: 9 | BZ52: 3 | CA52: 3 | CB52: 0 | CC52: 0 | CD52: 9 | CE52: 9 | CF52: 0 | CG52: 0 | CH52: 0 | CI52: 0 | CJ52: 0 | CK52: 0 | CL52: 0 | CM52: 0 | CN52: 0 | CO52: 0 | CP52: 0 | CQ52: 0 | CR52: 0 | CS52: 0 | CT52: 0 | CU52: 0 | CV52: 0 | CX52: 1143.6628 | CY52: 602.9492 | CZ52: 578.1888 | DA52: 564.8048 | DB52: 556.1052 | DC52: 580.8656 | DD52: 596.2572 | DE52: 608.3028 | DF52: 639.7552 | DG52: 617.0024 | DH52: 902.7508 | DI52: 1164.408 | DJ52: 1479.6012 | DK52: 1642.2168 | DL52: 1430.0804 | DM52: 1355.13 | DN52: 1244.712 | DO52: 1346.4304 | DP52: 1466.2172 | DQ52: 1422.7192 | DR52: 1307.6168 | DS52: 1277.5028 | DT52: 1325.016 | DU52: 1370.5216 | DV52: 1575.2968 | DW52: 1614.7796 | DX52: 1575.2968 | DY52: 1676.346 | DZ52: 1506.3692 | EA52: 1237.3508 | EB52: 1228.6512 | EC52: 1240.6968 | ED52: 1161.7312 | EE52: 1076.0736 | EF52: 873.306 | EG52: 716.044 | EH52: 682.584 | EI52: 743.4812 | EJ52: 811.7396 | EK52: 801.0324 | EL52: 883.344 | EM52: 790.3252 | EN52: 938.2184 | EO52: 624.3636 | EP52: 631.0556 | EQ52: 627.0404 | ER52: 697.9756 | ES52: 699.314 | ET52: 786.31 | EU52: 784.9716 | EV52: 522.6452 | EW52: 523.3144 | EX52: 991.0852 | EY52: 992.4236 | EZ52: 275.7104 | FA52: 273.0336 | FB52: 137.8552 | FC52: 137.8552 | FD52: 50.8592 | FE52: 50.8592 | FF52: 20.076 | FG52: 20.076 | FH52: 18.0684 | FI52: 18.0684 | FJ52: 10.7072 | FK52: 10.7072 | FL52: 6.0228 | FM52: 6.0228 | FN52: 2.0076 | FO52: 2.0076 | FP52: 0 | FQ52: 0 | FR52: 6.0228 | FS52: 6.0228 | FT52: 0 | FU52: 0 | FV52: 0 | FW52: 0 | FX52: 0 | FY52: 0 | FZ52: 0 | GA52: 0 | GB52: 0 | GC52: 0 | GD52: 0 | GE52: 0 | GF52: 0 | GG52: 0 | GH52: 0 | GI52: 0 | GJ52: 0
E53: ˂ = 11 kv ; subdivision ; complex type | F53: 0 | G53: 0 | H53: 0 | I53: 2 | J53: 0 | K53: 0 | L53: 0 | M53: 0 | N53: 0 | O53: 0 | P53: 0 | Q53: 0 | R53: 0 | S53: 0 | T53: 0 | U53: 0 | V53: 0 | W53: 0 | X53: 0 | Y53: 0 | Z53: 0 | AA53: 0 | AB53: 0 | AC53: 0 | AD53: 0 | AE53: 0 | AF53: 0 | AG53: 0 | AH53: 0 | AI53: 0 | AJ53: 0 | AK53: 0 | AL53: 0 | AM53: 0 | AN53: 0 | AO53: 0 | AP53: 0 | AQ53: 0 | AR53: 0 | AS53: 0 | AT53: 0 | AU53: 0 | AV53: 0 | AW53: 0 | AX53: 0 | AY53: 0 | AZ53: 0 | BA53: 0 | BB53: 0 | BC53: 0 | BD53: 0 | BE53: 0 | BF53: 0 | BG53: 0 | BH53: 0 | BI53: 0 | BJ53: 0 | BK53: 0 | BL53: 0 | BM53: 0 | BN53: 0 | BO53: 0 | BP53: 0 | BQ53: 0 | BR53: 0 | BS53: 0 | BT53: 0 | BU53: 0 | BV53: 0 | BW53: 0 | BX53: 0 | BY53: 0 | BZ53: 0 | CA53: 0 | CB53: 0 | CC53: 0 | CD53: 0 | CE53: 0 | CF53: 0 | CG53: 0 | CH53: 0 | CI53: 0 | CJ53: 0 | CK53: 0 | CL53: 0 | CM53: 0 | CN53: 0 | CO53: 0 | CP53: 0 | CQ53: 0 | CR53: 0 | CS53: 0 | CT53: 0 | CU53: 0 | CV53: 0 | CX53: 0 | CY53: 0 | CZ53: 0 | DA53: 0 | DB53: 0 | DC53: 0 | DD53: 0 | DE53: 0 | DF53: 0 | DG53: 0 | DH53: 0 | DI53: 0 | DJ53: 0 | DK53: 0 | DL53: 0 | DM53: 0 | DN53: 0 | DO53: 0 | DP53: 0 | DQ53: 0 | DR53: 0 | DS53: 0 | DT53: 0 | DU53: 0 | DV53: 0 | DW53: 0 | DX53: 0 | DY53: 0 | DZ53: 0 | EA53: 0 | EB53: 0 | EC53: 0 | ED53: 0 | EE53: 0 | EF53: 0 | EG53: 0 | EH53: 0 | EI53: 0 | EJ53: 0 | EK53: 0 | EL53: 0 | EM53: 0 | EN53: 0 | EO53: 0 | EP53: 0 | EQ53: 0 | ER53: 0 | ES53: 0 | ET53: 0 | EU53: 0 | EV53: 0 | EW53: 0 | EX53: 0 | EY53: 0 | EZ53: 0 | FA53: 0 | FB53: 0 | FC53: 0 | FD53: 0 | FE53: 0 | FF53: 0 | FG53: 0 | FH53: 0 | FI53: 0 | FJ53: 0 | FK53: 0 | FL53: 0 | FM53: 0 | FN53: 0 | FO53: 0 | FP53: 0 | FQ53: 0 | FR53: 0 | FS53: 0 | FT53: 0 | FU53: 0 | FV53: 0 | FW53: 0 | FX53: 0 | FY53: 0 | FZ53: 0 | GA53: 0 | GB53: 0 | GC53: 0 | GD53: 0 | GE53: 0 | GF53: 0 | GG53: 0 | GH53: 0 | GI53: 0 | GJ53: 0
E54: > 11 kv & < = 22 kv ; commercial & industrial | F54: 0 | G54: 0 | H54: 0 | I54: 2 | J54: 0 | K54: 0 | L54: 0 | M54: 0 | N54: 0 | O54: 0 | P54: 0 | Q54: 0 | R54: 0 | S54: 0 | T54: 0 | U54: 0 | V54: 0 | W54: 0 | X54: 0 | Y54: 0 | Z54: 0 | AA54: 0 | AB54: 0 | AC54: 0 | AD54: 0 | AE54: 0 | AF54: 0 | AG54: 0 | AH54: 0 | AI54: 0 | AJ54: 0 | AK54: 0 | AL54: 0 | AM54: 0 | AN54: 0 | AO54: 0 | AP54: 0 | AQ54: 0 | AR54: 0 | AS54: 0 | AT54: 0 | AU54: 0 | AV54: 0 | AW54: 0 | AX54: 0 | AY54: 0 | AZ54: 0 | BA54: 0 | BB54: 0 | BC54: 0 | BD54: 0 | BE54: 0 | BF54: 0 | BG54: 0 | BH54: 0 | BI54: 0 | BJ54: 0 | BK54: 0 | BL54: 0 | BM54: 0 | BN54: 0 | BO54: 0 | BP54: 0 | BQ54: 0 | BR54: 0 | BS54: 0 | BT54: 0 | BU54: 0 | BV54: 0 | BW54: 0 | BX54: 0 | BY54: 0 | BZ54: 0 | CA54: 0 | CB54: 0 | CC54: 0 | CD54: 0 | CE54: 0 | CF54: 0 | CG54: 0 | CH54: 0 | CI54: 0 | CJ54: 0 | CK54: 0 | CL54: 0 | CM54: 0 | CN54: 0 | CO54: 0 | CP54: 0 | CQ54: 0 | CR54: 0 | CS54: 0 | CT54: 0 | CU54: 0 | CV54: 0 | CX54: 0 | CY54: 0 | CZ54: 0 | DA54: 0 | DB54: 0 | DC54: 0 | DD54: 0 | DE54: 0 | DF54: 0 | DG54: 0 | DH54: 0 | DI54: 0 | DJ54: 0 | DK54: 0 | DL54: 0 | DM54: 0 | DN54: 0 | DO54: 0 | DP54: 0 | DQ54: 0 | DR54: 0 | DS54: 0 | DT54: 0 | DU54: 0 | DV54: 0 | DW54: 0 | DX54: 0 | DY54: 0 | DZ54: 0 | EA54: 0 | EB54: 0 | EC54: 0 | ED54: 0 | EE54: 0 | EF54: 0 | EG54: 0 | EH54: 0 | EI54: 0 | EJ54: 0 | EK54: 0 | EL54: 0 | EM54: 0 | EN54: 0 | EO54: 0 | EP54: 0 | EQ54: 0 | ER54: 0 | ES54: 0 | ET54: 0 | EU54: 0 | EV54: 0 | EW54: 0 | EX54: 0 | EY54: 0 | EZ54: 0 | FA54: 0 | FB54: 0 | FC54: 0 | FD54: 0 | FE54: 0 | FF54: 0 | FG54: 0 | FH54: 0 | FI54: 0 | FJ54: 0 | FK54: 0 | FL54: 0 | FM54: 0 | FN54: 0 | FO54: 0 | FP54: 0 | FQ54: 0 | FR54: 0 | FS54: 0 | FT54: 0 | FU54: 0 | FV54: 0 | FW54: 0 | FX54: 0 | FY54: 0 | FZ54: 0 | GA54: 0 | GB54: 0 | GC54: 0 | GD54: 0 | GE54: 0 | GF54: 0 | GG54: 0 | GH54: 0 | GI54: 0 | GJ54: 0
E55: > 11 kv & < = 22 kv ; subdivision | F55: 0 | G55: 0 | H55: 0 | I55: 2 | J55: 0 | K55: 0 | L55: 0 | M55: 0 | N55: 0 | O55: 0 | P55: 0 | Q55: 0 | R55: 0 | S55: 0 | T55: 0 | U55: 0 | V55: 0 | W55: 0 | X55: 0 | Y55: 0 | Z55: 0 | AA55: 0 | AB55: 0 | AC55: 0 | AD55: 0 | AE55: 0 | AF55: 0 | AG55: 0 | AH55: 0 | AI55: 0 | AJ55: 0 | AK55: 0 | AL55: 0 | AM55: 0 | AN55: 0 | AO55: 0 | AP55: 0 | AQ55: 0 | AR55: 0 | AS55: 0 | AT55: 0 | AU55: 0 | AV55: 0 | AW55: 0 | AX55: 0 | AY55: 0 | AZ55: 0 | BA55: 0 | BB55: 0 | BC55: 0 | BD55: 0 | BE55: 0 | BF55: 0 | BG55: 0 | BH55: 0 | BI55: 0 | BJ55: 0 | BK55: 0 | BL55: 0 | BM55: 0 | BN55: 0 | BO55: 0 | BP55: 0 | BQ55: 0 | BR55: 0 | BS55: 0 | BT55: 0 | BU55: 0 | BV55: 0 | BW55: 0 | BX55: 0 | BY55: 0 | BZ55: 0 | CA55: 0 | CB55: 0 | CC55: 0 | CD55: 0 | CE55: 0 | CF55: 0 | CG55: 0 | CH55: 0 | CI55: 0 | CJ55: 0 | CK55: 0 | CL55: 0 | CM55: 0 | CN55: 0 | CO55: 0 | CP55: 0 | CQ55: 0 | CR55: 0 | CS55: 0 | CT55: 0 | CU55: 0 | CV55: 0 | CX55: 0 | CY55: 0 | CZ55: 0 | DA55: 0 | DB55: 0 | DC55: 0 | DD55: 0 | DE55: 0 | DF55: 0 | DG55: 0 | DH55: 0 | DI55: 0 | DJ55: 0 | DK55: 0 | DL55: 0 | DM55: 0 | DN55: 0 | DO55: 0 | DP55: 0 | DQ55: 0 | DR55: 0 | DS55: 0 | DT55: 0 | DU55: 0 | DV55: 0 | DW55: 0 | DX55: 0 | DY55: 0 | DZ55: 0 | EA55: 0 | EB55: 0 | EC55: 0 | ED55: 0 | EE55: 0 | EF55: 0 | EG55: 0 | EH55: 0 | EI55: 0 | EJ55: 0 | EK55: 0 | EL55: 0 | EM55: 0 | EN55: 0 | EO55: 0 | EP55: 0 | EQ55: 0 | ER55: 0 | ES55: 0 | ET55: 0 | EU55: 0 | EV55: 0 | EW55: 0 | EX55: 0 | EY55: 0 | EZ55: 0 | FA55: 0 | FB55: 0 | FC55: 0 | FD55: 0 | FE55: 0 | FF55: 0 | FG55: 0 | FH55: 0 | FI55: 0 | FJ55: 0 | FK55: 0 | FL55: 0 | FM55: 0 | FN55: 0 | FO55: 0 | FP55: 0 | FQ55: 0 | FR55: 0 | FS55: 0 | FT55: 0 | FU55: 0 | FV55: 0 | FW55: 0 | FX55: 0 | FY55: 0 | FZ55: 0 | GA55: 0 | GB55: 0 | GC55: 0 | GD55: 0 | GE55: 0 | GF55: 0 | GG55: 0 | GH55: 0 | GI55: 0 | GJ55: 0
E56: > 22 kv & < = 33 kv ; commercial & industrial | F56: 0 | G56: 0 | H56: 0 | I56: 2 | J56: 0 | K56: 0 | L56: 0 | M56: 0 | N56: 0 | O56: 0 | P56: 0 | Q56: 0 | R56: 0 | S56: 0 | T56: 0 | U56: 0 | V56: 0 | W56: 0 | X56: 0 | Y56: 0 | Z56: 0 | AA56: 0 | AB56: 0 | AC56: 0 | AD56: 0 | AE56: 0 | AF56: 0 | AG56: 0 | AH56: 0 | AI56: 0 | AJ56: 0 | AK56: 0 | AL56: 0 | AM56: 0 | AN56: 0 | AO56: 0 | AP56: 0 | AQ56: 0 | AR56: 0 | AS56: 0 | AT56: 0 | AU56: 0 | AV56: 0 | AW56: 0 | AX56: 0 | AY56: 0 | AZ56: 0 | BA56: 0 | BB56: 0 | BC56: 0 | BD56: 0 | BE56: 0 | BF56: 0 | BG56: 0 | BH56: 0 | BI56: 0 | BJ56: 0 | BK56: 0 | BL56: 0 | BM56: 0 | BN56: 0 | BO56: 0 | BP56: 0 | BQ56: 0 | BR56: 0 | BS56: 0 | BT56: 0 | BU56: 0 | BV56: 0 | BW56: 0 | BX56: 0 | BY56: 0 | BZ56: 0 | CA56: 0 | CB56: 0 | CC56: 0 | CD56: 0 | CE56: 0 | CF56: 0 | CG56: 0 | CH56: 0 | CI56: 0 | CJ56: 0 | CK56: 0 | CL56: 0 | CM56: 0 | CN56: 0 | CO56: 0 | CP56: 0 | CQ56: 0 | CR56: 0 | CS56: 0 | CT56: 0 | CU56: 0 | CV56: 0 | CX56: 0 | CY56: 0 | CZ56: 0 | DA56: 0 | DB56: 0 | DC56: 0 | DD56: 0 | DE56: 0 | DF56: 0 | DG56: 0 | DH56: 0 | DI56: 0 | DJ56: 0 | DK56: 0 | DL56: 0 | DM56: 0 | DN56: 0 | DO56: 0 | DP56: 0 | DQ56: 0 | DR56: 0 | DS56: 0 | DT56: 0 | DU56: 0 | DV56: 0 | DW56: 0 | DX56: 0 | DY56: 0 | DZ56: 0 | EA56: 0 | EB56: 0 | EC56: 0 | ED56: 0 | EE56: 0 | EF56: 0 | EG56: 0 | EH56: 0 | EI56: 0 | EJ56: 0 | EK56: 0 | EL56: 0 | EM56: 0 | EN56: 0 | EO56: 0 | EP56: 0 | EQ56: 0 | ER56: 0 | ES56: 0 | ET56: 0 | EU56: 0 | EV56: 0 | EW56: 0 | EX56: 0 | EY56: 0 | EZ56: 0 | FA56: 0 | FB56: 0 | FC56: 0 | FD56: 0 | FE56: 0 | FF56: 0 | FG56: 0 | FH56: 0 | FI56: 0 | FJ56: 0 | FK56: 0 | FL56: 0 | FM56: 0 | FN56: 0 | FO56: 0 | FP56: 0 | FQ56: 0 | FR56: 0 | FS56: 0 | FT56: 0 | FU56: 0 | FV56: 0 | FW56: 0 | FX56: 0 | FY56: 0 | FZ56: 0 | GA56: 0 | GB56: 0 | GC56: 0 | GD56: 0 | GE56: 0 | GF56: 0 | GG56: 0 | GH56: 0 | GI56: 0 | GJ56: 0
E57: > 22 kv & < = 33 kv ; subdivision | F57: 0 | G57: 0 | H57: 0 | I57: 2 | J57: 0 | K57: 0 | L57: 0 | M57: 0 | N57: 0 | O57: 0 | P57: 0 | Q57: 0 | R57: 0 | S57: 0 | T57: 0 | U57: 0 | V57: 0 | W57: 0 | X57: 0 | Y57: 0 | Z57: 0 | AA57: 0 | AB57: 0 | AC57: 0 | AD57: 0 | AE57: 0 | AF57: 0 | AG57: 0 | AH57: 0 | AI57: 0 | AJ57: 0 | AK57: 0 | AL57: 0 | AM57: 0 | AN57: 0 | AO57: 0 | AP57: 0 | AQ57: 0 | AR57: 0 | AS57: 0 | AT57: 0 | AU57: 0 | AV57: 0 | AW57: 0 | AX57: 0 | AY57: 0 | AZ57: 0 | BA57: 0 | BB57: 0 | BC57: 0 | BD57: 0 | BE57: 0 | BF57: 0 | BG57: 0 | BH57: 0 | BI57: 0 | BJ57: 0 | BK57: 0 | BL57: 0 | BM57: 0 | BN57: 0 | BO57: 0 | BP57: 0 | BQ57: 0 | BR57: 0 | BS57: 0 | BT57: 0 | BU57: 0 | BV57: 0 | BW57: 0 | BX57: 0 | BY57: 0 | BZ57: 0 | CA57: 0 | CB57: 0 | CC57: 0 | CD57: 0 | CE57: 0 | CF57: 0 | CG57: 0 | CH57: 0 | CI57: 0 | CJ57: 0 | CK57: 0 | CL57: 0 | CM57: 0 | CN57: 0 | CO57: 0 | CP57: 0 | CQ57: 0 | CR57: 0 | CS57: 0 | CT57: 0 | CU57: 0 | CV57: 0 | CX57: 0 | CY57: 0 | CZ57: 0 | DA57: 0 | DB57: 0 | DC57: 0 | DD57: 0 | DE57: 0 | DF57: 0 | DG57: 0 | DH57: 0 | DI57: 0 | DJ57: 0 | DK57: 0 | DL57: 0 | DM57: 0 | DN57: 0 | DO57: 0 | DP57: 0 | DQ57: 0 | DR57: 0 | DS57: 0 | DT57: 0 | DU57: 0 | DV57: 0 | DW57: 0 | DX57: 0 | DY57: 0 | DZ57: 0 | EA57: 0 | EB57: 0 | EC57: 0 | ED57: 0 | EE57: 0 | EF57: 0 | EG57: 0 | EH57: 0 | EI57: 0 | EJ57: 0 | EK57: 0 | EL57: 0 | EM57: 0 | EN57: 0 | EO57: 0 | EP57: 0 | EQ57: 0 | ER57: 0 | ES57: 0 | ET57: 0 | EU57: 0 | EV57: 0 | EW57: 0 | EX57: 0 | EY57: 0 | EZ57: 0 | FA57: 0 | FB57: 0 | FC57: 0 | FD57: 0 | FE57: 0 | FF57: 0 | FG57: 0 | FH57: 0 | FI57: 0 | FJ57: 0 | FK57: 0 | FL57: 0 | FM57: 0 | FN57: 0 | FO57: 0 | FP57: 0 | FQ57: 0 | FR57: 0 | FS57: 0 | FT57: 0 | FU57: 0 | FV57: 0 | FW57: 0 | FX57: 0 | FY57: 0 | FZ57: 0 | GA57: 0 | GB57: 0 | GC57: 0 | GD57: 0 | GE57: 0 | GF57: 0 | GG57: 0 | GH57: 0 | GI57: 0 | GJ57: 0
E58: > 33 kv & < = 66 kv ; commercial & industrial | F58: 0 | G58: 0 | H58: 0 | I58: 2 | J58: 0 | K58: 0 | L58: 0 | M58: 0 | N58: 0 | O58: 0 | P58: 0 | Q58: 0 | R58: 0 | S58: 0 | T58: 0 | U58: 0 | V58: 0 | W58: 0 | X58: 0 | Y58: 0 | Z58: 0 | AA58: 0 | AB58: 0 | AC58: 0 | AD58: 0 | AE58: 0 | AF58: 0 | AG58: 0 | AH58: 0 | AI58: 0 | AJ58: 0 | AK58: 0 | AL58: 0 | AM58: 0 | AN58: 0 | AO58: 0 | AP58: 0 | AQ58: 0 | AR58: 0 | AS58: 0 | AT58: 0 | AU58: 0 | AV58: 0 | AW58: 0 | AX58: 0 | AY58: 0 | AZ58: 0 | BA58: 0 | BB58: 0 | BC58: 0 | BD58: 0 | BE58: 0 | BF58: 0 | BG58: 0 | BH58: 0 | BI58: 0 | BJ58: 0 | BK58: 0 | BL58: 0 | BM58: 0 | BN58: 0 | BO58: 0 | BP58: 0 | BQ58: 0 | BR58: 0 | BS58: 0 | BT58: 0 | BU58: 0 | BV58: 0 | BW58: 0 | BX58: 0 | BY58: 0 | BZ58: 0 | CA58: 0 | CB58: 0 | CC58: 0 | CD58: 0 | CE58: 0 | CF58: 0 | CG58: 0 | CH58: 0 | CI58: 0 | CJ58: 0 | CK58: 0 | CL58: 0 | CM58: 0 | CN58: 0 | CO58: 0 | CP58: 0 | CQ58: 0 | CR58: 0 | CS58: 0 | CT58: 0 | CU58: 0 | CV58: 0 | CX58: 0 | CY58: 0 | CZ58: 0 | DA58: 0 | DB58: 0 | DC58: 0 | DD58: 0 | DE58: 0 | DF58: 0 | DG58: 0 | DH58: 0 | DI58: 0 | DJ58: 0 | DK58: 0 | DL58: 0 | DM58: 0 | DN58: 0 | DO58: 0 | DP58: 0 | DQ58: 0 | DR58: 0 | DS58: 0 | DT58: 0 | DU58: 0 | DV58: 0 | DW58: 0 | DX58: 0 | DY58: 0 | DZ58: 0 | EA58: 0 | EB58: 0 | EC58: 0 | ED58: 0 | EE58: 0 | EF58: 0 | EG58: 0 | EH58: 0 | EI58: 0 | EJ58: 0 | EK58: 0 | EL58: 0 | EM58: 0 | EN58: 0 | EO58: 0 | EP58: 0 | EQ58: 0 | ER58: 0 | ES58: 0 | ET58: 0 | EU58: 0 | EV58: 0 | EW58: 0 | EX58: 0 | EY58: 0 | EZ58: 0 | FA58: 0 | FB58: 0 | FC58: 0 | FD58: 0 | FE58: 0 | FF58: 0 | FG58: 0 | FH58: 0 | FI58: 0 | FJ58: 0 | FK58: 0 | FL58: 0 | FM58: 0 | FN58: 0 | FO58: 0 | FP58: 0 | FQ58: 0 | FR58: 0 | FS58: 0 | FT58: 0 | FU58: 0 | FV58: 0 | FW58: 0 | FX58: 0 | FY58: 0 | FZ58: 0 | GA58: 0 | GB58: 0 | GC58: 0 | GD58: 0 | GE58: 0 | GF58: 0 | GG58: 0 | GH58: 0 | GI58: 0 | GJ58: 0
E59: > 33 kv & < = 66 kv ; subdivision | F59: 0 | G59: 0 | H59: 0 | I59: 2 | J59: 0 | K59: 0 | L59: 0 | M59: 0 | N59: 0 | O59: 0 | P59: 0 | Q59: 0 | R59: 0 | S59: 0 | T59: 0 | U59: 0 | V59: 0 | W59: 0 | X59: 0 | Y59: 0 | Z59: 0 | AA59: 0 | AB59: 0 | AC59: 0 | AD59: 0 | AE59: 0 | AF59: 0 | AG59: 0 | AH59: 0 | AI59: 0 | AJ59: 0 | AK59: 0 | AL59: 0 | AM59: 0 | AN59: 0 | AO59: 0 | AP59: 0 | AQ59: 0 | AR59: 0 | AS59: 0 | AT59: 0 | AU59: 0 | AV59: 0 | AW59: 0 | AX59: 0 | AY59: 0 | AZ59: 0 | BA59: 0 | BB59: 0 | BC59: 0 | BD59: 0 | BE59: 0 | BF59: 0 | BG59: 0 | BH59: 0 | BI59: 0 | BJ59: 0 | BK59: 0 | BL59: 0 | BM59: 0 | BN59: 0 | BO59: 0 | BP59: 0 | BQ59: 0 | BR59: 0 | BS59: 0 | BT59: 0 | BU59: 0 | BV59: 0 | BW59: 0 | BX59: 0 | BY59: 0 | BZ59: 0 | CA59: 0 | CB59: 0 | CC59: 0 | CD59: 0 | CE59: 0 | CF59: 0 | CG59: 0 | CH59: 0 | CI59: 0 | CJ59: 0 | CK59: 0 | CL59: 0 | CM59: 0 | CN59: 0 | CO59: 0 | CP59: 0 | CQ59: 0 | CR59: 0 | CS59: 0 | CT59: 0 | CU59: 0 | CV59: 0 | CX59: 0 | CY59: 0 | CZ59: 0 | DA59: 0 | DB59: 0 | DC59: 0 | DD59: 0 | DE59: 0 | DF59: 0 | DG59: 0 | DH59: 0 | DI59: 0 | DJ59: 0 | DK59: 0 | DL59: 0 | DM59: 0 | DN59: 0 | DO59: 0 | DP59: 0 | DQ59: 0 | DR59: 0 | DS59: 0 | DT59: 0 | DU59: 0 | DV59: 0 | DW59: 0 | DX59: 0 | DY59: 0 | DZ59: 0 | EA59: 0 | EB59: 0 | EC59: 0 | ED59: 0 | EE59: 0 | EF59: 0 | EG59: 0 | EH59: 0 | EI59: 0 | EJ59: 0 | EK59: 0 | EL59: 0 | EM59: 0 | EN59: 0 | EO59: 0 | EP59: 0 | EQ59: 0 | ER59: 0 | ES59: 0 | ET59: 0 | EU59: 0 | EV59: 0 | EW59: 0 | EX59: 0 | EY59: 0 | EZ59: 0 | FA59: 0 | FB59: 0 | FC59: 0 | FD59: 0 | FE59: 0 | FF59: 0 | FG59: 0 | FH59: 0 | FI59: 0 | FJ59: 0 | FK59: 0 | FL59: 0 | FM59: 0 | FN59: 0 | FO59: 0 | FP59: 0 | FQ59: 0 | FR59: 0 | FS59: 0 | FT59: 0 | FU59: 0 | FV59: 0 | FW59: 0 | FX59: 0 | FY59: 0 | FZ59: 0 | GA59: 0 | GB59: 0 | GC59: 0 | GD59: 0 | GE59: 0 | GF59: 0 | GG59: 0 | GH59: 0 | GI59: 0 | GJ59: 0
E60: > 66 kv & < = 132 kv ; commercial & industrial | F60: 0 | G60: 0 | H60: 0 | I60: 2 | J60: 0 | K60: 0 | L60: 0 | M60: 0 | N60: 0 | O60: 0 | P60: 0 | Q60: 0 | R60: 0 | S60: 0 | T60: 0 | U60: 0 | V60: 0 | W60: 0 | X60: 0 | Y60: 0 | Z60: 0 | AA60: 0 | AB60: 0 | AC60: 0 | AD60: 0 | AE60: 0 | AF60: 0 | AG60: 0 | AH60: 0 | AI60: 0 | AJ60: 0 | AK60: 0 | AL60: 0 | AM60: 0 | AN60: 0 | AO60: 0 | AP60: 0 | AQ60: 0 | AR60: 0 | AS60: 0 | AT60: 0 | AU60: 0 | AV60: 0 | AW60: 0 | AX60: 0 | AY60: 0 | AZ60: 0 | BA60: 0 | BB60: 0 | BC60: 0 | BD60: 0 | BE60: 0 | BF60: 0 | BG60: 0 | BH60: 0 | BI60: 0 | BJ60: 0 | BK60: 0 | BL60: 0 | BM60: 0 | BN60: 0 | BO60: 0 | BP60: 0 | BQ60: 0 | BR60: 0 | BS60: 0 | BT60: 0 | BU60: 0 | BV60: 0 | BW60: 0 | BX60: 0 | BY60: 0 | BZ60: 0 | CA60: 0 | CB60: 0 | CC60: 0 | CD60: 0 | CE60: 0 | CF60: 0 | CG60: 0 | CH60: 0 | CI60: 0 | CJ60: 0 | CK60: 0 | CL60: 0 | CM60: 0 | CN60: 0 | CO60: 0 | CP60: 0 | CQ60: 0 | CR60: 0 | CS60: 0 | CT60: 0 | CU60: 0 | CV60: 0 | CX60: 0 | CY60: 0 | CZ60: 0 | DA60: 0 | DB60: 0 | DC60: 0 | DD60: 0 | DE60: 0 | DF60: 0 | DG60: 0 | DH60: 0 | DI60: 0 | DJ60: 0 | DK60: 0 | DL60: 0 | DM60: 0 | DN60: 0 | DO60: 0 | DP60: 0 | DQ60: 0 | DR60: 0 | DS60: 0 | DT60: 0 | DU60: 0 | DV60: 0 | DW60: 0 | DX60: 0 | DY60: 0 | DZ60: 0 | EA60: 0 | EB60: 0 | EC60: 0 | ED60: 0 | EE60: 0 | EF60: 0 | EG60: 0 | EH60: 0 | EI60: 0 | EJ60: 0 | EK60: 0 | EL60: 0 | EM60: 0 | EN60: 0 | EO60: 0 | EP60: 0 | EQ60: 0 | ER60: 0 | ES60: 0 | ET60: 0 | EU60: 0 | EV60: 0 | EW60: 0 | EX60: 0 | EY60: 0 | EZ60: 0 | FA60: 0 | FB60: 0 | FC60: 0 | FD60: 0 | FE60: 0 | FF60: 0 | FG60: 0 | FH60: 0 | FI60: 0 | FJ60: 0 | FK60: 0 | FL60: 0 | FM60: 0 | FN60: 0 | FO60: 0 | FP60: 0 | FQ60: 0 | FR60: 0 | FS60: 0 | FT60: 0 | FU60: 0 | FV60: 0 | FW60: 0 | FX60: 0 | FY60: 0 | FZ60: 0 | GA60: 0 | GB60: 0 | GC60: 0 | GD60: 0 | GE60: 0 | GF60: 0 | GG60: 0 | GH60: 0 | GI60: 0 | GJ60: 0
E61: > 66 kv & < = 132 kv ; subdivision | F61: 0 | G61: 0 | H61: 0 | I61: 2 | J61: 0 | K61: 0 | L61: 0 | M61: 0 | N61: 0 | O61: 0 | P61: 0 | Q61: 0 | R61: 0 | S61: 0 | T61: 0 | U61: 0 | V61: 0 | W61: 0 | X61: 0 | Y61: 0 | Z61: 0 | AA61: 0 | AB61: 0 | AC61: 0 | AD61: 0 | AE61: 0 | AF61: 0 | AG61: 0 | AH61: 0 | AI61: 0 | AJ61: 0 | AK61: 0 | AL61: 0 | AM61: 0 | AN61: 0 | AO61: 0 | AP61: 0 | AQ61: 0 | AR61: 0 | AS61: 0 | AT61: 0 | AU61: 0 | AV61: 0 | AW61: 0 | AX61: 0 | AY61: 0 | AZ61: 0 | BA61: 0 | BB61: 0 | BC61: 0 | BD61: 0 | BE61: 0 | BF61: 0 | BG61: 0 | BH61: 0 | BI61: 0 | BJ61: 0 | BK61: 0 | BL61: 0 | BM61: 0 | BN61: 0 | BO61: 0 | BP61: 0 | BQ61: 0 | BR61: 0 | BS61: 0 | BT61: 0 | BU61: 0 | BV61: 0 | BW61: 0 | BX61: 0 | BY61: 0 | BZ61: 0 | CA61: 0 | CB61: 0 | CC61: 0 | CD61: 0 | CE61: 0 | CF61: 0 | CG61: 0 | CH61: 0 | CI61: 0 | CJ61: 0 | CK61: 0 | CL61: 0 | CM61: 0 | CN61: 0 | CO61: 0 | CP61: 0 | CQ61: 0 | CR61: 0 | CS61: 0 | CT61: 0 | CU61: 0 | CV61: 0 | CX61: 0 | CY61: 0 | CZ61: 0 | DA61: 0 | DB61: 0 | DC61: 0 | DD61: 0 | DE61: 0 | DF61: 0 | DG61: 0 | DH61: 0 | DI61: 0 | DJ61: 0 | DK61: 0 | DL61: 0 | DM61: 0 | DN61: 0 | DO61: 0 | DP61: 0 | DQ61: 0 | DR61: 0 | DS61: 0 | DT61: 0 | DU61: 0 | DV61: 0 | DW61: 0 | DX61: 0 | DY61: 0 | DZ61: 0 | EA61: 0 | EB61: 0 | EC61: 0 | ED61: 0 | EE61: 0 | EF61: 0 | EG61: 0 | EH61: 0 | EI61: 0 | EJ61: 0 | EK61: 0 | EL61: 0 | EM61: 0 | EN61: 0 | EO61: 0 | EP61: 0 | EQ61: 0 | ER61: 0 | ES61: 0 | ET61: 0 | EU61: 0 | EV61: 0 | EW61: 0 | EX61: 0 | EY61: 0 | EZ61: 0 | FA61: 0 | FB61: 0 | FC61: 0 | FD61: 0 | FE61: 0 | FF61: 0 | FG61: 0 | FH61: 0 | FI61: 0 | FJ61: 0 | FK61: 0 | FL61: 0 | FM61: 0 | FN61: 0 | FO61: 0 | FP61: 0 | FQ61: 0 | FR61: 0 | FS61: 0 | FT61: 0 | FU61: 0 | FV61: 0 | FW61: 0 | FX61: 0 | FY61: 0 | FZ61: 0 | GA61: 0 | GB61: 0 | GC61: 0 | GD61: 0 | GE61: 0 | GF61: 0 | GG61: 0 | GH61: 0 | GI61: 0 | GJ61: 0
E62: > 132 kv ; commercial & industrial | F62: 0 | G62: 0 | H62: 0 | I62: 2 | J62: 0 | K62: 0 | L62: 0 | M62: 0 | N62: 0 | O62: 0 | P62: 0 | Q62: 0 | R62: 0 | S62: 0 | T62: 0 | U62: 0 | V62: 0 | W62: 0 | X62: 0 | Y62: 0 | Z62: 0 | AA62: 0 | AB62: 0 | AC62: 0 | AD62: 0 | AE62: 0 | AF62: 0 | AG62: 0 | AH62: 0 | AI62: 0 | AJ62: 0 | AK62: 0 | AL62: 0 | AM62: 0 | AN62: 0 | AO62: 0 | AP62: 0 | AQ62: 0 | AR62: 0 | AS62: 0 | AT62: 0 | AU62: 0 | AV62: 0 | AW62: 0 | AX62: 0 | AY62: 0 | AZ62: 0 | BA62: 0 | BB62: 0 | BC62: 0 | BD62: 0 | BE62: 0 | BF62: 0 | BG62: 0 | BH62: 0 | BI62: 0 | BJ62: 0 | BK62: 0 | BL62: 0 | BM62: 0 | BN62: 0 | BO62: 0 | BP62: 0 | BQ62: 0 | BR62: 0 | BS62: 0 | BT62: 0 | BU62: 0 | BV62: 0 | BW62: 0 | BX62: 0 | BY62: 0 | BZ62: 0 | CA62: 0 | CB62: 0 | CC62: 0 | CD62: 0 | CE62: 0 | CF62: 0 | CG62: 0 | CH62: 0 | CI62: 0 | CJ62: 0 | CK62: 0 | CL62: 0 | CM62: 0 | CN62: 0 | CO62: 0 | CP62: 0 | CQ62: 0 | CR62: 0 | CS62: 0 | CT62: 0 | CU62: 0 | CV62: 0 | CX62: 0 | CY62: 0 | CZ62: 0 | DA62: 0 | DB62: 0 | DC62: 0 | DD62: 0 | DE62: 0 | DF62: 0 | DG62: 0 | DH62: 0 | DI62: 0 | DJ62: 0 | DK62: 0 | DL62: 0 | DM62: 0 | DN62: 0 | DO62: 0 | DP62: 0 | DQ62: 0 | DR62: 0 | DS62: 0 | DT62: 0 | DU62: 0 | DV62: 0 | DW62: 0 | DX62: 0 | DY62: 0 | DZ62: 0 | EA62: 0 | EB62: 0 | EC62: 0 | ED62: 0 | EE62: 0 | EF62: 0 | EG62: 0 | EH62: 0 | EI62: 0 | EJ62: 0 | EK62: 0 | EL62: 0 | EM62: 0 | EN62: 0 | EO62: 0 | EP62: 0 | EQ62: 0 | ER62: 0 | ES62: 0 | ET62: 0 | EU62: 0 | EV62: 0 | EW62: 0 | EX62: 0 | EY62: 0 | EZ62: 0 | FA62: 0 | FB62: 0 | FC62: 0 | FD62: 0 | FE62: 0 | FF62: 0 | FG62: 0 | FH62: 0 | FI62: 0 | FJ62: 0 | FK62: 0 | FL62: 0 | FM62: 0 | FN62: 0 | FO62: 0 | FP62: 0 | FQ62: 0 | FR62: 0 | FS62: 0 | FT62: 0 | FU62: 0 | FV62: 0 | FW62: 0 | FX62: 0 | FY62: 0 | FZ62: 0 | GA62: 0 | GB62: 0 | GC62: 0 | GD62: 0 | GE62: 0 | GF62: 0 | GG62: 0 | GH62: 0 | GI62: 0 | GJ62: 0
E63: > 132 kv ; subdivision | F63: 0 | G63: 0 | H63: 0 | I63: 2 | J63: 0 | K63: 0 | L63: 0 | M63: 0 | N63: 0 | O63: 0 | P63: 0 | Q63: 0 | R63: 0 | S63: 0 | T63: 0 | U63: 0 | V63: 0 | W63: 0 | X63: 0 | Y63: 0 | Z63: 0 | AA63: 0 | AB63: 0 | AC63: 0 | AD63: 0 | AE63: 0 | AF63: 0 | AG63: 0 | AH63: 0 | AI63: 0 | AJ63: 0 | AK63: 0 | AL63: 0 | AM63: 0 | AN63: 0 | AO63: 0 | AP63: 0 | AQ63: 0 | AR63: 0 | AS63: 0 | AT63: 0 | AU63: 0 | AV63: 0 | AW63: 0 | AX63: 0 | AY63: 0 | AZ63: 0 | BA63: 0 | BB63: 0 | BC63: 0 | BD63: 0 | BE63: 0 | BF63: 0 | BG63: 0 | BH63: 0 | BI63: 0 | BJ63: 0 | BK63: 0 | BL63: 0 | BM63: 0 | BN63: 0 | BO63: 0 | BP63: 0 | BQ63: 0 | BR63: 0 | BS63: 0 | BT63: 0 | BU63: 0 | BV63: 0 | BW63: 0 | BX63: 0 | BY63: 0 | BZ63: 0 | CA63: 0 | CB63: 0 | CC63: 0 | CD63: 0 | CE63: 0 | CF63: 0 | CG63: 0 | CH63: 0 | CI63: 0 | CJ63: 0 | CK63: 0 | CL63: 0 | CM63: 0 | CN63: 0 | CO63: 0 | CP63: 0 | CQ63: 0 | CR63: 0 | CS63: 0 | CT63: 0 | CU63: 0 | CV63: 0 | CX63: 0 | CY63: 0 | CZ63: 0 | DA63: 0 | DB63: 0 | DC63: 0 | DD63: 0 | DE63: 0 | DF63: 0 | DG63: 0 | DH63: 0 | DI63: 0 | DJ63: 0 | DK63: 0 | DL63: 0 | DM63: 0 | DN63: 0 | DO63: 0 | DP63: 0 | DQ63: 0 | DR63: 0 | DS63: 0 | DT63: 0 | DU63: 0 | DV63: 0 | DW63: 0 | DX63: 0 | DY63: 0 | DZ63: 0 | EA63: 0 | EB63: 0 | EC63: 0 | ED63: 0 | EE63: 0 | EF63: 0 | EG63: 0 | EH63: 0 | EI63: 0 | EJ63: 0 | EK63: 0 | EL63: 0 | EM63: 0 | EN63: 0 | EO63: 0 | EP63: 0 | EQ63: 0 | ER63: 0 | ES63: 0 | ET63: 0 | EU63: 0 | EV63: 0 | EW63: 0 | EX63: 0 | EY63: 0 | EZ63: 0 | FA63: 0 | FB63: 0 | FC63: 0 | FD63: 0 | FE63: 0 | FF63: 0 | FG63: 0 | FH63: 0 | FI63: 0 | FJ63: 0 | FK63: 0 | FL63: 0 | FM63: 0 | FN63: 0 | FO63: 0 | FP63: 0 | FQ63: 0 | FR63: 0 | FS63: 0 | FT63: 0 | FU63: 0 | FV63: 0 | FW63: 0 | FX63: 0 | FY63: 0 | FZ63: 0 | GA63: 0 | GB63: 0 | GC63: 0 | GD63: 0 | GE63: 0 | GF63: 0 | GG63: 0 | GH63: 0 | GI63: 0 | GJ63: 0
E64: other | F64: 0 | G64: 0 | H64: 0 | I64: 2 | J64: 0 | K64: 0 | L64: 0 | M64: 0 | N64: 0 | O64: 0 | P64: 0 | Q64: 0 | R64: 0 | S64: 0 | T64: 0 | U64: 0 | V64: 0 | W64: 0 | X64: 0 | Y64: 0 | Z64: 0 | AA64: 0 | AB64: 0 | AC64: 0 | AD64: 0 | AE64: 0 | AF64: 0 | AG64: 0 | AH64: 0 | AI64: 0 | AJ64: 0 | AK64: 0 | AL64: 0 | AM64: 0 | AN64: 0 | AO64: 0 | AP64: 0 | AQ64: 0 | AR64: 0 | AS64: 0 | AT64: 0 | AU64: 0 | AV64: 0 | AW64: 0 | AX64: 0 | AY64: 0 | AZ64: 0 | BA64: 0 | BB64: 0 | BC64: 0 | BD64: 0 | BE64: 0 | BF64: 0 | BG64: 0 | BH64: 0 | BI64: 0 | BJ64: 0 | BK64: 0 | BL64: 0 | BM64: 0 | BN64: 0 | BO64: 0 | BP64: 0 | BQ64: 0 | BR64: 0 | BS64: 0 | BT64: 0 | BU64: 0 | BV64: 0 | BW64: 0 | BX64: 0 | BY64: 0 | BZ64: 0 | CA64: 0 | CB64: 0 | CC64: 0 | CD64: 0 | CE64: 0 | CF64: 0 | CG64: 0 | CH64: 0 | CI64: 0 | CJ64: 0 | CK64: 0 | CL64: 0 | CM64: 0 | CN64: 0 | CO64: 0 | CP64: 0 | CQ64: 0 | CR64: 0 | CS64: 0 | CT64: 0 | CU64: 0 | CV64: 0 | CX64: 0 | CY64: 0 | CZ64: 0 | DA64: 0 | DB64: 0 | DC64: 0 | DD64: 0 | DE64: 0 | DF64: 0 | DG64: 0 | DH64: 0 | DI64: 0 | DJ64: 0 | DK64: 0 | DL64: 0 | DM64: 0 | DN64: 0 | DO64: 0 | DP64: 0 | DQ64: 0 | DR64: 0 | DS64: 0 | DT64: 0 | DU64: 0 | DV64: 0 | DW64: 0 | DX64: 0 | DY64: 0 | DZ64: 0 | EA64: 0 | EB64: 0 | EC64: 0 | ED64: 0 | EE64: 0 | EF64: 0 | EG64: 0 | EH64: 0 | EI64: 0 | EJ64: 0 | EK64: 0 | EL64: 0 | EM64: 0 | EN64: 0 | EO64: 0 | EP64: 0 | EQ64: 0 | ER64: 0 | ES64: 0 | ET64: 0 | EU64: 0 | EV64: 0 | EW64: 0 | EX64: 0 | EY64: 0 | EZ64: 0 | FA64: 0 | FB64: 0 | FC64: 0 | FD64: 0 | FE64: 0 | FF64: 0 | FG64: 0 | FH64: 0 | FI64: 0 | FJ64: 0 | FK64: 0 | FL64: 0 | FM64: 0 | FN64: 0 | FO64: 0 | FP64: 0 | FQ64: 0 | FR64: 0 | FS64: 0 | FT64: 0 | FU64: 0 | FV64: 0 | FW64: 0 | FX64: 0 | FY64: 0 | FZ64: 0 | GA64: 0 | GB64: 0 | GC64: 0 | GD64: 0 | GE64: 0 | GF64: 0 | GG64: 0 | GH64: 0 | GI64: 0 | GJ64: 0
A65: 5 | D65: TRANSFORMERS | E65: pole mounted ; < = 22kv ; < = 60 kva ; single phase | F65: 5.6766 | G65: 52.4380686 | H65: 7.241413439 | I65: 2 | J65: 301 | K65: 210 | L65: 311 | M65: 349 | N65: 366 | O65: 386 | P65: 411 | Q65: 442 | R65: 455 | S65: 440 | T65: 423 | U65: 467 | V65: 512 | W65: 600 | X65: 663 | Y65: 588 | Z65: 556 | AA65: 600 | AB65: 739 | AC65: 1026 | AD65: 1027 | AE65: 834 | AF65: 963 | AG65: 1244 | AH65: 1166 | AI65: 928 | AJ65: 942 | AK65: 976 | AL65: 1051 | AM65: 1066 | AN65: 1041 | AO65: 1107 | AP65: 1109 | AQ65: 1006 | AR65: 884 | AS65: 794 | AT65: 699 | AU65: 711 | AV65: 942 | AW65: 878 | AX65: 616 | AY65: 585 | AZ65: 661 | BA65: 963 | BB65: 939 | BC65: 603 | BD65: 523 | BE65: 661 | BF65: 844 | BG65: 712 | BH65: 502 | BI65: 516 | BJ65: 496 | BK65: 591 | BL65: 539 | BM65: 519 | BN65: 409 | BO65: 148 | BP65: 319 | BQ65: 215 | BR65: 17 | BS65: 9 | BT65: 3 | BU65: 4 | BV65: 2 | BW65: 1 | BX65: 1 | BY65: 0 | BZ65: 0 | CA65: 0 | CB65: 0 | CC65: 0 | CD65: 0 | CE65: 0 | CF65: 1 | CG65: 1 | CH65: 1 | CI65: 0 | CJ65: 0 | CK65: 0 | CL65: 0 | CM65: 1 | CN65: 1 | CO65: 0 | CP65: 0 | CQ65: 0 | CR65: 0 | CS65: 0 | CT65: 0 | CU65: 0 | CV65: 0 | CX65: 1708.6566 | CY65: 1192.086 | CZ65: 1765.4226 | DA65: 1981.1334 | DB65: 2077.6356 | DC65: 2191.1676 | DD65: 2333.0826 | DE65: 2509.0572 | DF65: 2582.853 | DG65: 2497.704 | DH65: 2401.2018 | DI65: 2650.9722 | DJ65: 2906.4192 | DK65: 3405.96 | DL65: 3763.5858 | DM65: 3337.8408 | DN65: 3156.1896 | DO65: 3405.96 | DP65: 4195.0074 | DQ65: 5824.1916 | DR65: 5829.8682 | DS65: 4734.2844 | DT65: 5466.5658 | DU65: 7061.6904 | DV65: 6618.9156 | DW65: 5267.8848 | DX65: 5347.3572 | DY65: 5540.3616 | DZ65: 5966.1066 | EA65: 6051.2556 | EB65: 5909.3406 | EC65: 6283.9962 | ED65: 6295.3494 | EE65: 5710.6596 | EF65: 5018.1144 | EG65: 4507.2204 | EH65: 3967.9434 | EI65: 4036.0626 | EJ65: 5347.3572 | EK65: 4984.0548 | EL65: 3496.7856 | EM65: 3320.811 | EN65: 3752.2326 | EO65: 5466.5658 | EP65: 5330.3274 | EQ65: 3422.9898 | ER65: 2968.8618 | ES65: 3752.2326 | ET65: 4791.0504 | EU65: 4041.7392 | EV65: 2849.6532 | EW65: 2929.1256 | EX65: 2815.5936 | EY65: 3354.8706 | EZ65: 3059.6874 | FA65: 2946.1554 | FB65: 2321.7294 | FC65: 840.1368 | FD65: 1810.8354 | FE65: 1220.469 | FF65: 96.5022 | FG65: 51.0894 | FH65: 17.0298 | FI65: 22.7064 | FJ65: 11.3532 | FK65: 5.6766 | FL65: 5.6766 | FM65: 0 | FN65: 0 | FO65: 0 | FP65: 0 | FQ65: 0 | FR65: 0 | FS65: 0 | FT65: 5.6766 | FU65: 5.6766 | FV65: 5.6766 | FW65: 0 | FX65: 0 | FY65: 0 | FZ65: 0 | GA65: 5.6766 | GB65: 5.6766 | GC65: 0 | GD65: 0 | GE65: 0 | GF65: 0 | GG65: 0 | GH65: 0 | GI65: 0 | GJ65: 0
A66: 5 | D66: TRANSFORMERS | E66: pole mounted ; < = 22kv ; > 600 kva ; single phase | F66: 0.0001 | G66: 105.0627657 | H66: 10.25001296 | I66: 2 | J66: 0 | K66: 0 | L66: 0 | M66: 0 | N66: 0 | O66: 1 | P66: 1 | Q66: 1 | R66: 1 | S66: 1 | T66: 1 | U66: 1 | V66: 1 | W66: 1 | X66: 1 | Y66: 1 | Z66: 1 | AA66: 0 | AB66: 0 | AC66: 0 | AD66: 1 | AE66: 1 | AF66: 0 | AG66: 0 | AH66: 1 | AI66: 2 | AJ66: 2 | AK66: 1 | AL66: 0 | AM66: 0 | AN66: 0 | AO66: 2 | AP66: 3 | AQ66: 2 | AR66: 1 | AS66: 4 | AT66: 8 | AU66: 5 | AV66: 2 | AW66: 4 | AX66: 2 | AY66: 0 | AZ66: 4 | BA66: 29 | BB66: 26 | BC66: 1 | BD66: 2 | BE66: 6 | BF66: 8 | BG66: 6 | BH66: 4 | BI66: 13 | BJ66: 11 | BK66: 6 | BL66: 6 | BM66: 6 | BN66: 8 | BO66: 7 | BP66: 13 | BQ66: 8 | BR66: 1 | BS66: 1 | BT66: 0 | BU66: 1 | BV66: 1 | BW66: 0 | BX66: 0 | BY66: 0 | BZ66: 0 | CA66: 0 | CB66: 0 | CC66: 0 | CD66: 0 | CE66: 0 | CF66: 0 | CG66: 0 | CH66: 0 | CI66: 0 | CJ66: 0 | CK66: 0 | CL66: 0 | CM66: 0 | CN66: 0 | CO66: 0 | CP66: 0 | CQ66: 0 | CR66: 0 | CS66: 0 | CT66: 0 | CU66: 0 | CV66: 0 | CX66: 0 | CY66: 0 | CZ66: 0 | DA66: 0 | DB66: 0 | DC66: 0.0001 | DD66: 0.0001 | DE66: 0.0001 | DF66: 0.0001 | DG66: 0.0001 | DH66: 0.0001 | DI66: 0.0001 | DJ66: 0.0001 | DK66: 0.0001 | DL66: 0.0001 | DM66: 0.0001 | DN66: 0.0001 | DO66: 0 | DP66: 0 | DQ66: 0 | DR66: 0.0001 | DS66: 0.0001 | DT66: 0 | DU66: 0 | DV66: 0.0001 | DW66: 0.0002 | DX66: 0.0002 | DY66: 0.0001 | DZ66: 0 | EA66: 0 | EB66: 0 | EC66: 0.0002 | ED66: 0.0003 | EE66: 0.0002 | EF66: 0.0001 | EG66: 0.0004 | EH66: 0.0008 | EI66: 0.0005 | EJ66: 0.0002 | EK66: 0.0004 | EL66: 0.0002 | EM66: 0 | EN66: 0.0004 | EO66: 0.0029 | EP66: 0.0026 | EQ66: 0.0001 | ER66: 0.0002 | ES66: 0.0006 | ET66: 0.0008 | EU66: 0.0006 | EV66: 0.0004 | EW66: 0.0013 | EX66: 0.0011 | EY66: 0.0006 | EZ66: 0.0006 | FA66: 0.0006 | FB66: 0.0008 | FC66: 0.0007 | FD66: 0.0013 | FE66: 0.0008 | FF66: 0.0001 | FG66: 0.0001 | FH66: 0 | FI66: 0.0001 | FJ66: 0.0001 | FK66: 0 | FL66: 0 | FM66: 0 | FN66: 0 | FO66: 0 | FP66: 0 | FQ66: 0 | FR66: 0 | FS66: 0 | FT66: 0 | FU66: 0 | FV66: 0 | FW66: 0 | FX66: 0 | FY66: 0 | FZ66: 0 | GA66: 0 | GB66: 0 | GC66: 0 | GD66: 0 | GE66: 0 | GF66: 0 | GG66: 0 | GH66: 0 | GI66: 0 | GJ66: 0
A67: 5 | D67: TRANSFORMERS | E67: pole mounted ; < = 22kv ; < = 60 kva ; multiple phase | F67: 8.3867 | G67: 59.38957058 | H67: 7.70646291 | I67: 2 | J67: 60 | K67: 23 | L67: 29 | M67: 26 | N67: 23 | O67: 12 | P67: 2 | Q67: 2 | R67: 3 | S67: 3 | T67: 2 | U67: 1 | V67: 2 | W67: 3 | X67: 3 | Y67: 12 | Z67: 39 | AA67: 37 | AB67: 49 | AC67: 69 | AD67: 64 | AE67: 67 | AF67: 71 | AG67: 86 | AH67: 102 | AI67: 87 | AJ67: 67 | AK67: 66 | AL67: 72 | AM67: 77 | AN67: 65 | AO67: 80 | AP67: 89 | AQ67: 82 | AR67: 71 | AS67: 59 | AT67: 59 | AU67: 60 | AV67: 56 | AW67: 54 | AX67: 54 | AY67: 51 | AZ67: 42 | BA67: 44 | BB67: 38 | BC67: 36 | BD67: 35 | BE67: 35 | BF67: 40 | BG67: 31 | BH67: 23 | BI67: 27 | BJ67: 20 | BK67: 20 | BL67: 16 | BM67: 10 | BN67: 10 | BO67: 28 | BP67: 56 | BQ67: 32 | BR67: 2 | BS67: 1 | BT67: 0 | BU67: 0 | BV67: 0 | BW67: 0 | BX67: 0 | BY67: 0 | BZ67: 0 | CA67: 0 | CB67: 0 | CC67: 0 | CD67: 0 | CE67: 0 | CF67: 0 | CG67: 0 | CH67: 0 | CI67: 0 | CJ67: 0 | CK67: 0 | CL67: 0 | CM67: 0 | CN67: 0 | CO67: 0 | CP67: 0 | CQ67: 0 | CR67: 0 | CS67: 0 | CT67: 0 | CU67: 0 | CV67: 0 | CX67: 503.202 | CY67: 192.8941 | CZ67: 243.2143 | DA67: 218.0542 | DB67: 192.8941 | DC67: 100.6404 | DD67: 16.7734 | DE67: 16.7734 | DF67: 25.1601 | DG67: 25.1601 | DH67: 16.7734 | DI67: 8.3867 | DJ67: 16.7734 | DK67: 25.1601 | DL67: 25.1601 | DM67: 100.6404 | DN67: 327.0813 | DO67: 310.3079 | DP67: 410.9483 | DQ67: 578.6823 | DR67: 536.7488 | DS67: 561.9089 | DT67: 595.4557 | DU67: 721.2562 | DV67: 855.4434 | DW67: 729.6429 | DX67: 561.9089 | DY67: 553.5222 | DZ67: 603.8424 | EA67: 645.7759 | EB67: 545.1355 | EC67: 670.936 | ED67: 746.4163 | EE67: 687.7094 | EF67: 595.4557 | EG67: 494.8153 | EH67: 494.8153 | EI67: 503.202 | EJ67: 469.6552 | EK67: 452.8818 | EL67: 452.8818 | EM67: 427.7217 | EN67: 352.2414 | EO67: 369.0148 | EP67: 318.6946 | EQ67: 301.9212 | ER67: 293.5345 | ES67: 293.5345 | ET67: 335.468 | EU67: 259.9877 | EV67: 192.8941 | EW67: 226.4409 | EX67: 167.734 | EY67: 167.734 | EZ67: 134.1872 | FA67: 83.867 | FB67: 83.867 | FC67: 234.8276 | FD67: 469.6552 | FE67: 268.3744 | FF67: 16.7734 | FG67: 8.3867 | FH67: 0 | FI67: 0 | FJ67: 0 | FK67: 0 | FL67: 0 | FM67: 0 | FN67: 0 | FO67: 0 | FP67: 0 | FQ67: 0 | FR67: 0 | FS67: 0 | FT67: 0 | FU67: 0 | FV67: 0 | FW67: 0 | FX67: 0 | FY67: 0 | FZ67: 0 | GA67: 0 | GB67: 0 | GC67: 0 | GD67: 0 | GE67: 0 | GF67: 0 | GG67: 0 | GH67: 0 | GI67: 0 | GJ67: 0
A68: 5 | D68: TRANSFORMERS | E68: pole mounted ; < = 22kv ; > 60 kva and < = 600 kva ; multiple phase | F68: 17.9466 | G68: 52.42265947 | H68: 7.240349402 | I68: 2 | J68: 220 | K68: 191 | L68: 270 | M68: 333 | N68: 280 | O68: 103 | P68: 15 | Q68: 22 | R68: 20 | S68: 7 | T68: 7 | U68: 8 | V68: 9 | W68: 3 | X68: 1 | Y68: 11 | Z68: 38 | AA68: 38 | AB68: 49 | AC68: 63 | AD68: 46 | AE68: 54 | AF68: 58 | AG68: 67 | AH68: 66 | AI68: 68 | AJ68: 81 | AK68: 76 | AL68: 68 | AM68: 72 | AN68: 64 | AO68: 66 | AP68: 65 | AQ68: 58 | AR68: 51 | AS68: 71 | AT68: 76 | AU68: 55 | AV68: 51 | AW68: 47 | AX68: 35 | AY68: 35 | AZ68: 33 | BA68: 31 | BB68: 31 | BC68: 22 | BD68: 21 | BE68: 23 | BF68: 41 | BG68: 44 | BH68: 22 | BI68: 10 | BJ68: 7 | BK68: 36 | BL68: 34 | BM68: 6 | BN68: 8 | BO68: 32 | BP68: 77 | BQ68: 49 | BR68: 1 | BS68: 2 | BT68: 1 | BU68: 3 | BV68: 3 | BW68: 0 | BX68: 0 | BY68: 0 | BZ68: 0 | CA68: 0 | CB68: 0 | CC68: 0 | CD68: 0 | CE68: 0 | CF68: 0 | CG68: 0 | CH68: 0 | CI68: 0 | CJ68: 0 | CK68: 0 | CL68: 0 | CM68: 0 | CN68: 0 | CO68: 0 | CP68: 0 | CQ68: 0 | CR68: 0 | CS68: 0 | CT68: 0 | CU68: 0 | CV68: 0 | CX68: 3948.252 | CY68: 3427.8006 | CZ68: 4845.582 | DA68: 5976.2178 | DB68: 5025.048 | DC68: 1848.4998 | DD68: 269.199 | DE68: 394.8252 | DF68: 358.932 | DG68: 125.6262 | DH68: 125.6262 | DI68: 143.5728 | DJ68: 161.5194 | DK68: 53.8398 | DL68: 17.9466 | DM68: 197.4126 | DN68: 681.9708 | DO68: 681.9708 | DP68: 879.3834 | DQ68: 1130.6358 | DR68: 825.5436 | DS68: 969.1164 | DT68: 1040.9028 | DU68: 1202.4222 | DV68: 1184.4756 | DW68: 1220.3688 | DX68: 1453.6746 | DY68: 1363.9416 | DZ68: 1220.3688 | EA68: 1292.1552 | EB68: 1148.5824 | EC68: 1184.4756 | ED68: 1166.529 | EE68: 1040.9028 | EF68: 915.2766 | EG68: 1274.2086 | EH68: 1363.9416 | EI68: 987.063 | EJ68: 915.2766 | EK68: 843.4902 | EL68: 628.131 | EM68: 628.131 | EN68: 592.2378 | EO68: 556.3446 | EP68: 556.3446 | EQ68: 394.8252 | ER68: 376.8786 | ES68: 412.7718 | ET68: 735.8106 | EU68: 789.6504 | EV68: 394.8252 | EW68: 179.466 | EX68: 125.6262 | EY68: 646.0776 | EZ68: 610.1844 | FA68: 107.6796 | FB68: 143.5728 | FC68: 574.2912 | FD68: 1381.8882 | FE68: 879.3834 | FF68: 17.9466 | FG68: 35.8932 | FH68: 17.9466 | FI68: 53.8398 | FJ68: 53.8398 | FK68: 0 | FL68: 0 | FM68: 0 | FN68: 0 | FO68: 0 | FP68: 0 | FQ68: 0 | FR68: 0 | FS68: 0 | FT68: 0 | FU68: 0 | FV68: 0 | FW68: 0 | FX68: 0 | FY68: 0 | FZ68: 0 | GA68: 0 | GB68: 0 | GC68: 0 | GD68: 0 | GE68: 0 | GF68: 0 | GG68: 0 | GH68: 0 | GI68: 0 | GJ68: 0
A69: 5 | D69: TRANSFORMERS | E69: pole mounted ; < = 22kv ; > 600 kva ; multiple phase | F69: 73.1489 | G69: 30.19434888 | H69: 5.494938478 | I69: 2 | J69: 0 | K69: 0 | L69: 0 | M69: 1 | N69: 1 | O69: 0 | P69: 0 | Q69: 0 | R69: 0 | S69: 0 | T69: 0 | U69: 1 | V69: 1 | W69: 1 | X69: 0 | Y69: 0 | Z69: 0 | AA69: 0 | AB69: 0 | AC69: 0 | AD69: 0 | AE69: 0 | AF69: 0 | AG69: 0 | AH69: 0 | AI69: 0 | AJ69: 0 | AK69: 0 | AL69: 0 | AM69: 0 | AN69: 0 | AO69: 0 | AP69: 1 | AQ69: 1 | AR69: 0 | AS69: 0 | AT69: 0 | AU69: 1 | AV69: 1 | AW69: 1 | AX69: 0 | AY69: 0 | AZ69: 0 | BA69: 4 | BB69: 4 | BC69: 0 | BD69: 0 | BE69: 0 | BF69: 0 | BG69: 0 | BH69: 1 | BI69: 2 | BJ69: 1 | BK69: 1 | BL69: 1 | BM69: 0 | BN69: 0 | BO69: 1 | BP69: 2 | BQ69: 1 | BR69: 0 | BS69: 0 | BT69: 0 | BU69: 0 | BV69: 0 | BW69: 0 | BX69: 0 | BY69: 0 | BZ69: 0 | CA69: 0 | CB69: 0 | CC69: 0 | CD69: 0 | CE69: 0 | CF69: 0 | CG69: 0 | CH69: 0 | CI69: 0 | CJ69: 0 | CK69: 0 | CL69: 0 | CM69: 0 | CN69: 0 | CO69: 0 | CP69: 0 | CQ69: 0 | CR69: 0 | CS69: 0 | CT69: 0 | CU69: 0 | CV69: 0 | CX69: 0 | CY69: 0 | CZ69: 0 | DA69: 73.1489 | DB69: 73.1489 | DC69: 0 | DD69: 0 | DE69: 0 | DF69: 0 | DG69: 0 | DH69: 0 | DI69: 73.1489 | DJ69: 73.1489 | DK69: 73.1489 | DL69: 0 | DM69: 0 | DN69: 0 | DO69: 0 | DP69: 0 | DQ69: 0 | DR69: 0 | DS69: 0 | DT69: 0 | DU69: 0 | DV69: 0 | DW69: 0 | DX69: 0 | DY69: 0 | DZ69: 0 | EA69: 0 | EB69: 0 | EC69: 0 | ED69: 73.1489 | EE69: 73.1489 | EF69: 0 | EG69: 0 | EH69: 0 | EI69: 73.1489 | EJ69: 73.1489 | EK69: 73.1489 | EL69: 0 | EM69: 0 | EN69: 0 | EO69: 292.5956 | EP69: 292.5956 | EQ69: 0 | ER69: 0 | ES69: 0 | ET69: 0 | EU69: 0 | EV69: 73.1489 | EW69: 146.2978 | EX69: 73.1489 | EY69: 73.1489 | EZ69: 73.1489 | FA69: 0 | FB69: 0 | FC69: 73.1489 | FD69: 146.2978 | FE69: 73.1489 | FF69: 0 | FG69: 0 | FH69: 0 | FI69: 0 | FJ69: 0 | FK69: 0 | FL69: 0 | FM69: 0 | FN69: 0 | FO69: 0 | FP69: 0 | FQ69: 0 | FR69: 0 | FS69: 0 | FT69: 0 | FU69: 0 | FV69: 0 | FW69: 0 | FX69: 0 | FY69: 0 | FZ69: 0 | GA69: 0 | GB69: 0 | GC69: 0 | GD69: 0 | GE69: 0 | GF69: 0 | GG69: 0 | GH69: 0 | GI69: 0 | GJ69: 0
A70: 5 | D70: TRANSFORMERS | E70: kiosk mounted ; < = 22kv ; < = 60 kva ; single phase | F70: 1.7292 | G70: 49.83146604 | H70: 7.059140602 | I70: 2 | J70: 0 | K70: 1 | L70: 2 | M70: 2 | N70: 1 | O70: 4 | P70: 8 | Q70: 9 | R70: 10 | S70: 7 | T70: 6 | U70: 8 | V70: 5 | W70: 3 | X70: 7 | Y70: 8 | Z70: 8 | AA70: 9 | AB70: 9 | AC70: 10 | AD70: 12 | AE70: 14 | AF70: 16 | AG70: 17 | AH70: 14 | AI70: 19 | AJ70: 31 | AK70: 25 | AL70: 8 | AM70: 4 | AN70: 2 | AO70: 1 | AP70: 1 | AQ70: 1 | AR70: 1 | AS70: 1 | AT70: 1 | AU70: 0 | AV70: 0 | AW70: 0 | AX70: 1 | AY70: 1 | AZ70: 0 | BA70: 2 | BB70: 2 | BC70: 0 | BD70: 0 | BE70: 0 | BF70: 1 | BG70: 1 | BH70: 2 | BI70: 2 | BJ70: 1 | BK70: 2 | BL70: 2 | BM70: 0 | BN70: 0 | BO70: 2 | BP70: 3 | BQ70: 2 | BR70: 1 | BS70: 0 | BT70: 0 | BU70: 0 | BV70: 0 | BW70: 0 | BX70: 0 | BY70: 0 | BZ70: 0 | CA70: 0 | CB70: 0 | CC70: 0 | CD70: 0 | CE70: 0 | CF70: 0 | CG70: 0 | CH70: 0 | CI70: 0 | CJ70: 0 | CK70: 0 | CL70: 0 | CM70: 0 | CN70: 0 | CO70: 0 | CP70: 0 | CQ70: 0 | CR70: 0 | CS70: 0 | CT70: 0 | CU70: 0 | CV70: 0 | CX70: 0 | CY70: 1.7292 | CZ70: 3.4584 | DA70: 3.4584 | DB70: 1.7292 | DC70: 6.9168 | DD70: 13.8336 | DE70: 15.5628 | DF70: 17.292 | DG70: 12.1044 | DH70: 10.3752 | DI70: 13.8336 | DJ70: 8.646 | DK70: 5.1876 | DL70: 12.1044 | DM70: 13.8336 | DN70: 13.8336 | DO70: 15.5628 | DP70: 15.5628 | DQ70: 17.292 | DR70: 20.7504 | DS70: 24.2088 | DT70: 27.6672 | DU70: 29.3964 | DV70: 24.2088 | DW70: 32.8548 | DX70: 53.6052 | DY70: 43.23 | DZ70: 13.8336 | EA70: 6.9168 | EB70: 3.4584 | EC70: 1.7292 | ED70: 1.7292 | EE70: 1.7292 | EF70: 1.7292 | EG70: 1.7292 | EH70: 1.7292 | EI70: 0 | EJ70: 0 | EK70: 0 | EL70: 1.7292 | EM70: 1.7292 | EN70: 0 | EO70: 3.4584 | EP70: 3.4584 | EQ70: 0 | ER70: 0 | ES70: 0 | ET70: 1.7292 | EU70: 1.7292 | EV70: 3.4584 | EW70: 3.4584 | EX70: 1.7292 | EY70: 3.4584 | EZ70: 3.4584 | FA70: 0 | FB70: 0 | FC70: 3.4584 | FD70: 5.1876 | FE70: 3.4584 | FF70: 1.7292 | FG70: 0 | FH70: 0 | FI70: 0 | FJ70: 0 | FK70: 0 | FL70: 0 | FM70: 0 | FN70: 0 | FO70: 0 | FP70: 0 | FQ70: 0 | FR70: 0 | FS70: 0 | FT70: 0 | FU70: 0 | FV70: 0 | FW70: 0 | FX70: 0 | FY70: 0 | FZ70: 0 | GA70: 0 | GB70: 0 | GC70: 0 | GD70: 0 | GE70: 0 | GF70: 0 | GG70: 0 | GH70: 0 | GI70: 0 | GJ70: 0
A71: 5 | D71: TRANSFORMERS | E71: kiosk mounted ; < = 22kv ; > 60 kva and < = 600 kva ; single phase | F71: 91.7236 | G71: 71.61300921 | H71: 8.462446999 | I71: 2 | J71: 0 | K71: 13 | L71: 27 | M71: 41 | N71: 134 | O71: 263 | P71: 245 | Q71: 210 | R71: 253 | S71: 263 | T71: 238 | U71: 218 | V71: 172 | W71: 153 | X71: 167 | Y71: 171 | Z71: 143 | AA71: 115 | AB71: 163 | AC71: 229 | AD71: 233 | AE71: 199 | AF71: 243 | AG71: 321 | AH71: 347 | AI71: 305 | AJ71: 277 | AK71: 341 | AL71: 378 | AM71: 304 | AN71: 190 | AO71: 162 | AP71: 158 | AQ71: 132 | AR71: 134 | AS71: 201 | AT71: 268 | AU71: 230 | AV71: 188 | AW71: 153 | AX71: 86 | AY71: 48 | AZ71: 43 | BA71: 38 | BB71: 21 | BC71: 6 | BD71: 17 | BE71: 30 | BF71: 79 | BG71: 80 | BH71: 32 | BI71: 31 | BJ71: 22 | BK71: 69 | BL71: 67 | BM71: 9 | BN71: 16 | BO71: 50 | BP71: 104 | BQ71: 63 | BR71: 4 | BS71: 6 | BT71: 2 | BU71: 5 | BV71: 5 | BW71: 0 | BX71: 0 | BY71: 0 | BZ71: 0 | CA71: 0 | CB71: 0 | CC71: 0 | CD71: 0 | CE71: 0 | CF71: 0 | CG71: 0 | CH71: 0 | CI71: 0 | CJ71: 0 | CK71: 0 | CL71: 0 | CM71: 0 | CN71: 0 | CO71: 0 | CP71: 0 | CQ71: 0 | CR71: 0 | CS71: 0 | CT71: 0 | CU71: 0 | CV71: 0 | CX71: 0 | CY71: 1192.4068 | CZ71: 2476.5372 | DA71: 3760.6676 | DB71: 12290.9624 | DC71: 24123.3068 | DD71: 22472.282 | DE71: 19261.956 | DF71: 23206.0708 | DG71: 24123.3068 | DH71: 21830.2168 | DI71: 19995.7448 | DJ71: 15776.4592 | DK71: 14033.7108 | DL71: 15317.8412 | DM71: 15684.7356 | DN71: 13116.4748 | DO71: 10548.214 | DP71: 14950.9468 | DQ71: 21004.7044 | DR71: 21371.5988 | DS71: 18252.9964 | DT71: 22288.8348 | DU71: 29443.2756 | DV71: 31828.0892 | DW71: 27975.698 | DX71: 25407.4372 | DY71: 31277.7476 | DZ71: 34671.5208 | EA71: 27883.9744 | EB71: 17427.484 | EC71: 14859.2232 | ED71: 14492.3288 | EE71: 12107.5152 | EF71: 12290.9624 | EG71: 18436.4436 | EH71: 24581.9248 | EI71: 21096.428 | EJ71: 17244.0368 | EK71: 14033.7108 | EL71: 7888.2296 | EM71: 4402.7328 | EN71: 3944.1148 | EO71: 3485.4968 | EP71: 1926.1956 | EQ71: 550.3416 | ER71: 1559.3012 | ES71: 2751.708 | ET71: 7246.1644 | EU71: 7337.888 | EV71: 2935.1552 | EW71: 2843.4316 | EX71: 2017.9192 | EY71: 6328.9284 | EZ71: 6145.4812 | FA71: 825.5124 | FB71: 1467.5776 | FC71: 4586.18 | FD71: 9539.2544 | FE71: 5778.5868 | FF71: 366.8944 | FG71: 550.3416 | FH71: 183.4472 | FI71: 458.618 | FJ71: 458.618 | FK71: 0 | FL71: 0 | FM71: 0 | FN71: 0 | FO71: 0 | FP71: 0 | FQ71: 0 | FR71: 0 | FS71: 0 | FT71: 0 | FU71: 0 | FV71: 0 | FW71: 0 | FX71: 0 | FY71: 0 | FZ71: 0 | GA71: 0 | GB71: 0 | GC71: 0 | GD71: 0 | GE71: 0 | GF71: 0 | GG71: 0 | GH71: 0 | GI71: 0 | GJ71: 0
A72: 5 | D72: TRANSFORMERS | E72: kiosk mounted ; < = 22kv ; > 600 kva ; single phase | F72: 0.0001 | G72: 112.0996408 | H72: 10.58771178 | I72: 2 | J72: 0 | K72: 2 | L72: 1 | M72: 0 | N72: 11 | O72: 33 | P72: 39 | Q72: 40 | R72: 53 | S72: 60 | T72: 61 | U72: 50 | V72: 38 | W72: 40 | X72: 48 | Y72: 53 | Z72: 36 | AA72: 20 | AB72: 23 | AC72: 27 | AD72: 31 | AE72: 25 | AF72: 18 | AG72: 28 | AH72: 35 | AI72: 34 | AJ72: 27 | AK72: 27 | AL72: 28 | AM72: 15 | AN72: 10 | AO72: 17 | AP72: 14 | AQ72: 9 | AR72: 10 | AS72: 17 | AT72: 22 | AU72: 11 | AV72: 3 | AW72: 8 | AX72: 9 | AY72: 17 | AZ72: 17 | BA72: 7 | BB72: 5 | BC72: 5 | BD72: 4 | BE72: 7 | BF72: 12 | BG72: 8 | BH72: 5 | BI72: 23 | BJ72: 23 | BK72: 19 | BL72: 17 | BM72: 4 | BN72: 5 | BO72: 21 | BP72: 33 | BQ72: 15 | BR72: 1 | BS72: 2 | BT72: 1 | BU72: 6 | BV72: 6 | BW72: 0 | BX72: 0 | BY72: 0 | BZ72: 0 | CA72: 0 | CB72: 0 | CC72: 0 | CD72: 0 | CE72: 1 | CF72: 1 | CG72: 0 | CH72: 0 | CI72: 0 | CJ72: 0 | CK72: 0 | CL72: 0 | CM72: 0 | CN72: 0 | CO72: 0 | CP72: 0 | CQ72: 0 | CR72: 0 | CS72: 0 | CT72: 0 | CU72: 0 | CV72: 0 | CX72: 0 | CY72: 0.0002 | CZ72: 0.0001 | DA72: 0 | DB72: 0.0011 | DC72: 0.0033 | DD72: 0.0039 | DE72: 0.004 | DF72: 0.0053 | DG72: 0.006 | DH72: 0.0061 | DI72: 0.005 | DJ72: 0.0038 | DK72: 0.004 | DL72: 0.0048 | DM72: 0.0053 | DN72: 0.0036 | DO72: 0.002 | DP72: 0.0023 | DQ72: 0.0027 | DR72: 0.0031 | DS72: 0.0025 | DT72: 0.0018 | DU72: 0.0028 | DV72: 0.0035 | DW72: 0.0034 | DX72: 0.0027 | DY72: 0.0027 | DZ72: 0.0028 | EA72: 0.0015 | EB72: 0.001 | EC72: 0.0017 | ED72: 0.0014 | EE72: 0.0009 | EF72: 0.001 | EG72: 0.0017 | EH72: 0.0022 | EI72: 0.0011 | EJ72: 0.0003 | EK72: 0.0008 | EL72: 0.0009 | EM72: 0.0017 | EN72: 0.0017 | EO72: 0.0007 | EP72: 0.0005 | EQ72: 0.0005 | ER72: 0.0004 | ES72: 0.0007 | ET72: 0.0012 | EU72: 0.0008 | EV72: 0.0005 | EW72: 0.0023 | EX72: 0.0023 | EY72: 0.0019 | EZ72: 0.0017 | FA72: 0.0004 | FB72: 0.0005 | FC72: 0.0021 | FD72: 0.0033 | FE72: 0.0015 | FF72: 0.0001 | FG72: 0.0002 | FH72: 0.0001 | FI72: 0.0006 | FJ72: 0.0006 | FK72: 0 | FL72: 0 | FM72: 0 | FN72: 0 | FO72: 0 | FP72: 0 | FQ72: 0 | FR72: 0 | FS72: 0.0001 | FT72: 0.0001 | FU72: 0 | FV72: 0 | FW72: 0 | FX72: 0 | FY72: 0 | FZ72: 0 | GA72: 0 | GB72: 0 | GC72: 0 | GD72: 0 | GE72: 0 | GF72: 0 | GG72: 0 | GH72: 0 | GI72: 0 | GJ72: 0
A73: 5 | D73: TRANSFORMERS | E73: kiosk mounted ; < = 22kv ; < = 60 kva ; multiple phase | F73: 20.4497 | G73: 54.87850713 | H73: 7.408002911 | I73: 2 | J73: 6 | K73: 0 | L73: 0 | M73: 0 | N73: 0 | O73: 0 | P73: 0 | Q73: 0 | R73: 0 | S73: 0 | T73: 0 | U73: 0 | V73: 0 | W73: 0 | X73: 0 | Y73: 0 | Z73: 0 | AA73: 0 | AB73: 0 | AC73: 0 | AD73: 0 | AE73: 0 | AF73: 0 | AG73: 0 | AH73: 0 | AI73: 1 | AJ73: 1 | AK73: 1 | AL73: 0 | AM73: 0 | AN73: 0 | AO73: 0 | AP73: 0 | AQ73: 0 | AR73: 0 | AS73: 0 | AT73: 0 | AU73: 0 | AV73: 0 | AW73: 0 | AX73: 0 | AY73: 0 | AZ73: 0 | BA73: 0 | BB73: 0 | BC73: 0 | BD73: 0 | BE73: 0 | BF73: 0 | BG73: 0 | BH73: 0 | BI73: 1 | BJ73: 1 | BK73: 1 | BL73: 1 | BM73: 0 | BN73: 0 | BO73: 1 | BP73: 2 | BQ73: 1 | BR73: 0 | BS73: 0 | BT73: 0 | BU73: 0 | BV73: 0 | BW73: 0 | BX73: 0 | BY73: 0 | BZ73: 0 | CA73: 0 | CB73: 0 | CC73: 0 | CD73: 0 | CE73: 0 | CF73: 0 | CG73: 0 | CH73: 0 | CI73: 0 | CJ73: 0 | CK73: 0 | CL73: 0 | CM73: 0 | CN73: 0 | CO73: 0 | CP73: 0 | CQ73: 0 | CR73: 0 | CS73: 0 | CT73: 0 | CU73: 0 | CV73: 0 | CX73: 122.6982 | CY73: 0 | CZ73: 0 | DA73: 0 | DB73: 0 | DC73: 0 | DD73: 0 | DE73: 0 | DF73: 0 | DG73: 0 | DH73: 0 | DI73: 0 | DJ73: 0 | DK73: 0 | DL73: 0 | DM73: 0 | DN73: 0 | DO73: 0 | DP73: 0 | DQ73: 0 | DR73: 0 | DS73: 0 | DT73: 0 | DU73: 0 | DV73: 0 | DW73: 20.4497 | DX73: 20.4497 | DY73: 20.4497 | DZ73: 0 | EA73: 0 | EB73: 0 | EC73: 0 | ED73: 0 | EE73: 0 | EF73: 0 | EG73: 0 | EH73: 0 | EI73: 0 | EJ73: 0 | EK73: 0 | EL73: 0 | EM73: 0 | EN73: 0 | EO73: 0 | EP73: 0 | EQ73: 0 | ER73: 0 | ES73: 0 | ET73: 0 | EU73: 0 | EV73: 0 | EW73: 20.4497 | EX73: 20.4497 | EY73: 20.4497 | EZ73: 20.4497 | FA73: 0 | FB73: 0 | FC73: 20.4497 | FD73: 40.8994 | FE73: 20.4497 | FF73: 0 | FG73: 0 | FH73: 0 | FI73: 0 | FJ73: 0 | FK73: 0 | FL73: 0 | FM73: 0 | FN73: 0 | FO73: 0 | FP73: 0 | FQ73: 0 | FR73: 0 | FS73: 0 | FT73: 0 | FU73: 0 | FV73: 0 | FW73: 0 | FX73: 0 | FY73: 0 | FZ73: 0 | GA73: 0 | GB73: 0 | GC73: 0 | GD73: 0 | GE73: 0 | GF73: 0 | GG73: 0 | GH73: 0 | GI73: 0 | GJ73: 0
A74: 5 | D74: TRANSFORMERS | E74: kiosk mounted ; < = 22kv ; > 60 kva and < = 600 kva ; multiple phase | F74: 37.6797 | G74: 46.99289544 | H74: 6.855136427 | I74: 2 | J74: 193 | K74: 82 | L74: 163 | M74: 237 | N74: 174 | O74: 46 | P74: 23 | Q74: 31 | R74: 22 | S74: 16 | T74: 5 | U74: 7 | V74: 7 | W74: 4 | X74: 2 | Y74: 2 | Z74: 23 | AA74: 23 | AB74: 28 | AC74: 52 | AD74: 47 | AE74: 56 | AF74: 61 | AG74: 42 | AH74: 33 | AI74: 35 | AJ74: 35 | AK74: 43 | AL74: 52 | AM74: 41 | AN74: 24 | AO74: 27 | AP74: 28 | AQ74: 25 | AR74: 24 | AS74: 21 | AT74: 23 | AU74: 24 | AV74: 25 | AW74: 20 | AX74: 16 | AY74: 9 | AZ74: 3 | BA74: 11 | BB74: 10 | BC74: 2 | BD74: 4 | BE74: 7 | BF74: 17 | BG74: 15 | BH74: 3 | BI74: 6 | BJ74: 6 | BK74: 15 | BL74: 16 | BM74: 2 | BN74: 5 | BO74: 11 | BP74: 22 | BQ74: 14 | BR74: 1 | BS74: 1 | BT74: 1 | BU74: 1 | BV74: 1 | BW74: 0 | BX74: 0 | BY74: 0 | BZ74: 0 | CA74: 0 | CB74: 0 | CC74: 0 | CD74: 0 | CE74: 0 | CF74: 0 | CG74: 0 | CH74: 0 | CI74: 0 | CJ74: 0 | CK74: 0 | CL74: 0 | CM74: 0 | CN74: 0 | CO74: 0 | CP74: 0 | CQ74: 0 | CR74: 0 | CS74: 0 | CT74: 0 | CU74: 0 | CV74: 0 | CX74: 7272.1821 | CY74: 3089.7354 | CZ74: 6141.7911 | DA74: 8930.0889 | DB74: 6556.2678 | DC74: 1733.2662 | DD74: 866.6331 | DE74: 1168.0707 | DF74: 828.9534 | DG74: 602.8752 | DH74: 188.3985 | DI74: 263.7579 | DJ74: 263.7579 | DK74: 150.7188 | DL74: 75.3594 | DM74: 75.3594 | DN74: 866.6331 | DO74: 866.6331 | DP74: 1055.0316 | DQ74: 1959.3444 | DR74: 1770.9459 | DS74: 2110.0632 | DT74: 2298.4617 | DU74: 1582.5474 | DV74: 1243.4301 | DW74: 1318.7895 | DX74: 1318.7895 | DY74: 1620.2271 | DZ74: 1959.3444 | EA74: 1544.8677 | EB74: 904.3128 | EC74: 1017.3519 | ED74: 1055.0316 | EE74: 941.9925 | EF74: 904.3128 | EG74: 791.2737 | EH74: 866.6331 | EI74: 904.3128 | EJ74: 941.9925 | EK74: 753.594 | EL74: 602.8752 | EM74: 339.1173 | EN74: 113.0391 | EO74: 414.4767 | EP74: 376.797 | EQ74: 75.3594 | ER74: 150.7188 | ES74: 263.7579 | ET74: 640.5549 | EU74: 565.1955 | EV74: 113.0391 | EW74: 226.0782 | EX74: 226.0782 | EY74: 565.1955 | EZ74: 602.8752 | FA74: 75.3594 | FB74: 188.3985 | FC74: 414.4767 | FD74: 828.9534 | FE74: 527.5158 | FF74: 37.6797 | FG74: 37.6797 | FH74: 37.6797 | FI74: 37.6797 | FJ74: 37.6797 | FK74: 0 | FL74: 0 | FM74: 0 | FN74: 0 | FO74: 0 | FP74: 0 | FQ74: 0 | FR74: 0 | FS74: 0 | FT74: 0 | FU74: 0 | FV74: 0 | FW74: 0 | FX74: 0 | FY74: 0 | FZ74: 0 | GA74: 0 | GB74: 0 | GC74: 0 | GD74: 0 | GE74: 0 | GF74: 0 | GG74: 0 | GH74: 0 | GI74: 0 | GJ74: 0
A75: 5 | D75: TRANSFORMERS | E75: kiosk mounted ; < = 22kv ; > 600 kva ; multiple phase | F75: 74.5248 | G75: 39.09907658 | H75: 6.252925442 | I75: 2 | J75: 38 | K75: 23 | L75: 33 | M75: 41 | N75: 28 | O75: 7 | P75: 7 | Q75: 8 | R75: 3 | S75: 1 | T75: 1 | U75: 2 | V75: 3 | W75: 3 | X75: 1 | Y75: 0 | Z75: 5 | AA75: 5 | AB75: 4 | AC75: 6 | AD75: 5 | AE75: 4 | AF75: 4 | AG75: 5 | AH75: 5 | AI75: 1 | AJ75: 2 | AK75: 3 | AL75: 3 | AM75: 2 | AN75: 1 | AO75: 3 | AP75: 4 | AQ75: 4 | AR75: 3 | AS75: 2 | AT75: 3 | AU75: 2 | AV75: 0 | AW75: 0 | AX75: 0 | AY75: 2 | AZ75: 2 | BA75: 1 | BB75: 1 | BC75: 0 | BD75: 2 | BE75: 2 | BF75: 3 | BG75: 3 | BH75: 1 | BI75: 4 | BJ75: 4 | BK75: 2 | BL75: 2 | BM75: 0 | BN75: 0 | BO75: 3 | BP75: 7 | BQ75: 4 | BR75: 0 | BS75: 0 | BT75: 0 | BU75: 1 | BV75: 1 | BW75: 0 | BX75: 0 | BY75: 0 | BZ75: 0 | CA75: 0 | CB75: 0 | CC75: 0 | CD75: 0 | CE75: 0 | CF75: 0 | CG75: 0 | CH75: 0 | CI75: 0 | CJ75: 0 | CK75: 0 | CL75: 0 | CM75: 0 | CN75: 0 | CO75: 0 | CP75: 0 | CQ75: 0 | CR75: 0 | CS75: 0 | CT75: 0 | CU75: 0 | CV75: 0 | CX75: 2831.9424 | CY75: 1714.0704 | CZ75: 2459.3184 | DA75: 3055.5168 | DB75: 2086.6944 | DC75: 521.6736 | DD75: 521.6736 | DE75: 596.1984 | DF75: 223.5744 | DG75: 74.5248 | DH75: 74.5248 | DI75: 149.0496 | DJ75: 223.5744 | DK75: 223.5744 | DL75: 74.5248 | DM75: 0 | DN75: 372.624 | DO75: 372.624 | DP75: 298.0992 | DQ75: 447.1488 | DR75: 372.624 | DS75: 298.0992 | DT75: 298.0992 | DU75: 372.624 | DV75: 372.624 | DW75: 74.5248 | DX75: 149.0496 | DY75: 223.5744 | DZ75: 223.5744 | EA75: 149.0496 | EB75: 74.5248 | EC75: 223.5744 | ED75: 298.0992 | EE75: 298.0992 | EF75: 223.5744 | EG75: 149.0496 | EH75: 223.5744 | EI75: 149.0496 | EJ75: 0 | EK75: 0 | EL75: 0 | EM75: 149.0496 | EN75: 149.0496 | EO75: 74.5248 | EP75: 74.5248 | EQ75: 0 | ER75: 149.0496 | ES75: 149.0496 | ET75: 223.5744 | EU75: 223.5744 | EV75: 74.5248 | EW75: 298.0992 | EX75: 298.0992 | EY75: 149.0496 | EZ75: 149.0496 | FA75: 0 | FB75: 0 | FC75: 223.5744 | FD75: 521.6736 | FE75: 298.0992 | FF75: 0 | FG75: 0 | FH75: 0 | FI75: 74.5248 | FJ75: 74.5248 | FK75: 0 | FL75: 0 | FM75: 0 | FN75: 0 | FO75: 0 | FP75: 0 | FQ75: 0 | FR75: 0 | FS75: 0 | FT75: 0 | FU75: 0 | FV75: 0 | FW75: 0 | FX75: 0 | FY75: 0 | FZ75: 0 | GA75: 0 | GB75: 0 | GC75: 0 | GD75: 0 | GE75: 0 | GF75: 0 | GG75: 0 | GH75: 0 | GI75: 0 | GJ75: 0
A76: 5 | D76: TRANSFORMERS | E76: ground outdoor / indoor chamber mounted; ˂ 22 kv ; < = 60 kva ; single phase | F76: 0.0001 | G76: 94.72797864 | H76: 9.73282994 | I76: 2 | J76: 0 | K76: 0 | L76: 0 | M76: 0 | N76: 0 | O76: 0 | P76: 0 | Q76: 0 | R76: 0 | S76: 0 | T76: 0 | U76: 0 | V76: 0 | W76: 0 | X76: 0 | Y76: 0 | Z76: 0 | AA76: 0 | AB76: 0 | AC76: 0 | AD76: 0 | AE76: 0 | AF76: 0 | AG76: 0 | AH76: 0 | AI76: 0 | AJ76: 1 | AK76: 2 | AL76: 1 | AM76: 0 | AN76: 0 | AO76: 0 | AP76: 0 | AQ76: 0 | AR76: 0 | AS76: 0 | AT76: 0 | AU76: 0 | AV76: 0 | AW76: 0 | AX76: 0 | AY76: 1 | AZ76: 1 | BA76: 0 | BB76: 0 | BC76: 0 | BD76: 0 | BE76: 0 | BF76: 0 | BG76: 0 | BH76: 0 | BI76: 0 | BJ76: 1 | BK76: 1 | BL76: 1 | BM76: 0 | BN76: 0 | BO76: 0 | BP76: 1 | BQ76: 1 | BR76: 0 | BS76: 0 | BT76: 0 | BU76: 0 | BV76: 0 | BW76: 0 | BX76: 0 | BY76: 0 | BZ76: 0 | CA76: 0 | CB76: 0 | CC76: 0 | CD76: 0 | CE76: 0 | CF76: 0 | CG76: 0 | CH76: 0 | CI76: 0 | CJ76: 0 | CK76: 0 | CL76: 0 | CM76: 0 | CN76: 0 | CO76: 0 | CP76: 0 | CQ76: 0 | CR76: 0 | CS76: 0 | CT76: 0 | CU76: 0 | CV76: 0 | CX76: 0 | CY76: 0 | CZ76: 0 | DA76: 0 | DB76: 0 | DC76: 0 | DD76: 0 | DE76: 0 | DF76: 0 | DG76: 0 | DH76: 0 | DI76: 0 | DJ76: 0 | DK76: 0 | DL76: 0 | DM76: 0 | DN76: 0 | DO76: 0 | DP76: 0 | DQ76: 0 | DR76: 0 | DS76: 0 | DT76: 0 | DU76: 0 | DV76: 0 | DW76: 0 | DX76: 0.0001 | DY76: 0.0002 | DZ76: 0.0001 | EA76: 0 | EB76: 0 | EC76: 0 | ED76: 0 | EE76: 0 | EF76: 0 | EG76: 0 | EH76: 0 | EI76: 0 | EJ76: 0 | EK76: 0 | EL76: 0 | EM76: 0.0001 | EN76: 0.0001 | EO76: 0 | EP76: 0 | EQ76: 0 | ER76: 0 | ES76: 0 | ET76: 0 | EU76: 0 | EV76: 0 | EW76: 0 | EX76: 0.0001 | EY76: 0.0001 | EZ76: 0.0001 | FA76: 0 | FB76: 0 | FC76: 0 | FD76: 0.0001 | FE76: 0.0001 | FF76: 0 | FG76: 0 | FH76: 0 | FI76: 0 | FJ76: 0 | FK76: 0 | FL76: 0 | FM76: 0 | FN76: 0 | FO76: 0 | FP76: 0 | FQ76: 0 | FR76: 0 | FS76: 0 | FT76: 0 | FU76: 0 | FV76: 0 | FW76: 0 | FX76: 0 | FY76: 0 | FZ76: 0 | GA76: 0 | GB76: 0 | GC76: 0 | GD76: 0 | GE76: 0 | GF76: 0 | GG76: 0 | GH76: 0 | GI76: 0 | GJ76: 0
A77: 5 | D77: TRANSFORMERS | E77: ground outdoor / indoor chamber mounted; ˂ 22 kv ; > 60 kva and < = 600 kva ; single phase | F77: 80.4347 | G77: 72.9250582 | H77: 8.539616982 | I77: 2 | J77: 0 | K77: 0 | L77: 0 | M77: 0 | N77: 1 | O77: 2 | P77: 1 | Q77: 2 | R77: 2 | S77: 1 | T77: 1 | U77: 1 | V77: 2 | W77: 3 | X77: 5 | Y77: 4 | Z77: 4 | AA77: 2 | AB77: 1 | AC77: 1 | AD77: 1 | AE77: 2 | AF77: 3 | AG77: 2 | AH77: 2 | AI77: 3 | AJ77: 5 | AK77: 7 | AL77: 9 | AM77: 9 | AN77: 7 | AO77: 15 | AP77: 17 | AQ77: 8 | AR77: 4 | AS77: 2 | AT77: 3 | AU77: 6 | AV77: 25 | AW77: 27 | AX77: 12 | AY77: 20 | AZ77: 21 | BA77: 17 | BB77: 17 | BC77: 17 | BD77: 17 | BE77: 14 | BF77: 14 | BG77: 10 | BH77: 5 | BI77: 4 | BJ77: 3 | BK77: 5 | BL77: 4 | BM77: 1 | BN77: 3 | BO77: 5 | BP77: 6 | BQ77: 3 | BR77: 0 | BS77: 0 | BT77: 0 | BU77: 1 | BV77: 1 | BW77: 0 | BX77: 0 | BY77: 0 | BZ77: 0 | CA77: 0 | CB77: 0 | CC77: 0 | CD77: 0 | CE77: 0 | CF77: 0 | CG77: 0 | CH77: 0 | CI77: 0 | CJ77: 0 | CK77: 0 | CL77: 0 | CM77: 0 | CN77: 0 | CO77: 0 | CP77: 0 | CQ77: 0 | CR77: 0 | CS77: 0 | CT77: 0 | CU77: 0 | CV77: 0 | CX77: 0 | CY77: 0 | CZ77: 0 | DA77: 0 | DB77: 80.4347 | DC77: 160.8694 | DD77: 80.4347 | DE77: 160.8694 | DF77: 160.8694 | DG77: 80.4347 | DH77: 80.4347 | DI77: 80.4347 | DJ77: 160.8694 | DK77: 241.3041 | DL77: 402.1735 | DM77: 321.7388 | DN77: 321.7388 | DO77: 160.8694 | DP77: 80.4347 | DQ77: 80.4347 | DR77: 80.4347 | DS77: 160.8694 | DT77: 241.3041 | DU77: 160.8694 | DV77: 160.8694 | DW77: 241.3041 | DX77: 402.1735 | DY77: 563.0429 | DZ77: 723.9123 | EA77: 723.9123 | EB77: 563.0429 | EC77: 1206.5205 | ED77: 1367.3899 | EE77: 643.4776 | EF77: 321.7388 | EG77: 160.8694 | EH77: 241.3041 | EI77: 482.6082 | EJ77: 2010.8675 | EK77: 2171.7369 | EL77: 965.2164 | EM77: 1608.694 | EN77: 1689.1287 | EO77: 1367.3899 | EP77: 1367.3899 | EQ77: 1367.3899 | ER77: 1367.3899 | ES77: 1126.0858 | ET77: 1126.0858 | EU77: 804.347 | EV77: 402.1735 | EW77: 321.7388 | EX77: 241.3041 | EY77: 402.1735 | EZ77: 321.7388 | FA77: 80.4347 | FB77: 241.3041 | FC77: 402.1735 | FD77: 482.6082 | FE77: 241.3041 | FF77: 0 | FG77: 0 | FH77: 0 | FI77: 80.4347 | FJ77: 80.4347 | FK77: 0 | FL77: 0 | FM77: 0 | FN77: 0 | FO77: 0 | FP77: 0 | FQ77: 0 | FR77: 0 | FS77: 0 | FT77: 0 | FU77: 0 | FV77: 0 | FW77: 0 | FX77: 0 | FY77: 0 | FZ77: 0 | GA77: 0 | GB77: 0 | GC77: 0 | GD77: 0 | GE77: 0 | GF77: 0 | GG77: 0 | GH77: 0 | GI77: 0 | GJ77: 0
A78: 5 | D78: TRANSFORMERS | E78: ground outdoor / indoor chamber mounted; ˂ 22 kv ; > 600 kva ; single phase | F78: 88.7564 | G78: 72.12626475 | H78: 8.492718337 | I78: 2 | J78: 0 | K78: 0 | L78: 0 | M78: 0 | N78: 0 | O78: 0 | P78: 0 | Q78: 0 | R78: 0 | S78: 0 | T78: 1 | U78: 2 | V78: 2 | W78: 2 | X78: 1 | Y78: 1 | Z78: 2 | AA78: 2 | AB78: 4 | AC78: 5 | AD78: 4 | AE78: 3 | AF78: 3 | AG78: 2 | AH78: 5 | AI78: 5 | AJ78: 4 | AK78: 8 | AL78: 7 | AM78: 6 | AN78: 7 | AO78: 9 | AP78: 9 | AQ78: 8 | AR78: 7 | AS78: 3 | AT78: 3 | AU78: 4 | AV78: 7 | AW78: 7 | AX78: 5 | AY78: 3 | AZ78: 1 | BA78: 5 | BB78: 6 | BC78: 4 | BD78: 5 | BE78: 4 | BF78: 2 | BG78: 0 | BH78: 0 | BI78: 7 | BJ78: 8 | BK78: 2 | BL78: 2 | BM78: 0 | BN78: 0 | BO78: 2 | BP78: 2 | BQ78: 0 | BR78: 0 | BS78: 1 | BT78: 1 | BU78: 2 | BV78: 2 | BW78: 0 | BX78: 0 | BY78: 0 | BZ78: 0 | CA78: 0 | CB78: 0 | CC78: 0 | CD78: 0 | CE78: 0 | CF78: 0 | CG78: 0 | CH78: 0 | CI78: 0 | CJ78: 0 | CK78: 0 | CL78: 0 | CM78: 0 | CN78: 0 | CO78: 0 | CP78: 0 | CQ78: 0 | CR78: 0 | CS78: 0 | CT78: 0 | CU78: 0 | CV78: 0 | CX78: 0 | CY78: 0 | CZ78: 0 | DA78: 0 | DB78: 0 | DC78: 0 | DD78: 0 | DE78: 0 | DF78: 0 | DG78: 0 | DH78: 88.7564 | DI78: 177.5128 | DJ78: 177.5128 | DK78: 177.5128 | DL78: 88.7564 | DM78: 88.7564 | DN78: 177.5128 | DO78: 177.5128 | DP78: 355.0256 | DQ78: 443.782 | DR78: 355.0256 | DS78: 266.2692 | DT78: 266.2692 | DU78: 177.5128 | DV78: 443.782 | DW78: 443.782 | DX78: 355.0256 | DY78: 710.0512 | DZ78: 621.2948 | EA78: 532.5384 | EB78: 621.2948 | EC78: 798.8076 | ED78: 798.8076 | EE78: 710.0512 | EF78: 621.2948 | EG78: 266.2692 | EH78: 266.2692 | EI78: 355.0256 | EJ78: 621.2948 | EK78: 621.2948 | EL78: 443.782 | EM78: 266.2692 | EN78: 88.7564 | EO78: 443.782 | EP78: 532.5384 | EQ78: 355.0256 | ER78: 443.782 | ES78: 355.0256 | ET78: 177.5128 | EU78: 0 | EV78: 0 | EW78: 621.2948 | EX78: 710.0512 | EY78: 177.5128 | EZ78: 177.5128 | FA78: 0 | FB78: 0 | FC78: 177.5128 | FD78: 177.5128 | FE78: 0 | FF78: 0 | FG78: 88.7564 | FH78: 88.7564 | FI78: 177.5128 | FJ78: 177.5128 | FK78: 0 | FL78: 0 | FM78: 0 | FN78: 0 | FO78: 0 | FP78: 0 | FQ78: 0 | FR78: 0 | FS78: 0 | FT78: 0 | FU78: 0 | FV78: 0 | FW78: 0 | FX78: 0 | FY78: 0 | FZ78: 0 | GA78: 0 | GB78: 0 | GC78: 0 | GD78: 0 | GE78: 0 | GF78: 0 | GG78: 0 | GH78: 0 | GI78: 0 | GJ78: 0
E79: ground outdoor / indoor chamber mounted; ˂ 22 kv ; < = 60 kva ; multiple phase | F79: 0 | G79: 50 | H79: 7.071067812 | I79: 2 | J79: 0 | K79: 0 | L79: 0 | M79: 0 | N79: 0 | O79: 0 | P79: 0 | Q79: 0 | R79: 0 | S79: 0 | T79: 0 | U79: 0 | V79: 0 | W79: 0 | X79: 0 | Y79: 0 | Z79: 0 | AA79: 0 | AB79: 0 | AC79: 0 | AD79: 0 | AE79: 0 | AF79: 0 | AG79: 0 | AH79: 0 | AI79: 0 | AJ79: 0 | AK79: 0 | AL79: 0 | AM79: 0 | AN79: 0 | AO79: 0 | AP79: 0 | AQ79: 0 | AR79: 0 | AS79: 0 | AT79: 0 | AU79: 0 | AV79: 0 | AW79: 0 | AX79: 0 | AY79: 0 | AZ79: 0 | BA79: 0 | BB79: 0 | BC79: 0 | BD79: 0 | BE79: 0 | BF79: 0 | BG79: 0 | BH79: 0 | BI79: 0 | BJ79: 0 | BK79: 0 | BL79: 0 | BM79: 0 | BN79: 0 | BO79: 0 | BP79: 0 | BQ79: 0 | BR79: 0 | BS79: 0 | BT79: 0 | BU79: 0 | BV79: 0 | BW79: 0 | BX79: 0 | BY79: 0 | BZ79: 0 | CA79: 0 | CB79: 0 | CC79: 0 | CD79: 0 | CE79: 0 | CF79: 0 | CG79: 0 | CH79: 0 | CI79: 0 | CJ79: 0 | CK79: 0 | CL79: 0 | CM79: 0 | CN79: 0 | CO79: 0 | CP79: 0 | CQ79: 0 | CR79: 0 | CS79: 0 | CT79: 0 | CU79: 0 | CV79: 0 | CX79: 0 | CY79: 0 | CZ79: 0 | DA79: 0 | DB79: 0 | DC79: 0 | DD79: 0 | DE79: 0 | DF79: 0 | DG79: 0 | DH79: 0 | DI79: 0 | DJ79: 0 | DK79: 0 | DL79: 0 | DM79: 0 | DN79: 0 | DO79: 0 | DP79: 0 | DQ79: 0 | DR79: 0 | DS79: 0 | DT79: 0 | DU79: 0 | DV79: 0 | DW79: 0 | DX79: 0 | DY79: 0 | DZ79: 0 | EA79: 0 | EB79: 0 | EC79: 0 | ED79: 0 | EE79: 0 | EF79: 0 | EG79: 0 | EH79: 0 | EI79: 0 | EJ79: 0 | EK79: 0 | EL79: 0 | EM79: 0 | EN79: 0 | EO79: 0 | EP79: 0 | EQ79: 0 | ER79: 0 | ES79: 0 | ET79: 0 | EU79: 0 | EV79: 0 | EW79: 0 | EX79: 0 | EY79: 0 | EZ79: 0 | FA79: 0 | FB79: 0 | FC79: 0 | FD79: 0 | FE79: 0 | FF79: 0 | FG79: 0 | FH79: 0 | FI79: 0 | FJ79: 0 | FK79: 0 | FL79: 0 | FM79: 0 | FN79: 0 | FO79: 0 | FP79: 0 | FQ79: 0 | FR79: 0 | FS79: 0 | FT79: 0 | FU79: 0 | FV79: 0 | FW79: 0 | FX79: 0 | FY79: 0 | FZ79: 0 | GA79: 0 | GB79: 0 | GC79: 0 | GD79: 0 | GE79: 0 | GF79: 0 | GG79: 0 | GH79: 0 | GI79: 0 | GJ79: 0
A80: 5 | D80: TRANSFORMERS | E80: ground outdoor / indoor chamber mounted; ˂ 22 kv ; > 60 kva and < = 600 kva ; multiple phase | F80: 48.6674 | G80: 63.46529205 | H80: 7.966510657 | I80: 2 | J80: 0 | K80: 0 | L80: 0 | M80: 0 | N80: 0 | O80: 0 | P80: 1 | Q80: 1 | R80: 0 | S80: 0 | T80: 0 | U80: 0 | V80: 0 | W80: 0 | X80: 0 | Y80: 0 | Z80: 0 | AA80: 0 | AB80: 0 | AC80: 0 | AD80: 0 | AE80: 0 | AF80: 0 | AG80: 0 | AH80: 0 | AI80: 0 | AJ80: 0 | AK80: 0 | AL80: 0 | AM80: 0 | AN80: 0 | AO80: 0 | AP80: 0 | AQ80: 0 | AR80: 0 | AS80: 0 | AT80: 0 | AU80: 0 | AV80: 0 | AW80: 0 | AX80: 0 | AY80: 0 | AZ80: 0 | BA80: 0 | BB80: 0 | BC80: 1 | BD80: 0 | BE80: 0 | BF80: 0 | BG80: 0 | BH80: 0 | BI80: 0 | BJ80: 0 | BK80: 0 | BL80: 2 | BM80: 0 | BN80: 0 | BO80: 0 | BP80: 0 | BQ80: 0 | BR80: 0 | BS80: 1 | BT80: 1 | BU80: 0 | BV80: 0 | BW80: 0 | BX80: 0 | BY80: 0 | BZ80: 0 | CA80: 0 | CB80: 0 | CC80: 0 | CD80: 0 | CE80: 0 | CF80: 0 | CG80: 0 | CH80: 0 | CI80: 0 | CJ80: 0 | CK80: 0 | CL80: 0 | CM80: 0 | CN80: 0 | CO80: 0 | CP80: 0 | CQ80: 0 | CR80: 0 | CS80: 0 | CT80: 0 | CU80: 0 | CV80: 0 | CX80: 0 | CY80: 0 | CZ80: 0 | DA80: 0 | DB80: 0 | DC80: 0 | DD80: 48.6674 | DE80: 48.6674 | DF80: 0 | DG80: 0 | DH80: 0 | DI80: 0 | DJ80: 0 | DK80: 0 | DL80: 0 | DM80: 0 | DN80: 0 | DO80: 0 | DP80: 0 | DQ80: 0 | DR80: 0 | DS80: 0 | DT80: 0 | DU80: 0 | DV80: 0 | DW80: 0 | DX80: 0 | DY80: 0 | DZ80: 0 | EA80: 0 | EB80: 0 | EC80: 0 | ED80: 0 | EE80: 0 | EF80: 0 | EG80: 0 | EH80: 0 | EI80: 0 | EJ80: 0 | EK80: 0 | EL80: 0 | EM80: 0 | EN80: 0 | EO80: 0 | EP80: 0 | EQ80: 48.6674 | ER80: 0 | ES80: 0 | ET80: 0 | EU80: 0 | EV80: 0 | EW80: 0 | EX80: 0 | EY80: 0 | EZ80: 97.3348 | FA80: 0 | FB80: 0 | FC80: 0 | FD80: 0 | FE80: 0 | FF80: 0 | FG80: 48.6674 | FH80: 48.6674 | FI80: 0 | FJ80: 0 | FK80: 0 | FL80: 0 | FM80: 0 | FN80: 0 | FO80: 0 | FP80: 0 | FQ80: 0 | FR80: 0 | FS80: 0 | FT80: 0 | FU80: 0 | FV80: 0 | FW80: 0 | FX80: 0 | FY80: 0 | FZ80: 0 | GA80: 0 | GB80: 0 | GC80: 0 | GD80: 0 | GE80: 0 | GF80: 0 | GG80: 0 | GH80: 0 | GI80: 0 | GJ80: 0
